Workbook

Sheet Nastavení příloh (hidden)
C1: Rozdělení poplatku - příjem od občanů, kterým jsou kryty náklady
C2: Výše poplatku: | D2: 600 | E2: Kč/osoba | T2: Bonus třídění - původní vzorec je na F16
C3: Fixní náklady: | D3: 0.16 | E3: koef. | F3: =$D$2*D3 -> 96 | G3: Kč/osoba | J3: Náklady na 1l SKO: | K3: -0.34 | L3: Kč/l | O3: 0.3 | T3: Bonus využívání - vše je původní krom záporných čísel, ty jsou děleny dvěma, dále je ručně upravena oblast pro úroveň třídění nad 80% | DG3: Náklady na 1l SKO: | DH3: -0.34 | DI3: Kč/l
C4: Náklady na SKO: | D4: 0.14 | E4: koef. | F4: =$D$2*D4 -> 84 | G4: Kč/osoba | J4: Náklady na 1l PL+PAP: | K4: -0.14 | L4: Kč/l | O4: 0.12 | T4: Bonus snižování - většina je původní | DB4: Výše poplatku: | DC4: 500 | DD4: Kč/osoba | DG4: Náklady na 1l PL+PAP: | DH4: -0.14 | DI4: Kč/l
C5: Náklady na tříďák: | D5: 0.25 | E5: koef. | F5: =$D$2*D5 -> 150 | G5: Kč/osoba | J5: Příjmy na 1l PL+PAP: | K5: 0.14 | L5: Kč/l | O5: 0.18 | DG5: Příjmy na 1l PL+PAP: | DH5: 0.14 | DI5: Kč/l
C6: Prostředky Bio: | D6: 0.25 | E6: koef. | F6: =$D$2*D6 -> 150 | G6: Kč/osoba | O6: 0.2
C7: Prostředky předcház.: | D7: 0.2 | E7: koef. | F7: =$D$2*D7 -> 120 | G7: Kč/osoba | O7: 0.2
C8: KONTROLA: | D8: =D3+D4+D5+D6+D7 -> 1 | E8: koef. | F8: =F3+F4+F5+F6+F7 -> 600 | G8: Kč/osoba
X9: Příloha č. 5 k OZV č. …/2013 Název obec/město | AV9: Příloha č. 6 k OZV č. …/2013 Název obec/město | BT9: Příloha č. 7 k OZV č. …/2013 Název obec/město | CR9: Příloha č. ??? k OZV č. …/2013 Název obec/město
A10: Maximální roční bonusy za třídění odpadů (zkráceně BT) - procentuální úleva na poplatku placeného na následující rok | Y10: Maximální roční bonusy za efektivní využívání nádob (BV)-procentuální úleva na poplatku placeného na následující rok | AW10: Maximální roční bonusy za snižování produkce odpadů (BS)-procentuální úleva na poplatku placeného na následující rok | BU10: Součet maximálních ročních bonusů (BT + BV + BS) | CT10: KONTROLA = Poplatek - Sleva - SKO náklady - Tříďák náklad + Tříďák příjmy
A12: Bonus za třídění odpadů je udělen do výše 23% za plast, 20% za papír, 30% za bioodpad, 13% za sklo, 8% za textil, 2% za nápojový karton, 2% za jedlý olej a tuk a 2% za drobné elektrozařízení z hodnoty maximálního bonusu uvedeného v této tabulce. | F12: Procentuální zastoupení objemu obsloužených nádob na plast a na papír v celkovém objemu obsloužených nádob | Y12: Bonus za efektivní využívání sběrných nádob je udělen do výše 100% z hodnoty maximálního bonusu uvedeného v této tabulce. | AD12: Procentuální zastoupení objemu obsloužených nádob na plast a na papír v celkovém objemu obsloužených nádob | AW12: Bonus za snižování produkce odpadů je udělen do výše 20% za každý způsob snižování produkce odpadů uvedený v registračním formuláři z hodnoty maximálního bonusu uvedeného v této tabulce. | BB12: Procentuální zastoupení objemu obsloužených nádob na plast a na papír v celkovém objemu obsloužených nádob | BU12: Záporná hodnota součtu bonusů (BT + BV + BS) je nahrazena nulou. | BZ12: Procentuální zastoupení objemu obsloužených nádob na plast a na papír v celkovém objemu obsloužených nádob | CT12: Modrá oblast předpokládá směsný odpad v tříděném odpadu. | CX12: Procentuální zastoupení objemu obsloužených nádob na plast a na papír v celkovém objemu obsloužených nádob | DT12: Modelové případy
F13: ="0 %" -> 0 % | G13: ="1-5 %" -> 1-5 % | H13: ="6-10 %" -> 6-10 % | I13: ="11-15 %" -> 11-15 % | J13: ="16-20 %" -> 16-20 % | K13: ="21-25 %" -> 21-25 % | L13: ="26-30 %" -> 26-30 % | M13: ="31-35 %" -> 31-35 % | N13: ="36-40 %" -> 36-40 % | O13: ="41-45 %" -> 41-45 % | P13: ="46-50 %" -> 46-50 % | Q13: ="51-55 %" -> 51-55 % | R13: ="56-60 %" -> 56-60 % | S13: ="61-65 %" -> 61-65 % | T13: ="66-70 %" -> 66-70 % | U13: ="71-75 %" -> 71-75 % | V13: ="76-80 %" -> 76-80 % | W13: ="81-85 %" -> 81-85 % | X13: ="více jak 85 %" -> více jak 85 % | AD13: ="0 %" -> 0 % | AE13: ="1-5 %" -> 1-5 % | AF13: ="6-10 %" -> 6-10 % | AG13: ="11-15 %" -> 11-15 % | AH13: ="16-20 %" -> 16-20 % | AI13: ="21-25 %" -> 21-25 % | AJ13: ="26-30 %" -> 26-30 % | AK13: ="31-35 %" -> 31-35 % | AL13: ="36-40 %" -> 36-40 % | AM13: ="41-45 %" -> 41-45 % | AN13: ="46-50 %" -> 46-50 % | AO13: ="51-55 %" -> 51-55 % | AP13: ="56-60 %" -> 56-60 % | AQ13: ="61-65 %" -> 61-65 % | AR13: ="66-70 %" -> 66-70 % | AS13: ="71-75 %" -> 71-75 % | AT13: ="76-80 %" -> 76-80 % | AU13: ="81-85 %" -> 81-85 % | AV13: ="více jak 85 %" -> více jak 85 % | BB13: ="0 %" -> 0 % | BC13: ="1-5 %" -> 1-5 % | BD13: ="6-10 %" -> 6-10 % | BE13: ="11-15 %" -> 11-15 % | BF13: ="16-20 %" -> 16-20 % | BG13: ="21-25 %" -> 21-25 % | BH13: ="26-30 %" -> 26-30 % | BI13: ="31-35 %" -> 31-35 % | BJ13: ="36-40 %" -> 36-40 % | BK13: ="41-45 %" -> 41-45 % | BL13: ="46-50 %" -> 46-50 % | BM13: ="51-55 %" -> 51-55 % | BN13: ="56-60 %" -> 56-60 % | BO13: ="61-65 %" -> 61-65 % | BP13: ="66-70 %" -> 66-70 % | BQ13: ="71-75 %" -> 71-75 % | BR13: ="76-80 %" -> 76-80 % | BS13: ="81-85 %" -> 81-85 % | BT13: ="více jak 85 %" -> více jak 85 % | BZ13: ="0 %" -> 0 % | CA13: ="1-5 %" -> 1-5 % | CB13: ="6-10 %" -> 6-10 % | CC13: ="11-15 %" -> 11-15 % | CD13: ="16-20 %" -> 16-20 % | CE13: ="21-25 %" -> 21-25 % | CF13: ="26-30 %" -> 26-30 % | CG13: ="31-35 %" -> 31-35 % | CH13: ="36-40 %" -> 36-40 % | CI13: ="41-45 %" -> 41-45 % | CJ13: ="46-50 %" -> 46-50 % | CK13: ="51-55 %" -> 51-55 % | CL13: ="56-60 %" -> 56-60 % | CM13: ="61-65 %" -> 61-65 % | CN13: ="66-70 %" -> 66-70 % | CO13: ="71-75 %" -> 71-75 % | CP13: ="76-80 %" -> 76-80 % | CQ13: ="81-85 %" -> 81-85 % | CR13: ="více jak 85 %" -> více jak 85 % | CT13: V červené oblasti se počítají o třetinu nižší příjmy za tříďák z důvodu nevyužitých nádob | CX13: ="0 %" -> 0 % | CY13: ="1-5 %" -> 1-5 % | CZ13: ="6-10 %" -> 6-10 % | DA13: ="11-15 %" -> 11-15 % | DB13: ="16-20 %" -> 16-20 % | DC13: ="21-25 %" -> 21-25 % | DD13: ="26-30 %" -> 26-30 % | DE13: ="31-35 %" -> 31-35 % | DF13: ="36-40 %" -> 36-40 % | DG13: ="41-45 %" -> 41-45 % | DH13: ="46-50 %" -> 46-50 % | DI13: ="51-55 %" -> 51-55 % | DJ13: ="56-60 %" -> 56-60 % | DK13: ="61-65 %" -> 61-65 % | DL13: ="66-70 %" -> 66-70 % | DM13: ="71-75 %" -> 71-75 % | DN13: ="76-80 %" -> 76-80 % | DO13: ="81-85 %" -> 81-85 % | DP13: ="více jak 85 %" -> více jak 85 % | DT13: Množství | DU13: Hustota | DV13: Litry | DW13: Litry | DX13: Třídění | DY13: Třídění | EE13: Ekonomika
F14: 0 | G14: 3 | H14: 8 | I14: 13 | J14: 18 | K14: 23 | L14: 28 | M14: 33 | N14: 38 | O14: 43 | P14: 48 | Q14: 53 | R14: 58 | S14: 63 | T14: 68 | U14: 73 | V14: 78 | W14: 83 | X14: 86 | AD14: 0 | AE14: 3 | AF14: 8 | AG14: 13 | AH14: 18 | AI14: 23 | AJ14: 28 | AK14: 33 | AL14: 38 | AM14: 43 | AN14: 48 | AO14: 53 | AP14: 58 | AQ14: 63 | AR14: 68 | AS14: 73 | AT14: 78 | AU14: 83 | AV14: 86 | BB14: 0 | BC14: 3 | BD14: 8 | BE14: 13 | BF14: 18 | BG14: 23 | BH14: 28 | BI14: 33 | BJ14: 38 | BK14: 43 | BL14: 48 | BM14: 53 | BN14: 58 | BO14: 63 | BP14: 68 | BQ14: 73 | BR14: 78 | BS14: 83 | BT14: 86 | BZ14: 0 | CA14: 3 | CB14: 8 | CC14: 13 | CD14: 18 | CE14: 23 | CF14: 28 | CG14: 33 | CH14: 38 | CI14: 43 | CJ14: 48 | CK14: 53 | CL14: 58 | CM14: 63 | CN14: 68 | CO14: 73 | CP14: 78 | CQ14: 83 | CR14: 86 | CT14: Předpokládá nelegální nakládání s odpady (pálení, černé skládky) | CX14: =BZ14 -> 0 | CY14: 3 | CZ14: 8 | DA14: 13 | DB14: 18 | DC14: 23 | DD14: 28 | DE14: 33 | DF14: 38 | DG14: 43 | DH14: 48 | DI14: 53 | DJ14: 58 | DK14: 63 | DL14: 68 | DM14: 73 | DN14: 78 | DO14: 83 | DP14: 86
F15: "Třídí málo" "Třídí hodně" | AD15: "Třídí málo" "Třídí hodně" | BB15: "Třídí málo" "Třídí hodně" | BZ15: "Třídí málo" "Třídí hodně" | CX15: "Třídí málo" "Třídí hodně" | DT15: kg | DU15: kg/l | DV15: celkem | DW15: hodnota | DX15: % | DY15: hodnota | DZ15: SPO | EA15: BT % | EB15: BV % | EC15: BS % | ED15: Celkem % | EE15: obec | EF15: Komentář
A16: Roční celkový objem obsloužených nádob přepočtený na jednoho účastníka systému užívajícího dané nádoby (litry/účastník systému/rok) | B16: 0 | C16: - | D16: 599 | E16: 550 | F16: =IF((($E16*F$14/100*$K$4)*(-1))>($F$5),($E16*F$14/100*$K$5)-((($E16*F$14/100*$K$4)*(-1))-($F$5)),($E16*F$14/100*$K$5))/($D$2)*100 -> 0 | G16: =ROUND(IF((($E16*G$14/100*$K$4)*(-1))>($F$5-50),($E16*G$14/100*$K$5)-((($E16*G$14/100*$K$4)*(-1))-($F$5-50)),($E16*G$14/100*$K$5))/($D$2-200)*100,0) -> 1 | H16: 2 | I16: 3 | J16: 3 | K16: 4 | L16: 5 | M16: 6 | N16: 7 | O16: 8 | P16: 9 | Q16: 10 | R16: 11 | S16: 12 | T16: 13 | U16: 14 | V16: 15 | W16: 16 | X16: 17 | Y16: Roční celkový objem obsloužených nádob přepočtený na jednoho účastníka systému užívajícího dané nádoby (litry/účastník systému/rok) | Z16: 0 | AA16: - | AB16: 599 | AD16: 0 | AE16: =ROUND(IF(IF(IF((($E16*(100-AE$14)/100*$K$3)*(-1))<$F$4,$F$6,IF((($E16*(100-AE$14)/100*$K$3)*(-1))>=($F$4+$F$6),($E16*(100-AE$14)/100*$K$3)+($F$4+$F$6),($F$6-((($E16*(100-AE$14)/100*$K$3)*(-1))-$F$4))))>=0,IF((($E16*(100-AE$14)/100*$K$3)*(-1))<$F$4,$F$6,IF((($E16*(100-AE$14)/100*$K$3)*(-1))>=($F$4+$F$6),($E16*(100-AE$14)/100*$K$3)+($F$4+$F$6),($F$6-((($E16*(100-AE$14)/100*$K$3)*(-1))-$F$4)))),IF(IF((($E16*(100-AE$14)/100*$K$3)*(-1))<$F$4,$F$6,IF((($E16*(100-AE$14)/100*$K$3)*(-1))>=($F$4+$F$6),($E16*(100-AE$14)/100*$K$3)+($F$4+$F$6),($F$6-((($E16*(100-AE$14)/100*$K$3)*(-1))-$F$4))))*(-1)<=$F$7,0,$F$7+IF((($E16*(100-AE$14)/100*$K$3)*(-1))<$F$4,$F$6,IF((($E16*(100-AE$14)/100*$K$3)*(-1))>=($F$4+$F$6),($E16*(100-AE$14)/100*$K$3)+($F$4+$F$6),($F$6-((($E16*(100-AE$14)/100*$K$3)*(-1))-$F$4))))))*(-1)>$F$5,$F$5*(-1),IF(IF((($E16*(100-AE$14)/100*$K$3)*(-1))<$F$4,$F$6,IF((($E16*(100-AE$14)/100*$K$3)*(-1))>=($F$4+$F$6),($E16*(100-AE$14)/100*$K$3)+($F$4+$F$6),($F$6-((($E16*(100-AE$14)/100*$K$3)*(-1))-$F$4))))>=0,IF((($E16*(100-AE$14)/100*$K$3)*(-1))<$F$4,$F$6,IF((($E16*(100-AE$14)/100*$K$3)*(-1))>=($F$4+$F$6),($E16*(100-AE$14)/100*$K$3)+($F$4+$F$6),($F$6-((($E16*(100-AE$14)/100*$K$3)*(-1))-$F$4)))),IF(IF((($E16*(100-AE$14)/100*$K$3)*(-1))<$F$4,$F$6,IF((($E16*(100-AE$14)/100*$K$3)*(-1))>=($F$4+$F$6),($E16*(100-AE$14)/100*$K$3)+($F$4+$F$6),($F$6-((($E16*(100-AE$14)/100*$K$3)*(-1))-$F$4))))*(-1)<=$F$7,0,$F$7+IF((($E16*(100-AE$14)/100*$K$3)*(-1))<$F$4,$F$6,IF((($E16*(100-AE$14)/100*$K$3)*(-1))>=($F$4+$F$6),($E16*(100-AE$14)/100*$K$3)+($F$4+$F$6),($F$6-((($E16*(100-AE$14)/100*$K$3)*(-1))-$F$4)))))))/$D$2*100,0) -> 9 | AF16: 10 | AG16: 12 | AH16: 13 | AI16: 15 | AJ16: 17 | AK16: 18 | AL16: 20 | AM16: 21 | AN16: 23 | AO16: 24 | AP16: 25 | AQ16: 25 | AR16: 25 | AS16: =ROUND(IF(IF(IF((($E16*(100-AS$14)/100*$K$3)*(-1))<$F$4,$F$6,IF((($E16*(100-AS$14)/100*$K$3)*(-1))>=($F$4+$F$6),($E16*(100-AS$14)/100*$K$3)+($F$4+$F$6),($F$6-((($E16*(100-AS$14)/100*$K$3)*(-1))-$F$4))))>=0,IF((($E16*(100-AS$14)/100*$K$3)*(-1))<$F$4,$F$6,IF((($E16*(100-AS$14)/100*$K$3)*(-1))>=($F$4+$F$6),($E16*(100-AS$14)/100*$K$3)+($F$4+$F$6),($F$6-((($E16*(100-AS$14)/100*$K$3)*(-1))-$F$4)))),IF(IF((($E16*(100-AS$14)/100*$K$3)*(-1))<$F$4,$F$6,IF((($E16*(100-AS$14)/100*$K$3)*(-1))>=($F$4+$F$6),($E16*(100-AS$14)/100*$K$3)+($F$4+$F$6),($F$6-((($E16*(100-AS$14)/100*$K$3)*(-1))-$F$4))))*(-1)<=$F$7,0,$F$7+IF((($E16*(100-AS$14)/100*$K$3)*(-1))<$F$4,$F$6,IF((($E16*(100-AS$14)/100*$K$3)*(-1))>=($F$4+$F$6),($E16*(100-AS$14)/100*$K$3)+($F$4+$F$6),($F$6-((($E16*(100-AS$14)/100*$K$3)*(-1))-$F$4))))))*(-1)>$F$5,$F$5*(-1),IF(IF((($E16*(100-AS$14)/100*$K$3)*(-1))<$F$4,$F$6,IF((($E16*(100-AS$14)/100*$K$3)*(-1))>=($F$4+$F$6),($E16*(100-AS$14)/100*$K$3)+($F$4+$F$6),($F$6-((($E16*(100-AS$14)/100*$K$3)*(-1))-$F$4))))>=0,IF((($E16*(100-AS$14)/100*$K$3)*(-1))<$F$4,$F$6,IF((($E16*(100-AS$14)/100*$K$3)*(-1))>=($F$4+$F$6),($E16*(100-AS$14)/100*$K$3)+($F$4+$F$6),($F$6-((($E16*(100-AS$14)/100*$K$3)*(-1))-$F$4)))),IF(IF((($E16*(100-AS$14)/100*$K$3)*(-1))<$F$4,$F$6,IF((($E16*(100-AS$14)/100*$K$3)*(-1))>=($F$4+$F$6),($E16*(100-AS$14)/100*$K$3)+($F$4+$F$6),($F$6-((($E16*(100-AS$14)/100*$K$3)*(-1))-$F$4))))*(-1)<=$F$7,0,$F$7+IF((($E16*(100-AS$14)/100*$K$3)*(-1))<$F$4,$F$6,IF((($E16*(100-AS$14)/100*$K$3)*(-1))>=($F$4+$F$6),($E16*(100-AS$14)/100*$K$3)+($F$4+$F$6),($F$6-((($E16*(100-AS$14)/100*$K$3)*(-1))-$F$4)))))))/$D$2*100,0) -> 25 | AT16: 25 | AU16: 25 | AV16: 25 | AW16: Roční celkový objem obsloužených nádob přepočtený na jednoho účastníka systému užívajícího dané nádoby (litry/účastník systému/rok) | AX16: 0 | AY16: - | AZ16: 599 | BB16: 0 | BC16: 0 | BD16: 0 | BE16: 0 | BF16: 0 | BG16: 0 | BH16: 0 | BI16: 0 | BJ16: =ROUND(IF(IF((($E16*(100-BJ$14)/100*$K$3)*(-1))<=($F$4+$F$6),0,(($E16*(100-BJ$14)/100*$K$3)+$F$4+$F$6))+IF((($E16*BJ$14/100*$K$4)*(-1))<=$F$5,0,($E16*BJ$14/100*$K$4)+$F$5)=0,$F$7,IF(IF((($E16*(100-BJ$14)/100*$K$3)*(-1))<=($F$4+$F$6),0,(($E16*(100-BJ$14)/100*$K$3)+$F$4+$F$6))+IF((($E16*BJ$14/100*$K$4)*(-1))<=$F$5,0,($E16*BJ$14/100*$K$4)+$F$5)*(-1)>$F$7,0,IF((($E16*(100-BJ$14)/100*$K$3)*(-1))<=($F$4+$F$6),0,(($E16*(100-BJ$14)/100*$K$3)+$F$4+$F$6))+IF((($E16*BJ$14/100*$K$4)*(-1))<=$F$5,0,($E16*BJ$14/100*$K$4)+$F$5)+$F$7))/$D$2*100,0) -> 20 | BK16: =ROUND(IF(IF((($E16*(100-BK$14)/100*$K$3)*(-1))<=($F$4+$F$6),0,(($E16*(100-BK$14)/100*$K$3)+$F$4+$F$6))+IF((($E16*BK$14/100*$K$4)*(-1))<=$F$5,0,($E16*BK$14/100*$K$4)+$F$5)=0,$F$7,IF(IF((($E16*(100-BK$14)/100*$K$3)*(-1))<=($F$4+$F$6),0,(($E16*(100-BK$14)/100*$K$3)+$F$4+$F$6))+IF((($E16*BK$14/100*$K$4)*(-1))<=$F$5,0,($E16*BK$14/100*$K$4)+$F$5)*(-1)>$F$7,0,IF((($E16*(100-BK$14)/100*$K$3)*(-1))<=($F$4+$F$6),0,(($E16*(100-BK$14)/100*$K$3)+$F$4+$F$6))+IF((($E16*BK$14/100*$K$4)*(-1))<=$F$5,0,($E16*BK$14/100*$K$4)+$F$5)+$F$7))/$D$2*100,0) -> 20 | BL16: =ROUND(IF(IF((($E16*(100-BL$14)/100*$K$3)*(-1))<=($F$4+$F$6),0,(($E16*(100-BL$14)/100*$K$3)+$F$4+$F$6))+IF((($E16*BL$14/100*$K$4)*(-1))<=$F$5,0,($E16*BL$14/100*$K$4)+$F$5)=0,$F$7,IF(IF((($E16*(100-BL$14)/100*$K$3)*(-1))<=($F$4+$F$6),0,(($E16*(100-BL$14)/100*$K$3)+$F$4+$F$6))+IF((($E16*BL$14/100*$K$4)*(-1))<=$F$5,0,($E16*BL$14/100*$K$4)+$F$5)*(-1)>$F$7,0,IF((($E16*(100-BL$14)/100*$K$3)*(-1))<=($F$4+$F$6),0,(($E16*(100-BL$14)/100*$K$3)+$F$4+$F$6))+IF((($E16*BL$14/100*$K$4)*(-1))<=$F$5,0,($E16*BL$14/100*$K$4)+$F$5)+$F$7))/$D$2*100,0) -> 20 | BM16: 20 | BN16: 20 | BO16: 20 | BP16: 20 | BQ16: 20 | BR16: 20 | BS16: 20 | BT16: 0 | BU16: Roční celkový objem obsloužených nádob přepočtený na jednoho účastníka systému užívajícího dané nádoby (litry/účastník systému/rok) | BV16: 0 | BW16: - | BX16: 599 | BZ16: =IF((F16+AD16+BB16)<0,0,(F16+AD16+BB16)) -> 0 | CA16: =IF((G16+AE16+BC16)<0,0,(G16+AE16+BC16)) -> 10 | CB16: 12 | CC16: 15 | CD16: 16 | CE16: 19 | CF16: 22 | CG16: 24 | CH16: 47 | CI16: 49 | CJ16: 52 | CK16: 54 | CL16: 56 | CM16: 57 | CN16: 58 | CO16: 59 | CP16: 60 | CQ16: 61 | CR16: 42 | CS16: =E16 -> 550 | CT16: Roční celkový objem obsloužených nádob přepočtený na jednoho účastníka systému užívajícího dané nádoby (litry/účastník systému/rok) | CU16: 0 | CV16: - | CW16: 599 | CX16: =$DC$4-(BZ16/100*$DC$4)+($CS16*(100-CX$14)/100*$DH$3)+($CS16*(CX$14)/100*$DH$4)+($CS16*(CX$14)/100*$DH$5) -> 313 | CY16: 268.61 | CZ16: 267.96 | DA16: 262.31 | DB16: 266.66 | DC16: 261.01 | DD16: 255.36 | DE16: 254.71 | DF16: 149.06 | DG16: 148.41 | DH16: =$DC$4-(CJ16/100*$DC$4)+($CS16*(100-DH$14)/100*$DH$3)+($CS16*(DH$14)/100*$DH$4)+($CS16*(DH$14)/100*$DH$5) -> 142.76 | DI16: 142.11 | DJ16: 141.46 | DK16: 145.81 | DL16: 150.16 | DM16: 154.51 | DN16: 158.86 | DO16: 163.21 | DP16: 263.82 | DR16: Málo odpadů | DS16: Přeplněné popelnice | DT16: Malé | DU16: Velká | DV16: 375 | DW16: 550 | DX16: 75 | DY16: 73 | DZ16: Ano | EA16: =ROUND(INDEX(F$16:X$117,MATCH(DW16,$E$16:$E$117,0),MATCH(DY16,F$14:X$14,0)),0) -> 14 | EB16: =ROUND(INDEX(AD$16:AV$117,MATCH(DW16,$E$16:$E$117,0),MATCH(DY16,AD$14:AV$14,0)),0) -> 25 | EC16: =IF(DZ16="NE",0,ROUND(INDEX(BB$16:BT$117,MATCH(DW16,$E$16:$E$117,0),MATCH(DY16,BB$14:BT$14,0)),0)) -> 20 | ED16: =EA16+EB16+EC16 -> 59 | EE16: =ROUND(INDEX(CX$16:DP$117,MATCH(DW16,$E$16:$E$117,0),MATCH(DY16,CX$14:DP$14,0)),0) -> 155 | EF16: Občan přeplňuje nádoby.
B17: 600 | C17: - | D17: 699 | E17: 650 | F17: =ROUND(IF((($E17*F$14/100*$K$4)*(-1))>($F$5-50),($E17*F$14/100*$K$5)-((($E17*F$14/100*$K$4)*(-1))-($F$5-50)),($E17*F$14/100*$K$5))/($D$2-200)*100,0) -> 0 | G17: 1 | H17: 2 | I17: 3 | J17: 4 | K17: 5 | L17: 6 | M17: 8 | N17: 9 | O17: 10 | P17: 11 | Q17: 12 | R17: 13 | S17: 14 | T17: 15 | U17: 17 | V17: 18 | W17: 19 | X17: 20 | Z17: 600 | AA17: - | AB17: 699 | AD17: 0 | AE17: 3 | AF17: 5 | AG17: 7 | AH17: 9 | AI17: 11 | AJ17: 12 | AK17: 14 | AL17: 16 | AM17: 18 | AN17: 20 | AO17: 22 | AP17: 24 | AQ17: 25 | AR17: 25 | AS17: 25 | AT17: 25 | AU17: 25 | AV17: 25 | AX17: 600 | AY17: - | AZ17: 699 | BB17: 0 | BC17: 0 | BD17: 0 | BE17: 0 | BF17: 0 | BG17: 0 | BH17: 0 | BI17: 0 | BJ17: =ROUND(IF(IF((($E17*(100-BJ$14)/100*$K$3)*(-1))<=($F$4+$F$6),0,(($E17*(100-BJ$14)/100*$K$3)+$F$4+$F$6))+IF((($E17*BJ$14/100*$K$4)*(-1))<=$F$5,0,($E17*BJ$14/100*$K$4)+$F$5)=0,$F$7,IF(IF((($E17*(100-BJ$14)/100*$K$3)*(-1))<=($F$4+$F$6),0,(($E17*(100-BJ$14)/100*$K$3)+$F$4+$F$6))+IF((($E17*BJ$14/100*$K$4)*(-1))<=$F$5,0,($E17*BJ$14/100*$K$4)+$F$5)*(-1)>$F$7,0,IF((($E17*(100-BJ$14)/100*$K$3)*(-1))<=($F$4+$F$6),0,(($E17*(100-BJ$14)/100*$K$3)+$F$4+$F$6))+IF((($E17*BJ$14/100*$K$4)*(-1))<=$F$5,0,($E17*BJ$14/100*$K$4)+$F$5)+$F$7))/$D$2*100,0) -> 20 | BK17: 20 | BL17: 20 | BM17: 20 | BN17: 20 | BO17: 20 | BP17: 20 | BQ17: 20 | BR17: 20 | BS17: 20 | BT17: 0 | BV17: 600 | BW17: - | BX17: 699 | BZ17: =IF((F17+AD17+BB17)<0,0,(F17+AD17+BB17)) -> 0 | CA17: =IF((G17+AE17+BC17)<0,0,(G17+AE17+BC17)) -> 4 | CB17: =IF((H17+AF17+BD17)<0,0,(H17+AF17+BD17)) -> 7 | CC17: =IF((I17+AG17+BE17)<0,0,(I17+AG17+BE17)) -> 10 | CD17: =IF((J17+AH17+BF17)<0,0,(J17+AH17+BF17)) -> 13 | CE17: =IF((K17+AI17+BG17)<0,0,(K17+AI17+BG17)) -> 16 | CF17: =IF((L17+AJ17+BH17)<0,0,(L17+AJ17+BH17)) -> 18 | CG17: =IF((M17+AK17+BI17)<0,0,(M17+AK17+BI17)) -> 22 | CH17: =IF((N17+AL17+BJ17)<0,0,(N17+AL17+BJ17)) -> 45 | CI17: =IF((O17+AM17+BK17)<0,0,(O17+AM17+BK17)) -> 48 | CJ17: =IF((P17+AN17+BL17)<0,0,(P17+AN17+BL17)) -> 51 | CK17: =IF((Q17+AO17+BM17)<0,0,(Q17+AO17+BM17)) -> 54 | CL17: =IF((R17+AP17+BN17)<0,0,(R17+AP17+BN17)) -> 57 | CM17: =IF((S17+AQ17+BO17)<0,0,(S17+AQ17+BO17)) -> 59 | CN17: =IF((T17+AR17+BP17)<0,0,(T17+AR17+BP17)) -> 60 | CO17: =IF((U17+AS17+BQ17)<0,0,(U17+AS17+BQ17)) -> 62 | CP17: =IF((V17+AT17+BR17)<0,0,(V17+AT17+BR17)) -> 63 | CQ17: =IF((W17+AU17+BS17)<0,0,(W17+AU17+BS17)) -> 64 | CR17: =IF((X17+AV17+BT17)<0,0,(X17+AV17+BT17)) -> 45 | CS17: 650 | CU17: 600 | CV17: - | CW17: 699 | CX17: 279 | CY17: 265.63 | CZ17: 261.68 | DA17: 257.73 | DB17: 253.78 | DC17: 249.83 | DD17: 250.88 | DE17: 241.93 | DF17: 137.98 | DG17: 134.03 | DH17: 130.08 | DI17: 126.13 | DJ17: 122.18 | DK17: 123.23 | DL17: 129.28 | DM17: 130.33 | DN17: 136.38 | DO17: 142.43 | DP17: 244.06 | DT17: Malé | DU17: Velká | DV17: 375 | DW17: 550 | DX17: 75 | DY17: 73 | DZ17: NE | EA17: 14 | EB17: 25 | EC17: 0 | ED17: =EA17+EB17+EC17 -> 39 | EE17: =IF(DZ17="NE",ROUND(INDEX(CX$16:DP$117,MATCH(DW17,$E$16:$E$117,0),MATCH(DY17,CX$14:DP$14,0)),0)+((ED16-ED17)/100*$DC$4),ROUND(INDEX(CX$16:DP$117,MATCH(DW17,$E$16:$E$117,0),MATCH(DY17,CX$14:DP$14,0)),0)) -> 255 | EF17: Nemá vyplněný OD (souhlas s podmínkami - může přijít o odměnu)
B18: 700 | C18: - | D18: 799 | E18: 750 | F18: =ROUND(IF((($E18*F$14/100*$K$4)*(-1))>($F$5-50),($E18*F$14/100*$K$5)-((($E18*F$14/100*$K$4)*(-1))-($F$5-50)),($E18*F$14/100*$K$5))/($D$2-200)*100,0) -> 0 | G18: 1 | H18: 2 | I18: 3 | J18: 5 | K18: 6 | L18: 7 | M18: 9 | N18: 10 | O18: 11 | P18: 13 | Q18: 14 | R18: 15 | S18: 17 | T18: 18 | U18: 19 | V18: 20 | W18: 22 | X18: 23 | Z18: 700 | AA18: - | AB18: 799 | AD18: =ROUND(IF(IF(IF((($E18*(100-AD$14)/100*$K$3)*(-1))<$F$4,$F$6,IF((($E18*(100-AD$14)/100*$K$3)*(-1))>=($F$4+$F$6),($E18*(100-AD$14)/100*$K$3)+($F$4+$F$6),($F$6-((($E18*(100-AD$14)/100*$K$3)*(-1))-$F$4))))>=0,IF((($E18*(100-AD$14)/100*$K$3)*(-1))<$F$4,$F$6,IF((($E18*(100-AD$14)/100*$K$3)*(-1))>=($F$4+$F$6),($E18*(100-AD$14)/100*$K$3)+($F$4+$F$6),($F$6-((($E18*(100-AD$14)/100*$K$3)*(-1))-$F$4)))),IF(IF((($E18*(100-AD$14)/100*$K$3)*(-1))<$F$4,$F$6,IF((($E18*(100-AD$14)/100*$K$3)*(-1))>=($F$4+$F$6),($E18*(100-AD$14)/100*$K$3)+($F$4+$F$6),($F$6-((($E18*(100-AD$14)/100*$K$3)*(-1))-$F$4))))*(-1)<=$F$7,0,$F$7+IF((($E18*(100-AD$14)/100*$K$3)*(-1))<$F$4,$F$6,IF((($E18*(100-AD$14)/100*$K$3)*(-1))>=($F$4+$F$6),($E18*(100-AD$14)/100*$K$3)+($F$4+$F$6),($F$6-((($E18*(100-AD$14)/100*$K$3)*(-1))-$F$4))))))*(-1)>$F$5,$F$5*(-1),IF(IF((($E18*(100-AD$14)/100*$K$3)*(-1))<$F$4,$F$6,IF((($E18*(100-AD$14)/100*$K$3)*(-1))>=($F$4+$F$6),($E18*(100-AD$14)/100*$K$3)+($F$4+$F$6),($F$6-((($E18*(100-AD$14)/100*$K$3)*(-1))-$F$4))))>=0,IF((($E18*(100-AD$14)/100*$K$3)*(-1))<$F$4,$F$6,IF((($E18*(100-AD$14)/100*$K$3)*(-1))>=($F$4+$F$6),($E18*(100-AD$14)/100*$K$3)+($F$4+$F$6),($F$6-((($E18*(100-AD$14)/100*$K$3)*(-1))-$F$4)))),IF(IF((($E18*(100-AD$14)/100*$K$3)*(-1))<$F$4,$F$6,IF((($E18*(100-AD$14)/100*$K$3)*(-1))>=($F$4+$F$6),($E18*(100-AD$14)/100*$K$3)+($F$4+$F$6),($F$6-((($E18*(100-AD$14)/100*$K$3)*(-1))-$F$4))))*(-1)<=$F$7,0,$F$7+IF((($E18*(100-AD$14)/100*$K$3)*(-1))<$F$4,$F$6,IF((($E18*(100-AD$14)/100*$K$3)*(-1))>=($F$4+$F$6),($E18*(100-AD$14)/100*$K$3)+($F$4+$F$6),($F$6-((($E18*(100-AD$14)/100*$K$3)*(-1))-$F$4)))))))/$D$2*100,0) -> 0 | AE18: 0 | AF18: 0 | AG18: 2 | AH18: 4 | AI18: 6 | AJ18: 8 | AK18: 11 | AL18: 13 | AM18: 15 | AN18: 17 | AO18: 19 | AP18: 21 | AQ18: 23 | AR18: 25 | AS18: 25 | AT18: 25 | AU18: 25 | AV18: 25 | AX18: 700 | AY18: - | AZ18: 799 | BB18: 0 | BC18: 0 | BD18: 0 | BE18: 0 | BF18: 0 | BG18: 0 | BH18: 0 | BI18: 0 | BJ18: 20 | BK18: 20 | BL18: 20 | BM18: 20 | BN18: 20 | BO18: 20 | BP18: 20 | BQ18: 20 | BR18: 20 | BS18: 20 | BT18: 0 | BV18: 700 | BW18: - | BX18: 799 | BZ18: =IF((F18+AD18+BB18)<0,0,(F18+AD18+BB18)) -> 0 | CA18: 1 | CB18: 2 | CC18: 5 | CD18: 9 | CE18: 12 | CF18: 15 | CG18: 20 | CH18: 43 | CI18: 46 | CJ18: 50 | CK18: 53 | CL18: 56 | CM18: 60 | CN18: 63 | CO18: 64 | CP18: 65 | CQ18: 67 | CR18: 48 | CS18: 750 | CU18: 700 | CV18: - | CW18: 799 | CX18: 245 | CY18: 247.65 | CZ18: 255.4 | DA18: 253.15 | DB18: 245.9 | DC18: 243.65 | DD18: 241.4 | DE18: 229.15 | DF18: 126.9 | DG18: 124.65 | DH18: 117.4 | DI18: 115.15 | DJ18: 112.9 | DK18: 105.65 | DL18: 103.4 | DM18: 111.15 | DN18: 118.9 | DO18: 121.65 | DP18: 224.3 | DT18: Malé | DU18: Velká | DV18: 375 | DW18: 550 | DX18: >85 | DY18: 86 | DZ18: Ano | EA18: 17 | EB18: 25 | EC18: 0 | ED18: 42 | EE18: 264 | EF18: SPO není udílena - úroveň třídění je podezřelá.
B19: 800 | C19: - | D19: 899 | E19: 850 | F19: 0 | G19: 1 | H19: 2 | I19: 4 | J19: 5 | K19: 7 | L19: 8 | M19: 10 | N19: 11 | O19: 13 | P19: 14 | Q19: 16 | R19: 17 | S19: 19 | T19: 20 | U19: 22 | V19: 23 | W19: 25 | X19: 25 | Z19: 800 | AA19: - | AB19: 899 | AD19: =ROUND(IF(IF(IF((($E19*(100-AD$14)/100*$K$3)*(-1))<$F$4,$F$6,IF((($E19*(100-AD$14)/100*$K$3)*(-1))>=($F$4+$F$6),($E19*(100-AD$14)/100*$K$3)+($F$4+$F$6),($F$6-((($E19*(100-AD$14)/100*$K$3)*(-1))-$F$4))))>=0,IF((($E19*(100-AD$14)/100*$K$3)*(-1))<$F$4,$F$6,IF((($E19*(100-AD$14)/100*$K$3)*(-1))>=($F$4+$F$6),($E19*(100-AD$14)/100*$K$3)+($F$4+$F$6),($F$6-((($E19*(100-AD$14)/100*$K$3)*(-1))-$F$4)))),IF(IF((($E19*(100-AD$14)/100*$K$3)*(-1))<$F$4,$F$6,IF((($E19*(100-AD$14)/100*$K$3)*(-1))>=($F$4+$F$6),($E19*(100-AD$14)/100*$K$3)+($F$4+$F$6),($F$6-((($E19*(100-AD$14)/100*$K$3)*(-1))-$F$4))))*(-1)<=$F$7,0,$F$7+IF((($E19*(100-AD$14)/100*$K$3)*(-1))<$F$4,$F$6,IF((($E19*(100-AD$14)/100*$K$3)*(-1))>=($F$4+$F$6),($E19*(100-AD$14)/100*$K$3)+($F$4+$F$6),($F$6-((($E19*(100-AD$14)/100*$K$3)*(-1))-$F$4))))))*(-1)>$F$5,$F$5*(-1),IF(IF((($E19*(100-AD$14)/100*$K$3)*(-1))<$F$4,$F$6,IF((($E19*(100-AD$14)/100*$K$3)*(-1))>=($F$4+$F$6),($E19*(100-AD$14)/100*$K$3)+($F$4+$F$6),($F$6-((($E19*(100-AD$14)/100*$K$3)*(-1))-$F$4))))>=0,IF((($E19*(100-AD$14)/100*$K$3)*(-1))<$F$4,$F$6,IF((($E19*(100-AD$14)/100*$K$3)*(-1))>=($F$4+$F$6),($E19*(100-AD$14)/100*$K$3)+($F$4+$F$6),($F$6-((($E19*(100-AD$14)/100*$K$3)*(-1))-$F$4)))),IF(IF((($E19*(100-AD$14)/100*$K$3)*(-1))<$F$4,$F$6,IF((($E19*(100-AD$14)/100*$K$3)*(-1))>=($F$4+$F$6),($E19*(100-AD$14)/100*$K$3)+($F$4+$F$6),($F$6-((($E19*(100-AD$14)/100*$K$3)*(-1))-$F$4))))*(-1)<=$F$7,0,$F$7+IF((($E19*(100-AD$14)/100*$K$3)*(-1))<$F$4,$F$6,IF((($E19*(100-AD$14)/100*$K$3)*(-1))>=($F$4+$F$6),($E19*(100-AD$14)/100*$K$3)+($F$4+$F$6),($F$6-((($E19*(100-AD$14)/100*$K$3)*(-1))-$F$4)))))))/$D$2*100,0) -> 0 | AE19: 0 | AF19: 0 | AG19: 0 | AH19: 0 | AI19: 2 | AJ19: 4 | AK19: 7 | AL19: 9 | AM19: 12 | AN19: 14 | AO19: 16 | AP19: 19 | AQ19: 21 | AR19: 24 | AS19: 25 | AT19: 25 | AU19: 25 | AV19: 24 | AX19: 800 | AY19: - | AZ19: 899 | BB19: 0 | BC19: 0 | BD19: 0 | BE19: 0 | BF19: 0 | BG19: 0 | BH19: 0 | BI19: 0 | BJ19: 20 | BK19: 20 | BL19: 20 | BM19: 20 | BN19: 20 | BO19: 20 | BP19: 20 | BQ19: 20 | BR19: 20 | BS19: 20 | BT19: 0 | BV19: 800 | BW19: - | BX19: 899 | BZ19: 0 | CA19: 1 | CB19: 2 | CC19: 4 | CD19: 5 | CE19: 9 | CF19: 12 | CG19: 17 | CH19: 40 | CI19: 45 | CJ19: 48 | CK19: 52 | CL19: 56 | CM19: 60 | CN19: 64 | CO19: 67 | CP19: 68 | CQ19: 70 | CR19: 49 | CS19: 850 | CU19: 800 | CV19: - | CW19: 899 | CX19: 211 | CY19: 214.67 | CZ19: 224.12 | DA19: 228.57 | DB19: 238.02 | DC19: 232.47 | DD19: 231.92 | DE19: 221.37 | DF19: 120.82 | DG19: 110.27 | DH19: 109.72 | DI19: 104.17 | DJ19: 98.62 | DK19: 93.07 | DL19: 87.52 | DM19: 86.97 | DN19: 96.42 | DO19: 100.87 | DP19: 214.54 | DT19: Malé | DU19: Velká | DV19: 375 | DW19: 550 | DX19: >85 | DY19: 86 | DZ19: NE | EA19: 17 | EB19: 25 | EC19: 0 | ED19: 42 | EE19: 264 | EF19: Směsný je v tříděném odpadu nebo se zbavuje směsného nelegálně.
B20: 900 | C20: - | D20: 999 | E20: 950 | F20: 0 | G20: 1 | H20: 3 | I20: 4 | J20: 6 | K20: 8 | L20: 9 | M20: 11 | N20: 13 | O20: 14 | P20: 16 | Q20: 18 | R20: 19 | S20: 21 | T20: 23 | U20: 24 | V20: 25 | W20: 25 | X20: 25 | Z20: 900 | AA20: - | AB20: 999 | AD20: =ROUND(IF(IF(IF((($E20*(100-AD$14)/100*$K$3)*(-1))<$F$4,$F$6,IF((($E20*(100-AD$14)/100*$K$3)*(-1))>=($F$4+$F$6),($E20*(100-AD$14)/100*$K$3)+($F$4+$F$6),($F$6-((($E20*(100-AD$14)/100*$K$3)*(-1))-$F$4))))>=0,IF((($E20*(100-AD$14)/100*$K$3)*(-1))<$F$4,$F$6,IF((($E20*(100-AD$14)/100*$K$3)*(-1))>=($F$4+$F$6),($E20*(100-AD$14)/100*$K$3)+($F$4+$F$6),($F$6-((($E20*(100-AD$14)/100*$K$3)*(-1))-$F$4)))),IF(IF((($E20*(100-AD$14)/100*$K$3)*(-1))<$F$4,$F$6,IF((($E20*(100-AD$14)/100*$K$3)*(-1))>=($F$4+$F$6),($E20*(100-AD$14)/100*$K$3)+($F$4+$F$6),($F$6-((($E20*(100-AD$14)/100*$K$3)*(-1))-$F$4))))*(-1)<=$F$7,0,$F$7+IF((($E20*(100-AD$14)/100*$K$3)*(-1))<$F$4,$F$6,IF((($E20*(100-AD$14)/100*$K$3)*(-1))>=($F$4+$F$6),($E20*(100-AD$14)/100*$K$3)+($F$4+$F$6),($F$6-((($E20*(100-AD$14)/100*$K$3)*(-1))-$F$4))))))*(-1)>$F$5,$F$5*(-1),IF(IF((($E20*(100-AD$14)/100*$K$3)*(-1))<$F$4,$F$6,IF((($E20*(100-AD$14)/100*$K$3)*(-1))>=($F$4+$F$6),($E20*(100-AD$14)/100*$K$3)+($F$4+$F$6),($F$6-((($E20*(100-AD$14)/100*$K$3)*(-1))-$F$4))))>=0,IF((($E20*(100-AD$14)/100*$K$3)*(-1))<$F$4,$F$6,IF((($E20*(100-AD$14)/100*$K$3)*(-1))>=($F$4+$F$6),($E20*(100-AD$14)/100*$K$3)+($F$4+$F$6),($F$6-((($E20*(100-AD$14)/100*$K$3)*(-1))-$F$4)))),IF(IF((($E20*(100-AD$14)/100*$K$3)*(-1))<$F$4,$F$6,IF((($E20*(100-AD$14)/100*$K$3)*(-1))>=($F$4+$F$6),($E20*(100-AD$14)/100*$K$3)+($F$4+$F$6),($F$6-((($E20*(100-AD$14)/100*$K$3)*(-1))-$F$4))))*(-1)<=$F$7,0,$F$7+IF((($E20*(100-AD$14)/100*$K$3)*(-1))<$F$4,$F$6,IF((($E20*(100-AD$14)/100*$K$3)*(-1))>=($F$4+$F$6),($E20*(100-AD$14)/100*$K$3)+($F$4+$F$6),($F$6-((($E20*(100-AD$14)/100*$K$3)*(-1))-$F$4)))))))/$D$2*100,0) -> 0 | AE20: 0 | AF20: 0 | AG20: 0 | AH20: 0 | AI20: 0 | AJ20: 0 | AK20: 3 | AL20: 6 | AM20: 8 | AN20: 11 | AO20: 14 | AP20: 16 | AQ20: 19 | AR20: 22 | AS20: 25 | AT20: 25 | AU20: 24 | AV20: 22 | AX20: 900 | AY20: - | AZ20: 999 | BB20: 0 | BC20: 0 | BD20: 0 | BE20: 0 | BF20: 0 | BG20: 0 | BH20: 0 | BI20: 0 | BJ20: 20 | BK20: 20 | BL20: 20 | BM20: 20 | BN20: 20 | BO20: 20 | BP20: 20 | BQ20: 20 | BR20: 20 | BS20: 20 | BT20: 0 | BV20: 900 | BW20: - | BX20: 999 | BZ20: 0 | CA20: =IF((G20+AE20+BC20)<0,0,(G20+AE20+BC20)) -> 1 | CB20: 3 | CC20: 4 | CD20: 6 | CE20: 8 | CF20: 9 | CG20: 14 | CH20: 39 | CI20: 42 | CJ20: 47 | CK20: 52 | CL20: 55 | CM20: 60 | CN20: 65 | CO20: 69 | CP20: 70 | CQ20: 69 | CR20: 47 | CS20: 950 | CU20: 900 | CV20: - | CW20: 999 | CX20: 177 | CY20: 181.69 | CZ20: 187.84 | DA20: 198.99 | DB20: 205.14 | DC20: 211.29 | DD20: 222.44 | DE20: 213.59 | DF20: 104.74 | DG20: 105.89 | DH20: 97.04 | DI20: 88.19 | DJ20: 89.34 | DK20: 80.49 | DL20: 71.64 | DM20: 67.79 | DN20: 78.94 | DO20: 100.09 | DP20: 219.78 | DT20: Malé | DU20: Velká | DV20: 375 | DW20: 550 | DX20: 30 | DY20: 28 | DZ20: Ano | EA20: 5 | EB20: 17 | EC20: 0 | ED20: 22 | EE20: 255
B21: 1000 | C21: - | D21: 1099 | E21: 1050 | F21: 0 | G21: 1 | H21: 3 | I21: 5 | J21: 7 | K21: 8 | L21: 10 | M21: 12 | N21: 14 | O21: 16 | P21: 18 | Q21: 19 | R21: 21 | S21: 23 | T21: 25 | U21: 25 | V21: 25 | W21: 25 | X21: 25 | Z21: 1000 | AA21: - | AB21: 1099 | AD21: =ROUND(IF(IF(IF((($E21*(100-AD$14)/100*$K$3)*(-1))<$F$4,$F$6,IF((($E21*(100-AD$14)/100*$K$3)*(-1))>=($F$4+$F$6),($E21*(100-AD$14)/100*$K$3)+($F$4+$F$6),($F$6-((($E21*(100-AD$14)/100*$K$3)*(-1))-$F$4))))>=0,IF((($E21*(100-AD$14)/100*$K$3)*(-1))<$F$4,$F$6,IF((($E21*(100-AD$14)/100*$K$3)*(-1))>=($F$4+$F$6),($E21*(100-AD$14)/100*$K$3)+($F$4+$F$6),($F$6-((($E21*(100-AD$14)/100*$K$3)*(-1))-$F$4)))),IF(IF((($E21*(100-AD$14)/100*$K$3)*(-1))<$F$4,$F$6,IF((($E21*(100-AD$14)/100*$K$3)*(-1))>=($F$4+$F$6),($E21*(100-AD$14)/100*$K$3)+($F$4+$F$6),($F$6-((($E21*(100-AD$14)/100*$K$3)*(-1))-$F$4))))*(-1)<=$F$7,0,$F$7+IF((($E21*(100-AD$14)/100*$K$3)*(-1))<$F$4,$F$6,IF((($E21*(100-AD$14)/100*$K$3)*(-1))>=($F$4+$F$6),($E21*(100-AD$14)/100*$K$3)+($F$4+$F$6),($F$6-((($E21*(100-AD$14)/100*$K$3)*(-1))-$F$4))))))*(-1)>$F$5,$F$5*(-1),IF(IF((($E21*(100-AD$14)/100*$K$3)*(-1))<$F$4,$F$6,IF((($E21*(100-AD$14)/100*$K$3)*(-1))>=($F$4+$F$6),($E21*(100-AD$14)/100*$K$3)+($F$4+$F$6),($F$6-((($E21*(100-AD$14)/100*$K$3)*(-1))-$F$4))))>=0,IF((($E21*(100-AD$14)/100*$K$3)*(-1))<$F$4,$F$6,IF((($E21*(100-AD$14)/100*$K$3)*(-1))>=($F$4+$F$6),($E21*(100-AD$14)/100*$K$3)+($F$4+$F$6),($F$6-((($E21*(100-AD$14)/100*$K$3)*(-1))-$F$4)))),IF(IF((($E21*(100-AD$14)/100*$K$3)*(-1))<$F$4,$F$6,IF((($E21*(100-AD$14)/100*$K$3)*(-1))>=($F$4+$F$6),($E21*(100-AD$14)/100*$K$3)+($F$4+$F$6),($F$6-((($E21*(100-AD$14)/100*$K$3)*(-1))-$F$4))))*(-1)<=$F$7,0,$F$7+IF((($E21*(100-AD$14)/100*$K$3)*(-1))<$F$4,$F$6,IF((($E21*(100-AD$14)/100*$K$3)*(-1))>=($F$4+$F$6),($E21*(100-AD$14)/100*$K$3)+($F$4+$F$6),($F$6-((($E21*(100-AD$14)/100*$K$3)*(-1))-$F$4)))))))/$D$2*100/2,0) -> 0 | AE21: =ROUND(IF(IF(IF((($E21*(100-AE$14)/100*$K$3)*(-1))<$F$4,$F$6,IF((($E21*(100-AE$14)/100*$K$3)*(-1))>=($F$4+$F$6),($E21*(100-AE$14)/100*$K$3)+($F$4+$F$6),($F$6-((($E21*(100-AE$14)/100*$K$3)*(-1))-$F$4))))>=0,IF((($E21*(100-AE$14)/100*$K$3)*(-1))<$F$4,$F$6,IF((($E21*(100-AE$14)/100*$K$3)*(-1))>=($F$4+$F$6),($E21*(100-AE$14)/100*$K$3)+($F$4+$F$6),($F$6-((($E21*(100-AE$14)/100*$K$3)*(-1))-$F$4)))),IF(IF((($E21*(100-AE$14)/100*$K$3)*(-1))<$F$4,$F$6,IF((($E21*(100-AE$14)/100*$K$3)*(-1))>=($F$4+$F$6),($E21*(100-AE$14)/100*$K$3)+($F$4+$F$6),($F$6-((($E21*(100-AE$14)/100*$K$3)*(-1))-$F$4))))*(-1)<=$F$7,0,$F$7+IF((($E21*(100-AE$14)/100*$K$3)*(-1))<$F$4,$F$6,IF((($E21*(100-AE$14)/100*$K$3)*(-1))>=($F$4+$F$6),($E21*(100-AE$14)/100*$K$3)+($F$4+$F$6),($F$6-((($E21*(100-AE$14)/100*$K$3)*(-1))-$F$4))))))*(-1)>$F$5,$F$5*(-1),IF(IF((($E21*(100-AE$14)/100*$K$3)*(-1))<$F$4,$F$6,IF((($E21*(100-AE$14)/100*$K$3)*(-1))>=($F$4+$F$6),($E21*(100-AE$14)/100*$K$3)+($F$4+$F$6),($F$6-((($E21*(100-AE$14)/100*$K$3)*(-1))-$F$4))))>=0,IF((($E21*(100-AE$14)/100*$K$3)*(-1))<$F$4,$F$6,IF((($E21*(100-AE$14)/100*$K$3)*(-1))>=($F$4+$F$6),($E21*(100-AE$14)/100*$K$3)+($F$4+$F$6),($F$6-((($E21*(100-AE$14)/100*$K$3)*(-1))-$F$4)))),IF(IF((($E21*(100-AE$14)/100*$K$3)*(-1))<$F$4,$F$6,IF((($E21*(100-AE$14)/100*$K$3)*(-1))>=($F$4+$F$6),($E21*(100-AE$14)/100*$K$3)+($F$4+$F$6),($F$6-((($E21*(100-AE$14)/100*$K$3)*(-1))-$F$4))))*(-1)<=$F$7,0,$F$7+IF((($E21*(100-AE$14)/100*$K$3)*(-1))<$F$4,$F$6,IF((($E21*(100-AE$14)/100*$K$3)*(-1))>=($F$4+$F$6),($E21*(100-AE$14)/100*$K$3)+($F$4+$F$6),($F$6-((($E21*(100-AE$14)/100*$K$3)*(-1))-$F$4)))))))/$D$2*100/2,0) -> 0 | AF21: 0 | AG21: 0 | AH21: 0 | AI21: 0 | AJ21: 0 | AK21: 0 | AL21: 2 | AM21: 5 | AN21: 8 | AO21: 11 | AP21: 14 | AQ21: 17 | AR21: 20 | AS21: 23 | AT21: 25 | AU21: 23 | AV21: 20 | AX21: 1000 | AY21: - | AZ21: 1099 | BB21: 0 | BC21: 0 | BD21: 0 | BE21: 0 | BF21: 0 | BG21: 0 | BH21: 0 | BI21: 0 | BJ21: 20 | BK21: 20 | BL21: 20 | BM21: 20 | BN21: 20 | BO21: 20 | BP21: 20 | BQ21: 20 | BR21: 20 | BS21: 20 | BT21: 0 | BV21: 1000 | BW21: - | BX21: 1099 | BZ21: 0 | CA21: 1 | CB21: 3 | CC21: 5 | CD21: 7 | CE21: 8 | CF21: 10 | CG21: 12 | CH21: 36 | CI21: 41 | CJ21: 46 | CK21: 50 | CL21: 55 | CM21: 60 | CN21: 65 | CO21: 68 | CP21: 70 | CQ21: 68 | CR21: 45 | CS21: 1050 | CU21: 1000 | CV21: - | CW21: 1099 | CX21: 143 | CY21: 148.71 | CZ21: 156.56 | DA21: 164.41 | DB21: 172.26 | DC21: 185.11 | DD21: 192.96 | DE21: 200.81 | DF21: 98.66 | DG21: 91.51 | DH21: 84.36 | DI21: 82.21 | DJ21: 75.06 | DK21: 67.91 | DL21: 60.76 | DM21: 63.61 | DN21: 71.46 | DO21: 99.31 | DP21: 225.02 | DT21: Malé | DU21: Velká | DV21: 375 | DW21: 550 | DX21: 30 | DY21: 28 | DZ21: NE | EA21: 5 | EB21: 17 | EC21: 0 | ED21: 22 | EE21: 255
B22: 1100 | C22: - | D22: 1199 | E22: 1150 | F22: 0 | G22: 1 | H22: 3 | I22: 5 | J22: 7 | K22: 9 | L22: 11 | M22: 13 | N22: 15 | O22: 17 | P22: 19 | Q22: 21 | R22: 23 | S22: 25 | T22: 25 | U22: 25 | V22: 25 | W22: 25 | X22: 25 | Z22: 1100 | AA22: - | AB22: 1199 | AD22: -3 | AE22: -2 | AF22: 0 | AG22: 0 | AH22: 0 | AI22: 0 | AJ22: 0 | AK22: 0 | AL22: 0 | AM22: 2 | AN22: 5 | AO22: 8 | AP22: 12 | AQ22: 15 | AR22: 18 | AS22: 21 | AT22: 25 | AU22: 21 | AV22: 18 | AX22: 1100 | AY22: - | AZ22: 1199 | BB22: 0 | BC22: 0 | BD22: 0 | BE22: 0 | BF22: 0 | BG22: 0 | BH22: 0 | BI22: 0 | BJ22: 0 | BK22: 20 | BL22: 20 | BM22: 20 | BN22: 20 | BO22: 20 | BP22: 20 | BQ22: 20 | BR22: 20 | BS22: 20 | BT22: 0 | BV22: 1100 | BW22: - | BX22: 1199 | BZ22: 0 | CA22: 0 | CB22: 3 | CC22: 5 | CD22: 7 | CE22: 9 | CF22: 11 | CG22: 13 | CH22: 15 | CI22: 39 | CJ22: 44 | CK22: 49 | CL22: 55 | CM22: 60 | CN22: 63 | CO22: 66 | CP22: 70 | CQ22: 66 | CR22: 43 | CS22: 1150 | CU22: 1100 | CV22: - | CW22: 1199 | CX22: 109 | CY22: 120.73 | CZ22: 125.28 | DA22: 134.83 | DB22: 144.38 | DC22: 153.93 | DD22: 163.48 | DE22: 173.03 | DF22: 182.58 | DG22: 82.13 | DH22: 76.68 | DI22: 71.23 | DJ22: 60.78 | DK22: 55.33 | DL22: 59.88 | DM22: 64.43 | DN22: 63.98 | DO22: 103.53 | DP22: 230.26 | DT22: Malé | DU22: Velká | DV22: 375 | DW22: 550 | DX22: 0 | DY22: 0 | DZ22: Ano | EA22: 0 | EB22: 0 | EC22: 0 | ED22: 0 | EE22: 313
B23: 1200 | C23: - | D23: 1299 | E23: 1250 | F23: 0 | G23: 1 | H23: 4 | I23: 6 | J23: 8 | K23: 10 | L23: 12 | M23: 14 | N23: 17 | O23: 19 | P23: 21 | Q23: 23 | R23: 25 | S23: 25 | T23: 25 | U23: 25 | V23: 25 | W23: 25 | X23: 25 | Z23: 1200 | AA23: - | AB23: 1299 | AD23: -6 | AE23: -5 | AF23: -3 | AG23: -1 | AH23: 0 | AI23: 0 | AJ23: 0 | AK23: 0 | AL23: 0 | AM23: 0 | AN23: 2 | AO23: 6 | AP23: 9 | AQ23: 13 | AR23: 16 | AS23: 20 | AT23: 23 | AU23: 20 | AV23: 16 | AX23: 1200 | AY23: - | AZ23: 1299 | BB23: 0 | BC23: 0 | BD23: 0 | BE23: 0 | BF23: 0 | BG23: 0 | BH23: 0 | BI23: 0 | BJ23: 0 | BK23: 19 | BL23: 20 | BM23: 20 | BN23: 20 | BO23: 20 | BP23: 20 | BQ23: 20 | BR23: 20 | BS23: 20 | BT23: 0 | BV23: 1200 | BW23: - | BX23: 1299 | BZ23: 0 | CA23: 0 | CB23: 1 | CC23: 5 | CD23: 8 | CE23: 10 | CF23: 12 | CG23: 14 | CH23: 17 | CI23: 38 | CJ23: 43 | CK23: 49 | CL23: 54 | CM23: 58 | CN23: 61 | CO23: 65 | CP23: 68 | CQ23: 65 | CR23: 41 | CS23: 1250 | CU23: 1200 | CV23: - | CW23: 1299 | CX23: =$DC$4-(BZ23/100*$DC$4)+($CS23*(100-CX$14)/100*$DH$3)+($CS23*(CX$14)/100*$DH$4)+($CS23*(CX$14)/100*$DH$5) -> 75 | CY23: 87.75 | CZ23: 104 | DA23: 105.25 | DB23: 111.5 | DC23: 122.75 | DD23: 134 | DE23: 145.25 | DF23: 151.5 | DG23: 67.75 | DH23: =$DC$4-(CJ23/100*$DC$4)+($CS23*(100-DH$14)/100*$DH$3)+($CS23*(DH$14)/100*$DH$4)+($CS23*(DH$14)/100*$DH$5) -> 64 | DI23: 55.25 | DJ23: 51.5 | DK23: 52.75 | DL23: 59 | DM23: 60.25 | DN23: 66.5 | DO23: 102.75 | DP23: =$DC$4-(CR23/100*$DC$4)+($CS23*(100-DP$14)/100*$DH$3)+($CS23*(DP$14)/100*$DH$4)+($CS23*(DP$14)/100*$DH$5*0.66) -> 184.33 | DT23: Malé | DU23: Velká | DV23: 375 | DW23: 550 | DX23: 0 | DY23: 0 | DZ23: NE | EA23: 0 | EB23: 0 | EC23: 0 | ED23: 0 | EE23: 313
B24: 1300 | C24: - | D24: 1399 | E24: 1350 | F24: 0 | G24: 1 | H24: 4 | I24: 6 | J24: 9 | K24: 11 | L24: 13 | M24: 16 | N24: 18 | O24: 20 | P24: 23 | Q24: 25 | R24: 25 | S24: 25 | T24: 25 | U24: 25 | V24: 25 | W24: 25 | X24: 25 | Z24: 1300 | AA24: - | AB24: 1399 | AD24: -9 | AE24: -8 | AF24: -6 | AG24: -4 | AH24: -2 | AI24: 0 | AJ24: 0 | AK24: 0 | AL24: 0 | AM24: 0 | AN24: 0 | AO24: 3 | AP24: 7 | AQ24: 11 | AR24: 15 | AS24: 18 | AT24: 22 | AU24: 18 | AV24: 15 | AX24: 1300 | AY24: - | AZ24: 1399 | BB24: 0 | BC24: 0 | BD24: 0 | BE24: 0 | BF24: 0 | BG24: 0 | BH24: 0 | BI24: 0 | BJ24: 0 | BK24: 0 | BL24: 19 | BM24: 20 | BN24: 20 | BO24: 20 | BP24: 20 | BQ24: 20 | BR24: 20 | BS24: 19 | BT24: 0 | BV24: 1300 | BW24: - | BX24: 1399 | BZ24: 0 | CA24: 0 | CB24: 0 | CC24: 2 | CD24: 7 | CE24: 11 | CF24: 13 | CG24: 16 | CH24: 18 | CI24: 20 | CJ24: 42 | CK24: 48 | CL24: 52 | CM24: 56 | CN24: 60 | CO24: 63 | CP24: 67 | CQ24: =IF((W24+AU24+BS24)<0,0,(W24+AU24+BS24)) -> 62 | CR24: 40 | CS24: 1350 | CU24: 1300 | CV24: - | CW24: 1399 | CX24: 41 | CY24: 54.77 | CZ24: 77.72 | DA24: 90.67 | DB24: 88.62 | DC24: 91.57 | DD24: 104.52 | DE24: 112.47 | DF24: 125.42 | DG24: 138.37 | DH24: 51.32 | DI24: 44.27 | DJ24: 47.22 | DK24: 50.17 | DL24: 53.12 | DM24: 61.07 | DN24: 64.02 | DO24: 111.97 | DP24: 180.4764 | DS24: Plné popelnice | DT24: Malé | DU24: Optimální | DV24: 500 | DW24: 550 | DX24: 75 | DY24: 73 | DZ24: Ano | EA24: 14 | EB24: 25 | EC24: 20 | ED24: 59 | EE24: 155
B25: 1400 | C25: - | D25: 1499 | E25: 1450 | F25: 0 | G25: 2 | H25: 4 | I25: 7 | J25: 9 | K25: 12 | L25: 14 | M25: 17 | N25: 19 | O25: 22 | P25: 24 | Q25: 25 | R25: 25 | S25: 25 | T25: 25 | U25: 25 | V25: 25 | W25: 25 | X25: 25 | Z25: 1400 | AA25: - | AB25: 1499 | AD25: -12 | AE25: -10 | AF25: -8 | AG25: -6 | AH25: -4 | AI25: -2 | AJ25: 0 | AK25: 0 | AL25: 0 | AM25: 0 | AN25: 0 | AO25: 0 | AP25: 4 | AQ25: 9 | AR25: 13 | AS25: 17 | AT25: 21 | AU25: 17 | AV25: 13 | AX25: 1400 | AY25: - | AZ25: 1499 | BB25: 0 | BC25: 0 | BD25: 0 | BE25: 0 | BF25: 0 | BG25: 0 | BH25: 0 | BI25: 0 | BJ25: 0 | BK25: 0 | BL25: 16 | BM25: 20 | BN25: 20 | BO25: 20 | BP25: 20 | BQ25: 20 | BR25: 19 | BS25: 0 | BT25: 0 | BV25: 1400 | BW25: - | BX25: 1499 | BZ25: 0 | CA25: 0 | CB25: 0 | CC25: 1 | CD25: 5 | CE25: 10 | CF25: 14 | CG25: 17 | CH25: 19 | CI25: 22 | CJ25: 40 | CK25: 45 | CL25: 49 | CM25: 54 | CN25: 58 | CO25: 62 | CP25: 65 | CQ25: 42 | CR25: 38 | CS25: 1450 | CU25: 1400 | CV25: - | CW25: 1499 | CX25: =$DC$4-(BZ25/100*$DC$4)+($CS25*(100-CX$14)/100*$DH$3)+($CS25*(CX$14)/100*$DH$4)+($CS25*(CX$14)/100*$DH$5) -> 7 | CY25: 21.79 | CZ25: 46.44 | DA25: 66.09 | DB25: 70.74 | DC25: 70.39 | DD25: 75.04 | DE25: 84.69 | DF25: 99.34 | DG25: 108.99 | DH25: 43.64 | DI25: 43.29 | DJ25: 47.94 | DK25: 47.59 | DL25: 52.24 | DM25: 56.89 | DN25: 66.54 | DO25: =$DC$4-(CQ25/100*$DC$4)+($CS25*(100-DO$14)/100*$DH$3)+($CS25*(DO$14)/100*$DH$4)+($CS25*(DO$14)/100*$DH$5*0.66) -> 148.9034 | DP25: 181.6228 | DT25: Malé | DU25: Optimální | DV25: 500 | DW25: 550 | DX25: 75 | DY25: 73 | DZ25: NE | EA25: 14 | EB25: 25 | EC25: 0 | ED25: 39 | EE25: 255 | EF25: Nemá vyplněný OD (souhlas s podmínkami - může přijít o odměnu)
B26: 1500 | C26: - | D26: 1599 | E26: 1550 | F26: 0 | G26: 2 | H26: 4 | I26: 7 | J26: 10 | K26: 12 | L26: 15 | M26: 18 | N26: 21 | O26: 23 | P26: 25 | Q26: 25 | R26: 25 | S26: 25 | T26: 25 | U26: 25 | V26: 25 | W26: 25 | X26: 25 | Z26: 1500 | AA26: - | AB26: 1599 | AD26: -13 | AE26: -13 | AF26: -11 | AG26: -9 | AH26: -7 | AI26: -4 | AJ26: -2 | AK26: 0 | AL26: 0 | AM26: 0 | AN26: 0 | AO26: 0 | AP26: 2 | AQ26: 7 | AR26: 11 | AS26: 15 | AT26: 20 | AU26: 15 | AV26: 11 | AX26: 1500 | AY26: - | AZ26: 1599 | BB26: 0 | BC26: 0 | BD26: 0 | BE26: 0 | BF26: 0 | BG26: 0 | BH26: 0 | BI26: 0 | BJ26: 0 | BK26: 0 | BL26: 0 | BM26: 18 | BN26: 20 | BO26: 20 | BP26: 20 | BQ26: 19 | BR26: 17 | BS26: 0 | BT26: 0 | BV26: 1500 | BW26: - | BX26: 1599 | BZ26: 0 | CA26: 0 | CB26: 0 | CC26: 0 | CD26: 3 | CE26: 8 | CF26: 13 | CG26: 18 | CH26: 21 | CI26: 23 | CJ26: 25 | CK26: 43 | CL26: 47 | CM26: 52 | CN26: 56 | CO26: 59 | CP26: 62 | CQ26: 40 | CR26: 36 | CS26: 1550 | CU26: 1500 | CV26: - | CW26: 1599 | CX26: =$DC$4-(BZ26/100*$DC$4)+($CS26*(100-CX$14)/100*$DH$3)+($CS26*(CX$14)/100*$DH$4)+($CS26*(CX$14)/100*$DH$5) -> -27 | CY26: =$DC$4-(CA26/100*$DC$4)+($CS26*(100-CY$14)/100*$DH$3)+($CS26*(CY$14)/100*$DH$4)+($CS26*(CY$14)/100*$DH$5) -> -11.19 | CZ26: =$DC$4-(CB26/100*$DC$4)+($CS26*(100-CZ$14)/100*$DH$3)+($CS26*(CZ$14)/100*$DH$4)+($CS26*(CZ$14)/100*$DH$5) -> 15.16 | DA26: =$DC$4-(CC26/100*$DC$4)+($CS26*(100-DA$14)/100*$DH$3)+($CS26*(DA$14)/100*$DH$4)+($CS26*(DA$14)/100*$DH$5) -> 41.51 | DB26: =$DC$4-(CD26/100*$DC$4)+($CS26*(100-DB$14)/100*$DH$3)+($CS26*(DB$14)/100*$DH$4)+($CS26*(DB$14)/100*$DH$5) -> 52.86 | DC26: =$DC$4-(CE26/100*$DC$4)+($CS26*(100-DC$14)/100*$DH$3)+($CS26*(DC$14)/100*$DH$4)+($CS26*(DC$14)/100*$DH$5) -> 54.21 | DD26: =$DC$4-(CF26/100*$DC$4)+($CS26*(100-DD$14)/100*$DH$3)+($CS26*(DD$14)/100*$DH$4)+($CS26*(DD$14)/100*$DH$5) -> 55.56 | DE26: =$DC$4-(CG26/100*$DC$4)+($CS26*(100-DE$14)/100*$DH$3)+($CS26*(DE$14)/100*$DH$4)+($CS26*(DE$14)/100*$DH$5) -> 56.91 | DF26: =$DC$4-(CH26/100*$DC$4)+($CS26*(100-DF$14)/100*$DH$3)+($CS26*(DF$14)/100*$DH$4)+($CS26*(DF$14)/100*$DH$5) -> 68.26 | DG26: =$DC$4-(CI26/100*$DC$4)+($CS26*(100-DG$14)/100*$DH$3)+($CS26*(DG$14)/100*$DH$4)+($CS26*(DG$14)/100*$DH$5) -> 84.61 | DH26: =$DC$4-(CJ26/100*$DC$4)+($CS26*(100-DH$14)/100*$DH$3)+($CS26*(DH$14)/100*$DH$4)+($CS26*(DH$14)/100*$DH$5) -> 100.96 | DI26: =$DC$4-(CK26/100*$DC$4)+($CS26*(100-DI$14)/100*$DH$3)+($CS26*(DI$14)/100*$DH$4)+($CS26*(DI$14)/100*$DH$5) -> 37.31 | DJ26: =$DC$4-(CL26/100*$DC$4)+($CS26*(100-DJ$14)/100*$DH$3)+($CS26*(DJ$14)/100*$DH$4)+($CS26*(DJ$14)/100*$DH$5) -> 43.66 | DK26: =$DC$4-(CM26/100*$DC$4)+($CS26*(100-DK$14)/100*$DH$3)+($CS26*(DK$14)/100*$DH$4)+($CS26*(DK$14)/100*$DH$5) -> 45.01 | DL26: =$DC$4-(CN26/100*$DC$4)+($CS26*(100-DL$14)/100*$DH$3)+($CS26*(DL$14)/100*$DH$4)+($CS26*(DL$14)/100*$DH$5) -> 51.36 | DM26: =$DC$4-(CO26/100*$DC$4)+($CS26*(100-DM$14)/100*$DH$3)+($CS26*(DM$14)/100*$DH$4)+($CS26*(DM$14)/100*$DH$5) -> 62.71 | DN26: =$DC$4-(CP26/100*$DC$4)+($CS26*(100-DN$14)/100*$DH$3)+($CS26*(DN$14)/100*$DH$4)+($CS26*(DN$14)/100*$DH$5) -> 74.06 | DO26: =$DC$4-(CQ26/100*$DC$4)+($CS26*(100-DO$14)/100*$DH$3)+($CS26*(DO$14)/100*$DH$4)+($CS26*(DO$14)/100*$DH$5*0.66) -> 149.1726 | DP26: 182.7692 | DT26: Malé | DU26: Optimální | DV26: 500 | DW26: 550 | DX26: >85 | DY26: 86 | DZ26: Ano | EA26: 17 | EB26: 25 | EC26: 0 | ED26: 42 | EE26: 264 | EF26: SPO není udílena - úroveň třídění je podezřelá.
B27: 1600 | C27: - | D27: 1699 | E27: 1650 | F27: 0 | G27: 2 | H27: 5 | I27: 8 | J27: 10 | K27: 13 | L27: 16 | M27: 19 | N27: 22 | O27: 25 | P27: 25 | Q27: 25 | R27: 25 | S27: 25 | T27: 25 | U27: 25 | V27: 25 | W27: 25 | X27: 25 | Z27: 1600 | AA27: - | AB27: 1699 | AD27: -13 | AE27: -13 | AF27: -13 | AG27: -11 | AH27: -9 | AI27: -6 | AJ27: -4 | AK27: -2 | AL27: 0 | AM27: 0 | AN27: 0 | AO27: 0 | AP27: 0 | AQ27: 4 | AR27: 9 | AS27: 14 | AT27: 18 | AU27: 14 | AV27: 9 | AX27: 1600 | AY27: - | AZ27: 1699 | BB27: 0 | BC27: 0 | BD27: 0 | BE27: 0 | BF27: 0 | BG27: 0 | BH27: 0 | BI27: 0 | BJ27: 0 | BK27: 0 | BL27: 0 | BM27: 15 | BN27: 20 | BO27: 20 | BP27: 19 | BQ27: 17 | BR27: 0 | BS27: 0 | BT27: 0 | BV27: 1600 | BW27: - | BX27: 1699 | BZ27: 0 | CA27: 0 | CB27: 0 | CC27: 0 | CD27: 1 | CE27: 7 | CF27: 12 | CG27: 17 | CH27: 22 | CI27: 25 | CJ27: 25 | CK27: 40 | CL27: 45 | CM27: 49 | CN27: 53 | CO27: 56 | CP27: 43 | CQ27: 39 | CR27: 34 | CS27: 1650 | CU27: 1600 | CV27: - | CW27: 1699 | CX27: -61 | CY27: -44.17 | CZ27: -16.12 | DA27: 11.93 | DB27: 34.98 | DC27: 33.03 | DD27: 36.08 | DE27: 39.13 | DF27: 42.18 | DG27: 55.23 | DH27: 83.28 | DI27: 36.33 | DJ27: 39.38 | DK27: 47.43 | DL27: =$DC$4-(CN27/100*$DC$4)+($CS27*(100-DL$14)/100*$DH$3)+($CS27*(DL$14)/100*$DH$4)+($CS27*(DL$14)/100*$DH$5) -> 55.48 | DM27: =$DC$4-(CO27/100*$DC$4)+($CS27*(100-DM$14)/100*$DH$3)+($CS27*(DM$14)/100*$DH$4)+($CS27*(DM$14)/100*$DH$5) -> 68.53 | DN27: =$DC$4-(CP27/100*$DC$4)+($CS27*(100-DN$14)/100*$DH$3)+($CS27*(DN$14)/100*$DH$4)+($CS27*(DN$14)/100*$DH$5*0.66) -> 100.3188 | DO27: =$DC$4-(CQ27/100*$DC$4)+($CS27*(100-DO$14)/100*$DH$3)+($CS27*(DO$14)/100*$DH$4)+($CS27*(DO$14)/100*$DH$5*0.66) -> 144.4418 | DP27: 183.9156 | DT27: Malé | DU27: Optimální | DV27: 500 | DW27: 550 | DX27: >85 | DY27: 86 | DZ27: NE | EA27: 17 | EB27: 25 | EC27: 0 | ED27: 42 | EE27: 264 | EF27: Směsný je v tříděném odpadu nebo se zbavuje směsného nelegálně.
B28: 1700 | C28: - | D28: 1799 | E28: 1750 | F28: 0 | G28: 2 | H28: 5 | I28: 8 | J28: 11 | K28: 14 | L28: 17 | M28: 20 | N28: 23 | O28: 25 | P28: 25 | Q28: 25 | R28: 25 | S28: 25 | T28: 25 | U28: 25 | V28: 25 | W28: 25 | X28: 25 | Z28: 1700 | AA28: - | AB28: 1799 | AD28: -13 | AE28: -13 | AF28: -13 | AG28: -13 | AH28: -11 | AI28: -9 | AJ28: -6 | AK28: -4 | AL28: -1 | AM28: 0 | AN28: 0 | AO28: 0 | AP28: 0 | AQ28: 2 | AR28: 7 | AS28: 12 | AT28: 17 | AU28: 12 | AV28: 7 | AX28: 1700 | AY28: - | AZ28: 1799 | BB28: 0 | BC28: 0 | BD28: 0 | BE28: 0 | BF28: 0 | BG28: 0 | BH28: 0 | BI28: 0 | BJ28: 0 | BK28: 0 | BL28: 0 | BM28: 0 | BN28: 17 | BO28: 19 | BP28: 17 | BQ28: 0 | BR28: 0 | BS28: 0 | BT28: 0 | BV28: 1700 | BW28: - | BX28: 1799 | BZ28: 0 | CA28: 0 | CB28: 0 | CC28: 0 | CD28: 0 | CE28: 5 | CF28: 11 | CG28: 16 | CH28: 22 | CI28: 25 | CJ28: 25 | CK28: 25 | CL28: 42 | CM28: 46 | CN28: 49 | CO28: 37 | CP28: 42 | CQ28: 37 | CR28: 32 | CS28: 1750 | CU28: 1700 | CV28: - | CW28: 1799 | CX28: -95 | CY28: -77.15 | CZ28: -47.4 | DA28: -17.65 | DB28: 12.1 | DC28: 16.85 | DD28: 16.6 | DE28: 21.35 | DF28: 21.1 | DG28: 35.85 | DH28: 65.6 | DI28: 95.35 | DJ28: 40.1 | DK28: 49.85 | DL28: =$DC$4-(CN28/100*$DC$4)+($CS28*(100-DL$14)/100*$DH$3)+($CS28*(DL$14)/100*$DH$4)+($CS28*(DL$14)/100*$DH$5) -> 64.6 | DM28: =$DC$4-(CO28/100*$DC$4)+($CS28*(100-DM$14)/100*$DH$3)+($CS28*(DM$14)/100*$DH$4)+($CS28*(DM$14)/100*$DH$5) -> 154.35 | DN28: =$DC$4-(CP28/100*$DC$4)+($CS28*(100-DN$14)/100*$DH$3)+($CS28*(DN$14)/100*$DH$4)+($CS28*(DN$14)/100*$DH$5*0.66) -> 94.126 | DO28: =$DC$4-(CQ28/100*$DC$4)+($CS28*(100-DO$14)/100*$DH$3)+($CS28*(DO$14)/100*$DH$4)+($CS28*(DO$14)/100*$DH$5*0.66) -> 144.711 | DP28: 185.062 | DT28: Malé | DU28: Optimální | DV28: 500 | DW28: 550 | DX28: 30 | DY28: 28 | DZ28: Ano | EA28: 5 | EB28: 17 | EC28: 0 | ED28: 22 | EE28: 255
B29: 1800 | C29: - | D29: 1899 | E29: 1850 | F29: 0 | G29: 2 | H29: 5 | I29: 8 | J29: 12 | K29: 15 | L29: 18 | M29: 21 | N29: 25 | O29: 25 | P29: 25 | Q29: 25 | R29: 25 | S29: 25 | T29: 25 | U29: 25 | V29: 25 | W29: 25 | X29: 25 | Z29: 1800 | AA29: - | AB29: 1899 | AD29: -13 | AE29: -13 | AF29: -13 | AG29: -13 | AH29: -13 | AI29: -11 | AJ29: -8 | AK29: -6 | AL29: -3 | AM29: 0 | AN29: 0 | AO29: 0 | AP29: 0 | AQ29: 0 | AR29: 5 | AS29: 11 | AT29: 16 | AU29: 11 | AV29: 5 | AX29: 1800 | AY29: - | AZ29: 1899 | BB29: 0 | BC29: 0 | BD29: 0 | BE29: 0 | BF29: 0 | BG29: 0 | BH29: 0 | BI29: 0 | BJ29: 0 | BK29: 0 | BL29: 0 | BM29: 0 | BN29: 0 | BO29: 0 | BP29: 0 | BQ29: 0 | BR29: 0 | BS29: 0 | BT29: 0 | BV29: 1800 | BW29: - | BX29: 1899 | BZ29: 0 | CA29: 0 | CB29: 0 | CC29: 0 | CD29: 0 | CE29: 4 | CF29: 10 | CG29: 15 | CH29: 22 | CI29: 25 | CJ29: 25 | CK29: 25 | CL29: 25 | CM29: 25 | CN29: 30 | CO29: 36 | CP29: 41 | CQ29: 36 | CR29: 30 | CS29: 1850 | CU29: 1800 | CV29: - | CW29: 1899 | CX29: -129 | CY29: -110.13 | CZ29: -78.68 | DA29: -47.23 | DB29: -15.78 | DC29: -4.33 | DD29: -2.88 | DE29: 3.57 | DF29: 0.02 | DG29: 16.47 | DH29: 47.92 | DI29: 79.37 | DJ29: 110.82 | DK29: 142.27 | DL29: =$DC$4-(CN29/100*$DC$4)+($CS29*(100-DL$14)/100*$DH$3)+($CS29*(DL$14)/100*$DH$4)+($CS29*(DL$14)/100*$DH$5) -> 148.72 | DM29: =$DC$4-(CO29/100*$DC$4)+($CS29*(100-DM$14)/100*$DH$3)+($CS29*(DM$14)/100*$DH$4)+($CS29*(DM$14)/100*$DH$5*0.66) -> 85.8862 | DN29: =$DC$4-(CP29/100*$DC$4)+($CS29*(100-DN$14)/100*$DH$3)+($CS29*(DN$14)/100*$DH$4)+($CS29*(DN$14)/100*$DH$5*0.66) -> 87.9332 | DO29: =$DC$4-(CQ29/100*$DC$4)+($CS29*(100-DO$14)/100*$DH$3)+($CS29*(DO$14)/100*$DH$4)+($CS29*(DO$14)/100*$DH$5*0.66) -> 139.9802 | DP29: =$DC$4-(CR29/100*$DC$4)+($CS29*(100-DP$14)/100*$DH$3)+($CS29*(DP$14)/100*$DH$4)+($CS29*(DP$14)/100*$DH$5*0.66) -> 186.2084 | DT29: Malé | DU29: Optimální | DV29: 500 | DW29: 550 | DX29: 30 | DY29: 28 | DZ29: NE | EA29: 5 | EB29: 17 | EC29: 0 | ED29: 22 | EE29: 255
B30: 1900 | C30: - | D30: 1999 | E30: 1950 | F30: 0 | G30: 2 | H30: 5 | I30: 9 | J30: =ROUND(IF((($E30*J$14/100*$K$4)*(-1))>($F$5-50),($E30*J$14/100*$K$5)-((($E30*J$14/100*$K$4)*(-1))-($F$5-50)),($E30*J$14/100*$K$5))/($D$2-200)*100,0) -> 12 | K30: 16 | L30: 19 | M30: 23 | N30: 25 | O30: 25 | P30: 25 | Q30: 25 | R30: 25 | S30: 25 | T30: 25 | U30: 25 | V30: 25 | W30: 25 | X30: 25 | Z30: 1900 | AA30: - | AB30: 1999 | AD30: -13 | AE30: -13 | AF30: -13 | AG30: -13 | AH30: -13 | AI30: -13 | AJ30: -10 | AK30: -8 | AL30: -5 | AM30: -2 | AN30: 0 | AO30: 0 | AP30: =ROUND(IF(IF(IF((($E30*(100-AP$14)/100*$K$3)*(-1))<$F$4,$F$6,IF((($E30*(100-AP$14)/100*$K$3)*(-1))>=($F$4+$F$6),($E30*(100-AP$14)/100*$K$3)+($F$4+$F$6),($F$6-((($E30*(100-AP$14)/100*$K$3)*(-1))-$F$4))))>=0,IF((($E30*(100-AP$14)/100*$K$3)*(-1))<$F$4,$F$6,IF((($E30*(100-AP$14)/100*$K$3)*(-1))>=($F$4+$F$6),($E30*(100-AP$14)/100*$K$3)+($F$4+$F$6),($F$6-((($E30*(100-AP$14)/100*$K$3)*(-1))-$F$4)))),IF(IF((($E30*(100-AP$14)/100*$K$3)*(-1))<$F$4,$F$6,IF((($E30*(100-AP$14)/100*$K$3)*(-1))>=($F$4+$F$6),($E30*(100-AP$14)/100*$K$3)+($F$4+$F$6),($F$6-((($E30*(100-AP$14)/100*$K$3)*(-1))-$F$4))))*(-1)<=$F$7,0,$F$7+IF((($E30*(100-AP$14)/100*$K$3)*(-1))<$F$4,$F$6,IF((($E30*(100-AP$14)/100*$K$3)*(-1))>=($F$4+$F$6),($E30*(100-AP$14)/100*$K$3)+($F$4+$F$6),($F$6-((($E30*(100-AP$14)/100*$K$3)*(-1))-$F$4))))))*(-1)>$F$5,$F$5*(-1),IF(IF((($E30*(100-AP$14)/100*$K$3)*(-1))<$F$4,$F$6,IF((($E30*(100-AP$14)/100*$K$3)*(-1))>=($F$4+$F$6),($E30*(100-AP$14)/100*$K$3)+($F$4+$F$6),($F$6-((($E30*(100-AP$14)/100*$K$3)*(-1))-$F$4))))>=0,IF((($E30*(100-AP$14)/100*$K$3)*(-1))<$F$4,$F$6,IF((($E30*(100-AP$14)/100*$K$3)*(-1))>=($F$4+$F$6),($E30*(100-AP$14)/100*$K$3)+($F$4+$F$6),($F$6-((($E30*(100-AP$14)/100*$K$3)*(-1))-$F$4)))),IF(IF((($E30*(100-AP$14)/100*$K$3)*(-1))<$F$4,$F$6,IF((($E30*(100-AP$14)/100*$K$3)*(-1))>=($F$4+$F$6),($E30*(100-AP$14)/100*$K$3)+($F$4+$F$6),($F$6-((($E30*(100-AP$14)/100*$K$3)*(-1))-$F$4))))*(-1)<=$F$7,0,$F$7+IF((($E30*(100-AP$14)/100*$K$3)*(-1))<$F$4,$F$6,IF((($E30*(100-AP$14)/100*$K$3)*(-1))>=($F$4+$F$6),($E30*(100-AP$14)/100*$K$3)+($F$4+$F$6),($F$6-((($E30*(100-AP$14)/100*$K$3)*(-1))-$F$4)))))))/$D$2*100,0) -> 0 | AQ30: 0 | AR30: 4 | AS30: 9 | AT30: 15 | AU30: 9 | AV30: 4 | AX30: 1900 | AY30: - | AZ30: 1999 | BB30: 0 | BC30: 0 | BD30: 0 | BE30: 0 | BF30: 0 | BG30: 0 | BH30: 0 | BI30: 0 | BJ30: 0 | BK30: 0 | BL30: 0 | BM30: 0 | BN30: 0 | BO30: 0 | BP30: 0 | BQ30: 0 | BR30: 0 | BS30: 0 | BT30: 0 | BV30: 1900 | BW30: - | BX30: 1999 | BZ30: 0 | CA30: 0 | CB30: 0 | CC30: 0 | CD30: 0 | CE30: 3 | CF30: 9 | CG30: 15 | CH30: 20 | CI30: 23 | CJ30: 25 | CK30: 25 | CL30: 25 | CM30: 25 | CN30: 29 | CO30: 34 | CP30: 40 | CQ30: 34 | CR30: 29 | CS30: 1950 | CU30: 1900 | CV30: - | CW30: 1999 | CX30: -163 | CY30: -143.11 | CZ30: -109.96 | DA30: -76.81 | DB30: -43.66 | DC30: -25.51 | DD30: -22.36 | DE30: -19.21 | DF30: -11.06 | DG30: 7.09 | DH30: 30.24 | DI30: 63.39 | DJ30: 96.54 | DK30: 129.69 | DL30: =$DC$4-(CN30/100*$DC$4)+($CS30*(100-DL$14)/100*$DH$3)+($CS30*(DL$14)/100*$DH$4)+($CS30*(DL$14)/100*$DH$5) -> 142.84 | DM30: 83.2314 | DN30: 81.7404 | DO30: 140.2494 | DP30: 182.3548 | DT30: Malé | DU30: Optimální | DV30: 500 | DW30: 550 | DX30: 0 | DY30: 0 | DZ30: Ano | EA30: 0 | EB30: 0 | EC30: 0 | ED30: 0 | EE30: 313
B31: 2000 | C31: - | D31: 2099 | E31: 2050 | F31: 0 | G31: 2 | H31: 6 | I31: 9 | J31: 13 | K31: 17 | L31: 20 | M31: 24 | N31: 25 | O31: 25 | P31: 25 | Q31: 25 | R31: 25 | S31: 25 | T31: 25 | U31: 25 | V31: =ROUND(IF((($E31*V$14/100*$K$4)*(-1))>($F$5-50),($E31*V$14/100*$K$5)-((($E31*V$14/100*$K$4)*(-1))-($F$5-50)),($E31*V$14/100*$K$5))/($D$2-200)*100,0) -> 25 | W31: 25 | X31: 25 | Z31: 2000 | AA31: - | AB31: 2099 | AD31: -13 | AE31: -13 | AF31: -13 | AG31: -13 | AH31: -13 | AI31: -13 | AJ31: -12 | AK31: -9 | AL31: -7 | AM31: -4 | AN31: -1 | AO31: 0 | AP31: 0 | AQ31: 0 | AR31: 2 | AS31: 8 | AT31: 13 | AU31: 8 | AV31: 2 | AX31: 2000 | AY31: - | AZ31: 2099 | BB31: 0 | BC31: 0 | BD31: 0 | BE31: 0 | BF31: 0 | BG31: 0 | BH31: 0 | BI31: 0 | BJ31: 0 | BK31: 0 | BL31: 0 | BM31: 0 | BN31: 0 | BO31: 0 | BP31: 0 | BQ31: 0 | BR31: 0 | BS31: 0 | BT31: 0 | BV31: 2000 | BW31: - | BX31: 2099 | BZ31: 0 | CA31: 0 | CB31: 0 | CC31: 0 | CD31: 0 | CE31: 4 | CF31: 8 | CG31: 15 | CH31: 18 | CI31: 21 | CJ31: 24 | CK31: 25 | CL31: 25 | CM31: 25 | CN31: 27 | CO31: 33 | CP31: 38 | CQ31: 33 | CR31: 27 | CS31: 2050 | CU31: 2000 | CV31: - | CW31: 2099 | CX31: -197 | CY31: -176.09 | CZ31: -141.24 | DA31: -106.39 | DB31: -71.54 | DC31: -56.69 | DD31: -41.84 | DE31: -41.99 | DF31: -22.14 | DG31: -2.29 | DH31: 17.56 | DI31: 47.41 | DJ31: 82.26 | DK31: 117.11 | DL31: 75.6056 | DM31: 75.5766 | DN31: 80.5476 | DO31: 135.5186 | DP31: 183.5012 | DT31: Malé | DU31: Optimální | DV31: 500 | DW31: 550 | DX31: 0 | DY31: 0 | DZ31: NE | EA31: 0 | EB31: 0 | EC31: 0 | ED31: 0 | EE31: 313
B32: 2100 | C32: - | D32: 2199 | E32: 2150 | F32: 0 | G32: 2 | H32: 6 | I32: 10 | J32: 14 | K32: 17 | L32: 21 | M32: 25 | N32: 25 | O32: 25 | P32: 25 | Q32: 25 | R32: 25 | S32: 25 | T32: 25 | U32: 25 | V32: 25 | W32: 25 | X32: 25 | Z32: 2100 | AA32: - | AB32: 2199 | AD32: -13 | AE32: -13 | AF32: -13 | AG32: -13 | AH32: -13 | AI32: -13 | AJ32: -13 | AK32: -11 | AL32: -8 | AM32: -5 | AN32: -2 | AO32: 0 | AP32: 0 | AQ32: 0 | AR32: 0 | AS32: 6 | AT32: 12 | AU32: 6 | AV32: 0 | AX32: 2100 | AY32: - | AZ32: 2199 | BB32: 0 | BC32: 0 | BD32: 0 | BE32: 0 | BF32: 0 | BG32: 0 | BH32: 0 | BI32: 0 | BJ32: 0 | BK32: 0 | BL32: 0 | BM32: 0 | BN32: 0 | BO32: 0 | BP32: 0 | BQ32: 0 | BR32: 0 | BS32: 0 | BT32: 0 | BV32: 2100 | BW32: - | BX32: 2199 | BZ32: 0 | CA32: 0 | CB32: 0 | CC32: 0 | CD32: 1 | CE32: 4 | CF32: 8 | CG32: 14 | CH32: 17 | CI32: 20 | CJ32: 23 | CK32: 25 | CL32: 25 | CM32: 25 | CN32: 25 | CO32: 31 | CP32: 37 | CQ32: 31 | CR32: 25 | CS32: 2150 | CU32: 2100 | CV32: - | CW32: 2199 | CX32: -231 | CY32: -209.07 | CZ32: -172.52 | DA32: -135.97 | DB32: -104.42 | DC32: -82.87 | DD32: -66.32 | DE32: -59.77 | DF32: -38.22 | DG32: -16.67 | DH32: 4.88 | DI32: 31.43 | DJ32: 67.98 | DK32: 104.53 | DL32: 71.4888 | DM32: 72.9218 | DN32: 74.3548 | DO32: 135.7878 | DP32: 184.6476 | DS32: Poloprázdné popelnice | DT32: Malé | DU32: Nízká | DV32: 1000 | DW32: 1050 | DX32: 75 | DY32: 73 | DZ32: Ano | EA32: 25 | EB32: 23 | EC32: 20 | ED32: 68 | EE32: 64
B33: 2200 | C33: - | D33: 2299 | E33: 2250 | F33: 0 | G33: 2 | H33: 6 | I33: 10 | J33: 14 | K33: 18 | L33: 22 | M33: 25 | N33: 25 | O33: 25 | P33: 25 | Q33: 25 | R33: 25 | S33: 25 | T33: 25 | U33: 25 | V33: 25 | W33: 25 | X33: 25 | Z33: 2200 | AA33: - | AB33: 2299 | AD33: -13 | AE33: -13 | AF33: -13 | AG33: -13 | AH33: -13 | AI33: -13 | AJ33: -13 | AK33: -13 | AL33: -10 | AM33: -7 | AN33: -4 | AO33: 0 | AP33: 0 | AQ33: 0 | AR33: 0 | AS33: =ROUND(IF(IF(IF((($E33*(100-AS$14)/100*$K$3)*(-1))<$F$4,$F$6,IF((($E33*(100-AS$14)/100*$K$3)*(-1))>=($F$4+$F$6),($E33*(100-AS$14)/100*$K$3)+($F$4+$F$6),($F$6-((($E33*(100-AS$14)/100*$K$3)*(-1))-$F$4))))>=0,IF((($E33*(100-AS$14)/100*$K$3)*(-1))<$F$4,$F$6,IF((($E33*(100-AS$14)/100*$K$3)*(-1))>=($F$4+$F$6),($E33*(100-AS$14)/100*$K$3)+($F$4+$F$6),($F$6-((($E33*(100-AS$14)/100*$K$3)*(-1))-$F$4)))),IF(IF((($E33*(100-AS$14)/100*$K$3)*(-1))<$F$4,$F$6,IF((($E33*(100-AS$14)/100*$K$3)*(-1))>=($F$4+$F$6),($E33*(100-AS$14)/100*$K$3)+($F$4+$F$6),($F$6-((($E33*(100-AS$14)/100*$K$3)*(-1))-$F$4))))*(-1)<=$F$7,0,$F$7+IF((($E33*(100-AS$14)/100*$K$3)*(-1))<$F$4,$F$6,IF((($E33*(100-AS$14)/100*$K$3)*(-1))>=($F$4+$F$6),($E33*(100-AS$14)/100*$K$3)+($F$4+$F$6),($F$6-((($E33*(100-AS$14)/100*$K$3)*(-1))-$F$4))))))*(-1)>$F$5,$F$5*(-1),IF(IF((($E33*(100-AS$14)/100*$K$3)*(-1))<$F$4,$F$6,IF((($E33*(100-AS$14)/100*$K$3)*(-1))>=($F$4+$F$6),($E33*(100-AS$14)/100*$K$3)+($F$4+$F$6),($F$6-((($E33*(100-AS$14)/100*$K$3)*(-1))-$F$4))))>=0,IF((($E33*(100-AS$14)/100*$K$3)*(-1))<$F$4,$F$6,IF((($E33*(100-AS$14)/100*$K$3)*(-1))>=($F$4+$F$6),($E33*(100-AS$14)/100*$K$3)+($F$4+$F$6),($F$6-((($E33*(100-AS$14)/100*$K$3)*(-1))-$F$4)))),IF(IF((($E33*(100-AS$14)/100*$K$3)*(-1))<$F$4,$F$6,IF((($E33*(100-AS$14)/100*$K$3)*(-1))>=($F$4+$F$6),($E33*(100-AS$14)/100*$K$3)+($F$4+$F$6),($F$6-((($E33*(100-AS$14)/100*$K$3)*(-1))-$F$4))))*(-1)<=$F$7,0,$F$7+IF((($E33*(100-AS$14)/100*$K$3)*(-1))<$F$4,$F$6,IF((($E33*(100-AS$14)/100*$K$3)*(-1))>=($F$4+$F$6),($E33*(100-AS$14)/100*$K$3)+($F$4+$F$6),($F$6-((($E33*(100-AS$14)/100*$K$3)*(-1))-$F$4)))))))/$D$2*100,0) -> 5 | AT33: 11 | AU33: 5 | AV33: 0 | AX33: 2200 | AY33: - | AZ33: 2299 | BB33: 0 | BC33: 0 | BD33: 0 | BE33: 0 | BF33: 0 | BG33: 0 | BH33: 0 | BI33: 0 | BJ33: 0 | BK33: 0 | BL33: 0 | BM33: 0 | BN33: 0 | BO33: 0 | BP33: 0 | BQ33: 0 | BR33: 0 | BS33: 0 | BT33: 0 | BV33: 2200 | BW33: - | BX33: 2299 | BZ33: 0 | CA33: 0 | CB33: 0 | CC33: 0 | CD33: 1 | CE33: 5 | CF33: 9 | CG33: 12 | CH33: 15 | CI33: 18 | CJ33: 21 | CK33: 25 | CL33: 25 | CM33: 25 | CN33: 25 | CO33: 30 | CP33: 36 | CQ33: 30 | CR33: 25 | CS33: 2250 | CU33: 2200 | CV33: - | CW33: 2299 | CX33: -265 | CY33: -242.05 | CZ33: -203.8 | DA33: -165.55 | DB33: -132.3 | DC33: -114.05 | DD33: -95.8 | DE33: -72.55 | DF33: -49.3 | DG33: -26.05 | DH33: -2.8 | DI33: 15.45 | DJ33: 53.7 | DK33: 91.95 | DL33: 57.372 | DM33: 65.267 | DN33: 68.162 | DO33: 131.057 | DP33: 175.794 | DT33: Malé | DU33: Nízká | DV33: 1000 | DW33: 1050 | DX33: 75 | DY33: 73 | DZ33: NE | EA33: 25 | EB33: 23 | EC33: 0 | ED33: 48 | EE33: 164 | EF33: Nemá vyplněný OD (souhlas s podmínkami - může přijít o odměnu)
B34: 2300 | C34: - | D34: 2399 | E34: 2350 | F34: 0 | G34: 2 | H34: 7 | I34: 11 | J34: 15 | K34: 19 | L34: 23 | M34: 25 | N34: 25 | O34: 25 | P34: 25 | Q34: 25 | R34: 25 | S34: 25 | T34: 25 | U34: 25 | V34: 25 | W34: 25 | X34: 25 | Z34: 2300 | AA34: - | AB34: 2399 | AD34: -13 | AE34: -13 | AF34: -13 | AG34: -13 | AH34: -13 | AI34: -13 | AJ34: -13 | AK34: -13 | AL34: -12 | AM34: -8 | AN34: -5 | AO34: -2 | AP34: 0 | AQ34: 0 | AR34: 0 | AS34: 3 | AT34: 10 | AU34: 3 | AV34: 0 | AX34: 2300 | AY34: - | AZ34: 2399 | BB34: 0 | BC34: 0 | BD34: 0 | BE34: 0 | BF34: 0 | BG34: 0 | BH34: 0 | BI34: 0 | BJ34: 0 | BK34: 0 | BL34: 0 | BM34: 0 | BN34: 0 | BO34: =ROUND(IF(IF((($E34*(100-BO$14)/100*$K$3)*(-1))<=($F$4+$F$6),0,(($E34*(100-BO$14)/100*$K$3)+$F$4+$F$6))+IF((($E34*BO$14/100*$K$4)*(-1))<=$F$5,0,($E34*BO$14/100*$K$4)+$F$5)=0,$F$7,IF(IF((($E34*(100-BO$14)/100*$K$3)*(-1))<=($F$4+$F$6),0,(($E34*(100-BO$14)/100*$K$3)+$F$4+$F$6))+IF((($E34*BO$14/100*$K$4)*(-1))<=$F$5,0,($E34*BO$14/100*$K$4)+$F$5)*(-1)>$F$7,0,IF((($E34*(100-BO$14)/100*$K$3)*(-1))<=($F$4+$F$6),0,(($E34*(100-BO$14)/100*$K$3)+$F$4+$F$6))+IF((($E34*BO$14/100*$K$4)*(-1))<=$F$5,0,($E34*BO$14/100*$K$4)+$F$5)+$F$7))/$D$2*100,0) -> 0 | BP34: 0 | BQ34: 0 | BR34: 0 | BS34: 0 | BT34: 0 | BV34: 2300 | BW34: - | BX34: 2399 | BZ34: 0 | CA34: 0 | CB34: 0 | CC34: 0 | CD34: 2 | CE34: 6 | CF34: 10 | CG34: 12 | CH34: 13 | CI34: 17 | CJ34: 20 | CK34: 23 | CL34: 25 | CM34: 25 | CN34: 25 | CO34: 28 | CP34: 35 | CQ34: 28 | CR34: 25 | CS34: 2350 | CU34: 2300 | CV34: - | CW34: 2399 | CX34: -299 | CY34: -275.03 | CZ34: -235.08 | DA34: -195.13 | DB34: -165.18 | DC34: -145.23 | DD34: -125.28 | DE34: -95.33 | DF34: -60.38 | DG34: -40.43 | DH34: -15.48 | DI34: 9.47 | DJ34: 39.42 | DK34: 79.37 | DL34: 43.2552 | DM34: 62.6122 | DN34: 61.9692 | DO34: 131.3262 | DP34: 166.9404 | DT34: Malé | DU34: Nízká | DV34: 1000 | DW34: 1050 | DX34: >85 | DY34: 86 | DZ34: Ano | EA34: 25 | EB34: 20 | EC34: 0 | ED34: 45 | EE34: 225 | EF34: Nešlape PET lahve. Nerozlepuje papírové krabičky.
B35: 2400 | C35: - | D35: 2499 | E35: 2450 | F35: 0 | G35: 3 | H35: 7 | I35: 11 | J35: 15 | K35: 20 | L35: 24 | M35: 25 | N35: 25 | O35: 25 | P35: 25 | Q35: 25 | R35: 25 | S35: 25 | T35: 25 | U35: 25 | V35: 25 | W35: 25 | X35: 25 | Z35: 2400 | AA35: - | AB35: 2499 | AD35: -13 | AE35: -13 | AF35: -13 | AG35: -13 | AH35: -13 | AI35: -13 | AJ35: -13 | AK35: -13 | AL35: -13 | AM35: -10 | AN35: -7 | AO35: -3 | AP35: 0 | AQ35: 0 | AR35: 0 | AS35: 2 | AT35: 8 | AU35: 2 | AV35: 0 | AX35: 2400 | AY35: - | AZ35: 2499 | BB35: 0 | BC35: 0 | BD35: 0 | BE35: 0 | BF35: 0 | BG35: 0 | BH35: 0 | BI35: 0 | BJ35: 0 | BK35: 0 | BL35: 0 | BM35: 0 | BN35: 0 | BO35: 0 | BP35: 0 | BQ35: 0 | BR35: 0 | BS35: 0 | BT35: 0 | BV35: 2400 | BW35: - | BX35: 2499 | BZ35: 0 | CA35: 0 | CB35: 0 | CC35: 0 | CD35: 2 | CE35: 7 | CF35: 11 | CG35: 12 | CH35: 12 | CI35: 15 | CJ35: 18 | CK35: 22 | CL35: 25 | CM35: 25 | CN35: 25 | CO35: 27 | CP35: 33 | CQ35: 27 | CR35: 25 | CS35: 2450 | CU35: 2400 | CV35: - | CW35: 2499 | CX35: -333 | CY35: -308.01 | CZ35: -266.36 | DA35: -224.71 | DB35: -193.06 | DC35: -176.41 | DD35: -154.76 | DE35: -118.11 | DF35: -76.46 | DG35: -49.81 | DH35: -23.16 | DI35: -1.51 | DJ35: 25.14 | DK35: 66.79 | DL35: 29.1384 | DM35: 54.9574 | DN35: 60.7764 | DO35: 126.5954 | DP35: 158.0868 | DT35: Malé | DU35: Nízká | DV35: 1000 | DW35: 1050 | DX35: >85 | DY35: 86 | DZ35: NE | EA35: 25 | EB35: 20 | EC35: 0 | ED35: 45 | EE35: 225 | EF35: Nešlape PET lahve. Nerozlepuje papírové krabičky.
B36: 2500 | C36: - | D36: 2599 | E36: 2550 | F36: 0 | G36: 3 | H36: 7 | I36: 12 | J36: 16 | K36: 21 | L36: 25 | M36: 25 | N36: 25 | O36: 25 | P36: 25 | Q36: 25 | R36: 25 | S36: 25 | T36: 25 | U36: 25 | V36: 25 | W36: 25 | X36: 25 | Z36: 2500 | AA36: - | AB36: 2599 | AD36: -13 | AE36: -13 | AF36: -13 | AG36: -13 | AH36: -13 | AI36: -13 | AJ36: -13 | AK36: -13 | AL36: -13 | AM36: -12 | AN36: -8 | AO36: -4 | AP36: -1 | AQ36: 0 | AR36: 0 | AS36: 0 | AT36: 7 | AU36: 0 | AV36: 0 | AX36: 2500 | AY36: - | AZ36: 2599 | BB36: 0 | BC36: 0 | BD36: 0 | BE36: 0 | BF36: 0 | BG36: 0 | BH36: 0 | BI36: 0 | BJ36: 0 | BK36: 0 | BL36: 0 | BM36: 0 | BN36: 0 | BO36: 0 | BP36: 0 | BQ36: 0 | BR36: 0 | BS36: 0 | BT36: 0 | BV36: 2500 | BW36: - | BX36: 2599 | BZ36: 0 | CA36: 0 | CB36: 0 | CC36: 0 | CD36: 3 | CE36: 8 | CF36: 12 | CG36: 12 | CH36: 12 | CI36: 13 | CJ36: 17 | CK36: 21 | CL36: 24 | CM36: 25 | CN36: 25 | CO36: 25 | CP36: 32 | CQ36: 25 | CR36: 25 | CS36: 2550 | CU36: 2500 | CV36: - | CW36: 2599 | CX36: -367 | CY36: -340.99 | CZ36: -297.64 | DA36: -254.29 | DB36: -225.94 | DC36: -207.59 | DD36: -184.24 | DE36: -140.89 | DF36: -97.54 | DG36: -59.19 | DH36: -35.84 | DI36: -12.49 | DJ36: 15.86 | DK36: 54.21 | DL36: 15.0216 | DM36: 52.3026 | DN36: 54.5836 | DO36: 126.8646 | DP36: 149.2332 | DT36: Malé | DU36: Nízká | DV36: 1000 | DW36: 1050 | DX36: 30 | DY36: 28 | DZ36: Ano | EA36: 10 | EB36: 0 | EC36: 0 | ED36: 10 | EE36: 193
B37: 2600 | C37: - | D37: 2699 | E37: 2650 | F37: 0 | G37: 3 | H37: 7 | I37: 12 | J37: 17 | K37: 21 | L37: 25 | M37: 25 | N37: 25 | O37: 25 | P37: 25 | Q37: 25 | R37: 25 | S37: 25 | T37: 25 | U37: 25 | V37: 25 | W37: 25 | X37: 25 | Z37: 2600 | AA37: - | AB37: 2699 | AD37: -13 | AE37: =ROUND(IF(IF(IF((($E37*(100-AE$14)/100*$K$3)*(-1))<$F$4,$F$6,IF((($E37*(100-AE$14)/100*$K$3)*(-1))>=($F$4+$F$6),($E37*(100-AE$14)/100*$K$3)+($F$4+$F$6),($F$6-((($E37*(100-AE$14)/100*$K$3)*(-1))-$F$4))))>=0,IF((($E37*(100-AE$14)/100*$K$3)*(-1))<$F$4,$F$6,IF((($E37*(100-AE$14)/100*$K$3)*(-1))>=($F$4+$F$6),($E37*(100-AE$14)/100*$K$3)+($F$4+$F$6),($F$6-((($E37*(100-AE$14)/100*$K$3)*(-1))-$F$4)))),IF(IF((($E37*(100-AE$14)/100*$K$3)*(-1))<$F$4,$F$6,IF((($E37*(100-AE$14)/100*$K$3)*(-1))>=($F$4+$F$6),($E37*(100-AE$14)/100*$K$3)+($F$4+$F$6),($F$6-((($E37*(100-AE$14)/100*$K$3)*(-1))-$F$4))))*(-1)<=$F$7,0,$F$7+IF((($E37*(100-AE$14)/100*$K$3)*(-1))<$F$4,$F$6,IF((($E37*(100-AE$14)/100*$K$3)*(-1))>=($F$4+$F$6),($E37*(100-AE$14)/100*$K$3)+($F$4+$F$6),($F$6-((($E37*(100-AE$14)/100*$K$3)*(-1))-$F$4))))))*(-1)>$F$5,$F$5*(-1),IF(IF((($E37*(100-AE$14)/100*$K$3)*(-1))<$F$4,$F$6,IF((($E37*(100-AE$14)/100*$K$3)*(-1))>=($F$4+$F$6),($E37*(100-AE$14)/100*$K$3)+($F$4+$F$6),($F$6-((($E37*(100-AE$14)/100*$K$3)*(-1))-$F$4))))>=0,IF((($E37*(100-AE$14)/100*$K$3)*(-1))<$F$4,$F$6,IF((($E37*(100-AE$14)/100*$K$3)*(-1))>=($F$4+$F$6),($E37*(100-AE$14)/100*$K$3)+($F$4+$F$6),($F$6-((($E37*(100-AE$14)/100*$K$3)*(-1))-$F$4)))),IF(IF((($E37*(100-AE$14)/100*$K$3)*(-1))<$F$4,$F$6,IF((($E37*(100-AE$14)/100*$K$3)*(-1))>=($F$4+$F$6),($E37*(100-AE$14)/100*$K$3)+($F$4+$F$6),($F$6-((($E37*(100-AE$14)/100*$K$3)*(-1))-$F$4))))*(-1)<=$F$7,0,$F$7+IF((($E37*(100-AE$14)/100*$K$3)*(-1))<$F$4,$F$6,IF((($E37*(100-AE$14)/100*$K$3)*(-1))>=($F$4+$F$6),($E37*(100-AE$14)/100*$K$3)+($F$4+$F$6),($F$6-((($E37*(100-AE$14)/100*$K$3)*(-1))-$F$4)))))))/$D$2*100/2,0) -> -13 | AF37: -13 | AG37: -13 | AH37: -13 | AI37: -13 | AJ37: -13 | AK37: -13 | AL37: -13 | AM37: -13 | AN37: -10 | AO37: -6 | AP37: -2 | AQ37: 0 | AR37: 0 | AS37: 0 | AT37: 6 | AU37: 0 | AV37: 0 | AX37: 2600 | AY37: - | AZ37: 2699 | BB37: 0 | BC37: 0 | BD37: 0 | BE37: 0 | BF37: 0 | BG37: 0 | BH37: 0 | BI37: 0 | BJ37: 0 | BK37: 0 | BL37: 0 | BM37: 0 | BN37: 0 | BO37: 0 | BP37: 0 | BQ37: 0 | BR37: 0 | BS37: 0 | BT37: 0 | BV37: 2600 | BW37: - | BX37: 2699 | BZ37: 0 | CA37: 0 | CB37: 0 | CC37: 0 | CD37: 4 | CE37: 8 | CF37: 12 | CG37: 12 | CH37: 12 | CI37: 12 | CJ37: 15 | CK37: 19 | CL37: 23 | CM37: 25 | CN37: 25 | CO37: 25 | CP37: 31 | CQ37: 25 | CR37: 25 | CS37: 2650 | CU37: 2600 | CV37: - | CW37: 2699 | CX37: -401 | CY37: -373.97 | CZ37: -328.92 | DA37: -283.87 | DB37: -258.82 | DC37: -233.77 | DD37: -208.72 | DE37: -163.67 | DF37: -118.62 | DG37: -73.57 | DH37: -43.52 | DI37: -18.47 | DJ37: 6.58 | DK37: 41.63 | DL37: 0.9048 | DM37: 39.6478 | DN37: 48.3908 | DO37: 117.1338 | DP37: 140.3796 | DT37: Malé | DU37: Nízká | DV37: 1000 | DW37: 1050 | DX37: 30 | DY37: 28 | DZ37: NE | EA37: 10 | EB37: 0 | EC37: 0 | ED37: 10 | EE37: 193
B38: 2700 | C38: - | D38: 2799 | E38: 2750 | F38: 0 | G38: 3 | H38: 8 | I38: 13 | J38: 17 | K38: 22 | L38: 25 | M38: 25 | N38: 25 | O38: 25 | P38: 25 | Q38: 25 | R38: 25 | S38: 25 | T38: 25 | U38: 25 | V38: 25 | W38: 25 | X38: 25 | Z38: 2700 | AA38: - | AB38: 2799 | AD38: -13 | AE38: -13 | AF38: -13 | AG38: -13 | AH38: -13 | AI38: -13 | AJ38: -13 | AK38: -13 | AL38: -13 | AM38: -13 | AN38: -11 | AO38: -7 | AP38: -3 | AQ38: 0 | AR38: 0 | AS38: 0 | AT38: 5 | AU38: 0 | AV38: 0 | AX38: 2700 | AY38: - | AZ38: 2799 | BB38: 0 | BC38: 0 | BD38: 0 | BE38: 0 | BF38: 0 | BG38: 0 | BH38: 0 | BI38: 0 | BJ38: 0 | BK38: 0 | BL38: 0 | BM38: 0 | BN38: 0 | BO38: 0 | BP38: 0 | BQ38: 0 | BR38: 0 | BS38: 0 | BT38: 0 | BV38: 2700 | BW38: - | BX38: 2799 | BZ38: 0 | CA38: 0 | CB38: 0 | CC38: 0 | CD38: 4 | CE38: 9 | CF38: 12 | CG38: 12 | CH38: 12 | CI38: 12 | CJ38: 14 | CK38: 18 | CL38: 22 | CM38: 25 | CN38: 25 | CO38: 25 | CP38: 30 | CQ38: 25 | CR38: 25 | CS38: 2750 | CU38: 2700 | CV38: - | CW38: 2799 | CX38: -435 | CY38: -406.95 | CZ38: -360.2 | DA38: -313.45 | DB38: -286.7 | DC38: -264.95 | DD38: -233.2 | DE38: -186.45 | DF38: -139.7 | DG38: -92.95 | DH38: -56.2 | DI38: -29.45 | DJ38: -2.7 | DK38: 29.05 | DL38: -13.212 | DM38: 26.993 | DN38: 42.198 | DO38: 107.403 | DP38: 131.526 | DT38: Malé | DU38: Nízká | DV38: 1000 | DW38: 1050 | DX38: 0 | DY38: 0 | DZ38: Ano | EA38: 0 | EB38: 0 | EC38: 0 | ED38: 0 | EE38: 143
B39: 2800 | C39: - | D39: 2899 | E39: 2850 | F39: 0 | G39: 3 | H39: 8 | I39: 13 | J39: 18 | K39: 23 | L39: 25 | M39: 25 | N39: 25 | O39: 25 | P39: 25 | Q39: 25 | R39: 25 | S39: 25 | T39: 25 | U39: 25 | V39: 25 | W39: 25 | X39: 25 | Z39: 2800 | AA39: - | AB39: 2899 | AD39: -13 | AE39: -13 | AF39: -13 | AG39: -13 | AH39: -13 | AI39: -13 | AJ39: -13 | AK39: -13 | AL39: -13 | AM39: -13 | AN39: -12 | AO39: -8 | AP39: -4 | AQ39: 0 | AR39: 0 | AS39: =ROUND(IF(IF(IF((($E39*(100-AS$14)/100*$K$3)*(-1))<$F$4,$F$6,IF((($E39*(100-AS$14)/100*$K$3)*(-1))>=($F$4+$F$6),($E39*(100-AS$14)/100*$K$3)+($F$4+$F$6),($F$6-((($E39*(100-AS$14)/100*$K$3)*(-1))-$F$4))))>=0,IF((($E39*(100-AS$14)/100*$K$3)*(-1))<$F$4,$F$6,IF((($E39*(100-AS$14)/100*$K$3)*(-1))>=($F$4+$F$6),($E39*(100-AS$14)/100*$K$3)+($F$4+$F$6),($F$6-((($E39*(100-AS$14)/100*$K$3)*(-1))-$F$4)))),IF(IF((($E39*(100-AS$14)/100*$K$3)*(-1))<$F$4,$F$6,IF((($E39*(100-AS$14)/100*$K$3)*(-1))>=($F$4+$F$6),($E39*(100-AS$14)/100*$K$3)+($F$4+$F$6),($F$6-((($E39*(100-AS$14)/100*$K$3)*(-1))-$F$4))))*(-1)<=$F$7,0,$F$7+IF((($E39*(100-AS$14)/100*$K$3)*(-1))<$F$4,$F$6,IF((($E39*(100-AS$14)/100*$K$3)*(-1))>=($F$4+$F$6),($E39*(100-AS$14)/100*$K$3)+($F$4+$F$6),($F$6-((($E39*(100-AS$14)/100*$K$3)*(-1))-$F$4))))))*(-1)>$F$5,$F$5*(-1),IF(IF((($E39*(100-AS$14)/100*$K$3)*(-1))<$F$4,$F$6,IF((($E39*(100-AS$14)/100*$K$3)*(-1))>=($F$4+$F$6),($E39*(100-AS$14)/100*$K$3)+($F$4+$F$6),($F$6-((($E39*(100-AS$14)/100*$K$3)*(-1))-$F$4))))>=0,IF((($E39*(100-AS$14)/100*$K$3)*(-1))<$F$4,$F$6,IF((($E39*(100-AS$14)/100*$K$3)*(-1))>=($F$4+$F$6),($E39*(100-AS$14)/100*$K$3)+($F$4+$F$6),($F$6-((($E39*(100-AS$14)/100*$K$3)*(-1))-$F$4)))),IF(IF((($E39*(100-AS$14)/100*$K$3)*(-1))<$F$4,$F$6,IF((($E39*(100-AS$14)/100*$K$3)*(-1))>=($F$4+$F$6),($E39*(100-AS$14)/100*$K$3)+($F$4+$F$6),($F$6-((($E39*(100-AS$14)/100*$K$3)*(-1))-$F$4))))*(-1)<=$F$7,0,$F$7+IF((($E39*(100-AS$14)/100*$K$3)*(-1))<$F$4,$F$6,IF((($E39*(100-AS$14)/100*$K$3)*(-1))>=($F$4+$F$6),($E39*(100-AS$14)/100*$K$3)+($F$4+$F$6),($F$6-((($E39*(100-AS$14)/100*$K$3)*(-1))-$F$4)))))))/$D$2*100,0) -> 0 | AT39: 0 | AU39: 0 | AV39: 0 | AX39: 2800 | AY39: - | AZ39: 2899 | BB39: 0 | BC39: 0 | BD39: 0 | BE39: 0 | BF39: 0 | BG39: 0 | BH39: 0 | BI39: 0 | BJ39: 0 | BK39: 0 | BL39: 0 | BM39: 0 | BN39: 0 | BO39: 0 | BP39: 0 | BQ39: 0 | BR39: 0 | BS39: 0 | BT39: 0 | BV39: 2800 | BW39: - | BX39: 2899 | BZ39: 0 | CA39: 0 | CB39: 0 | CC39: 0 | CD39: 5 | CE39: 10 | CF39: 12 | CG39: 12 | CH39: 12 | CI39: 12 | CJ39: 13 | CK39: 17 | CL39: 21 | CM39: 25 | CN39: 25 | CO39: 25 | CP39: 25 | CQ39: 25 | CR39: 25 | CS39: 2850 | CU39: 2800 | CV39: - | CW39: 2899 | CX39: -469 | CY39: -439.93 | CZ39: -391.48 | DA39: -343.03 | DB39: -319.58 | DC39: -296.13 | DD39: -257.68 | DE39: -209.23 | DF39: -160.78 | DG39: -112.33 | DH39: -68.88 | DI39: -40.43 | DJ39: -11.98 | DK39: 16.47 | DL39: -27.3288 | DM39: 14.3382 | DN39: 56.0052 | DO39: 97.6722 | DP39: 122.6724 | DT39: Malé | DU39: Nízká | DV39: 1000 | DW39: 1050 | DX39: 0 | DY39: 0 | DZ39: NE | EA39: 0 | EB39: 0 | EC39: 0 | ED39: 0 | EE39: 143
B40: 2900 | C40: - | D40: 2999 | E40: 2950 | F40: 0 | G40: 3 | H40: 8 | I40: 13 | J40: 19 | K40: 24 | L40: 25 | M40: 25 | N40: 25 | O40: 25 | P40: 25 | Q40: 25 | R40: 25 | S40: 25 | T40: 25 | U40: 25 | V40: 25 | W40: 25 | X40: 25 | Z40: 2900 | AA40: - | AB40: 2999 | AD40: -13 | AE40: -13 | AF40: -13 | AG40: -13 | AH40: -13 | AI40: -13 | AJ40: -13 | AK40: -13 | AL40: -13 | AM40: -13 | AN40: -13 | AO40: -10 | AP40: -6 | AQ40: -1 | AR40: 0 | AS40: 0 | AT40: 0 | AU40: 0 | AV40: 0 | AX40: 2900 | AY40: - | AZ40: 2999 | BB40: 0 | BC40: 0 | BD40: 0 | BE40: 0 | BF40: 0 | BG40: 0 | BH40: 0 | BI40: 0 | BJ40: 0 | BK40: 0 | BL40: 0 | BM40: 0 | BN40: 0 | BO40: 0 | BP40: 0 | BQ40: 0 | BR40: 0 | BS40: 0 | BT40: 0 | BV40: 2900 | BW40: - | BX40: 2999 | BZ40: 0 | CA40: 0 | CB40: 0 | CC40: 0 | CD40: 6 | CE40: 11 | CF40: 12 | CG40: 12 | CH40: 12 | CI40: 12 | CJ40: 12 | CK40: 15 | CL40: 19 | CM40: 24 | CN40: 25 | CO40: 25 | CP40: 25 | CQ40: 25 | CR40: 25 | CS40: 2950 | CU40: 2900 | CV40: - | CW40: 2999 | CX40: -503 | CY40: -472.91 | CZ40: -422.76 | DA40: -372.61 | DB40: -352.46 | DC40: -327.31 | DD40: -282.16 | DE40: -232.01 | DF40: -181.86 | DG40: -131.71 | DH40: -81.56 | DI40: -46.41 | DJ40: -16.26 | DK40: 8.89 | DL40: -41.4456 | DM40: 1.6834 | DN40: 44.8124 | DO40: 87.9414 | DP40: 113.8188 | DR40: Optimum odpadů | DS40: Přeplněné popelnice | DT40: Optimální | DU40: Velká | DV40: 750 | DW40: 750 | DX40: 75 | DY40: 73 | DZ40: Ano | EA40: 19 | EB40: 25 | EC40: 20 | ED40: =EA40+EB40+EC40 -> 64 | EE40: 111
B41: 3000 | C41: - | D41: 3099 | E41: 3050 | F41: 0 | G41: 3 | H41: 9 | I41: 14 | J41: 19 | K41: 25 | L41: 25 | M41: 25 | N41: 25 | O41: 25 | P41: 25 | Q41: 25 | R41: 25 | S41: 25 | T41: 25 | U41: 25 | V41: 25 | W41: 25 | X41: 25 | Z41: 3000 | AA41: - | AB41: 3099 | AD41: -13 | AE41: -13 | AF41: -13 | AG41: -13 | AH41: -13 | AI41: -13 | AJ41: -13 | AK41: -13 | AL41: -13 | AM41: -13 | AN41: -13 | AO41: -11 | AP41: -7 | AQ41: -2 | AR41: 0 | AS41: 0 | AT41: 0 | AU41: 0 | AV41: 0 | AX41: 3000 | AY41: - | AZ41: 3099 | BB41: 0 | BC41: 0 | BD41: 0 | BE41: 0 | BF41: 0 | BG41: 0 | BH41: 0 | BI41: 0 | BJ41: 0 | BK41: 0 | BL41: 0 | BM41: 0 | BN41: 0 | BO41: 0 | BP41: 0 | BQ41: 0 | BR41: 0 | BS41: 0 | BT41: 0 | BV41: 3000 | BW41: - | BX41: 3099 | BZ41: 0 | CA41: 0 | CB41: 0 | CC41: 1 | CD41: 6 | CE41: 12 | CF41: 12 | CG41: 12 | CH41: 12 | CI41: 12 | CJ41: 12 | CK41: 14 | CL41: 18 | CM41: 23 | CN41: 25 | CO41: 25 | CP41: 25 | CQ41: 25 | CR41: 25 | CS41: 3050 | CU41: 3000 | CV41: - | CW41: 3099 | CX41: -537 | CY41: -505.89 | CZ41: -454.04 | DA41: -407.19 | DB41: -380.34 | DC41: -358.49 | DD41: -306.64 | DE41: -254.79 | DF41: -202.94 | DG41: -151.09 | DH41: -99.24 | DI41: -57.39 | DJ41: -25.54 | DK41: 1.31 | DL41: -55.5624 | DM41: -10.9714 | DN41: 33.6196 | DO41: 78.2106 | DP41: 104.9652 | DT41: Optimální | DU41: Velká | DV41: 750 | DW41: 750 | DX41: 75 | DY41: 73 | DZ41: NE | EA41: 19 | EB41: 25 | EC41: 0 | ED41: 44 | EE41: 211
B42: 3100 | C42: - | D42: 3199 | E42: 3150 | F42: 0 | G42: 3 | H42: 9 | I42: 14 | J42: 20 | K42: 25 | L42: 25 | M42: 25 | N42: 25 | O42: 25 | P42: 25 | Q42: 25 | R42: 25 | S42: 25 | T42: 25 | U42: 25 | V42: 25 | W42: 25 | X42: 25 | Z42: 3100 | AA42: - | AB42: 3199 | AD42: -13 | AE42: -13 | AF42: -13 | AG42: -13 | AH42: -13 | AI42: -13 | AJ42: -13 | AK42: -13 | AL42: -13 | AM42: -13 | AN42: -13 | AO42: -12 | AP42: -8 | AQ42: -4 | AR42: 0 | AS42: 0 | AT42: =ROUND(IF(IF(IF((($E42*(100-AT$14)/100*$K$3)*(-1))<$F$4,$F$6,IF((($E42*(100-AT$14)/100*$K$3)*(-1))>=($F$4+$F$6),($E42*(100-AT$14)/100*$K$3)+($F$4+$F$6),($F$6-((($E42*(100-AT$14)/100*$K$3)*(-1))-$F$4))))>=0,IF((($E42*(100-AT$14)/100*$K$3)*(-1))<$F$4,$F$6,IF((($E42*(100-AT$14)/100*$K$3)*(-1))>=($F$4+$F$6),($E42*(100-AT$14)/100*$K$3)+($F$4+$F$6),($F$6-((($E42*(100-AT$14)/100*$K$3)*(-1))-$F$4)))),IF(IF((($E42*(100-AT$14)/100*$K$3)*(-1))<$F$4,$F$6,IF((($E42*(100-AT$14)/100*$K$3)*(-1))>=($F$4+$F$6),($E42*(100-AT$14)/100*$K$3)+($F$4+$F$6),($F$6-((($E42*(100-AT$14)/100*$K$3)*(-1))-$F$4))))*(-1)<=$F$7,0,$F$7+IF((($E42*(100-AT$14)/100*$K$3)*(-1))<$F$4,$F$6,IF((($E42*(100-AT$14)/100*$K$3)*(-1))>=($F$4+$F$6),($E42*(100-AT$14)/100*$K$3)+($F$4+$F$6),($F$6-((($E42*(100-AT$14)/100*$K$3)*(-1))-$F$4))))))*(-1)>$F$5,$F$5*(-1),IF(IF((($E42*(100-AT$14)/100*$K$3)*(-1))<$F$4,$F$6,IF((($E42*(100-AT$14)/100*$K$3)*(-1))>=($F$4+$F$6),($E42*(100-AT$14)/100*$K$3)+($F$4+$F$6),($F$6-((($E42*(100-AT$14)/100*$K$3)*(-1))-$F$4))))>=0,IF((($E42*(100-AT$14)/100*$K$3)*(-1))<$F$4,$F$6,IF((($E42*(100-AT$14)/100*$K$3)*(-1))>=($F$4+$F$6),($E42*(100-AT$14)/100*$K$3)+($F$4+$F$6),($F$6-((($E42*(100-AT$14)/100*$K$3)*(-1))-$F$4)))),IF(IF((($E42*(100-AT$14)/100*$K$3)*(-1))<$F$4,$F$6,IF((($E42*(100-AT$14)/100*$K$3)*(-1))>=($F$4+$F$6),($E42*(100-AT$14)/100*$K$3)+($F$4+$F$6),($F$6-((($E42*(100-AT$14)/100*$K$3)*(-1))-$F$4))))*(-1)<=$F$7,0,$F$7+IF((($E42*(100-AT$14)/100*$K$3)*(-1))<$F$4,$F$6,IF((($E42*(100-AT$14)/100*$K$3)*(-1))>=($F$4+$F$6),($E42*(100-AT$14)/100*$K$3)+($F$4+$F$6),($F$6-((($E42*(100-AT$14)/100*$K$3)*(-1))-$F$4)))))))/$D$2*100,0) -> 0 | AU42: 0 | AV42: 0 | AX42: 3100 | AY42: - | AZ42: 3199 | BB42: 0 | BC42: 0 | BD42: 0 | BE42: 0 | BF42: 0 | BG42: 0 | BH42: 0 | BI42: 0 | BJ42: 0 | BK42: 0 | BL42: 0 | BM42: 0 | BN42: 0 | BO42: 0 | BP42: 0 | BQ42: 0 | BR42: 0 | BS42: 0 | BT42: 0 | BV42: 3100 | BW42: - | BX42: 3199 | BZ42: 0 | CA42: 0 | CB42: 0 | CC42: 1 | CD42: 7 | CE42: 12 | CF42: 12 | CG42: 12 | CH42: 12 | CI42: 12 | CJ42: 12 | CK42: 13 | CL42: 17 | CM42: 21 | CN42: 25 | CO42: 25 | CP42: 25 | CQ42: 25 | CR42: 25 | CS42: 3150 | CU42: 3100 | CV42: - | CW42: 3199 | CX42: -571 | CY42: -538.87 | CZ42: -485.32 | DA42: -436.77 | DB42: -413.22 | DC42: -384.67 | DD42: -331.12 | DE42: -277.57 | DF42: -224.02 | DG42: -170.47 | DH42: -116.92 | DI42: -68.37 | DJ42: -34.82 | DK42: -1.27 | DL42: -69.6792 | DM42: -23.6262 | DN42: 22.4268 | DO42: 68.4798 | DP42: 96.1116 | DT42: Optimální | DU42: Velká | DV42: 750 | DW42: 750 | DX42: >85 | DY42: 86 | DZ42: Ano | EA42: 23 | EB42: 25 | EC42: 0 | ED42: 48 | EE42: 224
B43: 3200 | C43: - | D43: 3299 | E43: 3250 | F43: 0 | G43: 3 | H43: 9 | I43: 15 | J43: 20 | K43: 25 | L43: 25 | M43: 25 | N43: 25 | O43: 25 | P43: 25 | Q43: 25 | R43: 25 | S43: 25 | T43: 25 | U43: 25 | V43: 25 | W43: 25 | X43: 25 | Z43: 3200 | AA43: - | AB43: 3299 | AD43: -13 | AE43: -13 | AF43: -13 | AG43: -13 | AH43: -13 | AI43: -13 | AJ43: -13 | AK43: -13 | AL43: -13 | AM43: -13 | AN43: -13 | AO43: -13 | AP43: -9 | AQ43: -5 | AR43: 0 | AS43: 0 | AT43: =ROUND(IF(IF(IF((($E43*(100-AT$14)/100*$K$3)*(-1))<$F$4,$F$6,IF((($E43*(100-AT$14)/100*$K$3)*(-1))>=($F$4+$F$6),($E43*(100-AT$14)/100*$K$3)+($F$4+$F$6),($F$6-((($E43*(100-AT$14)/100*$K$3)*(-1))-$F$4))))>=0,IF((($E43*(100-AT$14)/100*$K$3)*(-1))<$F$4,$F$6,IF((($E43*(100-AT$14)/100*$K$3)*(-1))>=($F$4+$F$6),($E43*(100-AT$14)/100*$K$3)+($F$4+$F$6),($F$6-((($E43*(100-AT$14)/100*$K$3)*(-1))-$F$4)))),IF(IF((($E43*(100-AT$14)/100*$K$3)*(-1))<$F$4,$F$6,IF((($E43*(100-AT$14)/100*$K$3)*(-1))>=($F$4+$F$6),($E43*(100-AT$14)/100*$K$3)+($F$4+$F$6),($F$6-((($E43*(100-AT$14)/100*$K$3)*(-1))-$F$4))))*(-1)<=$F$7,0,$F$7+IF((($E43*(100-AT$14)/100*$K$3)*(-1))<$F$4,$F$6,IF((($E43*(100-AT$14)/100*$K$3)*(-1))>=($F$4+$F$6),($E43*(100-AT$14)/100*$K$3)+($F$4+$F$6),($F$6-((($E43*(100-AT$14)/100*$K$3)*(-1))-$F$4))))))*(-1)>$F$5,$F$5*(-1),IF(IF((($E43*(100-AT$14)/100*$K$3)*(-1))<$F$4,$F$6,IF((($E43*(100-AT$14)/100*$K$3)*(-1))>=($F$4+$F$6),($E43*(100-AT$14)/100*$K$3)+($F$4+$F$6),($F$6-((($E43*(100-AT$14)/100*$K$3)*(-1))-$F$4))))>=0,IF((($E43*(100-AT$14)/100*$K$3)*(-1))<$F$4,$F$6,IF((($E43*(100-AT$14)/100*$K$3)*(-1))>=($F$4+$F$6),($E43*(100-AT$14)/100*$K$3)+($F$4+$F$6),($F$6-((($E43*(100-AT$14)/100*$K$3)*(-1))-$F$4)))),IF(IF((($E43*(100-AT$14)/100*$K$3)*(-1))<$F$4,$F$6,IF((($E43*(100-AT$14)/100*$K$3)*(-1))>=($F$4+$F$6),($E43*(100-AT$14)/100*$K$3)+($F$4+$F$6),($F$6-((($E43*(100-AT$14)/100*$K$3)*(-1))-$F$4))))*(-1)<=$F$7,0,$F$7+IF((($E43*(100-AT$14)/100*$K$3)*(-1))<$F$4,$F$6,IF((($E43*(100-AT$14)/100*$K$3)*(-1))>=($F$4+$F$6),($E43*(100-AT$14)/100*$K$3)+($F$4+$F$6),($F$6-((($E43*(100-AT$14)/100*$K$3)*(-1))-$F$4)))))))/$D$2*100,0) -> 0 | AU43: 0 | AV43: 0 | AX43: 3200 | AY43: - | AZ43: 3299 | BB43: 0 | BC43: 0 | BD43: 0 | BE43: 0 | BF43: 0 | BG43: 0 | BH43: 0 | BI43: 0 | BJ43: 0 | BK43: 0 | BL43: 0 | BM43: 0 | BN43: 0 | BO43: 0 | BP43: 0 | BQ43: 0 | BR43: 0 | BS43: 0 | BT43: 0 | BV43: 3200 | BW43: - | BX43: 3299 | BZ43: 0 | CA43: 0 | CB43: 0 | CC43: 2 | CD43: 7 | CE43: 12 | CF43: 12 | CG43: 12 | CH43: 12 | CI43: 12 | CJ43: 12 | CK43: 12 | CL43: 16 | CM43: 20 | CN43: 25 | CO43: 25 | CP43: 25 | CQ43: 25 | CR43: 25 | CS43: 3250 | CU43: 3200 | CV43: - | CW43: 3299 | CX43: -605 | CY43: -571.85 | CZ43: -516.6 | DA43: -471.35 | DB43: -441.1 | DC43: -410.85 | DD43: -355.6 | DE43: -300.35 | DF43: -245.1 | DG43: -189.85 | DH43: -134.6 | DI43: -79.35 | DJ43: -44.1 | DK43: -8.85 | DL43: -83.796 | DM43: -36.281 | DN43: 11.234 | DO43: 58.749 | DP43: 87.258 | DT43: Optimální | DU43: Velká | DV43: 750 | DW43: 750 | DX43: >85 | DY43: 86 | DZ43: NE | EA43: 23 | EB43: 25 | EC43: 0 | ED43: 48 | EE43: 224
B44: 3300 | C44: - | D44: 3399 | E44: 3350 | F44: 0 | G44: 4 | H44: 9 | I44: 15 | J44: 21 | K44: 25 | L44: 25 | M44: 25 | N44: 25 | O44: 25 | P44: 25 | Q44: 25 | R44: 25 | S44: 25 | T44: 25 | U44: 25 | V44: 25 | W44: 25 | X44: 25 | Z44: 3300 | AA44: - | AB44: 3399 | AD44: -13 | AE44: -13 | AF44: -13 | AG44: -13 | AH44: -13 | AI44: -13 | AJ44: -13 | AK44: -13 | AL44: -13 | AM44: -13 | AN44: -13 | AO44: -13 | AP44: -10 | AQ44: -6 | AR44: -1 | AS44: 0 | AT44: =ROUND(IF(IF(IF((($E44*(100-AT$14)/100*$K$3)*(-1))<$F$4,$F$6,IF((($E44*(100-AT$14)/100*$K$3)*(-1))>=($F$4+$F$6),($E44*(100-AT$14)/100*$K$3)+($F$4+$F$6),($F$6-((($E44*(100-AT$14)/100*$K$3)*(-1))-$F$4))))>=0,IF((($E44*(100-AT$14)/100*$K$3)*(-1))<$F$4,$F$6,IF((($E44*(100-AT$14)/100*$K$3)*(-1))>=($F$4+$F$6),($E44*(100-AT$14)/100*$K$3)+($F$4+$F$6),($F$6-((($E44*(100-AT$14)/100*$K$3)*(-1))-$F$4)))),IF(IF((($E44*(100-AT$14)/100*$K$3)*(-1))<$F$4,$F$6,IF((($E44*(100-AT$14)/100*$K$3)*(-1))>=($F$4+$F$6),($E44*(100-AT$14)/100*$K$3)+($F$4+$F$6),($F$6-((($E44*(100-AT$14)/100*$K$3)*(-1))-$F$4))))*(-1)<=$F$7,0,$F$7+IF((($E44*(100-AT$14)/100*$K$3)*(-1))<$F$4,$F$6,IF((($E44*(100-AT$14)/100*$K$3)*(-1))>=($F$4+$F$6),($E44*(100-AT$14)/100*$K$3)+($F$4+$F$6),($F$6-((($E44*(100-AT$14)/100*$K$3)*(-1))-$F$4))))))*(-1)>$F$5,$F$5*(-1),IF(IF((($E44*(100-AT$14)/100*$K$3)*(-1))<$F$4,$F$6,IF((($E44*(100-AT$14)/100*$K$3)*(-1))>=($F$4+$F$6),($E44*(100-AT$14)/100*$K$3)+($F$4+$F$6),($F$6-((($E44*(100-AT$14)/100*$K$3)*(-1))-$F$4))))>=0,IF((($E44*(100-AT$14)/100*$K$3)*(-1))<$F$4,$F$6,IF((($E44*(100-AT$14)/100*$K$3)*(-1))>=($F$4+$F$6),($E44*(100-AT$14)/100*$K$3)+($F$4+$F$6),($F$6-((($E44*(100-AT$14)/100*$K$3)*(-1))-$F$4)))),IF(IF((($E44*(100-AT$14)/100*$K$3)*(-1))<$F$4,$F$6,IF((($E44*(100-AT$14)/100*$K$3)*(-1))>=($F$4+$F$6),($E44*(100-AT$14)/100*$K$3)+($F$4+$F$6),($F$6-((($E44*(100-AT$14)/100*$K$3)*(-1))-$F$4))))*(-1)<=$F$7,0,$F$7+IF((($E44*(100-AT$14)/100*$K$3)*(-1))<$F$4,$F$6,IF((($E44*(100-AT$14)/100*$K$3)*(-1))>=($F$4+$F$6),($E44*(100-AT$14)/100*$K$3)+($F$4+$F$6),($F$6-((($E44*(100-AT$14)/100*$K$3)*(-1))-$F$4)))))))/$D$2*100,0) -> 0 | AU44: 0 | AV44: 0 | AX44: 3300 | AY44: - | AZ44: 3399 | BB44: 0 | BC44: 0 | BD44: 0 | BE44: 0 | BF44: 0 | BG44: 0 | BH44: 0 | BI44: 0 | BJ44: 0 | BK44: 0 | BL44: 0 | BM44: 0 | BN44: 0 | BO44: 0 | BP44: 0 | BQ44: 0 | BR44: 0 | BS44: 0 | BT44: 0 | BV44: 3300 | BW44: - | BX44: 3399 | BZ44: 0 | CA44: 0 | CB44: 0 | CC44: 2 | CD44: 8 | CE44: 12 | CF44: 12 | CG44: 12 | CH44: 12 | CI44: 12 | CJ44: 12 | CK44: 12 | CL44: 15 | CM44: 19 | CN44: 24 | CO44: 25 | CP44: 25 | CQ44: 25 | CR44: 25 | CS44: 3350 | CU44: 3300 | CV44: - | CW44: 3399 | CX44: -639 | CY44: -604.83 | CZ44: -547.88 | DA44: -500.93 | DB44: -473.98 | DC44: -437.03 | DD44: -380.08 | DE44: -323.13 | DF44: -266.18 | DG44: -209.23 | DH44: -152.28 | DI44: -95.33 | DJ44: -53.38 | DK44: -16.43 | DL44: -92.9128 | DM44: -48.9358 | DN44: 0.0412 | DO44: 49.0182 | DP44: 78.4044 | DT44: Optimální | DU44: Velká | DV44: 750 | DW44: 750 | DX44: 30 | DY44: 28 | DZ44: Ano | EA44: 7 | EB44: 8 | EC44: 0 | ED44: 15 | EE44: 241
B45: 3400 | C45: - | D45: 3499 | E45: 3450 | F45: 0 | G45: 4 | H45: 10 | I45: 16 | J45: 22 | K45: 25 | L45: 25 | M45: 25 | N45: 25 | O45: 25 | P45: 25 | Q45: 25 | R45: 25 | S45: 25 | T45: 25 | U45: 25 | V45: 25 | W45: 25 | X45: 25 | Z45: 3400 | AA45: - | AB45: 3499 | AD45: -13 | AE45: -13 | AF45: -13 | AG45: -13 | AH45: -13 | AI45: -13 | AJ45: -13 | AK45: -13 | AL45: -13 | AM45: -13 | AN45: -13 | AO45: -13 | AP45: -12 | AQ45: -7 | AR45: -2 | AS45: 0 | AT45: =ROUND(IF(IF(IF((($E45*(100-AT$14)/100*$K$3)*(-1))<$F$4,$F$6,IF((($E45*(100-AT$14)/100*$K$3)*(-1))>=($F$4+$F$6),($E45*(100-AT$14)/100*$K$3)+($F$4+$F$6),($F$6-((($E45*(100-AT$14)/100*$K$3)*(-1))-$F$4))))>=0,IF((($E45*(100-AT$14)/100*$K$3)*(-1))<$F$4,$F$6,IF((($E45*(100-AT$14)/100*$K$3)*(-1))>=($F$4+$F$6),($E45*(100-AT$14)/100*$K$3)+($F$4+$F$6),($F$6-((($E45*(100-AT$14)/100*$K$3)*(-1))-$F$4)))),IF(IF((($E45*(100-AT$14)/100*$K$3)*(-1))<$F$4,$F$6,IF((($E45*(100-AT$14)/100*$K$3)*(-1))>=($F$4+$F$6),($E45*(100-AT$14)/100*$K$3)+($F$4+$F$6),($F$6-((($E45*(100-AT$14)/100*$K$3)*(-1))-$F$4))))*(-1)<=$F$7,0,$F$7+IF((($E45*(100-AT$14)/100*$K$3)*(-1))<$F$4,$F$6,IF((($E45*(100-AT$14)/100*$K$3)*(-1))>=($F$4+$F$6),($E45*(100-AT$14)/100*$K$3)+($F$4+$F$6),($F$6-((($E45*(100-AT$14)/100*$K$3)*(-1))-$F$4))))))*(-1)>$F$5,$F$5*(-1),IF(IF((($E45*(100-AT$14)/100*$K$3)*(-1))<$F$4,$F$6,IF((($E45*(100-AT$14)/100*$K$3)*(-1))>=($F$4+$F$6),($E45*(100-AT$14)/100*$K$3)+($F$4+$F$6),($F$6-((($E45*(100-AT$14)/100*$K$3)*(-1))-$F$4))))>=0,IF((($E45*(100-AT$14)/100*$K$3)*(-1))<$F$4,$F$6,IF((($E45*(100-AT$14)/100*$K$3)*(-1))>=($F$4+$F$6),($E45*(100-AT$14)/100*$K$3)+($F$4+$F$6),($F$6-((($E45*(100-AT$14)/100*$K$3)*(-1))-$F$4)))),IF(IF((($E45*(100-AT$14)/100*$K$3)*(-1))<$F$4,$F$6,IF((($E45*(100-AT$14)/100*$K$3)*(-1))>=($F$4+$F$6),($E45*(100-AT$14)/100*$K$3)+($F$4+$F$6),($F$6-((($E45*(100-AT$14)/100*$K$3)*(-1))-$F$4))))*(-1)<=$F$7,0,$F$7+IF((($E45*(100-AT$14)/100*$K$3)*(-1))<$F$4,$F$6,IF((($E45*(100-AT$14)/100*$K$3)*(-1))>=($F$4+$F$6),($E45*(100-AT$14)/100*$K$3)+($F$4+$F$6),($F$6-((($E45*(100-AT$14)/100*$K$3)*(-1))-$F$4)))))))/$D$2*100,0) -> 0 | AU45: 0 | AV45: 0 | AX45: více jak 3400 | BB45: 0 | BC45: 0 | BD45: 0 | BE45: 0 | BF45: 0 | BG45: 0 | BH45: 0 | BI45: 0 | BJ45: 0 | BK45: 0 | BL45: 0 | BM45: 0 | BN45: 0 | BO45: 0 | BP45: 0 | BQ45: 0 | BR45: 0 | BS45: 0 | BT45: 0 | BV45: 3400 | BW45: - | BX45: 3499 | BZ45: 0 | CA45: 0 | CB45: 0 | CC45: 3 | CD45: 9 | CE45: 12 | CF45: 12 | CG45: 12 | CH45: 12 | CI45: 12 | CJ45: 12 | CK45: 12 | CL45: 13 | CM45: 18 | CN45: 23 | CO45: 25 | CP45: 25 | CQ45: 25 | CR45: 25 | CS45: 3450 | CU45: 3400 | CV45: - | CW45: 3499 | CX45: -673 | CY45: -637.81 | CZ45: -579.16 | DA45: -535.51 | DB45: -506.86 | DC45: -463.21 | DD45: -404.56 | DE45: -345.91 | DF45: -287.26 | DG45: -228.61 | DH45: -169.96 | DI45: -111.31 | DJ45: -57.66 | DK45: -24.01 | DL45: -102.0296 | DM45: -61.5906 | DN45: =$DC$4-(CP45/100*$DC$4)+($CS45*(100-DN$14)/100*$DH$3)+($CS45*(DN$14)/100*$DH$4)+($CS45*(DN$14)/100*$DH$5*0.66) -> -11.1516 | DO45: =$DC$4-(CQ45/100*$DC$4)+($CS45*(100-DO$14)/100*$DH$3)+($CS45*(DO$14)/100*$DH$4)+($CS45*(DO$14)/100*$DH$5*0.66) -> 39.2874 | DP45: =$DC$4-(CR45/100*$DC$4)+($CS45*(100-DP$14)/100*$DH$3)+($CS45*(DP$14)/100*$DH$4)+($CS45*(DP$14)/100*$DH$5*0.66) -> 69.5508 | DT45: Optimální | DU45: Velká | DV45: 750 | DW45: 750 | DX45: 30 | DY45: 28 | DZ45: NE | EA45: 7 | EB45: 8 | EC45: 0 | ED45: 15 | EE45: 241
X46: Příloha č. 5 k OZV č. …/2013 Název obec/město | AV46: Příloha č. 6 k OZV č. …/2013 Název obec/město | CR46: Příloha č. ??? k OZV č. …/2013 Název obec/město | DT46: Optimální | DU46: Velká | DV46: 750 | DW46: 750 | DX46: 0 | DY46: 0 | DZ46: Ano | EA46: 0 | EB46: 0 | EC46: 0 | ED46: 0 | EE46: 245
A47: Maximální roční bonusy za třídění odpadů (zkráceně BT) - procentuální úleva na poplatku placeného na následující rok | Y47: Maximální roční bonusy za efektivní využívání nádob (BV)-procentuální úleva na poplatku placeného na následující rok | BU47: Součet maximálních ročních bonusů (BT + BV + BS) | DT47: Optimální | DU47: Velká | DV47: 750 | DW47: 750 | DX47: 0 | DY47: 0 | DZ47: NE | EA47: 0 | EB47: 0 | EC47: 0 | ED47: 0 | EE47: 245
DS48: Plné popelnice | DT48: Optimální | DU48: Optimální | DV48: 1000 | DW48: 1050 | DX48: 75 | DY48: 73 | DZ48: Ano | EA48: =ROUND(INDEX(F$16:X$117,MATCH(DW48,$E$16:$E$117,0),MATCH(DY48,F$14:X$14,0)),0) -> 25 | EB48: =ROUND(INDEX(AD$16:AV$117,MATCH(DW48,$E$16:$E$117,0),MATCH(DY48,AD$14:AV$14,0)),0) -> 23 | EC48: =IF(DZ48="NE",0,ROUND(INDEX(BB$16:BT$117,MATCH(DW48,$E$16:$E$117,0),MATCH(DY48,BB$14:BT$14,0)),0)) -> 20 | ED48: 68 | EE48: 64
A49: Bonus za třídění odpadů je udělen do výše 23% za plast, 20% za papír, 30% za bioodpad, 13% za sklo, 8% za textil, 2% za nápojový karton, 2% za jedlý olej a tuk a 2% za drobné elektrozařízení z hodnoty maximálního bonusu uvedeného v této tabulce. | F49: Procentuální zastoupení objemu obsloužených nádob na plast a na papír v celkovém objemu obsloužených nádob | Y49: Bonus za efektivní využívání sběrných nádob je udělen do výše 100% z hodnoty maximálního bonusu uvedeného v této tabulce. | AD49: Procentuální zastoupení objemu obsloužených nádob na plast a na papír v celkovém objemu obsloužených nádob | BU49: Záporná hodnota součtu bonusů (BT + BV + BS) je nahrazena nulou. | BZ49: Procentuální zastoupení objemu obsloužených nádob na plast a na papír v celkovém objemu obsloužených nádob | CX49: Procentuální zastoupení objemu obsloužených nádob na plast a na papír v celkovém objemu obsloužených nádob | DT49: Optimální | DU49: Optimální | DV49: 1000 | DW49: 1050 | DX49: 75 | DY49: 73 | DZ49: NE | EA49: 25 | EB49: 23 | EC49: 0 | ED49: 48 | EE49: =IF(DZ49="NE",ROUND(INDEX(CX$16:DP$117,MATCH(DW49,$E$16:$E$117,0),MATCH(DY49,CX$14:DP$14,0)),0)+((ED48-ED49)/100*$DC$4),ROUND(INDEX(CX$16:DP$117,MATCH(DW49,$E$16:$E$117,0),MATCH(DY49,CX$14:DP$14,0)),0)) -> 164
F50: ="0 %" -> 0 % | G50: ="1-5 %" -> 1-5 % | H50: ="6-10 %" -> 6-10 % | I50: ="11-15 %" -> 11-15 % | J50: ="16-20 %" -> 16-20 % | K50: ="21-25 %" -> 21-25 % | L50: ="26-30 %" -> 26-30 % | M50: ="31-35 %" -> 31-35 % | N50: ="36-40 %" -> 36-40 % | O50: ="41-45 %" -> 41-45 % | P50: ="46-50 %" -> 46-50 % | Q50: ="51-55 %" -> 51-55 % | R50: ="56-60 %" -> 56-60 % | S50: ="61-65 %" -> 61-65 % | T50: ="66-70 %" -> 66-70 % | U50: ="71-75 %" -> 71-75 % | V50: ="76-80 %" -> 76-80 % | W50: ="81-85 %" -> 81-85 % | X50: ="více jak 85 %" -> více jak 85 % | AD50: ="0 %" -> 0 % | AE50: ="1-5 %" -> 1-5 % | AF50: ="6-10 %" -> 6-10 % | AG50: ="11-15 %" -> 11-15 % | AH50: ="16-20 %" -> 16-20 % | AI50: ="21-25 %" -> 21-25 % | AJ50: ="26-30 %" -> 26-30 % | AK50: ="31-35 %" -> 31-35 % | AL50: ="36-40 %" -> 36-40 % | AM50: ="41-45 %" -> 41-45 % | AN50: ="46-50 %" -> 46-50 % | AO50: ="51-55 %" -> 51-55 % | AP50: ="56-60 %" -> 56-60 % | AQ50: ="61-65 %" -> 61-65 % | AR50: ="66-70 %" -> 66-70 % | AS50: ="71-75 %" -> 71-75 % | AT50: ="76-80 %" -> 76-80 % | AU50: ="81-85 %" -> 81-85 % | AV50: ="více jak 85 %" -> více jak 85 % | BZ50: ="0 %" -> 0 % | CA50: ="1-5 %" -> 1-5 % | CB50: ="6-10 %" -> 6-10 % | CC50: ="11-15 %" -> 11-15 % | CD50: ="16-20 %" -> 16-20 % | CE50: ="21-25 %" -> 21-25 % | CF50: ="26-30 %" -> 26-30 % | CG50: ="31-35 %" -> 31-35 % | CH50: ="36-40 %" -> 36-40 % | CI50: ="41-45 %" -> 41-45 % | CJ50: ="46-50 %" -> 46-50 % | CK50: ="51-55 %" -> 51-55 % | CL50: ="56-60 %" -> 56-60 % | CM50: ="61-65 %" -> 61-65 % | CN50: ="66-70 %" -> 66-70 % | CO50: ="71-75 %" -> 71-75 % | CP50: ="76-80 %" -> 76-80 % | CQ50: ="81-85 %" -> 81-85 % | CR50: ="více jak 85 %" -> více jak 85 % | CX50: ="0 %" -> 0 % | CY50: ="1-5 %" -> 1-5 % | CZ50: ="6-10 %" -> 6-10 % | DA50: ="11-15 %" -> 11-15 % | DB50: ="16-20 %" -> 16-20 % | DC50: ="21-25 %" -> 21-25 % | DD50: ="26-30 %" -> 26-30 % | DE50: ="31-35 %" -> 31-35 % | DF50: ="36-40 %" -> 36-40 % | DG50: ="41-45 %" -> 41-45 % | DH50: ="46-50 %" -> 46-50 % | DI50: ="51-55 %" -> 51-55 % | DJ50: ="56-60 %" -> 56-60 % | DK50: ="61-65 %" -> 61-65 % | DL50: ="66-70 %" -> 66-70 % | DM50: ="71-75 %" -> 71-75 % | DN50: ="76-80 %" -> 76-80 % | DO50: ="81-85 %" -> 81-85 % | DP50: ="více jak 85 %" -> více jak 85 % | DT50: Optimální | DU50: Optimální | DV50: 1000 | DW50: 1050 | DX50: >85 | DY50: 86 | DZ50: Ano | EA50: 25 | EB50: 20 | EC50: 0 | ED50: 45 | EE50: 225
F51: "Třídí málo" "Třídí hodně" | AD51: "Třídí málo" "Třídí hodně" | BZ51: "Třídí málo" "Třídí hodně" | CX51: "Třídí málo" "Třídí hodně" | DT51: Optimální | DU51: Optimální | DV51: 1000 | DW51: 1050 | DX51: >85 | DY51: 86 | DZ51: NE | EA51: 25 | EB51: 20 | EC51: 0 | ED51: =IF(EA51+EB51+EC51<0,0,EA51+EB51+EC51) -> 45 | EE51: 225
A52: Roční celkový objem obsloužených nádob přepočtený na jednoho účastníka systému užívajícího dané nádoby (litry/účastník systému/rok) | B52: 3500 | C52: - | D52: 3599 | E52: 3550 | F52: =ROUND(IF((($E52*F$14/100*$K$4)*(-1))>($F$5-50),($E52*F$14/100*$K$5)-((($E52*F$14/100*$K$4)*(-1))-($F$5-50)),($E52*F$14/100*$K$5))/($D$2-200)*100,0) -> 0 | G52: =ROUND(IF((($E52*G$14/100*$K$4)*(-1))>($F$5-50),($E52*G$14/100*$K$5)-((($E52*G$14/100*$K$4)*(-1))-($F$5-50)),($E52*G$14/100*$K$5))/($D$2-200)*100,0) -> 4 | H52: 10 | I52: 16 | J52: 22 | K52: 25 | L52: 25 | M52: 25 | N52: 25 | O52: 25 | P52: 25 | Q52: 25 | R52: 25 | S52: 25 | T52: 25 | U52: 25 | V52: 25 | W52: 25 | X52: 25 | Y52: Roční celkový objem obsloužených nádob přepočtený na jednoho účastníka systému užívajícího dané nádoby (litry/účastník systému/rok) | Z52: 3500 | AA52: - | AB52: 3599 | AD52: =ROUND(IF(IF(IF((($E52*(100-AD$14)/100*$K$3)*(-1))<$F$4,$F$6,IF((($E52*(100-AD$14)/100*$K$3)*(-1))>=($F$4+$F$6),($E52*(100-AD$14)/100*$K$3)+($F$4+$F$6),($F$6-((($E52*(100-AD$14)/100*$K$3)*(-1))-$F$4))))>=0,IF((($E52*(100-AD$14)/100*$K$3)*(-1))<$F$4,$F$6,IF((($E52*(100-AD$14)/100*$K$3)*(-1))>=($F$4+$F$6),($E52*(100-AD$14)/100*$K$3)+($F$4+$F$6),($F$6-((($E52*(100-AD$14)/100*$K$3)*(-1))-$F$4)))),IF(IF((($E52*(100-AD$14)/100*$K$3)*(-1))<$F$4,$F$6,IF((($E52*(100-AD$14)/100*$K$3)*(-1))>=($F$4+$F$6),($E52*(100-AD$14)/100*$K$3)+($F$4+$F$6),($F$6-((($E52*(100-AD$14)/100*$K$3)*(-1))-$F$4))))*(-1)<=$F$7,0,$F$7+IF((($E52*(100-AD$14)/100*$K$3)*(-1))<$F$4,$F$6,IF((($E52*(100-AD$14)/100*$K$3)*(-1))>=($F$4+$F$6),($E52*(100-AD$14)/100*$K$3)+($F$4+$F$6),($F$6-((($E52*(100-AD$14)/100*$K$3)*(-1))-$F$4))))))*(-1)>$F$5,$F$5*(-1),IF(IF((($E52*(100-AD$14)/100*$K$3)*(-1))<$F$4,$F$6,IF((($E52*(100-AD$14)/100*$K$3)*(-1))>=($F$4+$F$6),($E52*(100-AD$14)/100*$K$3)+($F$4+$F$6),($F$6-((($E52*(100-AD$14)/100*$K$3)*(-1))-$F$4))))>=0,IF((($E52*(100-AD$14)/100*$K$3)*(-1))<$F$4,$F$6,IF((($E52*(100-AD$14)/100*$K$3)*(-1))>=($F$4+$F$6),($E52*(100-AD$14)/100*$K$3)+($F$4+$F$6),($F$6-((($E52*(100-AD$14)/100*$K$3)*(-1))-$F$4)))),IF(IF((($E52*(100-AD$14)/100*$K$3)*(-1))<$F$4,$F$6,IF((($E52*(100-AD$14)/100*$K$3)*(-1))>=($F$4+$F$6),($E52*(100-AD$14)/100*$K$3)+($F$4+$F$6),($F$6-((($E52*(100-AD$14)/100*$K$3)*(-1))-$F$4))))*(-1)<=$F$7,0,$F$7+IF((($E52*(100-AD$14)/100*$K$3)*(-1))<$F$4,$F$6,IF((($E52*(100-AD$14)/100*$K$3)*(-1))>=($F$4+$F$6),($E52*(100-AD$14)/100*$K$3)+($F$4+$F$6),($F$6-((($E52*(100-AD$14)/100*$K$3)*(-1))-$F$4)))))))/$D$2*100/2,0) -> -13 | AE52: =ROUND(IF(IF(IF((($E52*(100-AE$14)/100*$K$3)*(-1))<$F$4,$F$6,IF((($E52*(100-AE$14)/100*$K$3)*(-1))>=($F$4+$F$6),($E52*(100-AE$14)/100*$K$3)+($F$4+$F$6),($F$6-((($E52*(100-AE$14)/100*$K$3)*(-1))-$F$4))))>=0,IF((($E52*(100-AE$14)/100*$K$3)*(-1))<$F$4,$F$6,IF((($E52*(100-AE$14)/100*$K$3)*(-1))>=($F$4+$F$6),($E52*(100-AE$14)/100*$K$3)+($F$4+$F$6),($F$6-((($E52*(100-AE$14)/100*$K$3)*(-1))-$F$4)))),IF(IF((($E52*(100-AE$14)/100*$K$3)*(-1))<$F$4,$F$6,IF((($E52*(100-AE$14)/100*$K$3)*(-1))>=($F$4+$F$6),($E52*(100-AE$14)/100*$K$3)+($F$4+$F$6),($F$6-((($E52*(100-AE$14)/100*$K$3)*(-1))-$F$4))))*(-1)<=$F$7,0,$F$7+IF((($E52*(100-AE$14)/100*$K$3)*(-1))<$F$4,$F$6,IF((($E52*(100-AE$14)/100*$K$3)*(-1))>=($F$4+$F$6),($E52*(100-AE$14)/100*$K$3)+($F$4+$F$6),($F$6-((($E52*(100-AE$14)/100*$K$3)*(-1))-$F$4))))))*(-1)>$F$5,$F$5*(-1),IF(IF((($E52*(100-AE$14)/100*$K$3)*(-1))<$F$4,$F$6,IF((($E52*(100-AE$14)/100*$K$3)*(-1))>=($F$4+$F$6),($E52*(100-AE$14)/100*$K$3)+($F$4+$F$6),($F$6-((($E52*(100-AE$14)/100*$K$3)*(-1))-$F$4))))>=0,IF((($E52*(100-AE$14)/100*$K$3)*(-1))<$F$4,$F$6,IF((($E52*(100-AE$14)/100*$K$3)*(-1))>=($F$4+$F$6),($E52*(100-AE$14)/100*$K$3)+($F$4+$F$6),($F$6-((($E52*(100-AE$14)/100*$K$3)*(-1))-$F$4)))),IF(IF((($E52*(100-AE$14)/100*$K$3)*(-1))<$F$4,$F$6,IF((($E52*(100-AE$14)/100*$K$3)*(-1))>=($F$4+$F$6),($E52*(100-AE$14)/100*$K$3)+($F$4+$F$6),($F$6-((($E52*(100-AE$14)/100*$K$3)*(-1))-$F$4))))*(-1)<=$F$7,0,$F$7+IF((($E52*(100-AE$14)/100*$K$3)*(-1))<$F$4,$F$6,IF((($E52*(100-AE$14)/100*$K$3)*(-1))>=($F$4+$F$6),($E52*(100-AE$14)/100*$K$3)+($F$4+$F$6),($F$6-((($E52*(100-AE$14)/100*$K$3)*(-1))-$F$4)))))))/$D$2*100/2,0) -> -13 | AF52: -13 | AG52: -13 | AH52: -13 | AI52: -13 | AJ52: -13 | AK52: -13 | AL52: -13 | AM52: -13 | AN52: -13 | AO52: -13 | AP52: -13 | AQ52: -8 | AR52: -3 | AS52: 0 | AT52: 0 | AU52: 0 | AV52: 0 | BU52: Roční celkový objem obsloužených nádob přepočtený na jednoho účastníka systému užívajícího dané nádoby (litry/účastník systému/rok) | BV52: 3500 | BW52: - | BX52: 3599 | BZ52: =IF((F52+AD52+BB52)<0,0,(F52+AD52+BB52)) -> 0 | CA52: =IF((G52+AE52+BC52)<0,0,(G52+AE52+BC52)) -> 0 | CB52: 0 | CC52: 3 | CD52: 9 | CE52: 12 | CF52: 12 | CG52: 12 | CH52: 12 | CI52: 12 | CJ52: 12 | CK52: 12 | CL52: 12 | CM52: 17 | CN52: 22 | CO52: 25 | CP52: 25 | CQ52: 25 | CR52: 25 | CS52: =E52 -> 3550 | CT52: Roční celkový objem obsloužených nádob přepočtený na jednoho účastníka systému užívajícího dané nádoby (litry/účastník systému/rok) | CU52: 3500 | CV52: - | CW52: 3599 | CX52: =$DC$4-(BZ52/100*$DC$4)+($CS52*(100-CX$14)/100*$DH$3)+($CS52*(CX$14)/100*$DH$4)+($CS52*(CX$14)/100*$DH$5) -> -707 | CY52: =$DC$4-(CA52/100*$DC$4)+($CS52*(100-CY$14)/100*$DH$3)+($CS52*(CY$14)/100*$DH$4)+($CS52*(CY$14)/100*$DH$5) -> -670.79 | CZ52: =$DC$4-(CB52/100*$DC$4)+($CS52*(100-CZ$14)/100*$DH$3)+($CS52*(CZ$14)/100*$DH$4)+($CS52*(CZ$14)/100*$DH$5) -> -610.44 | DA52: =$DC$4-(CC52/100*$DC$4)+($CS52*(100-DA$14)/100*$DH$3)+($CS52*(DA$14)/100*$DH$4)+($CS52*(DA$14)/100*$DH$5) -> -565.09 | DB52: =$DC$4-(CD52/100*$DC$4)+($CS52*(100-DB$14)/100*$DH$3)+($CS52*(DB$14)/100*$DH$4)+($CS52*(DB$14)/100*$DH$5) -> -534.74 | DC52: =$DC$4-(CE52/100*$DC$4)+($CS52*(100-DC$14)/100*$DH$3)+($CS52*(DC$14)/100*$DH$4)+($CS52*(DC$14)/100*$DH$5) -> -489.39 | DD52: =$DC$4-(CF52/100*$DC$4)+($CS52*(100-DD$14)/100*$DH$3)+($CS52*(DD$14)/100*$DH$4)+($CS52*(DD$14)/100*$DH$5) -> -429.04 | DE52: =$DC$4-(CG52/100*$DC$4)+($CS52*(100-DE$14)/100*$DH$3)+($CS52*(DE$14)/100*$DH$4)+($CS52*(DE$14)/100*$DH$5) -> -368.69 | DF52: =$DC$4-(CH52/100*$DC$4)+($CS52*(100-DF$14)/100*$DH$3)+($CS52*(DF$14)/100*$DH$4)+($CS52*(DF$14)/100*$DH$5) -> -308.34 | DG52: =$DC$4-(CI52/100*$DC$4)+($CS52*(100-DG$14)/100*$DH$3)+($CS52*(DG$14)/100*$DH$4)+($CS52*(DG$14)/100*$DH$5) -> -247.99 | DH52: =$DC$4-(CJ52/100*$DC$4)+($CS52*(100-DH$14)/100*$DH$3)+($CS52*(DH$14)/100*$DH$4)+($CS52*(DH$14)/100*$DH$5) -> -187.64 | DI52: =$DC$4-(CK52/100*$DC$4)+($CS52*(100-DI$14)/100*$DH$3)+($CS52*(DI$14)/100*$DH$4)+($CS52*(DI$14)/100*$DH$5) -> -127.29 | DJ52: =$DC$4-(CL52/100*$DC$4)+($CS52*(100-DJ$14)/100*$DH$3)+($CS52*(DJ$14)/100*$DH$4)+($CS52*(DJ$14)/100*$DH$5) -> -66.94 | DK52: =$DC$4-(CM52/100*$DC$4)+($CS52*(100-DK$14)/100*$DH$3)+($CS52*(DK$14)/100*$DH$4)+($CS52*(DK$14)/100*$DH$5) -> -31.59 | DL52: =$DC$4-(CN52/100*$DC$4)+($CS52*(100-DL$14)/100*$DH$3)+($CS52*(DL$14)/100*$DH$4)+($CS52*(DL$14)/100*$DH$5*0.66) -> -111.1464 | DM52: =$DC$4-(CO52/100*$DC$4)+($CS52*(100-DM$14)/100*$DH$3)+($CS52*(DM$14)/100*$DH$4)+($CS52*(DM$14)/100*$DH$5*0.66) -> -74.2454 | DN52: =$DC$4-(CP52/100*$DC$4)+($CS52*(100-DN$14)/100*$DH$3)+($CS52*(DN$14)/100*$DH$4)+($CS52*(DN$14)/100*$DH$5*0.66) -> -22.3444 | DO52: =$DC$4-(CQ52/100*$DC$4)+($CS52*(100-DO$14)/100*$DH$3)+($CS52*(DO$14)/100*$DH$4)+($CS52*(DO$14)/100*$DH$5*0.66) -> 29.5566 | DP52: =$DC$4-(CR52/100*$DC$4)+($CS52*(100-DP$14)/100*$DH$3)+($CS52*(DP$14)/100*$DH$4)+($CS52*(DP$14)/100*$DH$5*0.66) -> 60.6972 | DT52: Optimální | DU52: Optimální | DV52: 1000 | DW52: 1050 | DX52: 30 | DY52: 28 | DZ52: Ano | EA52: 10 | EB52: 0 | EC52: 0 | ED52: =IF(EA52+EB52+EC52<0,0,EA52+EB52+EC52) -> 10 | EE52: 193
B53: 3600 | C53: - | D53: 3699 | E53: 3650 | F53: =ROUND(IF((($E53*F$14/100*$K$4)*(-1))>($F$5-50),($E53*F$14/100*$K$5)-((($E53*F$14/100*$K$4)*(-1))-($F$5-50)),($E53*F$14/100*$K$5))/($D$2-200)*100,0) -> 0 | G53: 4 | H53: 10 | I53: 17 | J53: 23 | K53: 25 | L53: 25 | M53: 25 | N53: 25 | O53: 25 | P53: 25 | Q53: 25 | R53: 25 | S53: 25 | T53: 25 | U53: 25 | V53: 25 | W53: 25 | X53: 25 | Z53: 3600 | AA53: - | AB53: 3699 | AD53: =ROUND(IF(IF(IF((($E53*(100-AD$14)/100*$K$3)*(-1))<$F$4,$F$6,IF((($E53*(100-AD$14)/100*$K$3)*(-1))>=($F$4+$F$6),($E53*(100-AD$14)/100*$K$3)+($F$4+$F$6),($F$6-((($E53*(100-AD$14)/100*$K$3)*(-1))-$F$4))))>=0,IF((($E53*(100-AD$14)/100*$K$3)*(-1))<$F$4,$F$6,IF((($E53*(100-AD$14)/100*$K$3)*(-1))>=($F$4+$F$6),($E53*(100-AD$14)/100*$K$3)+($F$4+$F$6),($F$6-((($E53*(100-AD$14)/100*$K$3)*(-1))-$F$4)))),IF(IF((($E53*(100-AD$14)/100*$K$3)*(-1))<$F$4,$F$6,IF((($E53*(100-AD$14)/100*$K$3)*(-1))>=($F$4+$F$6),($E53*(100-AD$14)/100*$K$3)+($F$4+$F$6),($F$6-((($E53*(100-AD$14)/100*$K$3)*(-1))-$F$4))))*(-1)<=$F$7,0,$F$7+IF((($E53*(100-AD$14)/100*$K$3)*(-1))<$F$4,$F$6,IF((($E53*(100-AD$14)/100*$K$3)*(-1))>=($F$4+$F$6),($E53*(100-AD$14)/100*$K$3)+($F$4+$F$6),($F$6-((($E53*(100-AD$14)/100*$K$3)*(-1))-$F$4))))))*(-1)>$F$5,$F$5*(-1),IF(IF((($E53*(100-AD$14)/100*$K$3)*(-1))<$F$4,$F$6,IF((($E53*(100-AD$14)/100*$K$3)*(-1))>=($F$4+$F$6),($E53*(100-AD$14)/100*$K$3)+($F$4+$F$6),($F$6-((($E53*(100-AD$14)/100*$K$3)*(-1))-$F$4))))>=0,IF((($E53*(100-AD$14)/100*$K$3)*(-1))<$F$4,$F$6,IF((($E53*(100-AD$14)/100*$K$3)*(-1))>=($F$4+$F$6),($E53*(100-AD$14)/100*$K$3)+($F$4+$F$6),($F$6-((($E53*(100-AD$14)/100*$K$3)*(-1))-$F$4)))),IF(IF((($E53*(100-AD$14)/100*$K$3)*(-1))<$F$4,$F$6,IF((($E53*(100-AD$14)/100*$K$3)*(-1))>=($F$4+$F$6),($E53*(100-AD$14)/100*$K$3)+($F$4+$F$6),($F$6-((($E53*(100-AD$14)/100*$K$3)*(-1))-$F$4))))*(-1)<=$F$7,0,$F$7+IF((($E53*(100-AD$14)/100*$K$3)*(-1))<$F$4,$F$6,IF((($E53*(100-AD$14)/100*$K$3)*(-1))>=($F$4+$F$6),($E53*(100-AD$14)/100*$K$3)+($F$4+$F$6),($F$6-((($E53*(100-AD$14)/100*$K$3)*(-1))-$F$4)))))))/$D$2*100/2,0) -> -13 | AE53: -13 | AF53: -13 | AG53: -13 | AH53: -13 | AI53: -13 | AJ53: -13 | AK53: -13 | AL53: -13 | AM53: -13 | AN53: -13 | AO53: -13 | AP53: -13 | AQ53: -9 | AR53: -4 | AS53: 0 | AT53: 0 | AU53: 0 | AV53: 0 | BV53: 3600 | BW53: - | BX53: 3699 | BZ53: =IF((F53+AD53+BB53)<0,0,(F53+AD53+BB53)) -> 0 | CA53: =IF((G53+AE53+BC53)<0,0,(G53+AE53+BC53)) -> 0 | CB53: =IF((H53+AF53+BD53)<0,0,(H53+AF53+BD53)) -> 0 | CC53: =IF((I53+AG53+BE53)<0,0,(I53+AG53+BE53)) -> 4 | CD53: =IF((J53+AH53+BF53)<0,0,(J53+AH53+BF53)) -> 10 | CE53: =IF((K53+AI53+BG53)<0,0,(K53+AI53+BG53)) -> 12 | CF53: =IF((L53+AJ53+BH53)<0,0,(L53+AJ53+BH53)) -> 12 | CG53: =IF((M53+AK53+BI53)<0,0,(M53+AK53+BI53)) -> 12 | CH53: =IF((N53+AL53+BJ53)<0,0,(N53+AL53+BJ53)) -> 12 | CI53: =IF((O53+AM53+BK53)<0,0,(O53+AM53+BK53)) -> 12 | CJ53: =IF((P53+AN53+BL53)<0,0,(P53+AN53+BL53)) -> 12 | CK53: =IF((Q53+AO53+BM53)<0,0,(Q53+AO53+BM53)) -> 12 | CL53: =IF((R53+AP53+BN53)<0,0,(R53+AP53+BN53)) -> 12 | CM53: =IF((S53+AQ53+BO53)<0,0,(S53+AQ53+BO53)) -> 16 | CN53: =IF((T53+AR53+BP53)<0,0,(T53+AR53+BP53)) -> 21 | CO53: =IF((U53+AS53+BQ53)<0,0,(U53+AS53+BQ53)) -> 25 | CP53: =IF((V53+AT53+BR53)<0,0,(V53+AT53+BR53)) -> 25 | CQ53: =IF((W53+AU53+BS53)<0,0,(W53+AU53+BS53)) -> 25 | CR53: =IF((X53+AV53+BT53)<0,0,(X53+AV53+BT53)) -> 25 | CS53: 3650 | CU53: 3600 | CV53: - | CW53: 3699 | CX53: -741 | CY53: -703.77 | CZ53: -641.72 | DA53: -599.67 | DB53: -567.62 | DC53: -515.57 | DD53: -453.52 | DE53: -391.47 | DF53: -329.42 | DG53: -267.37 | DH53: -205.32 | DI53: -143.27 | DJ53: -81.22 | DK53: -39.17 | DL53: =$DC$4-(CN53/100*$DC$4)+($CS53*(100-DL$14)/100*$DH$3)+($CS53*(DL$14)/100*$DH$4)+($CS53*(DL$14)/100*$DH$5*0.66) -> -120.2632 | DM53: =$DC$4-(CO53/100*$DC$4)+($CS53*(100-DM$14)/100*$DH$3)+($CS53*(DM$14)/100*$DH$4)+($CS53*(DM$14)/100*$DH$5*0.66) -> -86.9002 | DN53: =$DC$4-(CP53/100*$DC$4)+($CS53*(100-DN$14)/100*$DH$3)+($CS53*(DN$14)/100*$DH$4)+($CS53*(DN$14)/100*$DH$5*0.66) -> -33.5372 | DO53: =$DC$4-(CQ53/100*$DC$4)+($CS53*(100-DO$14)/100*$DH$3)+($CS53*(DO$14)/100*$DH$4)+($CS53*(DO$14)/100*$DH$5*0.66) -> 19.8258 | DP53: =$DC$4-(CR53/100*$DC$4)+($CS53*(100-DP$14)/100*$DH$3)+($CS53*(DP$14)/100*$DH$4)+($CS53*(DP$14)/100*$DH$5*0.66) -> 51.8436 | DT53: Optimální | DU53: Optimální | DV53: 1000 | DW53: 1050 | DX53: 30 | DY53: 28 | DZ53: NE | EA53: 10 | EB53: 0 | EC53: 0 | ED53: 10 | EE53: 193
B54: 3700 | C54: - | D54: 3799 | E54: 3750 | F54: 0 | G54: 4 | H54: 11 | I54: 17 | J54: 24 | K54: 25 | L54: 25 | M54: 25 | N54: 25 | O54: 25 | P54: 25 | Q54: 25 | R54: 25 | S54: 25 | T54: 25 | U54: 25 | V54: 25 | W54: 25 | X54: 25 | Z54: 3700 | AA54: - | AB54: 3799 | AD54: -13 | AE54: -13 | AF54: -13 | AG54: -13 | AH54: -13 | AI54: -13 | AJ54: -13 | AK54: -13 | AL54: -13 | AM54: -13 | AN54: -13 | AO54: -13 | AP54: -13 | AQ54: -10 | AR54: -5 | AS54: 0 | AT54: 0 | AU54: 0 | AV54: 0 | BV54: 3700 | BW54: - | BX54: 3799 | BZ54: 0 | CA54: 0 | CB54: 0 | CC54: 4 | CD54: 11 | CE54: 12 | CF54: 12 | CG54: 12 | CH54: 12 | CI54: 12 | CJ54: 12 | CK54: 12 | CL54: 12 | CM54: 15 | CN54: 20 | CO54: 25 | CP54: 25 | CQ54: 25 | CR54: 25 | CS54: 3750 | CU54: 3700 | CV54: - | CW54: 3799 | CX54: -775 | CY54: -736.75 | CZ54: -673 | DA54: -629.25 | DB54: -600.5 | DC54: -541.75 | DD54: -478 | DE54: -414.25 | DF54: -350.5 | DG54: -286.75 | DH54: -223 | DI54: -159.25 | DJ54: -95.5 | DK54: -46.75 | DL54: -129.38 | DM54: -99.555 | DN54: -44.73 | DO54: 10.095 | DP54: 42.99 | DT54: Optimální | DU54: Optimální | DV54: 1000 | DW54: 1050 | DX54: 0 | DY54: 0 | DZ54: Ano | EA54: 0 | EB54: 0 | EC54: 0 | ED54: 0 | EE54: 143
B55: 3800 | C55: - | D55: 3899 | E55: 3850 | F55: 0 | G55: 4 | H55: 11 | I55: 18 | J55: 24 | K55: 25 | L55: 25 | M55: 25 | N55: 25 | O55: 25 | P55: 25 | Q55: 25 | R55: 25 | S55: 25 | T55: 25 | U55: 25 | V55: 25 | W55: 25 | X55: 25 | Z55: 3800 | AA55: - | AB55: 3899 | AD55: -13 | AE55: -13 | AF55: -13 | AG55: -13 | AH55: -13 | AI55: -13 | AJ55: -13 | AK55: -13 | AL55: -13 | AM55: -13 | AN55: -13 | AO55: -13 | AP55: -13 | AQ55: -11 | AR55: -5 | AS55: 0 | AT55: 0 | AU55: 0 | AV55: 0 | BV55: 3800 | BW55: - | BX55: 3899 | BZ55: 0 | CA55: 0 | CB55: 0 | CC55: 5 | CD55: 11 | CE55: 12 | CF55: 12 | CG55: 12 | CH55: 12 | CI55: 12 | CJ55: 12 | CK55: 12 | CL55: 12 | CM55: 14 | CN55: 20 | CO55: 25 | CP55: 25 | CQ55: 25 | CR55: 25 | CS55: 3850 | CU55: 3800 | CV55: - | CW55: 3899 | CX55: -809 | CY55: -769.73 | CZ55: -704.28 | DA55: -663.83 | DB55: -628.38 | DC55: -567.93 | DD55: -502.48 | DE55: -437.03 | DF55: -371.58 | DG55: -306.13 | DH55: -240.68 | DI55: -175.23 | DJ55: -109.78 | DK55: -54.33 | DL55: -143.4968 | DM55: -112.2098 | DN55: -55.9228 | DO55: 0.3642 | DP55: 34.1364 | DT55: Optimální | DU55: Optimální | DV55: 1000 | DW55: 1050 | DX55: 0 | DY55: 0 | DZ55: NE | EA55: 0 | EB55: 0 | EC55: 0 | ED55: 0 | EE55: 143
B56: 3900 | C56: - | D56: 3999 | E56: 3950 | F56: 0 | G56: 4 | H56: 11 | I56: 18 | J56: 25 | K56: 25 | L56: 25 | M56: 25 | N56: 25 | O56: 25 | P56: 25 | Q56: 25 | R56: 25 | S56: 25 | T56: 25 | U56: 25 | V56: 25 | W56: 25 | X56: 25 | Z56: 3900 | AA56: - | AB56: 3999 | AD56: -13 | AE56: -13 | AF56: -13 | AG56: -13 | AH56: -13 | AI56: -13 | AJ56: -13 | AK56: -13 | AL56: -13 | AM56: -13 | AN56: -13 | AO56: -13 | AP56: -13 | AQ56: -12 | AR56: -6 | AS56: -1 | AT56: 0 | AU56: 0 | AV56: 0 | BV56: 3900 | BW56: - | BX56: 3999 | BZ56: 0 | CA56: 0 | CB56: 0 | CC56: 5 | CD56: 12 | CE56: 12 | CF56: 12 | CG56: 12 | CH56: 12 | CI56: 12 | CJ56: 12 | CK56: 12 | CL56: 12 | CM56: 13 | CN56: 19 | CO56: 24 | CP56: 25 | CQ56: 25 | CR56: 25 | CS56: 3950 | CU56: 3900 | CV56: - | CW56: 3999 | CX56: -843 | CY56: -802.71 | CZ56: -735.56 | DA56: -693.41 | DB56: -661.26 | DC56: -594.11 | DD56: -526.96 | DE56: -459.81 | DF56: -392.66 | DG56: -325.51 | DH56: -258.36 | DI56: -191.21 | DJ56: -124.06 | DK56: -61.91 | DL56: -152.6136 | DM56: -119.8646 | DN56: -67.1156 | DO56: -9.3666 | DP56: 25.2828 | DS56: Poloprázdné popelnice | DT56: Optimální | DU56: Nízká | DV56: 2000 | DW56: 2050 | DX56: 75 | DY56: 73 | DZ56: Ano | EA56: 25 | EB56: 8 | EC56: 0 | ED56: 33 | EE56: 76
B57: 4000 | C57: - | D57: 4099 | E57: 4050 | F57: 0 | G57: 4 | H57: 11 | I57: 18 | J57: 25 | K57: 25 | L57: 25 | M57: 25 | N57: 25 | O57: 25 | P57: 25 | Q57: 25 | R57: 25 | S57: 25 | T57: 25 | U57: 25 | V57: 25 | W57: 25 | X57: 25 | Z57: 4000 | AA57: - | AB57: 4099 | AD57: -13 | AE57: -13 | AF57: -13 | AG57: -13 | AH57: -13 | AI57: -13 | AJ57: -13 | AK57: -13 | AL57: -13 | AM57: -13 | AN57: -13 | AO57: -13 | AP57: -13 | AQ57: -13 | AR57: -7 | AS57: -1 | AT57: 0 | AU57: 0 | AV57: 0 | BV57: 4000 | BW57: - | BX57: 4099 | BZ57: 0 | CA57: 0 | CB57: 0 | CC57: 5 | CD57: 12 | CE57: 12 | CF57: 12 | CG57: 12 | CH57: 12 | CI57: 12 | CJ57: 12 | CK57: 12 | CL57: 12 | CM57: 12 | CN57: 18 | CO57: 24 | CP57: 25 | CQ57: 25 | CR57: 25 | CS57: 4050 | CU57: 4000 | CV57: - | CW57: 4099 | CX57: -877 | CY57: -835.69 | CZ57: -766.84 | DA57: -722.99 | DB57: -689.14 | DC57: -620.29 | DD57: -551.44 | DE57: -482.59 | DF57: -413.74 | DG57: -344.89 | DH57: -276.04 | DI57: -207.19 | DJ57: -138.34 | DK57: -69.49 | DL57: -161.7304 | DM57: -132.5194 | DN57: -78.3084 | DO57: -19.0974 | DP57: 16.4292 | DT57: Optimální | DU57: Nízká | DV57: 2000 | DW57: 2050 | DX57: 75 | DY57: 73 | DZ57: NE | EA57: 25 | EB57: 8 | EC57: 0 | ED57: 33 | EE57: 76
B58: 4100 | C58: - | D58: 4199 | E58: 4150 | F58: 0 | G58: 4 | H58: 12 | I58: 19 | J58: 25 | K58: 25 | L58: 25 | M58: 25 | N58: 25 | O58: 25 | P58: 25 | Q58: 25 | R58: 25 | S58: 25 | T58: 25 | U58: 25 | V58: 25 | W58: 25 | X58: 25 | Z58: 4100 | AA58: - | AB58: 4199 | AD58: -13 | AE58: -13 | AF58: -13 | AG58: -13 | AH58: -13 | AI58: -13 | AJ58: -13 | AK58: -13 | AL58: -13 | AM58: -13 | AN58: -13 | AO58: -13 | AP58: -13 | AQ58: -13 | AR58: -8 | AS58: -2 | AT58: 0 | AU58: 0 | AV58: 0 | BV58: 4100 | BW58: - | BX58: 4199 | BZ58: 0 | CA58: 0 | CB58: 0 | CC58: 6 | CD58: 12 | CE58: 12 | CF58: 12 | CG58: 12 | CH58: 12 | CI58: 12 | CJ58: 12 | CK58: 12 | CL58: 12 | CM58: 12 | CN58: 17 | CO58: 23 | CP58: 25 | CQ58: 25 | CR58: 25 | CS58: 4150 | CU58: 4100 | CV58: - | CW58: 4199 | CX58: -911 | CY58: -868.67 | CZ58: -798.12 | DA58: -757.57 | DB58: -717.02 | DC58: -646.47 | DD58: -575.92 | DE58: -505.37 | DF58: -434.82 | DG58: -364.27 | DH58: -293.72 | DI58: -223.17 | DJ58: -152.62 | DK58: -82.07 | DL58: -170.8472 | DM58: -140.1742 | DN58: -89.5012 | DO58: -28.8282 | DP58: 7.5756 | DT58: Optimální | DU58: Nízká | DV58: 2000 | DW58: 2050 | DX58: >85 | DY58: 86 | DZ58: Ano | EA58: 25 | EB58: 2 | EC58: 0 | ED58: 27 | EE58: 184
B59: 4200 | C59: - | D59: 4299 | E59: 4250 | F59: 0 | G59: 4 | H59: 12 | I59: 19 | J59: 25 | K59: 25 | L59: 25 | M59: 25 | N59: 25 | O59: 25 | P59: 25 | Q59: 25 | R59: 25 | S59: 25 | T59: 25 | U59: 25 | V59: 25 | W59: 25 | X59: 25 | Z59: 4200 | AA59: - | AB59: 4299 | AD59: -13 | AE59: -13 | AF59: -13 | AG59: -13 | AH59: -13 | AI59: -13 | AJ59: -13 | AK59: -13 | AL59: -13 | AM59: -13 | AN59: -13 | AO59: -13 | AP59: -13 | AQ59: -13 | AR59: -9 | AS59: -3 | AT59: 0 | AU59: 0 | AV59: 0 | BV59: 4200 | BW59: - | BX59: 4299 | BZ59: 0 | CA59: 0 | CB59: 0 | CC59: 6 | CD59: 12 | CE59: 12 | CF59: 12 | CG59: 12 | CH59: 12 | CI59: 12 | CJ59: 12 | CK59: 12 | CL59: 12 | CM59: 12 | CN59: 16 | CO59: 22 | CP59: 25 | CQ59: 25 | CR59: 25 | CS59: 4250 | CU59: 4200 | CV59: - | CW59: 4299 | CX59: -945 | CY59: -901.65 | CZ59: -829.4 | DA59: -787.15 | DB59: -744.9 | DC59: -672.65 | DD59: -600.4 | DE59: -528.15 | DF59: -455.9 | DG59: -383.65 | DH59: -311.4 | DI59: -239.15 | DJ59: -166.9 | DK59: -94.65 | DL59: -179.964 | DM59: -147.829 | DN59: -100.694 | DO59: -38.559 | DP59: -1.278 | DT59: Optimální | DU59: Nízká | DV59: 2000 | DW59: 2050 | DX59: >85 | DY59: 86 | DZ59: NE | EA59: 25 | EB59: 2 | EC59: 0 | ED59: 27 | EE59: 184
B60: 4300 | C60: - | D60: 4399 | E60: 4350 | F60: 0 | G60: 5 | H60: 12 | I60: 20 | J60: 25 | K60: 25 | L60: 25 | M60: 25 | N60: 25 | O60: 25 | P60: 25 | Q60: 25 | R60: 25 | S60: 25 | T60: 25 | U60: 25 | V60: 25 | W60: 25 | X60: 25 | Z60: 4300 | AA60: - | AB60: 4399 | AD60: -13 | AE60: -13 | AF60: -13 | AG60: -13 | AH60: -13 | AI60: -13 | AJ60: -13 | AK60: -13 | AL60: -13 | AM60: -13 | AN60: -13 | AO60: -13 | AP60: -13 | AQ60: -13 | AR60: -10 | AS60: -4 | AT60: 0 | AU60: 0 | AV60: 0 | BV60: 4300 | BW60: - | BX60: 4399 | BZ60: 0 | CA60: 0 | CB60: 0 | CC60: 7 | CD60: 12 | CE60: 12 | CF60: 12 | CG60: 12 | CH60: 12 | CI60: 12 | CJ60: 12 | CK60: 12 | CL60: 12 | CM60: 12 | CN60: 15 | CO60: 21 | CP60: 25 | CQ60: 25 | CR60: 25 | CS60: 4350 | CU60: 4300 | CV60: - | CW60: 4399 | CX60: -979 | CY60: -934.63 | CZ60: -860.68 | DA60: -821.73 | DB60: -772.78 | DC60: -698.83 | DD60: -624.88 | DE60: -550.93 | DF60: -476.98 | DG60: -403.03 | DH60: -329.08 | DI60: -255.13 | DJ60: -181.18 | DK60: -107.23 | DL60: -189.0808 | DM60: -155.4838 | DN60: -111.8868 | DO60: -48.2898 | DP60: -10.1316 | DT60: Optimální | DU60: Nízká | DV60: 2000 | DW60: 2050 | DX60: 30 | DY60: 28 | DZ60: Ano | EA60: 20 | EB60: -12 | EC60: 0 | ED60: 8 | EE60: -42
B61: 4400 | C61: - | D61: 4499 | E61: 4450 | F61: 0 | G61: 5 | H61: 12 | I61: 20 | J61: 25 | K61: 25 | L61: 25 | M61: 25 | N61: 25 | O61: 25 | P61: 25 | Q61: 25 | R61: 25 | S61: 25 | T61: 25 | U61: 25 | V61: 25 | W61: 25 | X61: 25 | Z61: 4400 | AA61: - | AB61: 4499 | AD61: -13 | AE61: -13 | AF61: -13 | AG61: -13 | AH61: -13 | AI61: -13 | AJ61: -13 | AK61: -13 | AL61: -13 | AM61: -13 | AN61: -13 | AO61: -13 | AP61: -13 | AQ61: -13 | AR61: -11 | AS61: -5 | AT61: 0 | AU61: 0 | AV61: 0 | BV61: 4400 | BW61: - | BX61: 4499 | BZ61: 0 | CA61: 0 | CB61: 0 | CC61: 7 | CD61: 12 | CE61: 12 | CF61: 12 | CG61: 12 | CH61: 12 | CI61: 12 | CJ61: 12 | CK61: 12 | CL61: 12 | CM61: 12 | CN61: 14 | CO61: 20 | CP61: 25 | CQ61: 25 | CR61: 25 | CS61: 4450 | CU61: 4400 | CV61: - | CW61: 4499 | CX61: -1013 | CY61: -967.61 | CZ61: -891.96 | DA61: -851.31 | DB61: -800.66 | DC61: -725.01 | DD61: -649.36 | DE61: -573.71 | DF61: -498.06 | DG61: -422.41 | DH61: -346.76 | DI61: -271.11 | DJ61: -195.46 | DK61: -119.81 | DL61: -198.1976 | DM61: -163.1386 | DN61: -123.0796 | DO61: -58.0206 | DP61: -18.9852 | DT61: Optimální | DU61: Nízká | DV61: 2000 | DW61: 2050 | DX61: 30 | DY61: 28 | DZ61: NE | EA61: 20 | EB61: -12 | EC61: 0 | ED61: 8 | EE61: -42
B62: 4500 | C62: - | D62: 4599 | E62: 4550 | F62: 0 | G62: 5 | H62: 13 | I62: 21 | J62: 25 | K62: 25 | L62: 25 | M62: 25 | N62: 25 | O62: 25 | P62: 25 | Q62: 25 | R62: 25 | S62: 25 | T62: 25 | U62: 25 | V62: 25 | W62: 25 | X62: 25 | Z62: 4500 | AA62: - | AB62: 4599 | AD62: -13 | AE62: -13 | AF62: -13 | AG62: -13 | AH62: -13 | AI62: -13 | AJ62: -13 | AK62: -13 | AL62: -13 | AM62: -13 | AN62: -13 | AO62: -13 | AP62: -13 | AQ62: -13 | AR62: -12 | AS62: -5 | AT62: 0 | AU62: 0 | AV62: 0 | BV62: 4500 | BW62: - | BX62: 4599 | BZ62: 0 | CA62: 0 | CB62: 0 | CC62: 8 | CD62: 12 | CE62: 12 | CF62: 12 | CG62: 12 | CH62: 12 | CI62: 12 | CJ62: 12 | CK62: 12 | CL62: 12 | CM62: 12 | CN62: 13 | CO62: 20 | CP62: 25 | CQ62: 25 | CR62: 25 | CS62: 4550 | CU62: 4500 | CV62: - | CW62: 4599 | CX62: -1047 | CY62: -1000.59 | CZ62: -923.24 | DA62: -885.89 | DB62: -828.54 | DC62: -751.19 | DD62: -673.84 | DE62: -596.49 | DF62: -519.14 | DG62: -441.79 | DH62: -364.44 | DI62: -287.09 | DJ62: -209.74 | DK62: -132.39 | DL62: -207.3144 | DM62: -175.7934 | DN62: -134.2724 | DO62: -67.7514 | DP62: -27.8388 | DT62: Optimální | DU62: Nízká | DV62: 2000 | DW62: 2050 | DX62: 0 | DY62: 0 | DZ62: Ano | EA62: 0 | EB62: -13 | EC62: 0 | ED62: 0 | EE62: -197
B63: 4600 | C63: - | D63: 4699 | E63: 4650 | F63: 0 | G63: 5 | H63: 13 | I63: 21 | J63: 25 | K63: 25 | L63: 25 | M63: 25 | N63: 25 | O63: 25 | P63: 25 | Q63: 25 | R63: 25 | S63: 25 | T63: 25 | U63: 25 | V63: 25 | W63: 25 | X63: 25 | Z63: 4600 | AA63: - | AB63: 4699 | AD63: -13 | AE63: -13 | AF63: -13 | AG63: -13 | AH63: -13 | AI63: -13 | AJ63: -13 | AK63: -13 | AL63: -13 | AM63: -13 | AN63: -13 | AO63: -13 | AP63: -13 | AQ63: -13 | AR63: -13 | AS63: -6 | AT63: 0 | AU63: 0 | AV63: 0 | BV63: 4600 | BW63: - | BX63: 4699 | BZ63: 0 | CA63: 0 | CB63: 0 | CC63: 8 | CD63: 12 | CE63: 12 | CF63: 12 | CG63: 12 | CH63: 12 | CI63: 12 | CJ63: 12 | CK63: 12 | CL63: 12 | CM63: 12 | CN63: 12 | CO63: 19 | CP63: 25 | CQ63: 25 | CR63: 25 | CS63: 4650 | CU63: 4600 | CV63: - | CW63: 4699 | CX63: -1081 | CY63: -1033.57 | CZ63: -954.52 | DA63: -915.47 | DB63: -856.42 | DC63: -777.37 | DD63: -698.32 | DE63: -619.27 | DF63: -540.22 | DG63: -461.17 | DH63: -382.12 | DI63: -303.07 | DJ63: -224.02 | DK63: -144.97 | DL63: -216.4312 | DM63: -183.4482 | DN63: -145.4652 | DO63: -77.4822 | DP63: -36.6924 | DT63: Optimální | DU63: Nízká | DV63: 2000 | DW63: 2050 | DX63: 0 | DY63: 0 | DZ63: NE | EA63: 0 | EB63: -13 | EC63: 0 | ED63: 0 | EE63: -197
B64: 4700 | C64: - | D64: 4799 | E64: 4750 | F64: 0 | G64: 5 | H64: 13 | I64: 22 | J64: 25 | K64: 25 | L64: 25 | M64: 25 | N64: 25 | O64: 25 | P64: 25 | Q64: 25 | R64: 25 | S64: 25 | T64: 25 | U64: 25 | V64: 25 | W64: 25 | X64: 25 | Z64: 4700 | AA64: - | AB64: 4799 | AD64: -13 | AE64: -13 | AF64: -13 | AG64: -13 | AH64: -13 | AI64: -13 | AJ64: -13 | AK64: -13 | AL64: -13 | AM64: -13 | AN64: -13 | AO64: -13 | AP64: -13 | AQ64: -13 | AR64: -13 | AS64: -7 | AT64: 0 | AU64: 0 | AV64: 0 | BV64: 4700 | BW64: - | BX64: 4799 | BZ64: 0 | CA64: 0 | CB64: 0 | CC64: 9 | CD64: 12 | CE64: 12 | CF64: 12 | CG64: 12 | CH64: 12 | CI64: 12 | CJ64: 12 | CK64: 12 | CL64: 12 | CM64: 12 | CN64: 12 | CO64: 18 | CP64: 25 | CQ64: 25 | CR64: 25 | CS64: 4750 | CU64: 4700 | CV64: - | CW64: 4799 | CX64: -1115 | CY64: -1066.55 | CZ64: -985.8 | DA64: -950.05 | DB64: -884.3 | DC64: -803.55 | DD64: -722.8 | DE64: -642.05 | DF64: -561.3 | DG64: -480.55 | DH64: -399.8 | DI64: -319.05 | DJ64: -238.3 | DK64: -157.55 | DL64: -230.548 | DM64: -191.103 | DN64: -156.658 | DO64: -87.213 | DP64: -45.546 | DR64: Nadprůměr odpadů | DS64: Přeplněné popelnice | DT64: Velké | DU64: Velká | DV64: 1125 | DW64: 1150 | DX64: 75 | DY64: 73 | DZ64: Ano | EA64: 25 | EB64: 21 | EC64: 20 | ED64: 66 | EE64: 64
B65: 4800 | C65: - | D65: 4899 | E65: 4850 | F65: 0 | G65: 5 | H65: 14 | I65: 22 | J65: 25 | K65: 25 | L65: 25 | M65: 25 | N65: 25 | O65: 25 | P65: 25 | Q65: 25 | R65: 25 | S65: 25 | T65: 25 | U65: 25 | V65: 25 | W65: 25 | X65: 25 | Z65: 4800 | AA65: - | AB65: 4899 | AD65: -13 | AE65: -13 | AF65: -13 | AG65: -13 | AH65: -13 | AI65: -13 | AJ65: -13 | AK65: -13 | AL65: -13 | AM65: -13 | AN65: -13 | AO65: -13 | AP65: -13 | AQ65: -13 | AR65: -13 | AS65: -8 | AT65: -1 | AU65: 0 | AV65: 0 | BV65: 4800 | BW65: - | BX65: 4899 | BZ65: 0 | CA65: 0 | CB65: 1 | CC65: 9 | CD65: 12 | CE65: 12 | CF65: 12 | CG65: 12 | CH65: 12 | CI65: 12 | CJ65: 12 | CK65: 12 | CL65: 12 | CM65: 12 | CN65: 12 | CO65: 17 | CP65: 24 | CQ65: 25 | CR65: 25 | CS65: 4850 | CU65: 4800 | CV65: - | CW65: 4899 | CX65: -1149 | CY65: -1099.53 | CZ65: -1022.08 | DA65: -979.63 | DB65: -912.18 | DC65: -829.73 | DD65: -747.28 | DE65: -664.83 | DF65: -582.38 | DG65: -499.93 | DH65: -417.48 | DI65: -335.03 | DJ65: -252.58 | DK65: -170.13 | DL65: -244.6648 | DM65: -198.7578 | DN65: -162.8508 | DO65: -96.9438 | DP65: -54.3996 | DT65: Velké | DU65: Velká | DV65: 1125 | DW65: 1150 | DX65: 75 | DY65: 73 | DZ65: NE | EA65: 25 | EB65: 21 | EC65: 0 | ED65: 46 | EE65: 164
B66: 4900 | C66: - | D66: 4999 | E66: 4950 | F66: 0 | G66: 5 | H66: 14 | I66: 23 | J66: =ROUND(IF((($E66*J$14/100*$K$4)*(-1))>($F$5-50),($E66*J$14/100*$K$5)-((($E66*J$14/100*$K$4)*(-1))-($F$5-50)),($E66*J$14/100*$K$5))/($D$2-200)*100,0) -> 25 | K66: 25 | L66: 25 | M66: 25 | N66: 25 | O66: 25 | P66: 25 | Q66: 25 | R66: 25 | S66: 25 | T66: 25 | U66: 25 | V66: 25 | W66: 25 | X66: 25 | Z66: 4900 | AA66: - | AB66: 4999 | AD66: -13 | AE66: -13 | AF66: -13 | AG66: -13 | AH66: -13 | AI66: -13 | AJ66: -13 | AK66: -13 | AL66: -13 | AM66: -13 | AN66: -13 | AO66: -13 | AP66: -13 | AQ66: -13 | AR66: -13 | AS66: -8 | AT66: -1 | AU66: 0 | AV66: 0 | BV66: 4900 | BW66: - | BX66: 4999 | BZ66: 0 | CA66: 0 | CB66: 1 | CC66: 10 | CD66: 12 | CE66: 12 | CF66: 12 | CG66: 12 | CH66: 12 | CI66: 12 | CJ66: 12 | CK66: 12 | CL66: 12 | CM66: 12 | CN66: 12 | CO66: 17 | CP66: 24 | CQ66: 25 | CR66: 25 | CS66: 4950 | CU66: 4900 | CV66: - | CW66: 4999 | CX66: -1183 | CY66: -1132.51 | CZ66: -1053.36 | DA66: -1014.21 | DB66: -940.06 | DC66: -855.91 | DD66: -771.76 | DE66: -687.61 | DF66: -603.46 | DG66: -519.31 | DH66: -435.16 | DI66: -351.01 | DJ66: -266.86 | DK66: -182.71 | DL66: -258.7816 | DM66: -211.4126 | DN66: -174.0436 | DO66: -106.6746 | DP66: -63.2532 | DT66: Velké | DU66: Velká | DV66: 1125 | DW66: 1150 | DX66: >85 | DY66: 86 | DZ66: Ano | EA66: 25 | EB66: 18 | EC66: 0 | ED66: 43 | EE66: 230
B67: 5000 | C67: - | D67: 5099 | E67: 5050 | F67: 0 | G67: 5 | H67: 14 | I67: 23 | J67: 25 | K67: 25 | L67: 25 | M67: 25 | N67: 25 | O67: 25 | P67: 25 | Q67: 25 | R67: 25 | S67: 25 | T67: 25 | U67: 25 | V67: =ROUND(IF((($E67*V$14/100*$K$4)*(-1))>($F$5-50),($E67*V$14/100*$K$5)-((($E67*V$14/100*$K$4)*(-1))-($F$5-50)),($E67*V$14/100*$K$5))/($D$2-200)*100,0) -> 25 | W67: 25 | X67: 25 | Z67: 5000 | AA67: - | AB67: 5099 | AD67: -13 | AE67: -13 | AF67: -13 | AG67: -13 | AH67: -13 | AI67: -13 | AJ67: -13 | AK67: -13 | AL67: -13 | AM67: -13 | AN67: -13 | AO67: -13 | AP67: -13 | AQ67: -13 | AR67: -13 | AS67: -9 | AT67: =ROUND(IF(IF(IF((($E67*(100-AT$14)/100*$K$3)*(-1))<$F$4,$F$6,IF((($E67*(100-AT$14)/100*$K$3)*(-1))>=($F$4+$F$6),($E67*(100-AT$14)/100*$K$3)+($F$4+$F$6),($F$6-((($E67*(100-AT$14)/100*$K$3)*(-1))-$F$4))))>=0,IF((($E67*(100-AT$14)/100*$K$3)*(-1))<$F$4,$F$6,IF((($E67*(100-AT$14)/100*$K$3)*(-1))>=($F$4+$F$6),($E67*(100-AT$14)/100*$K$3)+($F$4+$F$6),($F$6-((($E67*(100-AT$14)/100*$K$3)*(-1))-$F$4)))),IF(IF((($E67*(100-AT$14)/100*$K$3)*(-1))<$F$4,$F$6,IF((($E67*(100-AT$14)/100*$K$3)*(-1))>=($F$4+$F$6),($E67*(100-AT$14)/100*$K$3)+($F$4+$F$6),($F$6-((($E67*(100-AT$14)/100*$K$3)*(-1))-$F$4))))*(-1)<=$F$7,0,$F$7+IF((($E67*(100-AT$14)/100*$K$3)*(-1))<$F$4,$F$6,IF((($E67*(100-AT$14)/100*$K$3)*(-1))>=($F$4+$F$6),($E67*(100-AT$14)/100*$K$3)+($F$4+$F$6),($F$6-((($E67*(100-AT$14)/100*$K$3)*(-1))-$F$4))))))*(-1)>$F$5,$F$5*(-1),IF(IF((($E67*(100-AT$14)/100*$K$3)*(-1))<$F$4,$F$6,IF((($E67*(100-AT$14)/100*$K$3)*(-1))>=($F$4+$F$6),($E67*(100-AT$14)/100*$K$3)+($F$4+$F$6),($F$6-((($E67*(100-AT$14)/100*$K$3)*(-1))-$F$4))))>=0,IF((($E67*(100-AT$14)/100*$K$3)*(-1))<$F$4,$F$6,IF((($E67*(100-AT$14)/100*$K$3)*(-1))>=($F$4+$F$6),($E67*(100-AT$14)/100*$K$3)+($F$4+$F$6),($F$6-((($E67*(100-AT$14)/100*$K$3)*(-1))-$F$4)))),IF(IF((($E67*(100-AT$14)/100*$K$3)*(-1))<$F$4,$F$6,IF((($E67*(100-AT$14)/100*$K$3)*(-1))>=($F$4+$F$6),($E67*(100-AT$14)/100*$K$3)+($F$4+$F$6),($F$6-((($E67*(100-AT$14)/100*$K$3)*(-1))-$F$4))))*(-1)<=$F$7,0,$F$7+IF((($E67*(100-AT$14)/100*$K$3)*(-1))<$F$4,$F$6,IF((($E67*(100-AT$14)/100*$K$3)*(-1))>=($F$4+$F$6),($E67*(100-AT$14)/100*$K$3)+($F$4+$F$6),($F$6-((($E67*(100-AT$14)/100*$K$3)*(-1))-$F$4)))))))/$D$2*100/2,0) -> -2 | AU67: 0 | AV67: 0 | BV67: 5000 | BW67: - | BX67: 5099 | BZ67: 0 | CA67: 0 | CB67: 1 | CC67: 10 | CD67: 12 | CE67: 12 | CF67: 12 | CG67: 12 | CH67: 12 | CI67: 12 | CJ67: 12 | CK67: 12 | CL67: 12 | CM67: 12 | CN67: 12 | CO67: 16 | CP67: 23 | CQ67: 25 | CR67: 25 | CS67: 5050 | CU67: 5000 | CV67: - | CW67: 5099 | CX67: -1217 | CY67: -1165.49 | CZ67: -1084.64 | DA67: -1043.79 | DB67: -967.94 | DC67: -882.09 | DD67: -796.24 | DE67: -710.39 | DF67: -624.54 | DG67: -538.69 | DH67: -452.84 | DI67: -366.99 | DJ67: -281.14 | DK67: -195.29 | DL67: -272.8984 | DM67: -219.0674 | DN67: -180.2364 | DO67: -116.4054 | DP67: -72.1068 | DT67: Velké | DU67: Velká | DV67: 1125 | DW67: 1150 | DX67: >85 | DY67: 86 | DZ67: NE | EA67: 25 | EB67: 18 | EC67: 0 | ED67: 43 | EE67: 230
B68: 5100 | C68: - | D68: 5199 | E68: 5150 | F68: 0 | G68: 5 | H68: 14 | I68: 23 | J68: 25 | K68: 25 | L68: 25 | M68: 25 | N68: 25 | O68: 25 | P68: 25 | Q68: 25 | R68: 25 | S68: 25 | T68: 25 | U68: 25 | V68: 25 | W68: 25 | X68: 25 | Z68: 5100 | AA68: - | AB68: 5199 | AD68: -13 | AE68: -13 | AF68: -13 | AG68: -13 | AH68: -13 | AI68: -13 | AJ68: -13 | AK68: -13 | AL68: -13 | AM68: -13 | AN68: -13 | AO68: -13 | AP68: -13 | AQ68: -13 | AR68: -13 | AS68: -10 | AT68: -3 | AU68: =ROUND(IF(IF(IF((($E68*(100-AU$14)/100*$K$3)*(-1))<$F$4,$F$6,IF((($E68*(100-AU$14)/100*$K$3)*(-1))>=($F$4+$F$6),($E68*(100-AU$14)/100*$K$3)+($F$4+$F$6),($F$6-((($E68*(100-AU$14)/100*$K$3)*(-1))-$F$4))))>=0,IF((($E68*(100-AU$14)/100*$K$3)*(-1))<$F$4,$F$6,IF((($E68*(100-AU$14)/100*$K$3)*(-1))>=($F$4+$F$6),($E68*(100-AU$14)/100*$K$3)+($F$4+$F$6),($F$6-((($E68*(100-AU$14)/100*$K$3)*(-1))-$F$4)))),IF(IF((($E68*(100-AU$14)/100*$K$3)*(-1))<$F$4,$F$6,IF((($E68*(100-AU$14)/100*$K$3)*(-1))>=($F$4+$F$6),($E68*(100-AU$14)/100*$K$3)+($F$4+$F$6),($F$6-((($E68*(100-AU$14)/100*$K$3)*(-1))-$F$4))))*(-1)<=$F$7,0,$F$7+IF((($E68*(100-AU$14)/100*$K$3)*(-1))<$F$4,$F$6,IF((($E68*(100-AU$14)/100*$K$3)*(-1))>=($F$4+$F$6),($E68*(100-AU$14)/100*$K$3)+($F$4+$F$6),($F$6-((($E68*(100-AU$14)/100*$K$3)*(-1))-$F$4))))))*(-1)>$F$5,$F$5*(-1),IF(IF((($E68*(100-AU$14)/100*$K$3)*(-1))<$F$4,$F$6,IF((($E68*(100-AU$14)/100*$K$3)*(-1))>=($F$4+$F$6),($E68*(100-AU$14)/100*$K$3)+($F$4+$F$6),($F$6-((($E68*(100-AU$14)/100*$K$3)*(-1))-$F$4))))>=0,IF((($E68*(100-AU$14)/100*$K$3)*(-1))<$F$4,$F$6,IF((($E68*(100-AU$14)/100*$K$3)*(-1))>=($F$4+$F$6),($E68*(100-AU$14)/100*$K$3)+($F$4+$F$6),($F$6-((($E68*(100-AU$14)/100*$K$3)*(-1))-$F$4)))),IF(IF((($E68*(100-AU$14)/100*$K$3)*(-1))<$F$4,$F$6,IF((($E68*(100-AU$14)/100*$K$3)*(-1))>=($F$4+$F$6),($E68*(100-AU$14)/100*$K$3)+($F$4+$F$6),($F$6-((($E68*(100-AU$14)/100*$K$3)*(-1))-$F$4))))*(-1)<=$F$7,0,$F$7+IF((($E68*(100-AU$14)/100*$K$3)*(-1))<$F$4,$F$6,IF((($E68*(100-AU$14)/100*$K$3)*(-1))>=($F$4+$F$6),($E68*(100-AU$14)/100*$K$3)+($F$4+$F$6),($F$6-((($E68*(100-AU$14)/100*$K$3)*(-1))-$F$4)))))))/$D$2*100,0) -> 0 | AV68: 0 | BV68: 5100 | BW68: - | BX68: 5199 | BZ68: 0 | CA68: 0 | CB68: 1 | CC68: 10 | CD68: 12 | CE68: 12 | CF68: 12 | CG68: 12 | CH68: 12 | CI68: 12 | CJ68: 12 | CK68: 12 | CL68: 12 | CM68: 12 | CN68: 12 | CO68: 15 | CP68: 22 | CQ68: 25 | CR68: 25 | CS68: 5150 | CU68: 5100 | CV68: - | CW68: 5199 | CX68: -1251 | CY68: -1198.47 | CZ68: -1115.92 | DA68: -1073.37 | DB68: -995.82 | DC68: -908.27 | DD68: -820.72 | DE68: -733.17 | DF68: -645.62 | DG68: -558.07 | DH68: -470.52 | DI68: -382.97 | DJ68: -295.42 | DK68: -207.87 | DL68: -287.0152 | DM68: -226.7222 | DN68: -186.4292 | DO68: -126.1362 | DP68: -80.9604 | DT68: Velké | DU68: Velká | DV68: 1125 | DW68: 1150 | DX68: 30 | DY68: 28 | DZ68: Ano | EA68: 11 | EB68: 0 | EC68: 0 | ED68: 11 | EE68: 163
B69: 5200 | C69: - | D69: 5299 | E69: 5250 | F69: 0 | G69: 6 | H69: 15 | I69: 24 | J69: 25 | K69: 25 | L69: 25 | M69: 25 | N69: 25 | O69: 25 | P69: 25 | Q69: 25 | R69: 25 | S69: 25 | T69: 25 | U69: 25 | V69: 25 | W69: 25 | X69: 25 | Z69: 5200 | AA69: - | AB69: 5299 | AD69: -13 | AE69: -13 | AF69: -13 | AG69: -13 | AH69: -13 | AI69: -13 | AJ69: -13 | AK69: -13 | AL69: -13 | AM69: -13 | AN69: -13 | AO69: -13 | AP69: -13 | AQ69: -13 | AR69: -13 | AS69: -11 | AT69: -3 | AU69: 0 | AV69: 0 | BV69: 5200 | BW69: - | BX69: 5299 | BZ69: 0 | CA69: 0 | CB69: 2 | CC69: 11 | CD69: 12 | CE69: 12 | CF69: 12 | CG69: 12 | CH69: 12 | CI69: 12 | CJ69: 12 | CK69: 12 | CL69: 12 | CM69: 12 | CN69: 12 | CO69: 14 | CP69: 22 | CQ69: 25 | CR69: 25 | CS69: 5250 | CU69: 5200 | CV69: - | CW69: 5299 | CX69: -1285 | CY69: -1231.45 | CZ69: -1152.2 | DA69: -1107.95 | DB69: -1023.7 | DC69: -934.45 | DD69: -845.2 | DE69: -755.95 | DF69: -666.7 | DG69: -577.45 | DH69: -488.2 | DI69: -398.95 | DJ69: -309.7 | DK69: -220.45 | DL69: -301.132 | DM69: -234.377 | DN69: -197.622 | DO69: -135.867 | DP69: -89.814 | DT69: Velké | DU69: Velká | DV69: 1125 | DW69: 1150 | DX69: 30 | DY69: 28 | DZ69: NE | EA69: 11 | EB69: 0 | EC69: 0 | ED69: 11 | EE69: 163
B70: 5300 | C70: - | D70: 5399 | E70: 5350 | F70: 0 | G70: 6 | H70: 15 | I70: 24 | J70: 25 | K70: 25 | L70: 25 | M70: 25 | N70: 25 | O70: 25 | P70: 25 | Q70: 25 | R70: 25 | S70: 25 | T70: 25 | U70: 25 | V70: 25 | W70: 25 | X70: 25 | Z70: 5300 | AA70: - | AB70: 5399 | AD70: -13 | AE70: -13 | AF70: -13 | AG70: -13 | AH70: -13 | AI70: -13 | AJ70: -13 | AK70: -13 | AL70: -13 | AM70: -13 | AN70: -13 | AO70: -13 | AP70: -13 | AQ70: -13 | AR70: -13 | AS70: -11 | AT70: -4 | AU70: 0 | AV70: 0 | BV70: 5300 | BW70: - | BX70: 5399 | BZ70: 0 | CA70: 0 | CB70: 2 | CC70: 11 | CD70: 12 | CE70: 12 | CF70: 12 | CG70: 12 | CH70: 12 | CI70: 12 | CJ70: 12 | CK70: 12 | CL70: 12 | CM70: 12 | CN70: 12 | CO70: 14 | CP70: 21 | CQ70: 25 | CR70: 25 | CS70: 5350 | CU70: 5300 | CV70: - | CW70: 5399 | CX70: -1319 | CY70: -1264.43 | CZ70: -1183.48 | DA70: -1137.53 | DB70: -1051.58 | DC70: -960.63 | DD70: -869.68 | DE70: -778.73 | DF70: -687.78 | DG70: -596.83 | DH70: -505.88 | DI70: -414.93 | DJ70: -323.98 | DK70: -233.03 | DL70: -315.2488 | DM70: -247.0318 | DN70: -203.8148 | DO70: -145.5978 | DP70: -98.6676 | DT70: Velké | DU70: Velká | DV70: 1125 | DW70: 1150 | DX70: 0 | DY70: 0 | DZ70: Ano | EA70: 0 | EB70: -3 | EC70: 0 | ED70: 0 | EE70: 109
B71: 5400 | C71: - | D71: 5499 | E71: 5450 | F71: 0 | G71: 6 | H71: 15 | I71: 25 | J71: 25 | K71: 25 | L71: 25 | M71: 25 | N71: 25 | O71: 25 | P71: 25 | Q71: 25 | R71: 25 | S71: 25 | T71: 25 | U71: 25 | V71: 25 | W71: 25 | X71: 25 | Z71: 5400 | AA71: - | AB71: 5499 | AD71: -13 | AE71: -13 | AF71: -13 | AG71: -13 | AH71: -13 | AI71: -13 | AJ71: -13 | AK71: -13 | AL71: -13 | AM71: -13 | AN71: -13 | AO71: -13 | AP71: -13 | AQ71: -13 | AR71: -13 | AS71: -12 | AT71: -4 | AU71: 0 | AV71: 0 | BV71: 5400 | BW71: - | BX71: 5499 | BZ71: 0 | CA71: 0 | CB71: 2 | CC71: 12 | CD71: 12 | CE71: 12 | CF71: 12 | CG71: 12 | CH71: 12 | CI71: 12 | CJ71: 12 | CK71: 12 | CL71: 12 | CM71: 12 | CN71: 12 | CO71: 13 | CP71: 21 | CQ71: 25 | CR71: 25 | CS71: 5450 | CU71: 5400 | CV71: - | CW71: 5499 | CX71: -1353 | CY71: -1297.41 | CZ71: -1214.76 | DA71: -1172.11 | DB71: -1079.46 | DC71: -986.81 | DD71: -894.16 | DE71: -801.51 | DF71: -708.86 | DG71: -616.21 | DH71: -523.56 | DI71: -430.91 | DJ71: -338.26 | DK71: -245.61 | DL71: -329.3656 | DM71: -254.6866 | DN71: -215.0076 | DO71: -155.3286 | DP71: -107.5212 | DT71: Velké | DU71: Velká | DV71: 1125 | DW71: 1150 | DX71: 0 | DY71: 0 | DZ71: NE | EA71: 0 | EB71: -3 | EC71: 0 | ED71: 0 | EE71: 109
B72: 5500 | C72: - | D72: 5599 | E72: 5550 | F72: 0 | G72: 6 | H72: 16 | I72: 25 | J72: 25 | K72: 25 | L72: 25 | M72: 25 | N72: 25 | O72: 25 | P72: 25 | Q72: 25 | R72: 25 | S72: 25 | T72: 25 | U72: 25 | V72: 25 | W72: 25 | X72: 25 | Z72: 5500 | AA72: - | AB72: 5599 | AD72: -13 | AE72: -13 | AF72: -13 | AG72: -13 | AH72: -13 | AI72: -13 | AJ72: -13 | AK72: -13 | AL72: -13 | AM72: -13 | AN72: -13 | AO72: -13 | AP72: -13 | AQ72: -13 | AR72: -13 | AS72: -13 | AT72: -5 | AU72: 0 | AV72: 0 | BV72: 5500 | BW72: - | BX72: 5599 | BZ72: 0 | CA72: 0 | CB72: 3 | CC72: 12 | CD72: 12 | CE72: 12 | CF72: 12 | CG72: 12 | CH72: 12 | CI72: 12 | CJ72: 12 | CK72: 12 | CL72: 12 | CM72: 12 | CN72: 12 | CO72: 12 | CP72: 20 | CQ72: 25 | CR72: 25 | CS72: 5550 | CU72: 5500 | CV72: - | CW72: 5599 | CX72: -1387 | CY72: -1330.39 | CZ72: -1251.04 | DA72: -1201.69 | DB72: -1107.34 | DC72: -1012.99 | DD72: -918.64 | DE72: -824.29 | DF72: -729.94 | DG72: -635.59 | DH72: -541.24 | DI72: -446.89 | DJ72: -352.54 | DK72: -258.19 | DL72: -343.4824 | DM72: -262.3414 | DN72: -221.2004 | DO72: -165.0594 | DP72: -116.3748 | DS72: Plné popelnice | DT72: Velké | DU72: Optimální | DV72: 1500 | DW72: 1550 | DX72: 75 | DY72: 73 | DZ72: Ano | EA72: 25 | EB72: 15 | EC72: 19 | ED72: 59 | EE72: 63
B73: 5600 | C73: - | D73: 5699 | E73: 5650 | F73: 0 | G73: 6 | H73: 16 | I73: 25 | J73: 25 | K73: 25 | L73: 25 | M73: 25 | N73: 25 | O73: 25 | P73: 25 | Q73: 25 | R73: 25 | S73: 25 | T73: 25 | U73: 25 | V73: 25 | W73: 25 | X73: 25 | Z73: 5600 | AA73: - | AB73: 5699 | AD73: -13 | AE73: -13 | AF73: -13 | AG73: -13 | AH73: -13 | AI73: -13 | AJ73: -13 | AK73: -13 | AL73: -13 | AM73: -13 | AN73: -13 | AO73: -13 | AP73: -13 | AQ73: -13 | AR73: -13 | AS73: -13 | AT73: -6 | AU73: 0 | AV73: 0 | BV73: 5600 | BW73: - | BX73: 5699 | BZ73: 0 | CA73: 0 | CB73: 3 | CC73: 12 | CD73: 12 | CE73: 12 | CF73: 12 | CG73: 12 | CH73: 12 | CI73: 12 | CJ73: 12 | CK73: 12 | CL73: 12 | CM73: 12 | CN73: 12 | CO73: 12 | CP73: 19 | CQ73: 25 | CR73: 25 | CS73: 5650 | CU73: 5600 | CV73: - | CW73: 5699 | CX73: -1421 | CY73: -1363.37 | CZ73: -1282.32 | DA73: -1231.27 | DB73: -1135.22 | DC73: -1039.17 | DD73: -943.12 | DE73: -847.07 | DF73: -751.02 | DG73: -654.97 | DH73: -558.92 | DI73: -462.87 | DJ73: -366.82 | DK73: -270.77 | DL73: -357.5992 | DM73: -274.9962 | DN73: -227.3932 | DO73: -174.7902 | DP73: -125.2284 | DT73: Velké | DU73: Optimální | DV73: 1500 | DW73: 1550 | DX73: 75 | DY73: 73 | DZ73: NE | EA73: 25 | EB73: 15 | EC73: 0 | ED73: 40 | EE73: 158
B74: 5700 | C74: - | D74: 5799 | E74: 5750 | F74: 0 | G74: 6 | H74: 16 | I74: 25 | J74: 25 | K74: 25 | L74: 25 | M74: 25 | N74: 25 | O74: 25 | P74: 25 | Q74: 25 | R74: 25 | S74: 25 | T74: 25 | U74: 25 | V74: 25 | W74: 25 | X74: 25 | Z74: 5700 | AA74: - | AB74: 5799 | AD74: -13 | AE74: -13 | AF74: -13 | AG74: -13 | AH74: -13 | AI74: -13 | AJ74: -13 | AK74: -13 | AL74: -13 | AM74: -13 | AN74: -13 | AO74: -13 | AP74: -13 | AQ74: -13 | AR74: -13 | AS74: -13 | AT74: -6 | AU74: 0 | AV74: 0 | BV74: 5700 | BW74: - | BX74: 5799 | BZ74: 0 | CA74: 0 | CB74: 3 | CC74: 12 | CD74: 12 | CE74: 12 | CF74: 12 | CG74: 12 | CH74: 12 | CI74: 12 | CJ74: 12 | CK74: 12 | CL74: 12 | CM74: 12 | CN74: 12 | CO74: 12 | CP74: 19 | CQ74: 25 | CR74: 25 | CS74: 5750 | CU74: 5700 | CV74: - | CW74: 5799 | CX74: -1455 | CY74: -1396.35 | CZ74: -1313.6 | DA74: -1260.85 | DB74: -1163.1 | DC74: -1065.35 | DD74: -967.6 | DE74: -869.85 | DF74: -772.1 | DG74: -674.35 | DH74: -576.6 | DI74: -478.85 | DJ74: -381.1 | DK74: -283.35 | DL74: -371.716 | DM74: -287.651 | DN74: -238.586 | DO74: -184.521 | DP74: -134.082 | DT74: Velké | DU74: Optimální | DV74: 1500 | DW74: 1550 | DX74: >85 | DY74: 86 | DZ74: Ano | EA74: 25 | EB74: 11 | EC74: 0 | ED74: 36 | EE74: 183
B75: 5800 | C75: - | D75: 5899 | E75: 5850 | F75: 0 | G75: 6 | H75: 16 | I75: 25 | J75: 25 | K75: 25 | L75: 25 | M75: 25 | N75: 25 | O75: 25 | P75: 25 | Q75: 25 | R75: 25 | S75: 25 | T75: 25 | U75: 25 | V75: 25 | W75: 25 | X75: 25 | Z75: 5800 | AA75: - | AB75: 5899 | AD75: -13 | AE75: -13 | AF75: -13 | AG75: -13 | AH75: -13 | AI75: -13 | AJ75: -13 | AK75: -13 | AL75: -13 | AM75: -13 | AN75: -13 | AO75: -13 | AP75: -13 | AQ75: -13 | AR75: -13 | AS75: -13 | AT75: -7 | AU75: 0 | AV75: 0 | BV75: 5800 | BW75: - | BX75: 5899 | BZ75: 0 | CA75: 0 | CB75: 3 | CC75: 12 | CD75: 12 | CE75: 12 | CF75: 12 | CG75: 12 | CH75: 12 | CI75: 12 | CJ75: 12 | CK75: 12 | CL75: 12 | CM75: 12 | CN75: 12 | CO75: 12 | CP75: 18 | CQ75: 25 | CR75: 25 | CS75: 5850 | CU75: 5800 | CV75: - | CW75: 5899 | CX75: -1489 | CY75: -1429.33 | CZ75: -1344.88 | DA75: -1290.43 | DB75: -1190.98 | DC75: -1091.53 | DD75: -992.08 | DE75: -892.63 | DF75: -793.18 | DG75: -693.73 | DH75: -594.28 | DI75: -494.83 | DJ75: -395.38 | DK75: -295.93 | DL75: -385.8328 | DM75: -300.3058 | DN75: -244.7788 | DO75: -194.2518 | DP75: -142.9356 | DT75: Velké | DU75: Optimální | DV75: 1500 | DW75: 1550 | DX75: >85 | DY75: 86 | DZ75: NE | EA75: 25 | EB75: 11 | EC75: 0 | ED75: 36 | EE75: 183
B76: 5900 | C76: - | D76: 5999 | E76: 5950 | F76: 0 | G76: 6 | H76: 17 | I76: 25 | J76: 25 | K76: 25 | L76: 25 | M76: 25 | N76: 25 | O76: 25 | P76: 25 | Q76: 25 | R76: 25 | S76: 25 | T76: 25 | U76: 25 | V76: 25 | W76: 25 | X76: 25 | Z76: 5900 | AA76: - | AB76: 5999 | AD76: -13 | AE76: -13 | AF76: -13 | AG76: -13 | AH76: -13 | AI76: -13 | AJ76: -13 | AK76: -13 | AL76: -13 | AM76: -13 | AN76: -13 | AO76: -13 | AP76: -13 | AQ76: -13 | AR76: -13 | AS76: -13 | AT76: -8 | AU76: 0 | AV76: 0 | BV76: 5900 | BW76: - | BX76: 5999 | BZ76: 0 | CA76: 0 | CB76: 4 | CC76: 12 | CD76: 12 | CE76: 12 | CF76: 12 | CG76: 12 | CH76: 12 | CI76: 12 | CJ76: 12 | CK76: 12 | CL76: 12 | CM76: 12 | CN76: 12 | CO76: 12 | CP76: 17 | CQ76: 25 | CR76: 25 | CS76: 5950 | CU76: 5900 | CV76: - | CW76: 5999 | CX76: -1523 | CY76: -1462.31 | CZ76: -1381.16 | DA76: -1320.01 | DB76: -1218.86 | DC76: -1117.71 | DD76: -1016.56 | DE76: -915.41 | DF76: -814.26 | DG76: -713.11 | DH76: -611.96 | DI76: -510.81 | DJ76: -409.66 | DK76: -308.51 | DL76: -399.9496 | DM76: -312.9606 | DN76: -250.9716 | DO76: -203.9826 | DP76: -151.7892 | DT76: Velké | DU76: Optimální | DV76: 1500 | DW76: 1550 | DX76: 30 | DY76: 28 | DZ76: Ano | EA76: 15 | EB76: -2 | EC76: 0 | ED76: 13 | EE76: 56
B77: 6000 | C77: - | D77: 6099 | E77: 6050 | F77: 0 | G77: 6 | H77: 17 | I77: 25 | J77: 25 | K77: 25 | L77: 25 | M77: 25 | N77: 25 | O77: 25 | P77: 25 | Q77: 25 | R77: 25 | S77: 25 | T77: 25 | U77: 25 | V77: 25 | W77: 25 | X77: 25 | Z77: 6000 | AA77: - | AB77: 6099 | AD77: -13 | AE77: -13 | AF77: -13 | AG77: -13 | AH77: -13 | AI77: -13 | AJ77: -13 | AK77: -13 | AL77: -13 | AM77: -13 | AN77: -13 | AO77: -13 | AP77: -13 | AQ77: -13 | AR77: -13 | AS77: -13 | AT77: -8 | AU77: 0 | AV77: 0 | BV77: 6000 | BW77: - | BX77: 6099 | BZ77: 0 | CA77: 0 | CB77: 4 | CC77: 12 | CD77: 12 | CE77: 12 | CF77: 12 | CG77: 12 | CH77: 12 | CI77: 12 | CJ77: 12 | CK77: 12 | CL77: 12 | CM77: 12 | CN77: 12 | CO77: 12 | CP77: 17 | CQ77: 25 | CR77: 25 | CS77: 6050 | CU77: 6000 | CV77: - | CW77: 6099 | CX77: -1557 | CY77: -1495.29 | CZ77: -1412.44 | DA77: -1349.59 | DB77: -1246.74 | DC77: -1143.89 | DD77: -1041.04 | DE77: -938.19 | DF77: -835.34 | DG77: -732.49 | DH77: -629.64 | DI77: -526.79 | DJ77: -423.94 | DK77: -321.09 | DL77: -414.0664 | DM77: -325.6154 | DN77: -262.1644 | DO77: -213.7134 | DP77: -160.6428 | DT77: Velké | DU77: Optimální | DV77: 1500 | DW77: 1550 | DX77: 30 | DY77: 28 | DZ77: NE | EA77: 15 | EB77: -2 | EC77: 0 | ED77: 13 | EE77: 56
B78: 6100 | C78: - | D78: 6199 | E78: 6150 | F78: 0 | G78: 6 | H78: 17 | I78: 25 | J78: 25 | K78: 25 | L78: 25 | M78: 25 | N78: 25 | O78: 25 | P78: 25 | Q78: 25 | R78: 25 | S78: 25 | T78: 25 | U78: 25 | V78: 25 | W78: 25 | X78: 25 | Z78: 6100 | AA78: - | AB78: 6199 | AD78: -13 | AE78: -13 | AF78: -13 | AG78: -13 | AH78: -13 | AI78: -13 | AJ78: -13 | AK78: -13 | AL78: -13 | AM78: -13 | AN78: -13 | AO78: -13 | AP78: -13 | AQ78: -13 | AR78: -13 | AS78: -13 | AT78: -9 | AU78: 0 | AV78: 0 | BV78: 6100 | BW78: - | BX78: 6199 | BZ78: 0 | CA78: 0 | CB78: 4 | CC78: 12 | CD78: 12 | CE78: 12 | CF78: 12 | CG78: 12 | CH78: 12 | CI78: 12 | CJ78: 12 | CK78: 12 | CL78: 12 | CM78: 12 | CN78: 12 | CO78: 12 | CP78: 16 | CQ78: 25 | CR78: 25 | CS78: 6150 | CU78: 6100 | CV78: - | CW78: 6199 | CX78: -1591 | CY78: -1528.27 | CZ78: -1443.72 | DA78: -1379.17 | DB78: -1274.62 | DC78: -1170.07 | DD78: -1065.52 | DE78: -960.97 | DF78: -856.42 | DG78: -751.87 | DH78: -647.32 | DI78: -542.77 | DJ78: -438.22 | DK78: -333.67 | DL78: -428.1832 | DM78: -338.2702 | DN78: -268.3572 | DO78: -223.4442 | DP78: -169.4964 | DT78: Velké | DU78: Optimální | DV78: 1500 | DW78: 1550 | DX78: 0 | DY78: 0 | DZ78: Ano | EA78: 0 | EB78: -13 | EC78: 0 | ED78: 0 | EE78: -27
B79: 6200 | C79: - | D79: 6299 | E79: 6250 | F79: 0 | G79: 7 | H79: 18 | I79: 25 | J79: 25 | K79: 25 | L79: 25 | M79: 25 | N79: 25 | O79: 25 | P79: 25 | Q79: 25 | R79: 25 | S79: 25 | T79: 25 | U79: 25 | V79: 25 | W79: 25 | X79: 25 | Z79: 6200 | AA79: - | AB79: 6299 | AD79: -13 | AE79: -13 | AF79: -13 | AG79: -13 | AH79: -13 | AI79: -13 | AJ79: -13 | AK79: -13 | AL79: -13 | AM79: -13 | AN79: -13 | AO79: -13 | AP79: -13 | AQ79: -13 | AR79: -13 | AS79: -13 | AT79: -9 | AU79: -1 | AV79: 0 | BV79: 6200 | BW79: - | BX79: 6299 | BZ79: 0 | CA79: 0 | CB79: 5 | CC79: 12 | CD79: 12 | CE79: 12 | CF79: 12 | CG79: 12 | CH79: 12 | CI79: 12 | CJ79: 12 | CK79: 12 | CL79: 12 | CM79: 12 | CN79: 12 | CO79: 12 | CP79: 16 | CQ79: 24 | CR79: 25 | CS79: 6250 | CU79: 6200 | CV79: - | CW79: 6299 | CX79: -1625 | CY79: -1561.25 | CZ79: -1480 | DA79: -1408.75 | DB79: -1302.5 | DC79: -1196.25 | DD79: -1090 | DE79: -983.75 | DF79: -877.5 | DG79: -771.25 | DH79: -665 | DI79: -558.75 | DJ79: -452.5 | DK79: -346.25 | DL79: -442.3 | DM79: -350.925 | DN79: -279.55 | DO79: -228.175 | DP79: -178.35 | DT79: Velké | DU79: Optimální | DV79: 1500 | DW79: 1550 | DX79: 0 | DY79: 0 | DZ79: NE | EA79: 0 | EB79: -13 | EC79: 0 | ED79: 0 | EE79: -27
B80: 6300 | C80: - | D80: 6399 | E80: 6350 | F80: 0 | G80: 7 | H80: 18 | I80: 25 | J80: 25 | K80: 25 | L80: 25 | M80: 25 | N80: 25 | O80: 25 | P80: 25 | Q80: 25 | R80: 25 | S80: 25 | T80: 25 | U80: 25 | V80: 25 | W80: 25 | X80: 25 | Z80: 6300 | AA80: - | AB80: 6399 | AD80: -13 | AE80: -13 | AF80: -13 | AG80: -13 | AH80: -13 | AI80: -13 | AJ80: -13 | AK80: -13 | AL80: -13 | AM80: -13 | AN80: -13 | AO80: -13 | AP80: -13 | AQ80: -13 | AR80: -13 | AS80: -13 | AT80: -10 | AU80: -1 | AV80: 0 | BV80: 6300 | BW80: - | BX80: 6399 | BZ80: 0 | CA80: 0 | CB80: 5 | CC80: 12 | CD80: 12 | CE80: 12 | CF80: 12 | CG80: 12 | CH80: 12 | CI80: 12 | CJ80: 12 | CK80: 12 | CL80: 12 | CM80: 12 | CN80: 12 | CO80: 12 | CP80: 15 | CQ80: 24 | CR80: 25 | CS80: 6350 | CU80: 6300 | CV80: - | CW80: 6399 | CX80: -1659 | CY80: -1594.23 | CZ80: -1511.28 | DA80: -1438.33 | DB80: -1330.38 | DC80: -1222.43 | DD80: -1114.48 | DE80: -1006.53 | DF80: -898.58 | DG80: -790.63 | DH80: -682.68 | DI80: -574.73 | DJ80: -466.78 | DK80: -358.83 | DL80: -456.4168 | DM80: -363.5798 | DN80: -285.7428 | DO80: -237.9058 | DP80: -187.2036 | DS80: Poloprázdné popelnice | DT80: Velké | DU80: Nízká | DV80: 3000 | DW80: 3050 | DX80: 75 | DY80: 73 | DZ80: Ano | EA80: =ROUND(INDEX(F$16:X$117,MATCH(DW80,$E$16:$E$117,0),MATCH(DY80,F$14:X$14,0)),0) -> 25 | EB80: =ROUND(INDEX(AD$16:AV$117,MATCH(DW80,$E$16:$E$117,0),MATCH(DY80,AD$14:AV$14,0)),0) -> 0 | EC80: =IF(DZ80="NE",0,ROUND(INDEX(BB$16:BT$117,MATCH(DW80,$E$16:$E$117,0),MATCH(DY80,BB$14:BT$14,0)),0)) -> 0 | ED80: 25 | EE80: -11
B81: 6400 | C81: - | D81: 6499 | E81: 6450 | F81: 0 | G81: 7 | H81: 18 | I81: 25 | J81: 25 | K81: 25 | L81: 25 | M81: 25 | N81: 25 | O81: 25 | P81: 25 | Q81: 25 | R81: 25 | S81: 25 | T81: 25 | U81: 25 | V81: 25 | W81: 25 | X81: 25 | Z81: 6400 | AA81: - | AB81: 6499 | AD81: -13 | AE81: -13 | AF81: -13 | AG81: -13 | AH81: -13 | AI81: -13 | AJ81: -13 | AK81: -13 | AL81: -13 | AM81: -13 | AN81: -13 | AO81: -13 | AP81: -13 | AQ81: -13 | AR81: -13 | AS81: -13 | AT81: -11 | AU81: -2 | AV81: 0 | BV81: 6400 | BW81: - | BX81: 6499 | BZ81: 0 | CA81: 0 | CB81: 5 | CC81: 12 | CD81: 12 | CE81: 12 | CF81: 12 | CG81: 12 | CH81: 12 | CI81: 12 | CJ81: 12 | CK81: 12 | CL81: 12 | CM81: 12 | CN81: 12 | CO81: 12 | CP81: 14 | CQ81: =IF((W81+AU81+BS81)<0,0,(W81+AU81+BS81)) -> 23 | CR81: 25 | CS81: 6450 | CU81: 6400 | CV81: - | CW81: 6499 | CX81: -1693 | CY81: -1627.21 | CZ81: -1542.56 | DA81: -1467.91 | DB81: -1358.26 | DC81: -1248.61 | DD81: -1138.96 | DE81: -1029.31 | DF81: -919.66 | DG81: -810.01 | DH81: -700.36 | DI81: -590.71 | DJ81: -481.06 | DK81: -371.41 | DL81: -470.5336 | DM81: -376.2346 | DN81: -291.9356 | DO81: -242.6366 | DP81: -196.0572 | DT81: Velké | DU81: Nízká | DV81: 3000 | DW81: 3050 | DX81: 75 | DY81: 73 | DZ81: NE | EA81: 25 | EB81: 0 | EC81: 0 | ED81: 25 | EE81: =IF(DZ81="NE",ROUND(INDEX(CX$16:DP$117,MATCH(DW81,$E$16:$E$117,0),MATCH(DY81,CX$14:DP$14,0)),0)+((ED80-ED81)/100*$DC$4),ROUND(INDEX(CX$16:DP$117,MATCH(DW81,$E$16:$E$117,0),MATCH(DY81,CX$14:DP$14,0)),0)) -> -11
X82: Příloha č. 5 k OZV č. …/2013 Název obec/město | AV82: Příloha č. 6 k OZV č. …/2013 Název obec/město | CR82: Příloha č. ??? k OZV č. …/2013 Název obec/město | DT82: Velké | DU82: Nízká | DV82: 3000 | DW82: 3050 | DX82: >85 | DY82: 86 | DZ82: Ano | EA82: 25 | EB82: 0 | EC82: 0 | ED82: 25 | EE82: 105
A83: Maximální roční bonusy za třídění odpadů (zkráceně BT) - procentuální úleva na poplatku placeného na následující rok | Y83: Maximální roční bonusy za efektivní využívání nádob (BV)-procentuální úleva na poplatku placeného na následující rok | BU83: Součet maximálních ročních bonusů (BT + BV + BS) | DT83: Velké | DU83: Nízká | DV83: 3000 | DW83: 3050 | DX83: >85 | DY83: 86 | DZ83: NE | EA83: 25 | EB83: 0 | EC83: 0 | ED83: 25 | EE83: 105
DT84: Velké | DU84: Nízká | DV84: 3000 | DW84: 3050 | DX84: 30 | DY84: 28 | DZ84: Ano | EA84: 25 | EB84: -13 | EC84: 0 | ED84: 12 | EE84: -307
A85: Bonus za třídění odpadů je udělen do výše 23% za plast, 20% za papír, 30% za bioodpad, 13% za sklo, 8% za textil, 2% za nápojový karton, 2% za jedlý olej a tuk a 2% za drobné elektrozařízení z hodnoty maximálního bonusu uvedeného v této tabulce. | F85: Procentuální zastoupení objemu obsloužených nádob na plast a na papír v celkovém objemu obsloužených nádob | Y85: Bonus za efektivní využívání sběrných nádob je udělen do výše 100% z hodnoty maximálního bonusu uvedeného v této tabulce. | AD85: Procentuální zastoupení objemu obsloužených nádob na plast a na papír v celkovém objemu obsloužených nádob | BU85: Záporná hodnota součtu bonusů (BT + BV + BS) je nahrazena nulou. | BZ85: Procentuální zastoupení objemu obsloužených nádob na plast a na papír v celkovém objemu obsloužených nádob | CX85: Procentuální zastoupení objemu obsloužených nádob na plast a na papír v celkovém objemu obsloužených nádob | DT85: Velké | DU85: Nízká | DV85: 3000 | DW85: 3050 | DX85: 30 | DY85: 28 | DZ85: NE | EA85: 25 | EB85: -13 | EC85: 0 | ED85: 12 | EE85: -307
F86: ="0 %" -> 0 % | G86: ="1-5 %" -> 1-5 % | H86: ="6-10 %" -> 6-10 % | I86: ="11-15 %" -> 11-15 % | J86: ="16-20 %" -> 16-20 % | K86: ="21-25 %" -> 21-25 % | L86: ="26-30 %" -> 26-30 % | M86: ="31-35 %" -> 31-35 % | N86: ="36-40 %" -> 36-40 % | O86: ="41-45 %" -> 41-45 % | P86: ="46-50 %" -> 46-50 % | Q86: ="51-55 %" -> 51-55 % | R86: ="56-60 %" -> 56-60 % | S86: ="61-65 %" -> 61-65 % | T86: ="66-70 %" -> 66-70 % | U86: ="71-75 %" -> 71-75 % | V86: ="76-80 %" -> 76-80 % | W86: ="81-85 %" -> 81-85 % | X86: ="více jak 85 %" -> více jak 85 % | AD86: ="0 %" -> 0 % | AE86: ="1-5 %" -> 1-5 % | AF86: ="6-10 %" -> 6-10 % | AG86: ="11-15 %" -> 11-15 % | AH86: ="16-20 %" -> 16-20 % | AI86: ="21-25 %" -> 21-25 % | AJ86: ="26-30 %" -> 26-30 % | AK86: ="31-35 %" -> 31-35 % | AL86: ="36-40 %" -> 36-40 % | AM86: ="41-45 %" -> 41-45 % | AN86: ="46-50 %" -> 46-50 % | AO86: ="51-55 %" -> 51-55 % | AP86: ="56-60 %" -> 56-60 % | AQ86: ="61-65 %" -> 61-65 % | AR86: ="66-70 %" -> 66-70 % | AS86: ="71-75 %" -> 71-75 % | AT86: ="76-80 %" -> 76-80 % | AU86: ="81-85 %" -> 81-85 % | AV86: ="více jak 85 %" -> více jak 85 % | BZ86: ="0 %" -> 0 % | CA86: ="1-5 %" -> 1-5 % | CB86: ="6-10 %" -> 6-10 % | CC86: ="11-15 %" -> 11-15 % | CD86: ="16-20 %" -> 16-20 % | CE86: ="21-25 %" -> 21-25 % | CF86: ="26-30 %" -> 26-30 % | CG86: ="31-35 %" -> 31-35 % | CH86: ="36-40 %" -> 36-40 % | CI86: ="41-45 %" -> 41-45 % | CJ86: ="46-50 %" -> 46-50 % | CK86: ="51-55 %" -> 51-55 % | CL86: ="56-60 %" -> 56-60 % | CM86: ="61-65 %" -> 61-65 % | CN86: ="66-70 %" -> 66-70 % | CO86: ="71-75 %" -> 71-75 % | CP86: ="76-80 %" -> 76-80 % | CQ86: ="81-85 %" -> 81-85 % | CR86: ="více jak 85 %" -> více jak 85 % | CX86: ="0 %" -> 0 % | CY86: ="1-5 %" -> 1-5 % | CZ86: ="6-10 %" -> 6-10 % | DA86: ="11-15 %" -> 11-15 % | DB86: ="16-20 %" -> 16-20 % | DC86: ="21-25 %" -> 21-25 % | DD86: ="26-30 %" -> 26-30 % | DE86: ="31-35 %" -> 31-35 % | DF86: ="36-40 %" -> 36-40 % | DG86: ="41-45 %" -> 41-45 % | DH86: ="46-50 %" -> 46-50 % | DI86: ="51-55 %" -> 51-55 % | DJ86: ="56-60 %" -> 56-60 % | DK86: ="61-65 %" -> 61-65 % | DL86: ="66-70 %" -> 66-70 % | DM86: ="71-75 %" -> 71-75 % | DN86: ="76-80 %" -> 76-80 % | DO86: ="81-85 %" -> 81-85 % | DP86: ="více jak 85 %" -> více jak 85 % | DT86: Velké | DU86: Nízká | DV86: 3000 | DW86: 3050 | DX86: 0 | DY86: 0 | DZ86: Ano | EA86: 0 | EB86: -13 | EC86: 0 | ED86: 0 | EE86: -537
F87: "Třídí málo" "Třídí hodně" | AD87: "Třídí málo" "Třídí hodně" | BZ87: "Třídí málo" "Třídí hodně" | CX87: "Třídí málo" "Třídí hodně" | DT87: Velké | DU87: Nízká | DV87: 3000 | DW87: 3050 | DX87: 0 | DY87: 0 | DZ87: NE | EA87: 0 | EB87: -13 | EC87: 0 | ED87: 0 | EE87: -537
A88: Roční celkový objem obsloužených nádob přepočtený na jednoho účastníka systému užívajícího dané nádoby (litry/účastník systému/rok) | B88: 6500 | C88: - | D88: 6599 | E88: 6550 | F88: =ROUND(IF((($E88*F$14/100*$K$4)*(-1))>($F$5-50),($E88*F$14/100*$K$5)-((($E88*F$14/100*$K$4)*(-1))-($F$5-50)),($E88*F$14/100*$K$5))/($D$2-200)*100,0) -> 0 | G88: =ROUND(IF((($E88*G$14/100*$K$4)*(-1))>($F$5-50),($E88*G$14/100*$K$5)-((($E88*G$14/100*$K$4)*(-1))-($F$5-50)),($E88*G$14/100*$K$5))/($D$2-200)*100,0) -> 7 | H88: 18 | I88: 25 | J88: 25 | K88: 25 | L88: 25 | M88: 25 | N88: 25 | O88: 25 | P88: 25 | Q88: 25 | R88: 25 | S88: 25 | T88: 25 | U88: 25 | V88: 25 | W88: 25 | X88: 25 | Y88: Roční celkový objem obsloužených nádob přepočtený na jednoho účastníka systému užívajícího dané nádoby (litry/účastník systému/rok) | Z88: 6500 | AA88: - | AB88: 6599 | AD88: =ROUND(IF(IF(IF((($E88*(100-AD$14)/100*$K$3)*(-1))<$F$4,$F$6,IF((($E88*(100-AD$14)/100*$K$3)*(-1))>=($F$4+$F$6),($E88*(100-AD$14)/100*$K$3)+($F$4+$F$6),($F$6-((($E88*(100-AD$14)/100*$K$3)*(-1))-$F$4))))>=0,IF((($E88*(100-AD$14)/100*$K$3)*(-1))<$F$4,$F$6,IF((($E88*(100-AD$14)/100*$K$3)*(-1))>=($F$4+$F$6),($E88*(100-AD$14)/100*$K$3)+($F$4+$F$6),($F$6-((($E88*(100-AD$14)/100*$K$3)*(-1))-$F$4)))),IF(IF((($E88*(100-AD$14)/100*$K$3)*(-1))<$F$4,$F$6,IF((($E88*(100-AD$14)/100*$K$3)*(-1))>=($F$4+$F$6),($E88*(100-AD$14)/100*$K$3)+($F$4+$F$6),($F$6-((($E88*(100-AD$14)/100*$K$3)*(-1))-$F$4))))*(-1)<=$F$7,0,$F$7+IF((($E88*(100-AD$14)/100*$K$3)*(-1))<$F$4,$F$6,IF((($E88*(100-AD$14)/100*$K$3)*(-1))>=($F$4+$F$6),($E88*(100-AD$14)/100*$K$3)+($F$4+$F$6),($F$6-((($E88*(100-AD$14)/100*$K$3)*(-1))-$F$4))))))*(-1)>$F$5,$F$5*(-1),IF(IF((($E88*(100-AD$14)/100*$K$3)*(-1))<$F$4,$F$6,IF((($E88*(100-AD$14)/100*$K$3)*(-1))>=($F$4+$F$6),($E88*(100-AD$14)/100*$K$3)+($F$4+$F$6),($F$6-((($E88*(100-AD$14)/100*$K$3)*(-1))-$F$4))))>=0,IF((($E88*(100-AD$14)/100*$K$3)*(-1))<$F$4,$F$6,IF((($E88*(100-AD$14)/100*$K$3)*(-1))>=($F$4+$F$6),($E88*(100-AD$14)/100*$K$3)+($F$4+$F$6),($F$6-((($E88*(100-AD$14)/100*$K$3)*(-1))-$F$4)))),IF(IF((($E88*(100-AD$14)/100*$K$3)*(-1))<$F$4,$F$6,IF((($E88*(100-AD$14)/100*$K$3)*(-1))>=($F$4+$F$6),($E88*(100-AD$14)/100*$K$3)+($F$4+$F$6),($F$6-((($E88*(100-AD$14)/100*$K$3)*(-1))-$F$4))))*(-1)<=$F$7,0,$F$7+IF((($E88*(100-AD$14)/100*$K$3)*(-1))<$F$4,$F$6,IF((($E88*(100-AD$14)/100*$K$3)*(-1))>=($F$4+$F$6),($E88*(100-AD$14)/100*$K$3)+($F$4+$F$6),($F$6-((($E88*(100-AD$14)/100*$K$3)*(-1))-$F$4)))))))/$D$2*100/2,0) -> -13 | AE88: =ROUND(IF(IF(IF((($E88*(100-AE$14)/100*$K$3)*(-1))<$F$4,$F$6,IF((($E88*(100-AE$14)/100*$K$3)*(-1))>=($F$4+$F$6),($E88*(100-AE$14)/100*$K$3)+($F$4+$F$6),($F$6-((($E88*(100-AE$14)/100*$K$3)*(-1))-$F$4))))>=0,IF((($E88*(100-AE$14)/100*$K$3)*(-1))<$F$4,$F$6,IF((($E88*(100-AE$14)/100*$K$3)*(-1))>=($F$4+$F$6),($E88*(100-AE$14)/100*$K$3)+($F$4+$F$6),($F$6-((($E88*(100-AE$14)/100*$K$3)*(-1))-$F$4)))),IF(IF((($E88*(100-AE$14)/100*$K$3)*(-1))<$F$4,$F$6,IF((($E88*(100-AE$14)/100*$K$3)*(-1))>=($F$4+$F$6),($E88*(100-AE$14)/100*$K$3)+($F$4+$F$6),($F$6-((($E88*(100-AE$14)/100*$K$3)*(-1))-$F$4))))*(-1)<=$F$7,0,$F$7+IF((($E88*(100-AE$14)/100*$K$3)*(-1))<$F$4,$F$6,IF((($E88*(100-AE$14)/100*$K$3)*(-1))>=($F$4+$F$6),($E88*(100-AE$14)/100*$K$3)+($F$4+$F$6),($F$6-((($E88*(100-AE$14)/100*$K$3)*(-1))-$F$4))))))*(-1)>$F$5,$F$5*(-1),IF(IF((($E88*(100-AE$14)/100*$K$3)*(-1))<$F$4,$F$6,IF((($E88*(100-AE$14)/100*$K$3)*(-1))>=($F$4+$F$6),($E88*(100-AE$14)/100*$K$3)+($F$4+$F$6),($F$6-((($E88*(100-AE$14)/100*$K$3)*(-1))-$F$4))))>=0,IF((($E88*(100-AE$14)/100*$K$3)*(-1))<$F$4,$F$6,IF((($E88*(100-AE$14)/100*$K$3)*(-1))>=($F$4+$F$6),($E88*(100-AE$14)/100*$K$3)+($F$4+$F$6),($F$6-((($E88*(100-AE$14)/100*$K$3)*(-1))-$F$4)))),IF(IF((($E88*(100-AE$14)/100*$K$3)*(-1))<$F$4,$F$6,IF((($E88*(100-AE$14)/100*$K$3)*(-1))>=($F$4+$F$6),($E88*(100-AE$14)/100*$K$3)+($F$4+$F$6),($F$6-((($E88*(100-AE$14)/100*$K$3)*(-1))-$F$4))))*(-1)<=$F$7,0,$F$7+IF((($E88*(100-AE$14)/100*$K$3)*(-1))<$F$4,$F$6,IF((($E88*(100-AE$14)/100*$K$3)*(-1))>=($F$4+$F$6),($E88*(100-AE$14)/100*$K$3)+($F$4+$F$6),($F$6-((($E88*(100-AE$14)/100*$K$3)*(-1))-$F$4)))))))/$D$2*100/2,0) -> -13 | AF88: -13 | AG88: -13 | AH88: -13 | AI88: -13 | AJ88: -13 | AK88: -13 | AL88: -13 | AM88: -13 | AN88: -13 | AO88: -13 | AP88: -13 | AQ88: -13 | AR88: -13 | AS88: -13 | AT88: -11 | AU88: -2 | AV88: 0 | BU88: Roční celkový objem obsloužených nádob přepočtený na jednoho účastníka systému užívajícího dané nádoby (litry/účastník systému/rok) | BV88: 6500 | BW88: - | BX88: 6599 | BZ88: =IF((F88+AD88+BB88)<0,0,(F88+AD88+BB88)) -> 0 | CA88: 0 | CB88: 5 | CC88: 12 | CD88: 12 | CE88: 12 | CF88: 12 | CG88: 12 | CH88: 12 | CI88: 12 | CJ88: 12 | CK88: 12 | CL88: 12 | CM88: 12 | CN88: 12 | CO88: 12 | CP88: 14 | CQ88: 23 | CR88: 25 | CS88: =E88 -> 6550 | CT88: Roční celkový objem obsloužených nádob přepočtený na jednoho účastníka systému užívajícího dané nádoby (litry/účastník systému/rok) | CU88: 6500 | CV88: - | CW88: 6599 | CX88: =$DC$4-(BZ88/100*$DC$4)+($CS88*(100-CX$14)/100*$DH$3)+($CS88*(CX$14)/100*$DH$4)+($CS88*(CX$14)/100*$DH$5) -> -1727 | CY88: =$DC$4-(CA88/100*$DC$4)+($CS88*(100-CY$14)/100*$DH$3)+($CS88*(CY$14)/100*$DH$4)+($CS88*(CY$14)/100*$DH$5) -> -1660.19 | CZ88: =$DC$4-(CB88/100*$DC$4)+($CS88*(100-CZ$14)/100*$DH$3)+($CS88*(CZ$14)/100*$DH$4)+($CS88*(CZ$14)/100*$DH$5) -> -1573.84 | DA88: =$DC$4-(CC88/100*$DC$4)+($CS88*(100-DA$14)/100*$DH$3)+($CS88*(DA$14)/100*$DH$4)+($CS88*(DA$14)/100*$DH$5) -> -1497.49 | DB88: =$DC$4-(CD88/100*$DC$4)+($CS88*(100-DB$14)/100*$DH$3)+($CS88*(DB$14)/100*$DH$4)+($CS88*(DB$14)/100*$DH$5) -> -1386.14 | DC88: =$DC$4-(CE88/100*$DC$4)+($CS88*(100-DC$14)/100*$DH$3)+($CS88*(DC$14)/100*$DH$4)+($CS88*(DC$14)/100*$DH$5) -> -1274.79 | DD88: =$DC$4-(CF88/100*$DC$4)+($CS88*(100-DD$14)/100*$DH$3)+($CS88*(DD$14)/100*$DH$4)+($CS88*(DD$14)/100*$DH$5) -> -1163.44 | DE88: =$DC$4-(CG88/100*$DC$4)+($CS88*(100-DE$14)/100*$DH$3)+($CS88*(DE$14)/100*$DH$4)+($CS88*(DE$14)/100*$DH$5) -> -1052.09 | DF88: =$DC$4-(CH88/100*$DC$4)+($CS88*(100-DF$14)/100*$DH$3)+($CS88*(DF$14)/100*$DH$4)+($CS88*(DF$14)/100*$DH$5) -> -940.74 | DG88: =$DC$4-(CI88/100*$DC$4)+($CS88*(100-DG$14)/100*$DH$3)+($CS88*(DG$14)/100*$DH$4)+($CS88*(DG$14)/100*$DH$5) -> -829.39 | DH88: =$DC$4-(CJ88/100*$DC$4)+($CS88*(100-DH$14)/100*$DH$3)+($CS88*(DH$14)/100*$DH$4)+($CS88*(DH$14)/100*$DH$5) -> -718.04 | DI88: =$DC$4-(CK88/100*$DC$4)+($CS88*(100-DI$14)/100*$DH$3)+($CS88*(DI$14)/100*$DH$4)+($CS88*(DI$14)/100*$DH$5) -> -606.69 | DJ88: =$DC$4-(CL88/100*$DC$4)+($CS88*(100-DJ$14)/100*$DH$3)+($CS88*(DJ$14)/100*$DH$4)+($CS88*(DJ$14)/100*$DH$5) -> -495.34 | DK88: =$DC$4-(CM88/100*$DC$4)+($CS88*(100-DK$14)/100*$DH$3)+($CS88*(DK$14)/100*$DH$4)+($CS88*(DK$14)/100*$DH$5) -> -383.99 | DL88: =$DC$4-(CN88/100*$DC$4)+($CS88*(100-DL$14)/100*$DH$3)+($CS88*(DL$14)/100*$DH$4)+($CS88*(DL$14)/100*$DH$5*0.66) -> -484.6504 | DM88: =$DC$4-(CO88/100*$DC$4)+($CS88*(100-DM$14)/100*$DH$3)+($CS88*(DM$14)/100*$DH$4)+($CS88*(DM$14)/100*$DH$5*0.66) -> -388.8894 | DN88: =$DC$4-(CP88/100*$DC$4)+($CS88*(100-DN$14)/100*$DH$3)+($CS88*(DN$14)/100*$DH$4)+($CS88*(DN$14)/100*$DH$5*0.66) -> -303.1284 | DO88: =$DC$4-(CQ88/100*$DC$4)+($CS88*(100-DO$14)/100*$DH$3)+($CS88*(DO$14)/100*$DH$4)+($CS88*(DO$14)/100*$DH$5*0.66) -> -252.3674 | DP88: =$DC$4-(CR88/100*$DC$4)+($CS88*(100-DP$14)/100*$DH$3)+($CS88*(DP$14)/100*$DH$4)+($CS88*(DP$14)/100*$DH$5*0.66) -> -204.9108
B89: 6600 | C89: - | D89: 6699 | E89: 6650 | F89: =ROUND(IF((($E89*F$14/100*$K$4)*(-1))>($F$5-50),($E89*F$14/100*$K$5)-((($E89*F$14/100*$K$4)*(-1))-($F$5-50)),($E89*F$14/100*$K$5))/($D$2-200)*100,0) -> 0 | G89: 7 | H89: 19 | I89: 25 | J89: 25 | K89: 25 | L89: 25 | M89: 25 | N89: 25 | O89: 25 | P89: 25 | Q89: 25 | R89: 25 | S89: 25 | T89: 25 | U89: 25 | V89: 25 | W89: 25 | X89: 25 | Z89: 6600 | AA89: - | AB89: 6699 | AD89: =ROUND(IF(IF(IF((($E89*(100-AD$14)/100*$K$3)*(-1))<$F$4,$F$6,IF((($E89*(100-AD$14)/100*$K$3)*(-1))>=($F$4+$F$6),($E89*(100-AD$14)/100*$K$3)+($F$4+$F$6),($F$6-((($E89*(100-AD$14)/100*$K$3)*(-1))-$F$4))))>=0,IF((($E89*(100-AD$14)/100*$K$3)*(-1))<$F$4,$F$6,IF((($E89*(100-AD$14)/100*$K$3)*(-1))>=($F$4+$F$6),($E89*(100-AD$14)/100*$K$3)+($F$4+$F$6),($F$6-((($E89*(100-AD$14)/100*$K$3)*(-1))-$F$4)))),IF(IF((($E89*(100-AD$14)/100*$K$3)*(-1))<$F$4,$F$6,IF((($E89*(100-AD$14)/100*$K$3)*(-1))>=($F$4+$F$6),($E89*(100-AD$14)/100*$K$3)+($F$4+$F$6),($F$6-((($E89*(100-AD$14)/100*$K$3)*(-1))-$F$4))))*(-1)<=$F$7,0,$F$7+IF((($E89*(100-AD$14)/100*$K$3)*(-1))<$F$4,$F$6,IF((($E89*(100-AD$14)/100*$K$3)*(-1))>=($F$4+$F$6),($E89*(100-AD$14)/100*$K$3)+($F$4+$F$6),($F$6-((($E89*(100-AD$14)/100*$K$3)*(-1))-$F$4))))))*(-1)>$F$5,$F$5*(-1),IF(IF((($E89*(100-AD$14)/100*$K$3)*(-1))<$F$4,$F$6,IF((($E89*(100-AD$14)/100*$K$3)*(-1))>=($F$4+$F$6),($E89*(100-AD$14)/100*$K$3)+($F$4+$F$6),($F$6-((($E89*(100-AD$14)/100*$K$3)*(-1))-$F$4))))>=0,IF((($E89*(100-AD$14)/100*$K$3)*(-1))<$F$4,$F$6,IF((($E89*(100-AD$14)/100*$K$3)*(-1))>=($F$4+$F$6),($E89*(100-AD$14)/100*$K$3)+($F$4+$F$6),($F$6-((($E89*(100-AD$14)/100*$K$3)*(-1))-$F$4)))),IF(IF((($E89*(100-AD$14)/100*$K$3)*(-1))<$F$4,$F$6,IF((($E89*(100-AD$14)/100*$K$3)*(-1))>=($F$4+$F$6),($E89*(100-AD$14)/100*$K$3)+($F$4+$F$6),($F$6-((($E89*(100-AD$14)/100*$K$3)*(-1))-$F$4))))*(-1)<=$F$7,0,$F$7+IF((($E89*(100-AD$14)/100*$K$3)*(-1))<$F$4,$F$6,IF((($E89*(100-AD$14)/100*$K$3)*(-1))>=($F$4+$F$6),($E89*(100-AD$14)/100*$K$3)+($F$4+$F$6),($F$6-((($E89*(100-AD$14)/100*$K$3)*(-1))-$F$4)))))))/$D$2*100/2,0) -> -13 | AE89: -13 | AF89: -13 | AG89: -13 | AH89: -13 | AI89: -13 | AJ89: -13 | AK89: -13 | AL89: -13 | AM89: -13 | AN89: -13 | AO89: -13 | AP89: -13 | AQ89: -13 | AR89: -13 | AS89: -13 | AT89: -12 | AU89: -3 | AV89: 0 | BV89: 6600 | BW89: - | BX89: 6699 | BZ89: =IF((F89+AD89+BB89)<0,0,(F89+AD89+BB89)) -> 0 | CA89: =IF((G89+AE89+BC89)<0,0,(G89+AE89+BC89)) -> 0 | CB89: =IF((H89+AF89+BD89)<0,0,(H89+AF89+BD89)) -> 6 | CC89: =IF((I89+AG89+BE89)<0,0,(I89+AG89+BE89)) -> 12 | CD89: =IF((J89+AH89+BF89)<0,0,(J89+AH89+BF89)) -> 12 | CE89: =IF((K89+AI89+BG89)<0,0,(K89+AI89+BG89)) -> 12 | CF89: =IF((L89+AJ89+BH89)<0,0,(L89+AJ89+BH89)) -> 12 | CG89: =IF((M89+AK89+BI89)<0,0,(M89+AK89+BI89)) -> 12 | CH89: =IF((N89+AL89+BJ89)<0,0,(N89+AL89+BJ89)) -> 12 | CI89: =IF((O89+AM89+BK89)<0,0,(O89+AM89+BK89)) -> 12 | CJ89: =IF((P89+AN89+BL89)<0,0,(P89+AN89+BL89)) -> 12 | CK89: =IF((Q89+AO89+BM89)<0,0,(Q89+AO89+BM89)) -> 12 | CL89: =IF((R89+AP89+BN89)<0,0,(R89+AP89+BN89)) -> 12 | CM89: =IF((S89+AQ89+BO89)<0,0,(S89+AQ89+BO89)) -> 12 | CN89: =IF((T89+AR89+BP89)<0,0,(T89+AR89+BP89)) -> 12 | CO89: =IF((U89+AS89+BQ89)<0,0,(U89+AS89+BQ89)) -> 12 | CP89: =IF((V89+AT89+BR89)<0,0,(V89+AT89+BR89)) -> 13 | CQ89: =IF((W89+AU89+BS89)<0,0,(W89+AU89+BS89)) -> 22 | CR89: =IF((X89+AV89+BT89)<0,0,(X89+AV89+BT89)) -> 25 | CS89: 6650 | CU89: 6600 | CV89: - | CW89: 6699 | CX89: -1761 | CY89: -1693.17 | CZ89: -1610.12 | DA89: -1527.07 | DB89: -1414.02 | DC89: -1300.97 | DD89: -1187.92 | DE89: -1074.87 | DF89: -961.82 | DG89: -848.77 | DH89: -735.72 | DI89: -622.67 | DJ89: -509.62 | DK89: -396.57 | DL89: =$DC$4-(CN89/100*$DC$4)+($CS89*(100-DL$14)/100*$DH$3)+($CS89*(DL$14)/100*$DH$4)+($CS89*(DL$14)/100*$DH$5*0.66) -> -498.7672 | DM89: =$DC$4-(CO89/100*$DC$4)+($CS89*(100-DM$14)/100*$DH$3)+($CS89*(DM$14)/100*$DH$4)+($CS89*(DM$14)/100*$DH$5*0.66) -> -401.5442 | DN89: =$DC$4-(CP89/100*$DC$4)+($CS89*(100-DN$14)/100*$DH$3)+($CS89*(DN$14)/100*$DH$4)+($CS89*(DN$14)/100*$DH$5*0.66) -> -309.3212 | DO89: =$DC$4-(CQ89/100*$DC$4)+($CS89*(100-DO$14)/100*$DH$3)+($CS89*(DO$14)/100*$DH$4)+($CS89*(DO$14)/100*$DH$5*0.66) -> -257.0982 | DP89: =$DC$4-(CR89/100*$DC$4)+($CS89*(100-DP$14)/100*$DH$3)+($CS89*(DP$14)/100*$DH$4)+($CS89*(DP$14)/100*$DH$5*0.66) -> -213.7644
B90: 6700 | C90: - | D90: 6799 | E90: 6750 | F90: 0 | G90: 7 | H90: 19 | I90: 25 | J90: 25 | K90: 25 | L90: 25 | M90: 25 | N90: 25 | O90: 25 | P90: 25 | Q90: 25 | R90: 25 | S90: 25 | T90: 25 | U90: 25 | V90: 25 | W90: 25 | X90: 25 | Z90: 6700 | AA90: - | AB90: 6799 | AD90: -13 | AE90: -13 | AF90: -13 | AG90: -13 | AH90: -13 | AI90: -13 | AJ90: -13 | AK90: -13 | AL90: -13 | AM90: -13 | AN90: -13 | AO90: -13 | AP90: -13 | AQ90: -13 | AR90: -13 | AS90: -13 | AT90: -13 | AU90: -3 | AV90: 0 | BV90: 6700 | BW90: - | BX90: 6799 | BZ90: 0 | CA90: 0 | CB90: 6 | CC90: 12 | CD90: 12 | CE90: 12 | CF90: 12 | CG90: 12 | CH90: 12 | CI90: 12 | CJ90: 12 | CK90: 12 | CL90: 12 | CM90: 12 | CN90: 12 | CO90: 12 | CP90: 12 | CQ90: 22 | CR90: 25 | CS90: 6750 | CU90: 6700 | CV90: - | CW90: 6799 | CX90: -1795 | CY90: -1726.15 | CZ90: -1641.4 | DA90: -1556.65 | DB90: -1441.9 | DC90: -1327.15 | DD90: -1212.4 | DE90: -1097.65 | DF90: -982.9 | DG90: -868.15 | DH90: -753.4 | DI90: -638.65 | DJ90: -523.9 | DK90: -409.15 | DL90: -512.884 | DM90: -414.199 | DN90: -315.514 | DO90: -266.829 | DP90: -222.618
B91: 6800 | C91: - | D91: 6899 | E91: 6850 | F91: 0 | G91: 7 | H91: 19 | I91: 25 | J91: 25 | K91: 25 | L91: 25 | M91: 25 | N91: 25 | O91: 25 | P91: 25 | Q91: 25 | R91: 25 | S91: 25 | T91: 25 | U91: 25 | V91: 25 | W91: 25 | X91: 25 | Z91: 6800 | AA91: - | AB91: 6899 | AD91: -13 | AE91: -13 | AF91: -13 | AG91: -13 | AH91: -13 | AI91: -13 | AJ91: -13 | AK91: -13 | AL91: -13 | AM91: -13 | AN91: -13 | AO91: -13 | AP91: -13 | AQ91: -13 | AR91: -13 | AS91: -13 | AT91: -13 | AU91: -3 | AV91: 0 | BV91: 6800 | BW91: - | BX91: 6899 | BZ91: 0 | CA91: 0 | CB91: 6 | CC91: 12 | CD91: 12 | CE91: 12 | CF91: 12 | CG91: 12 | CH91: 12 | CI91: 12 | CJ91: 12 | CK91: 12 | CL91: 12 | CM91: 12 | CN91: 12 | CO91: 12 | CP91: 12 | CQ91: 22 | CR91: 25 | CS91: 6850 | CU91: 6800 | CV91: - | CW91: 6899 | CX91: -1829 | CY91: -1759.13 | CZ91: -1672.68 | DA91: -1586.23 | DB91: -1469.78 | DC91: -1353.33 | DD91: -1236.88 | DE91: -1120.43 | DF91: -1003.98 | DG91: -887.53 | DH91: -771.08 | DI91: -654.63 | DJ91: -538.18 | DK91: -421.73 | DL91: -527.0008 | DM91: -426.8538 | DN91: -326.7068 | DO91: -276.5598 | DP91: -231.4716
B92: 6900 | C92: - | D92: 6999 | E92: 6950 | F92: 0 | G92: 7 | H92: 19 | I92: 25 | J92: 25 | K92: 25 | L92: 25 | M92: 25 | N92: 25 | O92: 25 | P92: 25 | Q92: 25 | R92: 25 | S92: 25 | T92: 25 | U92: 25 | V92: 25 | W92: 25 | X92: 25 | Z92: 6900 | AA92: - | AB92: 6999 | AD92: -13 | AE92: -13 | AF92: -13 | AG92: -13 | AH92: -13 | AI92: -13 | AJ92: -13 | AK92: -13 | AL92: -13 | AM92: -13 | AN92: -13 | AO92: -13 | AP92: -13 | AQ92: -13 | AR92: -13 | AS92: -13 | AT92: -13 | AU92: -4 | AV92: 0 | BV92: 6900 | BW92: - | BX92: 6999 | BZ92: 0 | CA92: 0 | CB92: 6 | CC92: 12 | CD92: 12 | CE92: 12 | CF92: 12 | CG92: 12 | CH92: 12 | CI92: 12 | CJ92: 12 | CK92: 12 | CL92: 12 | CM92: 12 | CN92: 12 | CO92: 12 | CP92: 12 | CQ92: 21 | CR92: 25 | CS92: 6950 | CU92: 6900 | CV92: - | CW92: 6999 | CX92: -1863 | CY92: -1792.11 | CZ92: -1703.96 | DA92: -1615.81 | DB92: -1497.66 | DC92: -1379.51 | DD92: -1261.36 | DE92: -1143.21 | DF92: -1025.06 | DG92: -906.91 | DH92: -788.76 | DI92: -670.61 | DJ92: -552.46 | DK92: -434.31 | DL92: -541.1176 | DM92: -439.5086 | DN92: -337.8996 | DO92: -281.2906 | DP92: -240.3252
B93: 7000 | C93: - | D93: 7099 | E93: 7050 | F93: 0 | G93: 7 | H93: 20 | I93: 25 | J93: 25 | K93: 25 | L93: 25 | M93: 25 | N93: 25 | O93: 25 | P93: 25 | Q93: 25 | R93: 25 | S93: 25 | T93: 25 | U93: 25 | V93: 25 | W93: 25 | X93: 25 | Z93: 7000 | AA93: - | AB93: 7099 | AD93: -13 | AE93: -13 | AF93: -13 | AG93: -13 | AH93: -13 | AI93: -13 | AJ93: -13 | AK93: -13 | AL93: -13 | AM93: -13 | AN93: -13 | AO93: -13 | AP93: -13 | AQ93: -13 | AR93: -13 | AS93: -13 | AT93: -13 | AU93: -4 | AV93: 0 | BV93: 7000 | BW93: - | BX93: 7099 | BZ93: 0 | CA93: 0 | CB93: 7 | CC93: 12 | CD93: 12 | CE93: 12 | CF93: 12 | CG93: 12 | CH93: 12 | CI93: 12 | CJ93: 12 | CK93: 12 | CL93: 12 | CM93: 12 | CN93: 12 | CO93: 12 | CP93: 12 | CQ93: 21 | CR93: 25 | CS93: 7050 | CU93: 7000 | CV93: - | CW93: 7099 | CX93: -1897 | CY93: -1825.09 | CZ93: -1740.24 | DA93: -1645.39 | DB93: -1525.54 | DC93: -1405.69 | DD93: -1285.84 | DE93: -1165.99 | DF93: -1046.14 | DG93: -926.29 | DH93: -806.44 | DI93: -686.59 | DJ93: -566.74 | DK93: -446.89 | DL93: -555.2344 | DM93: -452.1634 | DN93: -349.0924 | DO93: -291.0214 | DP93: -249.1788
B94: 7100 | C94: - | D94: 7199 | E94: 7150 | F94: 0 | G94: 8 | H94: 20 | I94: 25 | J94: 25 | K94: 25 | L94: 25 | M94: 25 | N94: 25 | O94: 25 | P94: 25 | Q94: 25 | R94: 25 | S94: 25 | T94: 25 | U94: 25 | V94: 25 | W94: 25 | X94: 25 | Z94: 7100 | AA94: - | AB94: 7199 | AD94: -13 | AE94: -13 | AF94: -13 | AG94: -13 | AH94: -13 | AI94: -13 | AJ94: -13 | AK94: -13 | AL94: -13 | AM94: -13 | AN94: -13 | AO94: -13 | AP94: -13 | AQ94: -13 | AR94: -13 | AS94: -13 | AT94: -13 | AU94: -5 | AV94: 0 | BV94: 7100 | BW94: - | BX94: 7199 | BZ94: 0 | CA94: 0 | CB94: 7 | CC94: 12 | CD94: 12 | CE94: 12 | CF94: 12 | CG94: 12 | CH94: 12 | CI94: 12 | CJ94: 12 | CK94: 12 | CL94: 12 | CM94: 12 | CN94: 12 | CO94: 12 | CP94: 12 | CQ94: 20 | CR94: 25 | CS94: 7150 | CU94: 7100 | CV94: - | CW94: 7199 | CX94: -1931 | CY94: -1858.07 | CZ94: -1771.52 | DA94: -1674.97 | DB94: -1553.42 | DC94: -1431.87 | DD94: -1310.32 | DE94: -1188.77 | DF94: -1067.22 | DG94: -945.67 | DH94: -824.12 | DI94: -702.57 | DJ94: -581.02 | DK94: -459.47 | DL94: -569.3512 | DM94: -464.8182 | DN94: -360.2852 | DO94: -295.7522 | DP94: -258.0324
B95: 7200 | C95: - | D95: 7299 | E95: 7250 | F95: 0 | G95: 8 | H95: 20 | I95: 25 | J95: 25 | K95: 25 | L95: 25 | M95: 25 | N95: 25 | O95: 25 | P95: 25 | Q95: 25 | R95: 25 | S95: 25 | T95: 25 | U95: 25 | V95: 25 | W95: 25 | X95: 25 | Z95: 7200 | AA95: - | AB95: 7299 | AD95: -13 | AE95: -13 | AF95: -13 | AG95: -13 | AH95: -13 | AI95: -13 | AJ95: -13 | AK95: -13 | AL95: -13 | AM95: -13 | AN95: -13 | AO95: -13 | AP95: -13 | AQ95: -13 | AR95: -13 | AS95: -13 | AT95: -13 | AU95: -5 | AV95: 0 | BV95: 7200 | BW95: - | BX95: 7299 | BZ95: 0 | CA95: 0 | CB95: 7 | CC95: 12 | CD95: 12 | CE95: 12 | CF95: 12 | CG95: 12 | CH95: 12 | CI95: 12 | CJ95: 12 | CK95: 12 | CL95: 12 | CM95: 12 | CN95: 12 | CO95: 12 | CP95: 12 | CQ95: 20 | CR95: 25 | CS95: 7250 | CU95: 7200 | CV95: - | CW95: 7299 | CX95: -1965 | CY95: -1891.05 | CZ95: -1802.8 | DA95: -1704.55 | DB95: -1581.3 | DC95: -1458.05 | DD95: -1334.8 | DE95: -1211.55 | DF95: -1088.3 | DG95: -965.05 | DH95: -841.8 | DI95: -718.55 | DJ95: -595.3 | DK95: -472.05 | DL95: -583.468 | DM95: -477.473 | DN95: -371.478 | DO95: -305.483 | DP95: -266.886
B96: 7300 | C96: - | D96: 7399 | E96: 7350 | F96: 0 | G96: 8 | H96: 21 | I96: 25 | J96: 25 | K96: 25 | L96: 25 | M96: 25 | N96: 25 | O96: 25 | P96: 25 | Q96: 25 | R96: 25 | S96: 25 | T96: 25 | U96: 25 | V96: 25 | W96: 25 | X96: 25 | Z96: 7300 | AA96: - | AB96: 7399 | AD96: -13 | AE96: -13 | AF96: -13 | AG96: -13 | AH96: -13 | AI96: -13 | AJ96: -13 | AK96: -13 | AL96: -13 | AM96: -13 | AN96: -13 | AO96: -13 | AP96: -13 | AQ96: -13 | AR96: -13 | AS96: -13 | AT96: -13 | AU96: -6 | AV96: 0 | BV96: 7300 | BW96: - | BX96: 7399 | BZ96: 0 | CA96: 0 | CB96: 8 | CC96: 12 | CD96: 12 | CE96: 12 | CF96: 12 | CG96: 12 | CH96: 12 | CI96: 12 | CJ96: 12 | CK96: 12 | CL96: 12 | CM96: 12 | CN96: 12 | CO96: 12 | CP96: 12 | CQ96: 19 | CR96: 25 | CS96: 7350 | CU96: 7300 | CV96: - | CW96: 7399 | CX96: -1999 | CY96: -1924.03 | CZ96: -1839.08 | DA96: -1734.13 | DB96: -1609.18 | DC96: -1484.23 | DD96: -1359.28 | DE96: -1234.33 | DF96: -1109.38 | DG96: -984.43 | DH96: -859.48 | DI96: -734.53 | DJ96: -609.58 | DK96: -484.63 | DL96: -597.5848 | DM96: -490.1278 | DN96: -382.6708 | DO96: -310.2138 | DP96: -275.7396
B97: 7400 | C97: - | D97: 7499 | E97: 7450 | F97: 0 | G97: 8 | H97: 21 | I97: 25 | J97: 25 | K97: 25 | L97: 25 | M97: 25 | N97: 25 | O97: 25 | P97: 25 | Q97: 25 | R97: 25 | S97: 25 | T97: 25 | U97: 25 | V97: 25 | W97: 25 | X97: 25 | Z97: 7400 | AA97: - | AB97: 7499 | AD97: -13 | AE97: -13 | AF97: -13 | AG97: -13 | AH97: -13 | AI97: -13 | AJ97: -13 | AK97: -13 | AL97: -13 | AM97: -13 | AN97: -13 | AO97: -13 | AP97: -13 | AQ97: -13 | AR97: -13 | AS97: -13 | AT97: -13 | AU97: -6 | AV97: 0 | BV97: 7400 | BW97: - | BX97: 7499 | BZ97: 0 | CA97: 0 | CB97: 8 | CC97: 12 | CD97: 12 | CE97: 12 | CF97: 12 | CG97: 12 | CH97: 12 | CI97: 12 | CJ97: 12 | CK97: 12 | CL97: 12 | CM97: 12 | CN97: 12 | CO97: 12 | CP97: 12 | CQ97: 19 | CR97: 25 | CS97: 7450 | CU97: 7400 | CV97: - | CW97: 7499 | CX97: -2033 | CY97: -1957.01 | CZ97: -1870.36 | DA97: -1763.71 | DB97: -1637.06 | DC97: -1510.41 | DD97: -1383.76 | DE97: -1257.11 | DF97: -1130.46 | DG97: -1003.81 | DH97: -877.16 | DI97: -750.51 | DJ97: -623.86 | DK97: -497.21 | DL97: -611.7016 | DM97: -502.7826 | DN97: -393.8636 | DO97: -319.9446 | DP97: -284.5932
B98: 7500 | C98: - | D98: 7599 | E98: 7550 | F98: 0 | G98: 8 | H98: 21 | I98: 25 | J98: 25 | K98: 25 | L98: 25 | M98: 25 | N98: 25 | O98: 25 | P98: 25 | Q98: 25 | R98: 25 | S98: 25 | T98: 25 | U98: 25 | V98: 25 | W98: 25 | X98: 25 | Z98: 7500 | AA98: - | AB98: 7599 | AD98: -13 | AE98: -13 | AF98: -13 | AG98: -13 | AH98: -13 | AI98: -13 | AJ98: -13 | AK98: -13 | AL98: -13 | AM98: -13 | AN98: -13 | AO98: -13 | AP98: -13 | AQ98: -13 | AR98: -13 | AS98: -13 | AT98: -13 | AU98: -7 | AV98: 0 | BV98: 7500 | BW98: - | BX98: 7599 | BZ98: 0 | CA98: 0 | CB98: 8 | CC98: 12 | CD98: 12 | CE98: 12 | CF98: 12 | CG98: 12 | CH98: 12 | CI98: 12 | CJ98: 12 | CK98: 12 | CL98: 12 | CM98: 12 | CN98: 12 | CO98: 12 | CP98: 12 | CQ98: 18 | CR98: 25 | CS98: 7550 | CU98: 7500 | CV98: - | CW98: 7599 | CX98: -2067 | CY98: -1989.99 | CZ98: -1901.64 | DA98: -1793.29 | DB98: -1664.94 | DC98: -1536.59 | DD98: -1408.24 | DE98: -1279.89 | DF98: -1151.54 | DG98: -1023.19 | DH98: -894.84 | DI98: -766.49 | DJ98: -638.14 | DK98: -509.79 | DL98: -625.8184 | DM98: -515.4374 | DN98: -405.0564 | DO98: -324.6754 | DP98: -293.4468
B99: 7600 | C99: - | D99: 7699 | E99: 7650 | F99: 0 | G99: 8 | H99: 21 | I99: 25 | J99: 25 | K99: 25 | L99: 25 | M99: 25 | N99: 25 | O99: 25 | P99: 25 | Q99: 25 | R99: 25 | S99: 25 | T99: 25 | U99: 25 | V99: 25 | W99: 25 | X99: 25 | Z99: 7600 | AA99: - | AB99: 7699 | AD99: -13 | AE99: -13 | AF99: -13 | AG99: -13 | AH99: -13 | AI99: -13 | AJ99: -13 | AK99: -13 | AL99: -13 | AM99: -13 | AN99: -13 | AO99: -13 | AP99: -13 | AQ99: -13 | AR99: -13 | AS99: -13 | AT99: -13 | AU99: -7 | AV99: -1 | BV99: 7600 | BW99: - | BX99: 7699 | BZ99: 0 | CA99: 0 | CB99: 8 | CC99: 12 | CD99: 12 | CE99: 12 | CF99: 12 | CG99: 12 | CH99: 12 | CI99: 12 | CJ99: 12 | CK99: 12 | CL99: 12 | CM99: 12 | CN99: 12 | CO99: 12 | CP99: 12 | CQ99: 18 | CR99: 24 | CS99: 7650 | CU99: 7600 | CV99: - | CW99: 7699 | CX99: -2101 | CY99: -2022.97 | CZ99: -1932.92 | DA99: -1822.87 | DB99: -1692.82 | DC99: -1562.77 | DD99: -1432.72 | DE99: -1302.67 | DF99: -1172.62 | DG99: -1042.57 | DH99: -912.52 | DI99: -782.47 | DJ99: -652.42 | DK99: -522.37 | DL99: -639.9352 | DM99: -528.0922 | DN99: -416.2492 | DO99: -334.4062 | DP99: -297.3004
B100: 7700 | C100: - | D100: 7799 | E100: 7750 | F100: 0 | G100: 8 | H100: 22 | I100: 25 | J100: 25 | K100: 25 | L100: 25 | M100: 25 | N100: 25 | O100: 25 | P100: 25 | Q100: 25 | R100: 25 | S100: 25 | T100: 25 | U100: 25 | V100: 25 | W100: 25 | X100: 25 | Z100: 7700 | AA100: - | AB100: 7799 | AD100: -13 | AE100: -13 | AF100: -13 | AG100: -13 | AH100: -13 | AI100: -13 | AJ100: -13 | AK100: -13 | AL100: -13 | AM100: -13 | AN100: -13 | AO100: -13 | AP100: -13 | AQ100: -13 | AR100: -13 | AS100: -13 | AT100: -13 | AU100: -8 | AV100: -1 | BV100: 7700 | BW100: - | BX100: 7799 | BZ100: 0 | CA100: 0 | CB100: 9 | CC100: 12 | CD100: 12 | CE100: 12 | CF100: 12 | CG100: 12 | CH100: 12 | CI100: 12 | CJ100: 12 | CK100: 12 | CL100: 12 | CM100: 12 | CN100: 12 | CO100: 12 | CP100: 12 | CQ100: 17 | CR100: 24 | CS100: 7750 | CU100: 7700 | CV100: - | CW100: 7799 | CX100: -2135 | CY100: -2055.95 | CZ100: -1969.2 | DA100: -1852.45 | DB100: -1720.7 | DC100: -1588.95 | DD100: -1457.2 | DE100: -1325.45 | DF100: -1193.7 | DG100: -1061.95 | DH100: -930.2 | DI100: -798.45 | DJ100: -666.7 | DK100: -534.95 | DL100: -654.052 | DM100: -540.747 | DN100: -427.442 | DO100: -339.137 | DP100: -306.154
B101: 7800 | C101: - | D101: 7899 | E101: 7850 | F101: 0 | G101: 8 | H101: 22 | I101: 25 | J101: 25 | K101: 25 | L101: 25 | M101: 25 | N101: 25 | O101: 25 | P101: 25 | Q101: 25 | R101: 25 | S101: 25 | T101: 25 | U101: 25 | V101: 25 | W101: 25 | X101: 25 | Z101: 7800 | AA101: - | AB101: 7899 | AD101: -13 | AE101: -13 | AF101: -13 | AG101: -13 | AH101: -13 | AI101: -13 | AJ101: -13 | AK101: -13 | AL101: -13 | AM101: -13 | AN101: -13 | AO101: -13 | AP101: -13 | AQ101: -13 | AR101: -13 | AS101: -13 | AT101: -13 | AU101: -8 | AV101: -2 | BV101: 7800 | BW101: - | BX101: 7899 | BZ101: 0 | CA101: 0 | CB101: 9 | CC101: 12 | CD101: 12 | CE101: 12 | CF101: 12 | CG101: 12 | CH101: 12 | CI101: 12 | CJ101: 12 | CK101: 12 | CL101: 12 | CM101: 12 | CN101: 12 | CO101: 12 | CP101: 12 | CQ101: 17 | CR101: 23 | CS101: 7850 | CU101: 7800 | CV101: - | CW101: 7899 | CX101: -2169 | CY101: -2088.93 | CZ101: -2000.48 | DA101: -1882.03 | DB101: -1748.58 | DC101: -1615.13 | DD101: -1481.68 | DE101: -1348.23 | DF101: -1214.78 | DG101: -1081.33 | DH101: -947.88 | DI101: -814.43 | DJ101: -680.98 | DK101: -547.53 | DL101: -668.1688 | DM101: -553.4018 | DN101: -438.6348 | DO101: -348.8678 | DP101: -310.0076
B102: 7900 | C102: - | D102: 7999 | E102: 7950 | F102: 0 | G102: 8 | H102: 22 | I102: 25 | J102: =ROUND(IF((($E102*J$14/100*$K$4)*(-1))>($F$5-50),($E102*J$14/100*$K$5)-((($E102*J$14/100*$K$4)*(-1))-($F$5-50)),($E102*J$14/100*$K$5))/($D$2-200)*100,0) -> 25 | K102: 25 | L102: 25 | M102: 25 | N102: 25 | O102: 25 | P102: 25 | Q102: 25 | R102: 25 | S102: 25 | T102: 25 | U102: 25 | V102: 25 | W102: 25 | X102: 25 | Z102: 7900 | AA102: - | AB102: 7999 | AD102: -13 | AE102: -13 | AF102: -13 | AG102: -13 | AH102: =ROUND(IF(IF(IF((($E102*(100-AH$14)/100*$K$3)*(-1))<$F$4,$F$6,IF((($E102*(100-AH$14)/100*$K$3)*(-1))>=($F$4+$F$6),($E102*(100-AH$14)/100*$K$3)+($F$4+$F$6),($F$6-((($E102*(100-AH$14)/100*$K$3)*(-1))-$F$4))))>=0,IF((($E102*(100-AH$14)/100*$K$3)*(-1))<$F$4,$F$6,IF((($E102*(100-AH$14)/100*$K$3)*(-1))>=($F$4+$F$6),($E102*(100-AH$14)/100*$K$3)+($F$4+$F$6),($F$6-((($E102*(100-AH$14)/100*$K$3)*(-1))-$F$4)))),IF(IF((($E102*(100-AH$14)/100*$K$3)*(-1))<$F$4,$F$6,IF((($E102*(100-AH$14)/100*$K$3)*(-1))>=($F$4+$F$6),($E102*(100-AH$14)/100*$K$3)+($F$4+$F$6),($F$6-((($E102*(100-AH$14)/100*$K$3)*(-1))-$F$4))))*(-1)<=$F$7,0,$F$7+IF((($E102*(100-AH$14)/100*$K$3)*(-1))<$F$4,$F$6,IF((($E102*(100-AH$14)/100*$K$3)*(-1))>=($F$4+$F$6),($E102*(100-AH$14)/100*$K$3)+($F$4+$F$6),($F$6-((($E102*(100-AH$14)/100*$K$3)*(-1))-$F$4))))))*(-1)>$F$5,$F$5*(-1),IF(IF((($E102*(100-AH$14)/100*$K$3)*(-1))<$F$4,$F$6,IF((($E102*(100-AH$14)/100*$K$3)*(-1))>=($F$4+$F$6),($E102*(100-AH$14)/100*$K$3)+($F$4+$F$6),($F$6-((($E102*(100-AH$14)/100*$K$3)*(-1))-$F$4))))>=0,IF((($E102*(100-AH$14)/100*$K$3)*(-1))<$F$4,$F$6,IF((($E102*(100-AH$14)/100*$K$3)*(-1))>=($F$4+$F$6),($E102*(100-AH$14)/100*$K$3)+($F$4+$F$6),($F$6-((($E102*(100-AH$14)/100*$K$3)*(-1))-$F$4)))),IF(IF((($E102*(100-AH$14)/100*$K$3)*(-1))<$F$4,$F$6,IF((($E102*(100-AH$14)/100*$K$3)*(-1))>=($F$4+$F$6),($E102*(100-AH$14)/100*$K$3)+($F$4+$F$6),($F$6-((($E102*(100-AH$14)/100*$K$3)*(-1))-$F$4))))*(-1)<=$F$7,0,$F$7+IF((($E102*(100-AH$14)/100*$K$3)*(-1))<$F$4,$F$6,IF((($E102*(100-AH$14)/100*$K$3)*(-1))>=($F$4+$F$6),($E102*(100-AH$14)/100*$K$3)+($F$4+$F$6),($F$6-((($E102*(100-AH$14)/100*$K$3)*(-1))-$F$4)))))))/$D$2*100/2,0) -> -13 | AI102: -13 | AJ102: -13 | AK102: -13 | AL102: -13 | AM102: -13 | AN102: -13 | AO102: -13 | AP102: -13 | AQ102: -13 | AR102: -13 | AS102: -13 | AT102: -13 | AU102: -9 | AV102: -2 | BV102: 7900 | BW102: - | BX102: 7999 | BZ102: 0 | CA102: 0 | CB102: 9 | CC102: 12 | CD102: 12 | CE102: 12 | CF102: 12 | CG102: 12 | CH102: 12 | CI102: 12 | CJ102: 12 | CK102: 12 | CL102: 12 | CM102: 12 | CN102: 12 | CO102: 12 | CP102: 12 | CQ102: 16 | CR102: 23 | CS102: 7950 | CU102: 7900 | CV102: - | CW102: 7999 | CX102: -2203 | CY102: -2121.91 | CZ102: -2031.76 | DA102: -1911.61 | DB102: -1776.46 | DC102: -1641.31 | DD102: -1506.16 | DE102: -1371.01 | DF102: -1235.86 | DG102: -1100.71 | DH102: -965.56 | DI102: -830.41 | DJ102: -695.26 | DK102: -560.11 | DL102: -682.2856 | DM102: -566.0566 | DN102: -449.8276 | DO102: -353.5986 | DP102: -318.8612
B103: 8000 | C103: - | D103: 8099 | E103: 8050 | F103: 0 | G103: 8 | H103: 23 | I103: 25 | J103: 25 | K103: 25 | L103: 25 | M103: 25 | N103: 25 | O103: 25 | P103: 25 | Q103: 25 | R103: 25 | S103: 25 | T103: 25 | U103: 25 | V103: =ROUND(IF((($E103*V$14/100*$K$4)*(-1))>($F$5-50),($E103*V$14/100*$K$5)-((($E103*V$14/100*$K$4)*(-1))-($F$5-50)),($E103*V$14/100*$K$5))/($D$2-200)*100,0) -> 25 | W103: 25 | X103: 25 | Z103: 8000 | AA103: - | AB103: 8099 | AD103: -13 | AE103: -13 | AF103: -13 | AG103: -13 | AH103: -13 | AI103: -13 | AJ103: -13 | AK103: -13 | AL103: -13 | AM103: -13 | AN103: -13 | AO103: -13 | AP103: -13 | AQ103: -13 | AR103: -13 | AS103: -13 | AT103: =ROUND(IF(IF(IF((($E103*(100-AT$14)/100*$K$3)*(-1))<$F$4,$F$6,IF((($E103*(100-AT$14)/100*$K$3)*(-1))>=($F$4+$F$6),($E103*(100-AT$14)/100*$K$3)+($F$4+$F$6),($F$6-((($E103*(100-AT$14)/100*$K$3)*(-1))-$F$4))))>=0,IF((($E103*(100-AT$14)/100*$K$3)*(-1))<$F$4,$F$6,IF((($E103*(100-AT$14)/100*$K$3)*(-1))>=($F$4+$F$6),($E103*(100-AT$14)/100*$K$3)+($F$4+$F$6),($F$6-((($E103*(100-AT$14)/100*$K$3)*(-1))-$F$4)))),IF(IF((($E103*(100-AT$14)/100*$K$3)*(-1))<$F$4,$F$6,IF((($E103*(100-AT$14)/100*$K$3)*(-1))>=($F$4+$F$6),($E103*(100-AT$14)/100*$K$3)+($F$4+$F$6),($F$6-((($E103*(100-AT$14)/100*$K$3)*(-1))-$F$4))))*(-1)<=$F$7,0,$F$7+IF((($E103*(100-AT$14)/100*$K$3)*(-1))<$F$4,$F$6,IF((($E103*(100-AT$14)/100*$K$3)*(-1))>=($F$4+$F$6),($E103*(100-AT$14)/100*$K$3)+($F$4+$F$6),($F$6-((($E103*(100-AT$14)/100*$K$3)*(-1))-$F$4))))))*(-1)>$F$5,$F$5*(-1),IF(IF((($E103*(100-AT$14)/100*$K$3)*(-1))<$F$4,$F$6,IF((($E103*(100-AT$14)/100*$K$3)*(-1))>=($F$4+$F$6),($E103*(100-AT$14)/100*$K$3)+($F$4+$F$6),($F$6-((($E103*(100-AT$14)/100*$K$3)*(-1))-$F$4))))>=0,IF((($E103*(100-AT$14)/100*$K$3)*(-1))<$F$4,$F$6,IF((($E103*(100-AT$14)/100*$K$3)*(-1))>=($F$4+$F$6),($E103*(100-AT$14)/100*$K$3)+($F$4+$F$6),($F$6-((($E103*(100-AT$14)/100*$K$3)*(-1))-$F$4)))),IF(IF((($E103*(100-AT$14)/100*$K$3)*(-1))<$F$4,$F$6,IF((($E103*(100-AT$14)/100*$K$3)*(-1))>=($F$4+$F$6),($E103*(100-AT$14)/100*$K$3)+($F$4+$F$6),($F$6-((($E103*(100-AT$14)/100*$K$3)*(-1))-$F$4))))*(-1)<=$F$7,0,$F$7+IF((($E103*(100-AT$14)/100*$K$3)*(-1))<$F$4,$F$6,IF((($E103*(100-AT$14)/100*$K$3)*(-1))>=($F$4+$F$6),($E103*(100-AT$14)/100*$K$3)+($F$4+$F$6),($F$6-((($E103*(100-AT$14)/100*$K$3)*(-1))-$F$4)))))))/$D$2*100/2,0) -> -13 | AU103: -9 | AV103: -2 | BV103: 8000 | BW103: - | BX103: 8099 | BZ103: 0 | CA103: 0 | CB103: 10 | CC103: 12 | CD103: 12 | CE103: 12 | CF103: 12 | CG103: 12 | CH103: 12 | CI103: 12 | CJ103: 12 | CK103: 12 | CL103: 12 | CM103: 12 | CN103: 12 | CO103: 12 | CP103: 12 | CQ103: 16 | CR103: 23 | CS103: 8050 | CU103: 8000 | CV103: - | CW103: 8099 | CX103: -2237 | CY103: -2154.89 | CZ103: -2068.04 | DA103: -1941.19 | DB103: -1804.34 | DC103: -1667.49 | DD103: -1530.64 | DE103: -1393.79 | DF103: -1256.94 | DG103: -1120.09 | DH103: -983.24 | DI103: -846.39 | DJ103: -709.54 | DK103: -572.69 | DL103: -696.4024 | DM103: -578.7114 | DN103: -461.0204 | DO103: -363.3294 | DP103: -327.7148
B104: 8100 | C104: - | D104: 8199 | E104: 8150 | F104: 0 | G104: 9 | H104: 23 | I104: 25 | J104: 25 | K104: 25 | L104: 25 | M104: 25 | N104: 25 | O104: 25 | P104: 25 | Q104: 25 | R104: 25 | S104: 25 | T104: 25 | U104: 25 | V104: 25 | W104: 25 | X104: 25 | Z104: 8100 | AA104: - | AB104: 8199 | AD104: -13 | AE104: -13 | AF104: -13 | AG104: -13 | AH104: -13 | AI104: -13 | AJ104: -13 | AK104: -13 | AL104: -13 | AM104: -13 | AN104: -13 | AO104: -13 | AP104: -13 | AQ104: -13 | AR104: -13 | AS104: -13 | AT104: -13 | AU104: -10 | AV104: -3 | BV104: 8100 | BW104: - | BX104: 8199 | BZ104: 0 | CA104: 0 | CB104: 10 | CC104: 12 | CD104: 12 | CE104: 12 | CF104: 12 | CG104: 12 | CH104: 12 | CI104: 12 | CJ104: 12 | CK104: 12 | CL104: 12 | CM104: 12 | CN104: 12 | CO104: 12 | CP104: 12 | CQ104: 15 | CR104: 22 | CS104: 8150 | CU104: 8100 | CV104: - | CW104: 8199 | CX104: -2271 | CY104: -2187.87 | CZ104: -2099.32 | DA104: -1970.77 | DB104: -1832.22 | DC104: -1693.67 | DD104: -1555.12 | DE104: -1416.57 | DF104: -1278.02 | DG104: -1139.47 | DH104: -1000.92 | DI104: -862.37 | DJ104: -723.82 | DK104: -585.27 | DL104: -710.5192 | DM104: -591.3662 | DN104: -472.2132 | DO104: -368.0602 | DP104: -331.5684
B105: 8200 | C105: - | D105: 8299 | E105: 8250 | F105: 0 | G105: 9 | H105: 23 | I105: 25 | J105: 25 | K105: 25 | L105: 25 | M105: 25 | N105: 25 | O105: 25 | P105: 25 | Q105: 25 | R105: 25 | S105: 25 | T105: 25 | U105: 25 | V105: 25 | W105: 25 | X105: 25 | Z105: 8200 | AA105: - | AB105: 8299 | AD105: -13 | AE105: -13 | AF105: -13 | AG105: -13 | AH105: -13 | AI105: -13 | AJ105: -13 | AK105: -13 | AL105: -13 | AM105: -13 | AN105: -13 | AO105: -13 | AP105: -13 | AQ105: -13 | AR105: -13 | AS105: -13 | AT105: -13 | AU105: -10 | AV105: -3 | BV105: 8200 | BW105: - | BX105: 8299 | BZ105: 0 | CA105: 0 | CB105: 10 | CC105: 12 | CD105: 12 | CE105: 12 | CF105: 12 | CG105: 12 | CH105: 12 | CI105: 12 | CJ105: 12 | CK105: 12 | CL105: 12 | CM105: 12 | CN105: 12 | CO105: 12 | CP105: 12 | CQ105: 15 | CR105: 22 | CS105: 8250 | CU105: 8200 | CV105: - | CW105: 8299 | CX105: -2305 | CY105: -2220.85 | CZ105: -2130.6 | DA105: -2000.35 | DB105: -1860.1 | DC105: -1719.85 | DD105: -1579.6 | DE105: -1439.35 | DF105: -1299.1 | DG105: -1158.85 | DH105: -1018.6 | DI105: -878.35 | DJ105: -738.1 | DK105: -597.85 | DL105: -724.636 | DM105: -604.021 | DN105: -483.406 | DO105: -377.791 | DP105: -340.422
B106: 8300 | C106: - | D106: 8399 | E106: 8350 | F106: 0 | G106: 9 | H106: 23 | I106: 25 | J106: 25 | K106: 25 | L106: 25 | M106: 25 | N106: 25 | O106: 25 | P106: 25 | Q106: 25 | R106: 25 | S106: 25 | T106: 25 | U106: 25 | V106: 25 | W106: 25 | X106: 25 | Z106: 8300 | AA106: - | AB106: 8399 | AD106: -13 | AE106: -13 | AF106: -13 | AG106: -13 | AH106: -13 | AI106: -13 | AJ106: -13 | AK106: -13 | AL106: -13 | AM106: -13 | AN106: -13 | AO106: -13 | AP106: -13 | AQ106: -13 | AR106: -13 | AS106: -13 | AT106: -13 | AU106: -11 | AV106: -4 | BV106: 8300 | BW106: - | BX106: 8399 | BZ106: 0 | CA106: 0 | CB106: 10 | CC106: 12 | CD106: 12 | CE106: 12 | CF106: 12 | CG106: 12 | CH106: 12 | CI106: 12 | CJ106: 12 | CK106: 12 | CL106: 12 | CM106: 12 | CN106: 12 | CO106: 12 | CP106: 12 | CQ106: 14 | CR106: 21 | CS106: 8350 | CU106: 8300 | CV106: - | CW106: 8399 | CX106: -2339 | CY106: -2253.83 | CZ106: -2161.88 | DA106: -2029.93 | DB106: -1887.98 | DC106: -1746.03 | DD106: -1604.08 | DE106: -1462.13 | DF106: -1320.18 | DG106: -1178.23 | DH106: -1036.28 | DI106: -894.33 | DJ106: -752.38 | DK106: -610.43 | DL106: -738.7528 | DM106: -616.6758 | DN106: -494.5988 | DO106: -382.5218 | DP106: -344.2756
B107: 8400 | C107: - | D107: 8499 | E107: 8450 | F107: 0 | G107: 9 | H107: 24 | I107: 25 | J107: 25 | K107: 25 | L107: 25 | M107: 25 | N107: 25 | O107: 25 | P107: 25 | Q107: 25 | R107: 25 | S107: 25 | T107: 25 | U107: 25 | V107: 25 | W107: 25 | X107: 25 | Z107: 8400 | AA107: - | AB107: 8499 | AD107: -13 | AE107: -13 | AF107: -13 | AG107: -13 | AH107: -13 | AI107: -13 | AJ107: -13 | AK107: -13 | AL107: -13 | AM107: -13 | AN107: -13 | AO107: -13 | AP107: -13 | AQ107: -13 | AR107: -13 | AS107: -13 | AT107: -13 | AU107: -11 | AV107: -4 | BV107: 8400 | BW107: - | BX107: 8499 | BZ107: 0 | CA107: 0 | CB107: 11 | CC107: 12 | CD107: 12 | CE107: 12 | CF107: 12 | CG107: 12 | CH107: 12 | CI107: 12 | CJ107: 12 | CK107: 12 | CL107: 12 | CM107: 12 | CN107: 12 | CO107: 12 | CP107: 12 | CQ107: 14 | CR107: 21 | CS107: 8450 | CU107: 8400 | CV107: - | CW107: 8499 | CX107: -2373 | CY107: -2286.81 | CZ107: -2198.16 | DA107: -2059.51 | DB107: -1915.86 | DC107: -1772.21 | DD107: -1628.56 | DE107: -1484.91 | DF107: -1341.26 | DG107: -1197.61 | DH107: -1053.96 | DI107: -910.31 | DJ107: -766.66 | DK107: -623.01 | DL107: -752.8696 | DM107: -629.3306 | DN107: -505.7916 | DO107: -392.2526 | DP107: -353.1292
B108: 8500 | C108: - | D108: 8599 | E108: 8550 | F108: 0 | G108: 9 | H108: 24 | I108: 25 | J108: 25 | K108: 25 | L108: 25 | M108: 25 | N108: 25 | O108: 25 | P108: 25 | Q108: 25 | R108: 25 | S108: 25 | T108: 25 | U108: 25 | V108: 25 | W108: 25 | X108: 25 | Z108: 8500 | AA108: - | AB108: 8599 | AD108: -13 | AE108: -13 | AF108: -13 | AG108: -13 | AH108: -13 | AI108: -13 | AJ108: -13 | AK108: -13 | AL108: -13 | AM108: -13 | AN108: -13 | AO108: -13 | AP108: -13 | AQ108: -13 | AR108: -13 | AS108: -13 | AT108: -13 | AU108: -12 | AV108: -4 | BV108: 8500 | BW108: - | BX108: 8599 | BZ108: 0 | CA108: 0 | CB108: 11 | CC108: 12 | CD108: 12 | CE108: 12 | CF108: 12 | CG108: 12 | CH108: 12 | CI108: 12 | CJ108: 12 | CK108: 12 | CL108: 12 | CM108: 12 | CN108: 12 | CO108: 12 | CP108: 12 | CQ108: 13 | CR108: 21 | CS108: 8550 | CU108: 8500 | CV108: - | CW108: 8599 | CX108: -2407 | CY108: -2319.79 | CZ108: -2229.44 | DA108: -2089.09 | DB108: -1943.74 | DC108: -1798.39 | DD108: -1653.04 | DE108: -1507.69 | DF108: -1362.34 | DG108: -1216.99 | DH108: -1071.64 | DI108: -926.29 | DJ108: -780.94 | DK108: -635.59 | DL108: -766.9864 | DM108: -641.9854 | DN108: -516.9844 | DO108: -396.9834 | DP108: -361.9828
B109: 8600 | C109: - | D109: 8699 | E109: 8650 | F109: 0 | G109: 9 | H109: 24 | I109: 25 | J109: 25 | K109: 25 | L109: 25 | M109: 25 | N109: 25 | O109: 25 | P109: 25 | Q109: 25 | R109: 25 | S109: 25 | T109: 25 | U109: 25 | V109: 25 | W109: 25 | X109: 25 | Z109: 8600 | AA109: - | AB109: 8699 | AD109: -13 | AE109: -13 | AF109: -13 | AG109: -13 | AH109: -13 | AI109: -13 | AJ109: -13 | AK109: -13 | AL109: -13 | AM109: -13 | AN109: -13 | AO109: -13 | AP109: -13 | AQ109: -13 | AR109: -13 | AS109: -13 | AT109: -13 | AU109: -12 | AV109: -5 | BV109: 8600 | BW109: - | BX109: 8699 | BZ109: 0 | CA109: 0 | CB109: 11 | CC109: 12 | CD109: 12 | CE109: 12 | CF109: 12 | CG109: 12 | CH109: 12 | CI109: 12 | CJ109: 12 | CK109: 12 | CL109: 12 | CM109: 12 | CN109: 12 | CO109: 12 | CP109: 12 | CQ109: 13 | CR109: 20 | CS109: 8650 | CU109: 8600 | CV109: - | CW109: 8699 | CX109: -2441 | CY109: -2352.77 | CZ109: -2260.72 | DA109: -2118.67 | DB109: -1971.62 | DC109: -1824.57 | DD109: -1677.52 | DE109: -1530.47 | DF109: -1383.42 | DG109: -1236.37 | DH109: -1089.32 | DI109: -942.27 | DJ109: -795.22 | DK109: -648.17 | DL109: -781.1032 | DM109: -654.6402 | DN109: -528.1772 | DO109: -406.7142 | DP109: -365.8364
B110: 8700 | C110: - | D110: 8799 | E110: 8750 | F110: 0 | G110: 9 | H110: 25 | I110: 25 | J110: 25 | K110: 25 | L110: 25 | M110: 25 | N110: 25 | O110: 25 | P110: 25 | Q110: 25 | R110: 25 | S110: 25 | T110: 25 | U110: 25 | V110: 25 | W110: 25 | X110: 25 | Z110: 8700 | AA110: - | AB110: 8799 | AD110: -13 | AE110: -13 | AF110: -13 | AG110: -13 | AH110: -13 | AI110: -13 | AJ110: -13 | AK110: -13 | AL110: -13 | AM110: -13 | AN110: -13 | AO110: -13 | AP110: -13 | AQ110: -13 | AR110: -13 | AS110: -13 | AT110: -13 | AU110: -13 | AV110: -5 | BV110: 8700 | BW110: - | BX110: 8799 | BZ110: 0 | CA110: 0 | CB110: 12 | CC110: 12 | CD110: 12 | CE110: 12 | CF110: 12 | CG110: 12 | CH110: 12 | CI110: 12 | CJ110: 12 | CK110: 12 | CL110: 12 | CM110: 12 | CN110: 12 | CO110: 12 | CP110: 12 | CQ110: 12 | CR110: 20 | CS110: 8750 | CU110: 8700 | CV110: - | CW110: 8799 | CX110: -2475 | CY110: -2385.75 | CZ110: -2297 | DA110: -2148.25 | DB110: -1999.5 | DC110: -1850.75 | DD110: -1702 | DE110: -1553.25 | DF110: -1404.5 | DG110: -1255.75 | DH110: -1107 | DI110: -958.25 | DJ110: -809.5 | DK110: -660.75 | DL110: -795.22 | DM110: -667.295 | DN110: -539.37 | DO110: -411.445 | DP110: -374.69
B111: 8800 | C111: - | D111: 8899 | E111: 8850 | F111: 0 | G111: 9 | H111: 25 | I111: 25 | J111: 25 | K111: 25 | L111: 25 | M111: 25 | N111: 25 | O111: 25 | P111: 25 | Q111: 25 | R111: 25 | S111: 25 | T111: 25 | U111: 25 | V111: 25 | W111: 25 | X111: 25 | Z111: 8800 | AA111: - | AB111: 8899 | AD111: -13 | AE111: -13 | AF111: -13 | AG111: -13 | AH111: -13 | AI111: -13 | AJ111: -13 | AK111: -13 | AL111: -13 | AM111: -13 | AN111: -13 | AO111: -13 | AP111: -13 | AQ111: -13 | AR111: -13 | AS111: -13 | AT111: -13 | AU111: -13 | AV111: -6 | BV111: 8800 | BW111: - | BX111: 8899 | BZ111: 0 | CA111: 0 | CB111: 12 | CC111: 12 | CD111: 12 | CE111: 12 | CF111: 12 | CG111: 12 | CH111: 12 | CI111: 12 | CJ111: 12 | CK111: 12 | CL111: 12 | CM111: 12 | CN111: 12 | CO111: 12 | CP111: 12 | CQ111: 12 | CR111: 19 | CS111: 8850 | CU111: 8800 | CV111: - | CW111: 8899 | CX111: -2509 | CY111: -2418.73 | CZ111: -2328.28 | DA111: -2177.83 | DB111: -2027.38 | DC111: -1876.93 | DD111: -1726.48 | DE111: -1576.03 | DF111: -1425.58 | DG111: -1275.13 | DH111: -1124.68 | DI111: -974.23 | DJ111: -823.78 | DK111: -673.33 | DL111: -809.3368 | DM111: -679.9498 | DN111: -550.5628 | DO111: -421.1758 | DP111: -378.5436
B112: 8900 | C112: - | D112: 8999 | E112: 8950 | F112: 0 | G112: 9 | H112: 25 | I112: 25 | J112: 25 | K112: 25 | L112: 25 | M112: 25 | N112: 25 | O112: 25 | P112: 25 | Q112: 25 | R112: 25 | S112: 25 | T112: 25 | U112: 25 | V112: 25 | W112: 25 | X112: 25 | Z112: 8900 | AA112: - | AB112: 8999 | AD112: -13 | AE112: -13 | AF112: -13 | AG112: -13 | AH112: -13 | AI112: -13 | AJ112: -13 | AK112: -13 | AL112: -13 | AM112: -13 | AN112: -13 | AO112: -13 | AP112: -13 | AQ112: -13 | AR112: -13 | AS112: -13 | AT112: -13 | AU112: -13 | AV112: -6 | BV112: 8900 | BW112: - | BX112: 8999 | BZ112: 0 | CA112: 0 | CB112: 12 | CC112: 12 | CD112: 12 | CE112: 12 | CF112: 12 | CG112: 12 | CH112: 12 | CI112: 12 | CJ112: 12 | CK112: 12 | CL112: 12 | CM112: 12 | CN112: 12 | CO112: 12 | CP112: 12 | CQ112: 12 | CR112: 19 | CS112: 8950 | CU112: 8900 | CV112: - | CW112: 8999 | CX112: -2543 | CY112: -2451.71 | CZ112: -2359.56 | DA112: -2207.41 | DB112: -2055.26 | DC112: -1903.11 | DD112: -1750.96 | DE112: -1598.81 | DF112: -1446.66 | DG112: -1294.51 | DH112: -1142.36 | DI112: -990.21 | DJ112: -838.06 | DK112: -685.91 | DL112: -823.4536 | DM112: -692.6046 | DN112: -561.7556 | DO112: -430.9066 | DP112: -387.3972
B113: 9000 | C113: - | D113: 9099 | E113: 9050 | F113: 0 | G113: 10 | H113: 25 | I113: 25 | J113: 25 | K113: 25 | L113: 25 | M113: 25 | N113: 25 | O113: 25 | P113: 25 | Q113: 25 | R113: 25 | S113: 25 | T113: 25 | U113: 25 | V113: 25 | W113: 25 | X113: 25 | Z113: 9000 | AA113: - | AB113: 9099 | AD113: -13 | AE113: -13 | AF113: -13 | AG113: -13 | AH113: -13 | AI113: -13 | AJ113: -13 | AK113: -13 | AL113: -13 | AM113: -13 | AN113: -13 | AO113: -13 | AP113: -13 | AQ113: -13 | AR113: -13 | AS113: -13 | AT113: -13 | AU113: -13 | AV113: -6 | BV113: 9000 | BW113: - | BX113: 9099 | BZ113: 0 | CA113: 0 | CB113: 12 | CC113: 12 | CD113: 12 | CE113: 12 | CF113: 12 | CG113: 12 | CH113: 12 | CI113: 12 | CJ113: 12 | CK113: 12 | CL113: 12 | CM113: 12 | CN113: 12 | CO113: 12 | CP113: 12 | CQ113: 12 | CR113: 19 | CS113: 9050 | CU113: 9000 | CV113: - | CW113: 9099 | CX113: -2577 | CY113: -2484.69 | CZ113: -2390.84 | DA113: -2236.99 | DB113: -2083.14 | DC113: -1929.29 | DD113: -1775.44 | DE113: -1621.59 | DF113: -1467.74 | DG113: -1313.89 | DH113: -1160.04 | DI113: -1006.19 | DJ113: -852.34 | DK113: -698.49 | DL113: -837.5704 | DM113: -705.2594 | DN113: -572.9484 | DO113: -440.6374 | DP113: -396.2508
B114: 9100 | C114: - | D114: 9199 | E114: 9150 | F114: 0 | G114: 10 | H114: 25 | I114: 25 | J114: 25 | K114: 25 | L114: 25 | M114: 25 | N114: 25 | O114: 25 | P114: 25 | Q114: 25 | R114: 25 | S114: 25 | T114: 25 | U114: 25 | V114: 25 | W114: 25 | X114: 25 | Z114: 9100 | AA114: - | AB114: 9199 | AD114: -13 | AE114: -13 | AF114: -13 | AG114: -13 | AH114: -13 | AI114: -13 | AJ114: -13 | AK114: -13 | AL114: -13 | AM114: -13 | AN114: -13 | AO114: -13 | AP114: -13 | AQ114: -13 | AR114: -13 | AS114: -13 | AT114: -13 | AU114: -13 | AV114: -7 | BV114: 9100 | BW114: - | BX114: 9199 | BZ114: 0 | CA114: 0 | CB114: 12 | CC114: 12 | CD114: 12 | CE114: 12 | CF114: 12 | CG114: 12 | CH114: 12 | CI114: 12 | CJ114: 12 | CK114: 12 | CL114: 12 | CM114: 12 | CN114: 12 | CO114: 12 | CP114: 12 | CQ114: 12 | CR114: 18 | CS114: 9150 | CU114: 9100 | CV114: - | CW114: 9199 | CX114: -2611 | CY114: -2517.67 | CZ114: -2422.12 | DA114: -2266.57 | DB114: -2111.02 | DC114: -1955.47 | DD114: -1799.92 | DE114: -1644.37 | DF114: -1488.82 | DG114: -1333.27 | DH114: -1177.72 | DI114: -1022.17 | DJ114: -866.62 | DK114: -711.07 | DL114: -851.6872 | DM114: -717.9142 | DN114: -584.1412 | DO114: -450.3682 | DP114: -400.1044
B115: 9200 | C115: - | D115: 9299 | E115: 9250 | F115: 0 | G115: 10 | H115: 25 | I115: 25 | J115: 25 | K115: 25 | L115: 25 | M115: 25 | N115: 25 | O115: 25 | P115: 25 | Q115: 25 | R115: 25 | S115: 25 | T115: 25 | U115: 25 | V115: 25 | W115: 25 | X115: 25 | Z115: 9200 | AA115: - | AB115: 9299 | AD115: -13 | AE115: -13 | AF115: -13 | AG115: -13 | AH115: -13 | AI115: -13 | AJ115: -13 | AK115: -13 | AL115: -13 | AM115: -13 | AN115: -13 | AO115: -13 | AP115: -13 | AQ115: -13 | AR115: -13 | AS115: -13 | AT115: -13 | AU115: -13 | AV115: -7 | BV115: 9200 | BW115: - | BX115: 9299 | BZ115: 0 | CA115: 0 | CB115: 12 | CC115: 12 | CD115: 12 | CE115: 12 | CF115: 12 | CG115: 12 | CH115: 12 | CI115: 12 | CJ115: 12 | CK115: 12 | CL115: 12 | CM115: 12 | CN115: 12 | CO115: 12 | CP115: 12 | CQ115: 12 | CR115: 18 | CS115: 9250 | CU115: 9200 | CV115: - | CW115: 9299 | CX115: -2645 | CY115: -2550.65 | CZ115: -2453.4 | DA115: -2296.15 | DB115: -2138.9 | DC115: -1981.65 | DD115: -1824.4 | DE115: -1667.15 | DF115: -1509.9 | DG115: -1352.65 | DH115: -1195.4 | DI115: -1038.15 | DJ115: -880.9 | DK115: -723.65 | DL115: -865.804 | DM115: -730.569 | DN115: -595.334 | DO115: -460.099 | DP115: -408.958
B116: 9300 | C116: - | D116: 9399 | E116: 9350 | F116: 0 | G116: 10 | H116: 25 | I116: 25 | J116: 25 | K116: 25 | L116: 25 | M116: 25 | N116: 25 | O116: 25 | P116: 25 | Q116: 25 | R116: 25 | S116: 25 | T116: 25 | U116: 25 | V116: 25 | W116: 25 | X116: 25 | Z116: 9300 | AA116: - | AB116: 9399 | AD116: -13 | AE116: -13 | AF116: -13 | AG116: -13 | AH116: -13 | AI116: -13 | AJ116: -13 | AK116: -13 | AL116: -13 | AM116: -13 | AN116: -13 | AO116: -13 | AP116: -13 | AQ116: -13 | AR116: -13 | AS116: -13 | AT116: -13 | AU116: -13 | AV116: -8 | BV116: 9300 | BW116: - | BX116: 9399 | BZ116: 0 | CA116: 0 | CB116: 12 | CC116: 12 | CD116: 12 | CE116: 12 | CF116: 12 | CG116: 12 | CH116: 12 | CI116: 12 | CJ116: 12 | CK116: 12 | CL116: 12 | CM116: 12 | CN116: 12 | CO116: 12 | CP116: 12 | CQ116: 12 | CR116: 17 | CS116: 9350 | CU116: 9300 | CV116: - | CW116: 9399 | CX116: -2679 | CY116: -2583.63 | CZ116: -2484.68 | DA116: -2325.73 | DB116: -2166.78 | DC116: -2007.83 | DD116: -1848.88 | DE116: -1689.93 | DF116: -1530.98 | DG116: -1372.03 | DH116: -1213.08 | DI116: -1054.13 | DJ116: -895.18 | DK116: -736.23 | DL116: -879.9208 | DM116: -743.2238 | DN116: -606.5268 | DO116: -469.8298 | DP116: -412.8116
B117: více jak 9400 | E117: 9450 | F117: 0 | G117: 10 | H117: 25 | I117: 25 | J117: 25 | K117: 25 | L117: 25 | M117: 25 | N117: 25 | O117: 25 | P117: 25 | Q117: 25 | R117: 25 | S117: 25 | T117: 25 | U117: 25 | V117: 25 | W117: 25 | X117: 25 | Z117: více jak 9400 | AD117: -13 | AE117: -13 | AF117: -13 | AG117: -13 | AH117: -13 | AI117: -13 | AJ117: -13 | AK117: -13 | AL117: -13 | AM117: -13 | AN117: -13 | AO117: -13 | AP117: -13 | AQ117: -13 | AR117: -13 | AS117: -13 | AT117: -13 | AU117: -13 | AV117: -8 | BV117: více jak 9400 | BZ117: 0 | CA117: 0 | CB117: 12 | CC117: 12 | CD117: 12 | CE117: 12 | CF117: 12 | CG117: 12 | CH117: 12 | CI117: 12 | CJ117: 12 | CK117: 12 | CL117: 12 | CM117: 12 | CN117: 12 | CO117: 12 | CP117: 12 | CQ117: 12 | CR117: 17 | CS117: 9450 | CU117: více jak 9400 | CX117: -2713 | CY117: -2616.61 | CZ117: -2515.96 | DA117: -2355.31 | DB117: -2194.66 | DC117: -2034.01 | DD117: -1873.36 | DE117: -1712.71 | DF117: -1552.06 | DG117: -1391.41 | DH117: -1230.76 | DI117: -1070.11 | DJ117: -909.46 | DK117: -748.81 | DL117: -894.0376 | DM117: -755.8786 | DN117: -617.7196 | DO117: -479.5606 | DP117: -421.6652

Sheet bt (hidden)
A1: objem | B1: objem_min | C1: objem_max | D1: ='Nastavení příloh'!F13 -> 0 % | E1: ='Nastavení příloh'!G13 -> 1-5 % | F1: ='Nastavení příloh'!H13 -> 6-10 % | G1: ='Nastavení příloh'!I13 -> 11-15 % | H1: ='Nastavení příloh'!J13 -> 16-20 % | I1: ='Nastavení příloh'!K13 -> 21-25 % | J1: ='Nastavení příloh'!L13 -> 26-30 % | K1: ='Nastavení příloh'!M13 -> 31-35 % | L1: ='Nastavení příloh'!N13 -> 36-40 % | M1: ='Nastavení příloh'!O13 -> 41-45 % | N1: ='Nastavení příloh'!P13 -> 46-50 % | O1: ='Nastavení příloh'!Q13 -> 51-55 % | P1: ='Nastavení příloh'!R13 -> 56-60 % | Q1: ='Nastavení příloh'!S13 -> 61-65 % | R1: ='Nastavení příloh'!T13 -> 66-70 % | S1: ='Nastavení příloh'!U13 -> 71-75 % | T1: ='Nastavení příloh'!V13 -> 76-80 % | U1: ='Nastavení příloh'!W13 -> 81-85 % | V1: ='Nastavení příloh'!X13 -> více jak 85 %
A2: ='Nastavení příloh'!E16 -> 550 | B2: ='Nastavení příloh'!B16 -> 0 | C2: ='Nastavení příloh'!D16 -> 599 | D2: ='Nastavení příloh'!F16 -> 0 | E2: ='Nastavení příloh'!G16 -> 1 | F2: ='Nastavení příloh'!H16 -> 2 | G2: ='Nastavení příloh'!I16 -> 3 | H2: ='Nastavení příloh'!J16 -> 3 | I2: ='Nastavení příloh'!K16 -> 4 | J2: ='Nastavení příloh'!L16 -> 5 | K2: ='Nastavení příloh'!M16 -> 6 | L2: ='Nastavení příloh'!N16 -> 7 | M2: ='Nastavení příloh'!O16 -> 8 | N2: ='Nastavení příloh'!P16 -> 9 | O2: ='Nastavení příloh'!Q16 -> 10 | P2: ='Nastavení příloh'!R16 -> 11 | Q2: ='Nastavení příloh'!S16 -> 12 | R2: ='Nastavení příloh'!T16 -> 13 | S2: ='Nastavení příloh'!U16 -> 14 | T2: ='Nastavení příloh'!V16 -> 15 | U2: ='Nastavení příloh'!W16 -> 16 | V2: ='Nastavení příloh'!X16 -> 17
A3: ='Nastavení příloh'!E17 -> 650 | B3: ='Nastavení příloh'!B17 -> 600 | C3: ='Nastavení příloh'!D17 -> 699 | D3: ='Nastavení příloh'!F17 -> 0 | E3: ='Nastavení příloh'!G17 -> 1 | F3: ='Nastavení příloh'!H17 -> 2 | G3: ='Nastavení příloh'!I17 -> 3 | H3: ='Nastavení příloh'!J17 -> 4 | I3: ='Nastavení příloh'!K17 -> 5 | J3: ='Nastavení příloh'!L17 -> 6 | K3: ='Nastavení příloh'!M17 -> 8 | L3: ='Nastavení příloh'!N17 -> 9 | M3: ='Nastavení příloh'!O17 -> 10 | N3: ='Nastavení příloh'!P17 -> 11 | O3: ='Nastavení příloh'!Q17 -> 12 | P3: ='Nastavení příloh'!R17 -> 13 | Q3: ='Nastavení příloh'!S17 -> 14 | R3: ='Nastavení příloh'!T17 -> 15 | S3: ='Nastavení příloh'!U17 -> 17 | T3: ='Nastavení příloh'!V17 -> 18 | U3: ='Nastavení příloh'!W17 -> 19 | V3: ='Nastavení příloh'!X17 -> 20
A4: ='Nastavení příloh'!E18 -> 750 | B4: ='Nastavení příloh'!B18 -> 700 | C4: ='Nastavení příloh'!D18 -> 799 | D4: ='Nastavení příloh'!F18 -> 0 | E4: ='Nastavení příloh'!G18 -> 1 | F4: ='Nastavení příloh'!H18 -> 2 | G4: ='Nastavení příloh'!I18 -> 3 | H4: ='Nastavení příloh'!J18 -> 5 | I4: ='Nastavení příloh'!K18 -> 6 | J4: ='Nastavení příloh'!L18 -> 7 | K4: ='Nastavení příloh'!M18 -> 9 | L4: ='Nastavení příloh'!N18 -> 10 | M4: ='Nastavení příloh'!O18 -> 11 | N4: ='Nastavení příloh'!P18 -> 13 | O4: ='Nastavení příloh'!Q18 -> 14 | P4: ='Nastavení příloh'!R18 -> 15 | Q4: ='Nastavení příloh'!S18 -> 17 | R4: ='Nastavení příloh'!T18 -> 18 | S4: ='Nastavení příloh'!U18 -> 19 | T4: ='Nastavení příloh'!V18 -> 20 | U4: ='Nastavení příloh'!W18 -> 22 | V4: ='Nastavení příloh'!X18 -> 23
A5: ='Nastavení příloh'!E19 -> 850 | B5: ='Nastavení příloh'!B19 -> 800 | C5: ='Nastavení příloh'!D19 -> 899 | D5: ='Nastavení příloh'!F19 -> 0 | E5: ='Nastavení příloh'!G19 -> 1 | F5: ='Nastavení příloh'!H19 -> 2 | G5: ='Nastavení příloh'!I19 -> 4 | H5: ='Nastavení příloh'!J19 -> 5 | I5: ='Nastavení příloh'!K19 -> 7 | J5: ='Nastavení příloh'!L19 -> 8 | K5: ='Nastavení příloh'!M19 -> 10 | L5: ='Nastavení příloh'!N19 -> 11 | M5: ='Nastavení příloh'!O19 -> 13 | N5: ='Nastavení příloh'!P19 -> 14 | O5: ='Nastavení příloh'!Q19 -> 16 | P5: ='Nastavení příloh'!R19 -> 17 | Q5: ='Nastavení příloh'!S19 -> 19 | R5: ='Nastavení příloh'!T19 -> 20 | S5: ='Nastavení příloh'!U19 -> 22 | T5: ='Nastavení příloh'!V19 -> 23 | U5: ='Nastavení příloh'!W19 -> 25 | V5: ='Nastavení příloh'!X19 -> 25
A6: ='Nastavení příloh'!E20 -> 950 | B6: ='Nastavení příloh'!B20 -> 900 | C6: ='Nastavení příloh'!D20 -> 999 | D6: ='Nastavení příloh'!F20 -> 0 | E6: ='Nastavení příloh'!G20 -> 1 | F6: ='Nastavení příloh'!H20 -> 3 | G6: ='Nastavení příloh'!I20 -> 4 | H6: ='Nastavení příloh'!J20 -> 6 | I6: ='Nastavení příloh'!K20 -> 8 | J6: ='Nastavení příloh'!L20 -> 9 | K6: ='Nastavení příloh'!M20 -> 11 | L6: ='Nastavení příloh'!N20 -> 13 | M6: ='Nastavení příloh'!O20 -> 14 | N6: ='Nastavení příloh'!P20 -> 16 | O6: ='Nastavení příloh'!Q20 -> 18 | P6: ='Nastavení příloh'!R20 -> 19 | Q6: ='Nastavení příloh'!S20 -> 21 | R6: ='Nastavení příloh'!T20 -> 23 | S6: ='Nastavení příloh'!U20 -> 24 | T6: ='Nastavení příloh'!V20 -> 25 | U6: ='Nastavení příloh'!W20 -> 25 | V6: ='Nastavení příloh'!X20 -> 25
A7: ='Nastavení příloh'!E21 -> 1050 | B7: ='Nastavení příloh'!B21 -> 1000 | C7: ='Nastavení příloh'!D21 -> 1099 | D7: ='Nastavení příloh'!F21 -> 0 | E7: ='Nastavení příloh'!G21 -> 1 | F7: ='Nastavení příloh'!H21 -> 3 | G7: ='Nastavení příloh'!I21 -> 5 | H7: ='Nastavení příloh'!J21 -> 7 | I7: ='Nastavení příloh'!K21 -> 8 | J7: ='Nastavení příloh'!L21 -> 10 | K7: ='Nastavení příloh'!M21 -> 12 | L7: ='Nastavení příloh'!N21 -> 14 | M7: ='Nastavení příloh'!O21 -> 16 | N7: ='Nastavení příloh'!P21 -> 18 | O7: ='Nastavení příloh'!Q21 -> 19 | P7: ='Nastavení příloh'!R21 -> 21 | Q7: ='Nastavení příloh'!S21 -> 23 | R7: ='Nastavení příloh'!T21 -> 25 | S7: ='Nastavení příloh'!U21 -> 25 | T7: ='Nastavení příloh'!V21 -> 25 | U7: ='Nastavení příloh'!W21 -> 25 | V7: ='Nastavení příloh'!X21 -> 25
A8: ='Nastavení příloh'!E22 -> 1150 | B8: ='Nastavení příloh'!B22 -> 1100 | C8: ='Nastavení příloh'!D22 -> 1199 | D8: ='Nastavení příloh'!F22 -> 0 | E8: ='Nastavení příloh'!G22 -> 1 | F8: ='Nastavení příloh'!H22 -> 3 | G8: ='Nastavení příloh'!I22 -> 5 | H8: ='Nastavení příloh'!J22 -> 7 | I8: ='Nastavení příloh'!K22 -> 9 | J8: ='Nastavení příloh'!L22 -> 11 | K8: ='Nastavení příloh'!M22 -> 13 | L8: ='Nastavení příloh'!N22 -> 15 | M8: ='Nastavení příloh'!O22 -> 17 | N8: ='Nastavení příloh'!P22 -> 19 | O8: ='Nastavení příloh'!Q22 -> 21 | P8: ='Nastavení příloh'!R22 -> 23 | Q8: ='Nastavení příloh'!S22 -> 25 | R8: ='Nastavení příloh'!T22 -> 25 | S8: ='Nastavení příloh'!U22 -> 25 | T8: ='Nastavení příloh'!V22 -> 25 | U8: ='Nastavení příloh'!W22 -> 25 | V8: ='Nastavení příloh'!X22 -> 25
A9: ='Nastavení příloh'!E23 -> 1250 | B9: ='Nastavení příloh'!B23 -> 1200 | C9: ='Nastavení příloh'!D23 -> 1299 | D9: ='Nastavení příloh'!F23 -> 0 | E9: ='Nastavení příloh'!G23 -> 1 | F9: ='Nastavení příloh'!H23 -> 4 | G9: ='Nastavení příloh'!I23 -> 6 | H9: ='Nastavení příloh'!J23 -> 8 | I9: ='Nastavení příloh'!K23 -> 10 | J9: ='Nastavení příloh'!L23 -> 12 | K9: ='Nastavení příloh'!M23 -> 14 | L9: ='Nastavení příloh'!N23 -> 17 | M9: ='Nastavení příloh'!O23 -> 19 | N9: ='Nastavení příloh'!P23 -> 21 | O9: ='Nastavení příloh'!Q23 -> 23 | P9: ='Nastavení příloh'!R23 -> 25 | Q9: ='Nastavení příloh'!S23 -> 25 | R9: ='Nastavení příloh'!T23 -> 25 | S9: ='Nastavení příloh'!U23 -> 25 | T9: ='Nastavení příloh'!V23 -> 25 | U9: ='Nastavení příloh'!W23 -> 25 | V9: ='Nastavení příloh'!X23 -> 25
A10: ='Nastavení příloh'!E24 -> 1350 | B10: ='Nastavení příloh'!B24 -> 1300 | C10: ='Nastavení příloh'!D24 -> 1399 | D10: ='Nastavení příloh'!F24 -> 0 | E10: ='Nastavení příloh'!G24 -> 1 | F10: ='Nastavení příloh'!H24 -> 4 | G10: ='Nastavení příloh'!I24 -> 6 | H10: ='Nastavení příloh'!J24 -> 9 | I10: ='Nastavení příloh'!K24 -> 11 | J10: ='Nastavení příloh'!L24 -> 13 | K10: ='Nastavení příloh'!M24 -> 16 | L10: ='Nastavení příloh'!N24 -> 18 | M10: ='Nastavení příloh'!O24 -> 20 | N10: ='Nastavení příloh'!P24 -> 23 | O10: ='Nastavení příloh'!Q24 -> 25 | P10: ='Nastavení příloh'!R24 -> 25 | Q10: ='Nastavení příloh'!S24 -> 25 | R10: ='Nastavení příloh'!T24 -> 25 | S10: ='Nastavení příloh'!U24 -> 25 | T10: ='Nastavení příloh'!V24 -> 25 | U10: ='Nastavení příloh'!W24 -> 25 | V10: ='Nastavení příloh'!X24 -> 25
A11: ='Nastavení příloh'!E25 -> 1450 | B11: ='Nastavení příloh'!B25 -> 1400 | C11: ='Nastavení příloh'!D25 -> 1499 | D11: ='Nastavení příloh'!F25 -> 0 | E11: ='Nastavení příloh'!G25 -> 2 | F11: ='Nastavení příloh'!H25 -> 4 | G11: ='Nastavení příloh'!I25 -> 7 | H11: ='Nastavení příloh'!J25 -> 9 | I11: ='Nastavení příloh'!K25 -> 12 | J11: ='Nastavení příloh'!L25 -> 14 | K11: ='Nastavení příloh'!M25 -> 17 | L11: ='Nastavení příloh'!N25 -> 19 | M11: ='Nastavení příloh'!O25 -> 22 | N11: ='Nastavení příloh'!P25 -> 24 | O11: ='Nastavení příloh'!Q25 -> 25 | P11: ='Nastavení příloh'!R25 -> 25 | Q11: ='Nastavení příloh'!S25 -> 25 | R11: ='Nastavení příloh'!T25 -> 25 | S11: ='Nastavení příloh'!U25 -> 25 | T11: ='Nastavení příloh'!V25 -> 25 | U11: ='Nastavení příloh'!W25 -> 25 | V11: ='Nastavení příloh'!X25 -> 25
A12: ='Nastavení příloh'!E26 -> 1550 | B12: ='Nastavení příloh'!B26 -> 1500 | C12: ='Nastavení příloh'!D26 -> 1599 | D12: ='Nastavení příloh'!F26 -> 0 | E12: ='Nastavení příloh'!G26 -> 2 | F12: ='Nastavení příloh'!H26 -> 4 | G12: ='Nastavení příloh'!I26 -> 7 | H12: ='Nastavení příloh'!J26 -> 10 | I12: ='Nastavení příloh'!K26 -> 12 | J12: ='Nastavení příloh'!L26 -> 15 | K12: ='Nastavení příloh'!M26 -> 18 | L12: ='Nastavení příloh'!N26 -> 21 | M12: ='Nastavení příloh'!O26 -> 23 | N12: ='Nastavení příloh'!P26 -> 25 | O12: ='Nastavení příloh'!Q26 -> 25 | P12: ='Nastavení příloh'!R26 -> 25 | Q12: ='Nastavení příloh'!S26 -> 25 | R12: ='Nastavení příloh'!T26 -> 25 | S12: ='Nastavení příloh'!U26 -> 25 | T12: ='Nastavení příloh'!V26 -> 25 | U12: ='Nastavení příloh'!W26 -> 25 | V12: ='Nastavení příloh'!X26 -> 25
A13: ='Nastavení příloh'!E27 -> 1650 | B13: ='Nastavení příloh'!B27 -> 1600 | C13: ='Nastavení příloh'!D27 -> 1699 | D13: ='Nastavení příloh'!F27 -> 0 | E13: ='Nastavení příloh'!G27 -> 2 | F13: ='Nastavení příloh'!H27 -> 5 | G13: ='Nastavení příloh'!I27 -> 8 | H13: ='Nastavení příloh'!J27 -> 10 | I13: ='Nastavení příloh'!K27 -> 13 | J13: ='Nastavení příloh'!L27 -> 16 | K13: ='Nastavení příloh'!M27 -> 19 | L13: ='Nastavení příloh'!N27 -> 22 | M13: ='Nastavení příloh'!O27 -> 25 | N13: ='Nastavení příloh'!P27 -> 25 | O13: ='Nastavení příloh'!Q27 -> 25 | P13: ='Nastavení příloh'!R27 -> 25 | Q13: ='Nastavení příloh'!S27 -> 25 | R13: ='Nastavení příloh'!T27 -> 25 | S13: ='Nastavení příloh'!U27 -> 25 | T13: ='Nastavení příloh'!V27 -> 25 | U13: ='Nastavení příloh'!W27 -> 25 | V13: ='Nastavení příloh'!X27 -> 25
A14: ='Nastavení příloh'!E28 -> 1750 | B14: ='Nastavení příloh'!B28 -> 1700 | C14: ='Nastavení příloh'!D28 -> 1799 | D14: ='Nastavení příloh'!F28 -> 0 | E14: ='Nastavení příloh'!G28 -> 2 | F14: ='Nastavení příloh'!H28 -> 5 | G14: ='Nastavení příloh'!I28 -> 8 | H14: ='Nastavení příloh'!J28 -> 11 | I14: ='Nastavení příloh'!K28 -> 14 | J14: ='Nastavení příloh'!L28 -> 17 | K14: ='Nastavení příloh'!M28 -> 20 | L14: ='Nastavení příloh'!N28 -> 23 | M14: ='Nastavení příloh'!O28 -> 25 | N14: ='Nastavení příloh'!P28 -> 25 | O14: ='Nastavení příloh'!Q28 -> 25 | P14: ='Nastavení příloh'!R28 -> 25 | Q14: ='Nastavení příloh'!S28 -> 25 | R14: ='Nastavení příloh'!T28 -> 25 | S14: ='Nastavení příloh'!U28 -> 25 | T14: ='Nastavení příloh'!V28 -> 25 | U14: ='Nastavení příloh'!W28 -> 25 | V14: ='Nastavení příloh'!X28 -> 25
A15: ='Nastavení příloh'!E29 -> 1850 | B15: ='Nastavení příloh'!B29 -> 1800 | C15: ='Nastavení příloh'!D29 -> 1899 | D15: ='Nastavení příloh'!F29 -> 0 | E15: ='Nastavení příloh'!G29 -> 2 | F15: ='Nastavení příloh'!H29 -> 5 | G15: ='Nastavení příloh'!I29 -> 8 | H15: ='Nastavení příloh'!J29 -> 12 | I15: ='Nastavení příloh'!K29 -> 15 | J15: ='Nastavení příloh'!L29 -> 18 | K15: ='Nastavení příloh'!M29 -> 21 | L15: ='Nastavení příloh'!N29 -> 25 | M15: ='Nastavení příloh'!O29 -> 25 | N15: ='Nastavení příloh'!P29 -> 25 | O15: ='Nastavení příloh'!Q29 -> 25 | P15: ='Nastavení příloh'!R29 -> 25 | Q15: ='Nastavení příloh'!S29 -> 25 | R15: ='Nastavení příloh'!T29 -> 25 | S15: ='Nastavení příloh'!U29 -> 25 | T15: ='Nastavení příloh'!V29 -> 25 | U15: ='Nastavení příloh'!W29 -> 25 | V15: ='Nastavení příloh'!X29 -> 25
A16: ='Nastavení příloh'!E30 -> 1950 | B16: ='Nastavení příloh'!B30 -> 1900 | C16: ='Nastavení příloh'!D30 -> 1999 | D16: ='Nastavení příloh'!F30 -> 0 | E16: ='Nastavení příloh'!G30 -> 2 | F16: ='Nastavení příloh'!H30 -> 5 | G16: ='Nastavení příloh'!I30 -> 9 | H16: ='Nastavení příloh'!J30 -> 12 | I16: ='Nastavení příloh'!K30 -> 16 | J16: ='Nastavení příloh'!L30 -> 19 | K16: ='Nastavení příloh'!M30 -> 23 | L16: ='Nastavení příloh'!N30 -> 25 | M16: ='Nastavení příloh'!O30 -> 25 | N16: ='Nastavení příloh'!P30 -> 25 | O16: ='Nastavení příloh'!Q30 -> 25 | P16: ='Nastavení příloh'!R30 -> 25 | Q16: ='Nastavení příloh'!S30 -> 25 | R16: ='Nastavení příloh'!T30 -> 25 | S16: ='Nastavení příloh'!U30 -> 25 | T16: ='Nastavení příloh'!V30 -> 25 | U16: ='Nastavení příloh'!W30 -> 25 | V16: ='Nastavení příloh'!X30 -> 25
A17: ='Nastavení příloh'!E31 -> 2050 | B17: ='Nastavení příloh'!B31 -> 2000 | C17: ='Nastavení příloh'!D31 -> 2099 | D17: ='Nastavení příloh'!F31 -> 0 | E17: ='Nastavení příloh'!G31 -> 2 | F17: ='Nastavení příloh'!H31 -> 6 | G17: ='Nastavení příloh'!I31 -> 9 | H17: ='Nastavení příloh'!J31 -> 13 | I17: ='Nastavení příloh'!K31 -> 17 | J17: ='Nastavení příloh'!L31 -> 20 | K17: ='Nastavení příloh'!M31 -> 24 | L17: ='Nastavení příloh'!N31 -> 25 | M17: ='Nastavení příloh'!O31 -> 25 | N17: ='Nastavení příloh'!P31 -> 25 | O17: ='Nastavení příloh'!Q31 -> 25 | P17: ='Nastavení příloh'!R31 -> 25 | Q17: ='Nastavení příloh'!S31 -> 25 | R17: ='Nastavení příloh'!T31 -> 25 | S17: ='Nastavení příloh'!U31 -> 25 | T17: ='Nastavení příloh'!V31 -> 25 | U17: ='Nastavení příloh'!W31 -> 25 | V17: ='Nastavení příloh'!X31 -> 25
A18: ='Nastavení příloh'!E32 -> 2150 | B18: ='Nastavení příloh'!B32 -> 2100 | C18: ='Nastavení příloh'!D32 -> 2199 | D18: ='Nastavení příloh'!F32 -> 0 | E18: ='Nastavení příloh'!G32 -> 2 | F18: ='Nastavení příloh'!H32 -> 6 | G18: ='Nastavení příloh'!I32 -> 10 | H18: ='Nastavení příloh'!J32 -> 14 | I18: ='Nastavení příloh'!K32 -> 17 | J18: ='Nastavení příloh'!L32 -> 21 | K18: ='Nastavení příloh'!M32 -> 25 | L18: ='Nastavení příloh'!N32 -> 25 | M18: ='Nastavení příloh'!O32 -> 25 | N18: ='Nastavení příloh'!P32 -> 25 | O18: ='Nastavení příloh'!Q32 -> 25 | P18: ='Nastavení příloh'!R32 -> 25 | Q18: ='Nastavení příloh'!S32 -> 25 | R18: ='Nastavení příloh'!T32 -> 25 | S18: ='Nastavení příloh'!U32 -> 25 | T18: ='Nastavení příloh'!V32 -> 25 | U18: ='Nastavení příloh'!W32 -> 25 | V18: ='Nastavení příloh'!X32 -> 25
A19: ='Nastavení příloh'!E33 -> 2250 | B19: ='Nastavení příloh'!B33 -> 2200 | C19: ='Nastavení příloh'!D33 -> 2299 | D19: ='Nastavení příloh'!F33 -> 0 | E19: ='Nastavení příloh'!G33 -> 2 | F19: ='Nastavení příloh'!H33 -> 6 | G19: ='Nastavení příloh'!I33 -> 10 | H19: ='Nastavení příloh'!J33 -> 14 | I19: ='Nastavení příloh'!K33 -> 18 | J19: ='Nastavení příloh'!L33 -> 22 | K19: ='Nastavení příloh'!M33 -> 25 | L19: ='Nastavení příloh'!N33 -> 25 | M19: ='Nastavení příloh'!O33 -> 25 | N19: ='Nastavení příloh'!P33 -> 25 | O19: ='Nastavení příloh'!Q33 -> 25 | P19: ='Nastavení příloh'!R33 -> 25 | Q19: ='Nastavení příloh'!S33 -> 25 | R19: ='Nastavení příloh'!T33 -> 25 | S19: ='Nastavení příloh'!U33 -> 25 | T19: ='Nastavení příloh'!V33 -> 25 | U19: ='Nastavení příloh'!W33 -> 25 | V19: ='Nastavení příloh'!X33 -> 25
A20: ='Nastavení příloh'!E34 -> 2350 | B20: ='Nastavení příloh'!B34 -> 2300 | C20: ='Nastavení příloh'!D34 -> 2399 | D20: ='Nastavení příloh'!F34 -> 0 | E20: ='Nastavení příloh'!G34 -> 2 | F20: ='Nastavení příloh'!H34 -> 7 | G20: ='Nastavení příloh'!I34 -> 11 | H20: ='Nastavení příloh'!J34 -> 15 | I20: ='Nastavení příloh'!K34 -> 19 | J20: ='Nastavení příloh'!L34 -> 23 | K20: ='Nastavení příloh'!M34 -> 25 | L20: ='Nastavení příloh'!N34 -> 25 | M20: ='Nastavení příloh'!O34 -> 25 | N20: ='Nastavení příloh'!P34 -> 25 | O20: ='Nastavení příloh'!Q34 -> 25 | P20: ='Nastavení příloh'!R34 -> 25 | Q20: ='Nastavení příloh'!S34 -> 25 | R20: ='Nastavení příloh'!T34 -> 25 | S20: ='Nastavení příloh'!U34 -> 25 | T20: ='Nastavení příloh'!V34 -> 25 | U20: ='Nastavení příloh'!W34 -> 25 | V20: ='Nastavení příloh'!X34 -> 25
A21: ='Nastavení příloh'!E35 -> 2450 | B21: ='Nastavení příloh'!B35 -> 2400 | C21: ='Nastavení příloh'!D35 -> 2499 | D21: ='Nastavení příloh'!F35 -> 0 | E21: ='Nastavení příloh'!G35 -> 3 | F21: ='Nastavení příloh'!H35 -> 7 | G21: ='Nastavení příloh'!I35 -> 11 | H21: ='Nastavení příloh'!J35 -> 15 | I21: ='Nastavení příloh'!K35 -> 20 | J21: ='Nastavení příloh'!L35 -> 24 | K21: ='Nastavení příloh'!M35 -> 25 | L21: ='Nastavení příloh'!N35 -> 25 | M21: ='Nastavení příloh'!O35 -> 25 | N21: ='Nastavení příloh'!P35 -> 25 | O21: ='Nastavení příloh'!Q35 -> 25 | P21: ='Nastavení příloh'!R35 -> 25 | Q21: ='Nastavení příloh'!S35 -> 25 | R21: ='Nastavení příloh'!T35 -> 25 | S21: ='Nastavení příloh'!U35 -> 25 | T21: ='Nastavení příloh'!V35 -> 25 | U21: ='Nastavení příloh'!W35 -> 25 | V21: ='Nastavení příloh'!X35 -> 25
A22: ='Nastavení příloh'!E36 -> 2550 | B22: ='Nastavení příloh'!B36 -> 2500 | C22: ='Nastavení příloh'!D36 -> 2599 | D22: ='Nastavení příloh'!F36 -> 0 | E22: ='Nastavení příloh'!G36 -> 3 | F22: ='Nastavení příloh'!H36 -> 7 | G22: ='Nastavení příloh'!I36 -> 12 | H22: ='Nastavení příloh'!J36 -> 16 | I22: ='Nastavení příloh'!K36 -> 21 | J22: ='Nastavení příloh'!L36 -> 25 | K22: ='Nastavení příloh'!M36 -> 25 | L22: ='Nastavení příloh'!N36 -> 25 | M22: ='Nastavení příloh'!O36 -> 25 | N22: ='Nastavení příloh'!P36 -> 25 | O22: ='Nastavení příloh'!Q36 -> 25 | P22: ='Nastavení příloh'!R36 -> 25 | Q22: ='Nastavení příloh'!S36 -> 25 | R22: ='Nastavení příloh'!T36 -> 25 | S22: ='Nastavení příloh'!U36 -> 25 | T22: ='Nastavení příloh'!V36 -> 25 | U22: ='Nastavení příloh'!W36 -> 25 | V22: ='Nastavení příloh'!X36 -> 25
A23: ='Nastavení příloh'!E37 -> 2650 | B23: ='Nastavení příloh'!B37 -> 2600 | C23: ='Nastavení příloh'!D37 -> 2699 | D23: ='Nastavení příloh'!F37 -> 0 | E23: ='Nastavení příloh'!G37 -> 3 | F23: ='Nastavení příloh'!H37 -> 7 | G23: ='Nastavení příloh'!I37 -> 12 | H23: ='Nastavení příloh'!J37 -> 17 | I23: ='Nastavení příloh'!K37 -> 21 | J23: ='Nastavení příloh'!L37 -> 25 | K23: ='Nastavení příloh'!M37 -> 25 | L23: ='Nastavení příloh'!N37 -> 25 | M23: ='Nastavení příloh'!O37 -> 25 | N23: ='Nastavení příloh'!P37 -> 25 | O23: ='Nastavení příloh'!Q37 -> 25 | P23: ='Nastavení příloh'!R37 -> 25 | Q23: ='Nastavení příloh'!S37 -> 25 | R23: ='Nastavení příloh'!T37 -> 25 | S23: ='Nastavení příloh'!U37 -> 25 | T23: ='Nastavení příloh'!V37 -> 25 | U23: ='Nastavení příloh'!W37 -> 25 | V23: ='Nastavení příloh'!X37 -> 25
A24: ='Nastavení příloh'!E38 -> 2750 | B24: ='Nastavení příloh'!B38 -> 2700 | C24: ='Nastavení příloh'!D38 -> 2799 | D24: ='Nastavení příloh'!F38 -> 0 | E24: ='Nastavení příloh'!G38 -> 3 | F24: ='Nastavení příloh'!H38 -> 8 | G24: ='Nastavení příloh'!I38 -> 13 | H24: ='Nastavení příloh'!J38 -> 17 | I24: ='Nastavení příloh'!K38 -> 22 | J24: ='Nastavení příloh'!L38 -> 25 | K24: ='Nastavení příloh'!M38 -> 25 | L24: ='Nastavení příloh'!N38 -> 25 | M24: ='Nastavení příloh'!O38 -> 25 | N24: ='Nastavení příloh'!P38 -> 25 | O24: ='Nastavení příloh'!Q38 -> 25 | P24: ='Nastavení příloh'!R38 -> 25 | Q24: ='Nastavení příloh'!S38 -> 25 | R24: ='Nastavení příloh'!T38 -> 25 | S24: ='Nastavení příloh'!U38 -> 25 | T24: ='Nastavení příloh'!V38 -> 25 | U24: ='Nastavení příloh'!W38 -> 25 | V24: ='Nastavení příloh'!X38 -> 25
A25: ='Nastavení příloh'!E39 -> 2850 | B25: ='Nastavení příloh'!B39 -> 2800 | C25: ='Nastavení příloh'!D39 -> 2899 | D25: ='Nastavení příloh'!F39 -> 0 | E25: ='Nastavení příloh'!G39 -> 3 | F25: ='Nastavení příloh'!H39 -> 8 | G25: ='Nastavení příloh'!I39 -> 13 | H25: ='Nastavení příloh'!J39 -> 18 | I25: ='Nastavení příloh'!K39 -> 23 | J25: ='Nastavení příloh'!L39 -> 25 | K25: ='Nastavení příloh'!M39 -> 25 | L25: ='Nastavení příloh'!N39 -> 25 | M25: ='Nastavení příloh'!O39 -> 25 | N25: ='Nastavení příloh'!P39 -> 25 | O25: ='Nastavení příloh'!Q39 -> 25 | P25: ='Nastavení příloh'!R39 -> 25 | Q25: ='Nastavení příloh'!S39 -> 25 | R25: ='Nastavení příloh'!T39 -> 25 | S25: ='Nastavení příloh'!U39 -> 25 | T25: ='Nastavení příloh'!V39 -> 25 | U25: ='Nastavení příloh'!W39 -> 25 | V25: ='Nastavení příloh'!X39 -> 25
A26: ='Nastavení příloh'!E40 -> 2950 | B26: ='Nastavení příloh'!B40 -> 2900 | C26: ='Nastavení příloh'!D40 -> 2999 | D26: ='Nastavení příloh'!F40 -> 0 | E26: ='Nastavení příloh'!G40 -> 3 | F26: ='Nastavení příloh'!H40 -> 8 | G26: ='Nastavení příloh'!I40 -> 13 | H26: ='Nastavení příloh'!J40 -> 19 | I26: ='Nastavení příloh'!K40 -> 24 | J26: ='Nastavení příloh'!L40 -> 25 | K26: ='Nastavení příloh'!M40 -> 25 | L26: ='Nastavení příloh'!N40 -> 25 | M26: ='Nastavení příloh'!O40 -> 25 | N26: ='Nastavení příloh'!P40 -> 25 | O26: ='Nastavení příloh'!Q40 -> 25 | P26: ='Nastavení příloh'!R40 -> 25 | Q26: ='Nastavení příloh'!S40 -> 25 | R26: ='Nastavení příloh'!T40 -> 25 | S26: ='Nastavení příloh'!U40 -> 25 | T26: ='Nastavení příloh'!V40 -> 25 | U26: ='Nastavení příloh'!W40 -> 25 | V26: ='Nastavení příloh'!X40 -> 25
A27: ='Nastavení příloh'!E41 -> 3050 | B27: ='Nastavení příloh'!B41 -> 3000 | C27: ='Nastavení příloh'!D41 -> 3099 | D27: ='Nastavení příloh'!F41 -> 0 | E27: ='Nastavení příloh'!G41 -> 3 | F27: ='Nastavení příloh'!H41 -> 9 | G27: ='Nastavení příloh'!I41 -> 14 | H27: ='Nastavení příloh'!J41 -> 19 | I27: ='Nastavení příloh'!K41 -> 25 | J27: ='Nastavení příloh'!L41 -> 25 | K27: ='Nastavení příloh'!M41 -> 25 | L27: ='Nastavení příloh'!N41 -> 25 | M27: ='Nastavení příloh'!O41 -> 25 | N27: ='Nastavení příloh'!P41 -> 25 | O27: ='Nastavení příloh'!Q41 -> 25 | P27: ='Nastavení příloh'!R41 -> 25 | Q27: ='Nastavení příloh'!S41 -> 25 | R27: ='Nastavení příloh'!T41 -> 25 | S27: ='Nastavení příloh'!U41 -> 25 | T27: ='Nastavení příloh'!V41 -> 25 | U27: ='Nastavení příloh'!W41 -> 25 | V27: ='Nastavení příloh'!X41 -> 25
A28: ='Nastavení příloh'!E42 -> 3150 | B28: ='Nastavení příloh'!B42 -> 3100 | C28: ='Nastavení příloh'!D42 -> 3199 | D28: ='Nastavení příloh'!F42 -> 0 | E28: ='Nastavení příloh'!G42 -> 3 | F28: ='Nastavení příloh'!H42 -> 9 | G28: ='Nastavení příloh'!I42 -> 14 | H28: ='Nastavení příloh'!J42 -> 20 | I28: ='Nastavení příloh'!K42 -> 25 | J28: ='Nastavení příloh'!L42 -> 25 | K28: ='Nastavení příloh'!M42 -> 25 | L28: ='Nastavení příloh'!N42 -> 25 | M28: ='Nastavení příloh'!O42 -> 25 | N28: ='Nastavení příloh'!P42 -> 25 | O28: ='Nastavení příloh'!Q42 -> 25 | P28: ='Nastavení příloh'!R42 -> 25 | Q28: ='Nastavení příloh'!S42 -> 25 | R28: ='Nastavení příloh'!T42 -> 25 | S28: ='Nastavení příloh'!U42 -> 25 | T28: ='Nastavení příloh'!V42 -> 25 | U28: ='Nastavení příloh'!W42 -> 25 | V28: ='Nastavení příloh'!X42 -> 25
A29: ='Nastavení příloh'!E43 -> 3250 | B29: ='Nastavení příloh'!B43 -> 3200 | C29: ='Nastavení příloh'!D43 -> 3299 | D29: ='Nastavení příloh'!F43 -> 0 | E29: ='Nastavení příloh'!G43 -> 3 | F29: ='Nastavení příloh'!H43 -> 9 | G29: ='Nastavení příloh'!I43 -> 15 | H29: ='Nastavení příloh'!J43 -> 20 | I29: ='Nastavení příloh'!K43 -> 25 | J29: ='Nastavení příloh'!L43 -> 25 | K29: ='Nastavení příloh'!M43 -> 25 | L29: ='Nastavení příloh'!N43 -> 25 | M29: ='Nastavení příloh'!O43 -> 25 | N29: ='Nastavení příloh'!P43 -> 25 | O29: ='Nastavení příloh'!Q43 -> 25 | P29: ='Nastavení příloh'!R43 -> 25 | Q29: ='Nastavení příloh'!S43 -> 25 | R29: ='Nastavení příloh'!T43 -> 25 | S29: ='Nastavení příloh'!U43 -> 25 | T29: ='Nastavení příloh'!V43 -> 25 | U29: ='Nastavení příloh'!W43 -> 25 | V29: ='Nastavení příloh'!X43 -> 25
A30: ='Nastavení příloh'!E44 -> 3350 | B30: ='Nastavení příloh'!B44 -> 3300 | C30: ='Nastavení příloh'!D44 -> 3399 | D30: ='Nastavení příloh'!F44 -> 0 | E30: ='Nastavení příloh'!G44 -> 4 | F30: ='Nastavení příloh'!H44 -> 9 | G30: ='Nastavení příloh'!I44 -> 15 | H30: ='Nastavení příloh'!J44 -> 21 | I30: ='Nastavení příloh'!K44 -> 25 | J30: ='Nastavení příloh'!L44 -> 25 | K30: ='Nastavení příloh'!M44 -> 25 | L30: ='Nastavení příloh'!N44 -> 25 | M30: ='Nastavení příloh'!O44 -> 25 | N30: ='Nastavení příloh'!P44 -> 25 | O30: ='Nastavení příloh'!Q44 -> 25 | P30: ='Nastavení příloh'!R44 -> 25 | Q30: ='Nastavení příloh'!S44 -> 25 | R30: ='Nastavení příloh'!T44 -> 25 | S30: ='Nastavení příloh'!U44 -> 25 | T30: ='Nastavení příloh'!V44 -> 25 | U30: ='Nastavení příloh'!W44 -> 25 | V30: ='Nastavení příloh'!X44 -> 25
A31: ='Nastavení příloh'!E45 -> 3450 | B31: ='Nastavení příloh'!B45 -> 3400 | C31: ='Nastavení příloh'!D45 -> 3499 | D31: ='Nastavení příloh'!F45 -> 0 | E31: ='Nastavení příloh'!G45 -> 4 | F31: ='Nastavení příloh'!H45 -> 10 | G31: ='Nastavení příloh'!I45 -> 16 | H31: ='Nastavení příloh'!J45 -> 22 | I31: ='Nastavení příloh'!K45 -> 25 | J31: ='Nastavení příloh'!L45 -> 25 | K31: ='Nastavení příloh'!M45 -> 25 | L31: ='Nastavení příloh'!N45 -> 25 | M31: ='Nastavení příloh'!O45 -> 25 | N31: ='Nastavení příloh'!P45 -> 25 | O31: ='Nastavení příloh'!Q45 -> 25 | P31: ='Nastavení příloh'!R45 -> 25 | Q31: ='Nastavení příloh'!S45 -> 25 | R31: ='Nastavení příloh'!T45 -> 25 | S31: ='Nastavení příloh'!U45 -> 25 | T31: ='Nastavení příloh'!V45 -> 25 | U31: ='Nastavení příloh'!W45 -> 25 | V31: ='Nastavení příloh'!X45 -> 25
A32: ='Nastavení příloh'!E52 -> 3550 | B32: ='Nastavení příloh'!B52 -> 3500 | C32: ='Nastavení příloh'!D52 -> 3599 | D32: ='Nastavení příloh'!F52 -> 0 | E32: ='Nastavení příloh'!G52 -> 4 | F32: ='Nastavení příloh'!H52 -> 10 | G32: ='Nastavení příloh'!I52 -> 16 | H32: ='Nastavení příloh'!J52 -> 22 | I32: ='Nastavení příloh'!K52 -> 25 | J32: ='Nastavení příloh'!L52 -> 25 | K32: ='Nastavení příloh'!M52 -> 25 | L32: ='Nastavení příloh'!N52 -> 25 | M32: ='Nastavení příloh'!O52 -> 25 | N32: ='Nastavení příloh'!P52 -> 25 | O32: ='Nastavení příloh'!Q52 -> 25 | P32: ='Nastavení příloh'!R52 -> 25 | Q32: ='Nastavení příloh'!S52 -> 25 | R32: ='Nastavení příloh'!T52 -> 25 | S32: ='Nastavení příloh'!U52 -> 25 | T32: ='Nastavení příloh'!V52 -> 25 | U32: ='Nastavení příloh'!W52 -> 25 | V32: ='Nastavení příloh'!X52 -> 25
A33: ='Nastavení příloh'!E53 -> 3650 | B33: ='Nastavení příloh'!B53 -> 3600 | C33: ='Nastavení příloh'!D53 -> 3699 | D33: ='Nastavení příloh'!F53 -> 0 | E33: ='Nastavení příloh'!G53 -> 4 | F33: ='Nastavení příloh'!H53 -> 10 | G33: ='Nastavení příloh'!I53 -> 17 | H33: ='Nastavení příloh'!J53 -> 23 | I33: ='Nastavení příloh'!K53 -> 25 | J33: ='Nastavení příloh'!L53 -> 25 | K33: ='Nastavení příloh'!M53 -> 25 | L33: ='Nastavení příloh'!N53 -> 25 | M33: ='Nastavení příloh'!O53 -> 25 | N33: ='Nastavení příloh'!P53 -> 25 | O33: ='Nastavení příloh'!Q53 -> 25 | P33: ='Nastavení příloh'!R53 -> 25 | Q33: ='Nastavení příloh'!S53 -> 25 | R33: ='Nastavení příloh'!T53 -> 25 | S33: ='Nastavení příloh'!U53 -> 25 | T33: ='Nastavení příloh'!V53 -> 25 | U33: ='Nastavení příloh'!W53 -> 25 | V33: ='Nastavení příloh'!X53 -> 25
A34: ='Nastavení příloh'!E54 -> 3750 | B34: ='Nastavení příloh'!B54 -> 3700 | C34: ='Nastavení příloh'!D54 -> 3799 | D34: ='Nastavení příloh'!F54 -> 0 | E34: ='Nastavení příloh'!G54 -> 4 | F34: ='Nastavení příloh'!H54 -> 11 | G34: ='Nastavení příloh'!I54 -> 17 | H34: ='Nastavení příloh'!J54 -> 24 | I34: ='Nastavení příloh'!K54 -> 25 | J34: ='Nastavení příloh'!L54 -> 25 | K34: ='Nastavení příloh'!M54 -> 25 | L34: ='Nastavení příloh'!N54 -> 25 | M34: ='Nastavení příloh'!O54 -> 25 | N34: ='Nastavení příloh'!P54 -> 25 | O34: ='Nastavení příloh'!Q54 -> 25 | P34: ='Nastavení příloh'!R54 -> 25 | Q34: ='Nastavení příloh'!S54 -> 25 | R34: ='Nastavení příloh'!T54 -> 25 | S34: ='Nastavení příloh'!U54 -> 25 | T34: ='Nastavení příloh'!V54 -> 25 | U34: ='Nastavení příloh'!W54 -> 25 | V34: ='Nastavení příloh'!X54 -> 25
A35: ='Nastavení příloh'!E55 -> 3850 | B35: ='Nastavení příloh'!B55 -> 3800 | C35: ='Nastavení příloh'!D55 -> 3899 | D35: ='Nastavení příloh'!F55 -> 0 | E35: ='Nastavení příloh'!G55 -> 4 | F35: ='Nastavení příloh'!H55 -> 11 | G35: ='Nastavení příloh'!I55 -> 18 | H35: ='Nastavení příloh'!J55 -> 24 | I35: ='Nastavení příloh'!K55 -> 25 | J35: ='Nastavení příloh'!L55 -> 25 | K35: ='Nastavení příloh'!M55 -> 25 | L35: ='Nastavení příloh'!N55 -> 25 | M35: ='Nastavení příloh'!O55 -> 25 | N35: ='Nastavení příloh'!P55 -> 25 | O35: ='Nastavení příloh'!Q55 -> 25 | P35: ='Nastavení příloh'!R55 -> 25 | Q35: ='Nastavení příloh'!S55 -> 25 | R35: ='Nastavení příloh'!T55 -> 25 | S35: ='Nastavení příloh'!U55 -> 25 | T35: ='Nastavení příloh'!V55 -> 25 | U35: ='Nastavení příloh'!W55 -> 25 | V35: ='Nastavení příloh'!X55 -> 25
A36: ='Nastavení příloh'!E56 -> 3950 | B36: ='Nastavení příloh'!B56 -> 3900 | C36: ='Nastavení příloh'!D56 -> 3999 | D36: ='Nastavení příloh'!F56 -> 0 | E36: ='Nastavení příloh'!G56 -> 4 | F36: ='Nastavení příloh'!H56 -> 11 | G36: ='Nastavení příloh'!I56 -> 18 | H36: ='Nastavení příloh'!J56 -> 25 | I36: ='Nastavení příloh'!K56 -> 25 | J36: ='Nastavení příloh'!L56 -> 25 | K36: ='Nastavení příloh'!M56 -> 25 | L36: ='Nastavení příloh'!N56 -> 25 | M36: ='Nastavení příloh'!O56 -> 25 | N36: ='Nastavení příloh'!P56 -> 25 | O36: ='Nastavení příloh'!Q56 -> 25 | P36: ='Nastavení příloh'!R56 -> 25 | Q36: ='Nastavení příloh'!S56 -> 25 | R36: ='Nastavení příloh'!T56 -> 25 | S36: ='Nastavení příloh'!U56 -> 25 | T36: ='Nastavení příloh'!V56 -> 25 | U36: ='Nastavení příloh'!W56 -> 25 | V36: ='Nastavení příloh'!X56 -> 25
A37: ='Nastavení příloh'!E57 -> 4050 | B37: ='Nastavení příloh'!B57 -> 4000 | C37: ='Nastavení příloh'!D57 -> 4099 | D37: ='Nastavení příloh'!F57 -> 0 | E37: ='Nastavení příloh'!G57 -> 4 | F37: ='Nastavení příloh'!H57 -> 11 | G37: ='Nastavení příloh'!I57 -> 18 | H37: ='Nastavení příloh'!J57 -> 25 | I37: ='Nastavení příloh'!K57 -> 25 | J37: ='Nastavení příloh'!L57 -> 25 | K37: ='Nastavení příloh'!M57 -> 25 | L37: ='Nastavení příloh'!N57 -> 25 | M37: ='Nastavení příloh'!O57 -> 25 | N37: ='Nastavení příloh'!P57 -> 25 | O37: ='Nastavení příloh'!Q57 -> 25 | P37: ='Nastavení příloh'!R57 -> 25 | Q37: ='Nastavení příloh'!S57 -> 25 | R37: ='Nastavení příloh'!T57 -> 25 | S37: ='Nastavení příloh'!U57 -> 25 | T37: ='Nastavení příloh'!V57 -> 25 | U37: ='Nastavení příloh'!W57 -> 25 | V37: ='Nastavení příloh'!X57 -> 25
A38: ='Nastavení příloh'!E58 -> 4150 | B38: ='Nastavení příloh'!B58 -> 4100 | C38: ='Nastavení příloh'!D58 -> 4199 | D38: ='Nastavení příloh'!F58 -> 0 | E38: ='Nastavení příloh'!G58 -> 4 | F38: ='Nastavení příloh'!H58 -> 12 | G38: ='Nastavení příloh'!I58 -> 19 | H38: ='Nastavení příloh'!J58 -> 25 | I38: ='Nastavení příloh'!K58 -> 25 | J38: ='Nastavení příloh'!L58 -> 25 | K38: ='Nastavení příloh'!M58 -> 25 | L38: ='Nastavení příloh'!N58 -> 25 | M38: ='Nastavení příloh'!O58 -> 25 | N38: ='Nastavení příloh'!P58 -> 25 | O38: ='Nastavení příloh'!Q58 -> 25 | P38: ='Nastavení příloh'!R58 -> 25 | Q38: ='Nastavení příloh'!S58 -> 25 | R38: ='Nastavení příloh'!T58 -> 25 | S38: ='Nastavení příloh'!U58 -> 25 | T38: ='Nastavení příloh'!V58 -> 25 | U38: ='Nastavení příloh'!W58 -> 25 | V38: ='Nastavení příloh'!X58 -> 25
A39: ='Nastavení příloh'!E59 -> 4250 | B39: ='Nastavení příloh'!B59 -> 4200 | C39: ='Nastavení příloh'!D59 -> 4299 | D39: ='Nastavení příloh'!F59 -> 0 | E39: ='Nastavení příloh'!G59 -> 4 | F39: ='Nastavení příloh'!H59 -> 12 | G39: ='Nastavení příloh'!I59 -> 19 | H39: ='Nastavení příloh'!J59 -> 25 | I39: ='Nastavení příloh'!K59 -> 25 | J39: ='Nastavení příloh'!L59 -> 25 | K39: ='Nastavení příloh'!M59 -> 25 | L39: ='Nastavení příloh'!N59 -> 25 | M39: ='Nastavení příloh'!O59 -> 25 | N39: ='Nastavení příloh'!P59 -> 25 | O39: ='Nastavení příloh'!Q59 -> 25 | P39: ='Nastavení příloh'!R59 -> 25 | Q39: ='Nastavení příloh'!S59 -> 25 | R39: ='Nastavení příloh'!T59 -> 25 | S39: ='Nastavení příloh'!U59 -> 25 | T39: ='Nastavení příloh'!V59 -> 25 | U39: ='Nastavení příloh'!W59 -> 25 | V39: ='Nastavení příloh'!X59 -> 25
A40: ='Nastavení příloh'!E60 -> 4350 | B40: ='Nastavení příloh'!B60 -> 4300 | C40: ='Nastavení příloh'!D60 -> 4399 | D40: ='Nastavení příloh'!F60 -> 0 | E40: ='Nastavení příloh'!G60 -> 5 | F40: ='Nastavení příloh'!H60 -> 12 | G40: ='Nastavení příloh'!I60 -> 20 | H40: ='Nastavení příloh'!J60 -> 25 | I40: ='Nastavení příloh'!K60 -> 25 | J40: ='Nastavení příloh'!L60 -> 25 | K40: ='Nastavení příloh'!M60 -> 25 | L40: ='Nastavení příloh'!N60 -> 25 | M40: ='Nastavení příloh'!O60 -> 25 | N40: ='Nastavení příloh'!P60 -> 25 | O40: ='Nastavení příloh'!Q60 -> 25 | P40: ='Nastavení příloh'!R60 -> 25 | Q40: ='Nastavení příloh'!S60 -> 25 | R40: ='Nastavení příloh'!T60 -> 25 | S40: ='Nastavení příloh'!U60 -> 25 | T40: ='Nastavení příloh'!V60 -> 25 | U40: ='Nastavení příloh'!W60 -> 25 | V40: ='Nastavení příloh'!X60 -> 25
A41: ='Nastavení příloh'!E61 -> 4450 | B41: ='Nastavení příloh'!B61 -> 4400 | C41: ='Nastavení příloh'!D61 -> 4499 | D41: ='Nastavení příloh'!F61 -> 0 | E41: ='Nastavení příloh'!G61 -> 5 | F41: ='Nastavení příloh'!H61 -> 12 | G41: ='Nastavení příloh'!I61 -> 20 | H41: ='Nastavení příloh'!J61 -> 25 | I41: ='Nastavení příloh'!K61 -> 25 | J41: ='Nastavení příloh'!L61 -> 25 | K41: ='Nastavení příloh'!M61 -> 25 | L41: ='Nastavení příloh'!N61 -> 25 | M41: ='Nastavení příloh'!O61 -> 25 | N41: ='Nastavení příloh'!P61 -> 25 | O41: ='Nastavení příloh'!Q61 -> 25 | P41: ='Nastavení příloh'!R61 -> 25 | Q41: ='Nastavení příloh'!S61 -> 25 | R41: ='Nastavení příloh'!T61 -> 25 | S41: ='Nastavení příloh'!U61 -> 25 | T41: ='Nastavení příloh'!V61 -> 25 | U41: ='Nastavení příloh'!W61 -> 25 | V41: ='Nastavení příloh'!X61 -> 25
A42: ='Nastavení příloh'!E62 -> 4550 | B42: ='Nastavení příloh'!B62 -> 4500 | C42: ='Nastavení příloh'!D62 -> 4599 | D42: ='Nastavení příloh'!F62 -> 0 | E42: ='Nastavení příloh'!G62 -> 5 | F42: ='Nastavení příloh'!H62 -> 13 | G42: ='Nastavení příloh'!I62 -> 21 | H42: ='Nastavení příloh'!J62 -> 25 | I42: ='Nastavení příloh'!K62 -> 25 | J42: ='Nastavení příloh'!L62 -> 25 | K42: ='Nastavení příloh'!M62 -> 25 | L42: ='Nastavení příloh'!N62 -> 25 | M42: ='Nastavení příloh'!O62 -> 25 | N42: ='Nastavení příloh'!P62 -> 25 | O42: ='Nastavení příloh'!Q62 -> 25 | P42: ='Nastavení příloh'!R62 -> 25 | Q42: ='Nastavení příloh'!S62 -> 25 | R42: ='Nastavení příloh'!T62 -> 25 | S42: ='Nastavení příloh'!U62 -> 25 | T42: ='Nastavení příloh'!V62 -> 25 | U42: ='Nastavení příloh'!W62 -> 25 | V42: ='Nastavení příloh'!X62 -> 25
A43: ='Nastavení příloh'!E63 -> 4650 | B43: ='Nastavení příloh'!B63 -> 4600 | C43: ='Nastavení příloh'!D63 -> 4699 | D43: ='Nastavení příloh'!F63 -> 0 | E43: ='Nastavení příloh'!G63 -> 5 | F43: ='Nastavení příloh'!H63 -> 13 | G43: ='Nastavení příloh'!I63 -> 21 | H43: ='Nastavení příloh'!J63 -> 25 | I43: ='Nastavení příloh'!K63 -> 25 | J43: ='Nastavení příloh'!L63 -> 25 | K43: ='Nastavení příloh'!M63 -> 25 | L43: ='Nastavení příloh'!N63 -> 25 | M43: ='Nastavení příloh'!O63 -> 25 | N43: ='Nastavení příloh'!P63 -> 25 | O43: ='Nastavení příloh'!Q63 -> 25 | P43: ='Nastavení příloh'!R63 -> 25 | Q43: ='Nastavení příloh'!S63 -> 25 | R43: ='Nastavení příloh'!T63 -> 25 | S43: ='Nastavení příloh'!U63 -> 25 | T43: ='Nastavení příloh'!V63 -> 25 | U43: ='Nastavení příloh'!W63 -> 25 | V43: ='Nastavení příloh'!X63 -> 25
A44: ='Nastavení příloh'!E64 -> 4750 | B44: ='Nastavení příloh'!B64 -> 4700 | C44: ='Nastavení příloh'!D64 -> 4799 | D44: ='Nastavení příloh'!F64 -> 0 | E44: ='Nastavení příloh'!G64 -> 5 | F44: ='Nastavení příloh'!H64 -> 13 | G44: ='Nastavení příloh'!I64 -> 22 | H44: ='Nastavení příloh'!J64 -> 25 | I44: ='Nastavení příloh'!K64 -> 25 | J44: ='Nastavení příloh'!L64 -> 25 | K44: ='Nastavení příloh'!M64 -> 25 | L44: ='Nastavení příloh'!N64 -> 25 | M44: ='Nastavení příloh'!O64 -> 25 | N44: ='Nastavení příloh'!P64 -> 25 | O44: ='Nastavení příloh'!Q64 -> 25 | P44: ='Nastavení příloh'!R64 -> 25 | Q44: ='Nastavení příloh'!S64 -> 25 | R44: ='Nastavení příloh'!T64 -> 25 | S44: ='Nastavení příloh'!U64 -> 25 | T44: ='Nastavení příloh'!V64 -> 25 | U44: ='Nastavení příloh'!W64 -> 25 | V44: ='Nastavení příloh'!X64 -> 25
A45: ='Nastavení příloh'!E65 -> 4850 | B45: ='Nastavení příloh'!B65 -> 4800 | C45: ='Nastavení příloh'!D65 -> 4899 | D45: ='Nastavení příloh'!F65 -> 0 | E45: ='Nastavení příloh'!G65 -> 5 | F45: ='Nastavení příloh'!H65 -> 14 | G45: ='Nastavení příloh'!I65 -> 22 | H45: ='Nastavení příloh'!J65 -> 25 | I45: ='Nastavení příloh'!K65 -> 25 | J45: ='Nastavení příloh'!L65 -> 25 | K45: ='Nastavení příloh'!M65 -> 25 | L45: ='Nastavení příloh'!N65 -> 25 | M45: ='Nastavení příloh'!O65 -> 25 | N45: ='Nastavení příloh'!P65 -> 25 | O45: ='Nastavení příloh'!Q65 -> 25 | P45: ='Nastavení příloh'!R65 -> 25 | Q45: ='Nastavení příloh'!S65 -> 25 | R45: ='Nastavení příloh'!T65 -> 25 | S45: ='Nastavení příloh'!U65 -> 25 | T45: ='Nastavení příloh'!V65 -> 25 | U45: ='Nastavení příloh'!W65 -> 25 | V45: ='Nastavení příloh'!X65 -> 25
A46: ='Nastavení příloh'!E66 -> 4950 | B46: ='Nastavení příloh'!B66 -> 4900 | C46: ='Nastavení příloh'!D66 -> 4999 | D46: ='Nastavení příloh'!F66 -> 0 | E46: ='Nastavení příloh'!G66 -> 5 | F46: ='Nastavení příloh'!H66 -> 14 | G46: ='Nastavení příloh'!I66 -> 23 | H46: ='Nastavení příloh'!J66 -> 25 | I46: ='Nastavení příloh'!K66 -> 25 | J46: ='Nastavení příloh'!L66 -> 25 | K46: ='Nastavení příloh'!M66 -> 25 | L46: ='Nastavení příloh'!N66 -> 25 | M46: ='Nastavení příloh'!O66 -> 25 | N46: ='Nastavení příloh'!P66 -> 25 | O46: ='Nastavení příloh'!Q66 -> 25 | P46: ='Nastavení příloh'!R66 -> 25 | Q46: ='Nastavení příloh'!S66 -> 25 | R46: ='Nastavení příloh'!T66 -> 25 | S46: ='Nastavení příloh'!U66 -> 25 | T46: ='Nastavení příloh'!V66 -> 25 | U46: ='Nastavení příloh'!W66 -> 25 | V46: ='Nastavení příloh'!X66 -> 25
A47: ='Nastavení příloh'!E67 -> 5050 | B47: ='Nastavení příloh'!B67 -> 5000 | C47: ='Nastavení příloh'!D67 -> 5099 | D47: ='Nastavení příloh'!F67 -> 0 | E47: ='Nastavení příloh'!G67 -> 5 | F47: ='Nastavení příloh'!H67 -> 14 | G47: ='Nastavení příloh'!I67 -> 23 | H47: ='Nastavení příloh'!J67 -> 25 | I47: ='Nastavení příloh'!K67 -> 25 | J47: ='Nastavení příloh'!L67 -> 25 | K47: ='Nastavení příloh'!M67 -> 25 | L47: ='Nastavení příloh'!N67 -> 25 | M47: ='Nastavení příloh'!O67 -> 25 | N47: ='Nastavení příloh'!P67 -> 25 | O47: ='Nastavení příloh'!Q67 -> 25 | P47: ='Nastavení příloh'!R67 -> 25 | Q47: ='Nastavení příloh'!S67 -> 25 | R47: ='Nastavení příloh'!T67 -> 25 | S47: ='Nastavení příloh'!U67 -> 25 | T47: ='Nastavení příloh'!V67 -> 25 | U47: ='Nastavení příloh'!W67 -> 25 | V47: ='Nastavení příloh'!X67 -> 25
A48: ='Nastavení příloh'!E68 -> 5150 | B48: ='Nastavení příloh'!B68 -> 5100 | C48: ='Nastavení příloh'!D68 -> 5199 | D48: ='Nastavení příloh'!F68 -> 0 | E48: ='Nastavení příloh'!G68 -> 5 | F48: ='Nastavení příloh'!H68 -> 14 | G48: ='Nastavení příloh'!I68 -> 23 | H48: ='Nastavení příloh'!J68 -> 25 | I48: ='Nastavení příloh'!K68 -> 25 | J48: ='Nastavení příloh'!L68 -> 25 | K48: ='Nastavení příloh'!M68 -> 25 | L48: ='Nastavení příloh'!N68 -> 25 | M48: ='Nastavení příloh'!O68 -> 25 | N48: ='Nastavení příloh'!P68 -> 25 | O48: ='Nastavení příloh'!Q68 -> 25 | P48: ='Nastavení příloh'!R68 -> 25 | Q48: ='Nastavení příloh'!S68 -> 25 | R48: ='Nastavení příloh'!T68 -> 25 | S48: ='Nastavení příloh'!U68 -> 25 | T48: ='Nastavení příloh'!V68 -> 25 | U48: ='Nastavení příloh'!W68 -> 25 | V48: ='Nastavení příloh'!X68 -> 25
A49: ='Nastavení příloh'!E69 -> 5250 | B49: ='Nastavení příloh'!B69 -> 5200 | C49: ='Nastavení příloh'!D69 -> 5299 | D49: ='Nastavení příloh'!F69 -> 0 | E49: ='Nastavení příloh'!G69 -> 6 | F49: ='Nastavení příloh'!H69 -> 15 | G49: ='Nastavení příloh'!I69 -> 24 | H49: ='Nastavení příloh'!J69 -> 25 | I49: ='Nastavení příloh'!K69 -> 25 | J49: ='Nastavení příloh'!L69 -> 25 | K49: ='Nastavení příloh'!M69 -> 25 | L49: ='Nastavení příloh'!N69 -> 25 | M49: ='Nastavení příloh'!O69 -> 25 | N49: ='Nastavení příloh'!P69 -> 25 | O49: ='Nastavení příloh'!Q69 -> 25 | P49: ='Nastavení příloh'!R69 -> 25 | Q49: ='Nastavení příloh'!S69 -> 25 | R49: ='Nastavení příloh'!T69 -> 25 | S49: ='Nastavení příloh'!U69 -> 25 | T49: ='Nastavení příloh'!V69 -> 25 | U49: ='Nastavení příloh'!W69 -> 25 | V49: ='Nastavení příloh'!X69 -> 25
A50: ='Nastavení příloh'!E70 -> 5350 | B50: ='Nastavení příloh'!B70 -> 5300 | C50: ='Nastavení příloh'!D70 -> 5399 | D50: ='Nastavení příloh'!F70 -> 0 | E50: ='Nastavení příloh'!G70 -> 6 | F50: ='Nastavení příloh'!H70 -> 15 | G50: ='Nastavení příloh'!I70 -> 24 | H50: ='Nastavení příloh'!J70 -> 25 | I50: ='Nastavení příloh'!K70 -> 25 | J50: ='Nastavení příloh'!L70 -> 25 | K50: ='Nastavení příloh'!M70 -> 25 | L50: ='Nastavení příloh'!N70 -> 25 | M50: ='Nastavení příloh'!O70 -> 25 | N50: ='Nastavení příloh'!P70 -> 25 | O50: ='Nastavení příloh'!Q70 -> 25 | P50: ='Nastavení příloh'!R70 -> 25 | Q50: ='Nastavení příloh'!S70 -> 25 | R50: ='Nastavení příloh'!T70 -> 25 | S50: ='Nastavení příloh'!U70 -> 25 | T50: ='Nastavení příloh'!V70 -> 25 | U50: ='Nastavení příloh'!W70 -> 25 | V50: ='Nastavení příloh'!X70 -> 25
A51: ='Nastavení příloh'!E71 -> 5450 | B51: ='Nastavení příloh'!B71 -> 5400 | C51: ='Nastavení příloh'!D71 -> 5499 | D51: ='Nastavení příloh'!F71 -> 0 | E51: ='Nastavení příloh'!G71 -> 6 | F51: ='Nastavení příloh'!H71 -> 15 | G51: ='Nastavení příloh'!I71 -> 25 | H51: ='Nastavení příloh'!J71 -> 25 | I51: ='Nastavení příloh'!K71 -> 25 | J51: ='Nastavení příloh'!L71 -> 25 | K51: ='Nastavení příloh'!M71 -> 25 | L51: ='Nastavení příloh'!N71 -> 25 | M51: ='Nastavení příloh'!O71 -> 25 | N51: ='Nastavení příloh'!P71 -> 25 | O51: ='Nastavení příloh'!Q71 -> 25 | P51: ='Nastavení příloh'!R71 -> 25 | Q51: ='Nastavení příloh'!S71 -> 25 | R51: ='Nastavení příloh'!T71 -> 25 | S51: ='Nastavení příloh'!U71 -> 25 | T51: ='Nastavení příloh'!V71 -> 25 | U51: ='Nastavení příloh'!W71 -> 25 | V51: ='Nastavení příloh'!X71 -> 25
A52: ='Nastavení příloh'!E72 -> 5550 | B52: ='Nastavení příloh'!B72 -> 5500 | C52: ='Nastavení příloh'!D72 -> 5599 | D52: ='Nastavení příloh'!F72 -> 0 | E52: ='Nastavení příloh'!G72 -> 6 | F52: ='Nastavení příloh'!H72 -> 16 | G52: ='Nastavení příloh'!I72 -> 25 | H52: ='Nastavení příloh'!J72 -> 25 | I52: ='Nastavení příloh'!K72 -> 25 | J52: ='Nastavení příloh'!L72 -> 25 | K52: ='Nastavení příloh'!M72 -> 25 | L52: ='Nastavení příloh'!N72 -> 25 | M52: ='Nastavení příloh'!O72 -> 25 | N52: ='Nastavení příloh'!P72 -> 25 | O52: ='Nastavení příloh'!Q72 -> 25 | P52: ='Nastavení příloh'!R72 -> 25 | Q52: ='Nastavení příloh'!S72 -> 25 | R52: ='Nastavení příloh'!T72 -> 25 | S52: ='Nastavení příloh'!U72 -> 25 | T52: ='Nastavení příloh'!V72 -> 25 | U52: ='Nastavení příloh'!W72 -> 25 | V52: ='Nastavení příloh'!X72 -> 25
A53: ='Nastavení příloh'!E73 -> 5650 | B53: ='Nastavení příloh'!B73 -> 5600 | C53: ='Nastavení příloh'!D73 -> 5699 | D53: ='Nastavení příloh'!F73 -> 0 | E53: ='Nastavení příloh'!G73 -> 6 | F53: ='Nastavení příloh'!H73 -> 16 | G53: ='Nastavení příloh'!I73 -> 25 | H53: ='Nastavení příloh'!J73 -> 25 | I53: ='Nastavení příloh'!K73 -> 25 | J53: ='Nastavení příloh'!L73 -> 25 | K53: ='Nastavení příloh'!M73 -> 25 | L53: ='Nastavení příloh'!N73 -> 25 | M53: ='Nastavení příloh'!O73 -> 25 | N53: ='Nastavení příloh'!P73 -> 25 | O53: ='Nastavení příloh'!Q73 -> 25 | P53: ='Nastavení příloh'!R73 -> 25 | Q53: ='Nastavení příloh'!S73 -> 25 | R53: ='Nastavení příloh'!T73 -> 25 | S53: ='Nastavení příloh'!U73 -> 25 | T53: ='Nastavení příloh'!V73 -> 25 | U53: ='Nastavení příloh'!W73 -> 25 | V53: ='Nastavení příloh'!X73 -> 25
A54: ='Nastavení příloh'!E74 -> 5750 | B54: ='Nastavení příloh'!B74 -> 5700 | C54: ='Nastavení příloh'!D74 -> 5799 | D54: ='Nastavení příloh'!F74 -> 0 | E54: ='Nastavení příloh'!G74 -> 6 | F54: ='Nastavení příloh'!H74 -> 16 | G54: ='Nastavení příloh'!I74 -> 25 | H54: ='Nastavení příloh'!J74 -> 25 | I54: ='Nastavení příloh'!K74 -> 25 | J54: ='Nastavení příloh'!L74 -> 25 | K54: ='Nastavení příloh'!M74 -> 25 | L54: ='Nastavení příloh'!N74 -> 25 | M54: ='Nastavení příloh'!O74 -> 25 | N54: ='Nastavení příloh'!P74 -> 25 | O54: ='Nastavení příloh'!Q74 -> 25 | P54: ='Nastavení příloh'!R74 -> 25 | Q54: ='Nastavení příloh'!S74 -> 25 | R54: ='Nastavení příloh'!T74 -> 25 | S54: ='Nastavení příloh'!U74 -> 25 | T54: ='Nastavení příloh'!V74 -> 25 | U54: ='Nastavení příloh'!W74 -> 25 | V54: ='Nastavení příloh'!X74 -> 25
A55: ='Nastavení příloh'!E75 -> 5850 | B55: ='Nastavení příloh'!B75 -> 5800 | C55: ='Nastavení příloh'!D75 -> 5899 | D55: ='Nastavení příloh'!F75 -> 0 | E55: ='Nastavení příloh'!G75 -> 6 | F55: ='Nastavení příloh'!H75 -> 16 | G55: ='Nastavení příloh'!I75 -> 25 | H55: ='Nastavení příloh'!J75 -> 25 | I55: ='Nastavení příloh'!K75 -> 25 | J55: ='Nastavení příloh'!L75 -> 25 | K55: ='Nastavení příloh'!M75 -> 25 | L55: ='Nastavení příloh'!N75 -> 25 | M55: ='Nastavení příloh'!O75 -> 25 | N55: ='Nastavení příloh'!P75 -> 25 | O55: ='Nastavení příloh'!Q75 -> 25 | P55: ='Nastavení příloh'!R75 -> 25 | Q55: ='Nastavení příloh'!S75 -> 25 | R55: ='Nastavení příloh'!T75 -> 25 | S55: ='Nastavení příloh'!U75 -> 25 | T55: ='Nastavení příloh'!V75 -> 25 | U55: ='Nastavení příloh'!W75 -> 25 | V55: ='Nastavení příloh'!X75 -> 25
A56: ='Nastavení příloh'!E76 -> 5950 | B56: ='Nastavení příloh'!B76 -> 5900 | C56: ='Nastavení příloh'!D76 -> 5999 | D56: ='Nastavení příloh'!F76 -> 0 | E56: ='Nastavení příloh'!G76 -> 6 | F56: ='Nastavení příloh'!H76 -> 17 | G56: ='Nastavení příloh'!I76 -> 25 | H56: ='Nastavení příloh'!J76 -> 25 | I56: ='Nastavení příloh'!K76 -> 25 | J56: ='Nastavení příloh'!L76 -> 25 | K56: ='Nastavení příloh'!M76 -> 25 | L56: ='Nastavení příloh'!N76 -> 25 | M56: ='Nastavení příloh'!O76 -> 25 | N56: ='Nastavení příloh'!P76 -> 25 | O56: ='Nastavení příloh'!Q76 -> 25 | P56: ='Nastavení příloh'!R76 -> 25 | Q56: ='Nastavení příloh'!S76 -> 25 | R56: ='Nastavení příloh'!T76 -> 25 | S56: ='Nastavení příloh'!U76 -> 25 | T56: ='Nastavení příloh'!V76 -> 25 | U56: ='Nastavení příloh'!W76 -> 25 | V56: ='Nastavení příloh'!X76 -> 25
A57: ='Nastavení příloh'!E77 -> 6050 | B57: ='Nastavení příloh'!B77 -> 6000 | C57: ='Nastavení příloh'!D77 -> 6099 | D57: ='Nastavení příloh'!F77 -> 0 | E57: ='Nastavení příloh'!G77 -> 6 | F57: ='Nastavení příloh'!H77 -> 17 | G57: ='Nastavení příloh'!I77 -> 25 | H57: ='Nastavení příloh'!J77 -> 25 | I57: ='Nastavení příloh'!K77 -> 25 | J57: ='Nastavení příloh'!L77 -> 25 | K57: ='Nastavení příloh'!M77 -> 25 | L57: ='Nastavení příloh'!N77 -> 25 | M57: ='Nastavení příloh'!O77 -> 25 | N57: ='Nastavení příloh'!P77 -> 25 | O57: ='Nastavení příloh'!Q77 -> 25 | P57: ='Nastavení příloh'!R77 -> 25 | Q57: ='Nastavení příloh'!S77 -> 25 | R57: ='Nastavení příloh'!T77 -> 25 | S57: ='Nastavení příloh'!U77 -> 25 | T57: ='Nastavení příloh'!V77 -> 25 | U57: ='Nastavení příloh'!W77 -> 25 | V57: ='Nastavení příloh'!X77 -> 25
A58: ='Nastavení příloh'!E78 -> 6150 | B58: ='Nastavení příloh'!B78 -> 6100 | C58: ='Nastavení příloh'!D78 -> 6199 | D58: ='Nastavení příloh'!F78 -> 0 | E58: ='Nastavení příloh'!G78 -> 6 | F58: ='Nastavení příloh'!H78 -> 17 | G58: ='Nastavení příloh'!I78 -> 25 | H58: ='Nastavení příloh'!J78 -> 25 | I58: ='Nastavení příloh'!K78 -> 25 | J58: ='Nastavení příloh'!L78 -> 25 | K58: ='Nastavení příloh'!M78 -> 25 | L58: ='Nastavení příloh'!N78 -> 25 | M58: ='Nastavení příloh'!O78 -> 25 | N58: ='Nastavení příloh'!P78 -> 25 | O58: ='Nastavení příloh'!Q78 -> 25 | P58: ='Nastavení příloh'!R78 -> 25 | Q58: ='Nastavení příloh'!S78 -> 25 | R58: ='Nastavení příloh'!T78 -> 25 | S58: ='Nastavení příloh'!U78 -> 25 | T58: ='Nastavení příloh'!V78 -> 25 | U58: ='Nastavení příloh'!W78 -> 25 | V58: ='Nastavení příloh'!X78 -> 25
A59: ='Nastavení příloh'!E79 -> 6250 | B59: ='Nastavení příloh'!B79 -> 6200 | C59: ='Nastavení příloh'!D79 -> 6299 | D59: ='Nastavení příloh'!F79 -> 0 | E59: ='Nastavení příloh'!G79 -> 7 | F59: ='Nastavení příloh'!H79 -> 18 | G59: ='Nastavení příloh'!I79 -> 25 | H59: ='Nastavení příloh'!J79 -> 25 | I59: ='Nastavení příloh'!K79 -> 25 | J59: ='Nastavení příloh'!L79 -> 25 | K59: ='Nastavení příloh'!M79 -> 25 | L59: ='Nastavení příloh'!N79 -> 25 | M59: ='Nastavení příloh'!O79 -> 25 | N59: ='Nastavení příloh'!P79 -> 25 | O59: ='Nastavení příloh'!Q79 -> 25 | P59: ='Nastavení příloh'!R79 -> 25 | Q59: ='Nastavení příloh'!S79 -> 25 | R59: ='Nastavení příloh'!T79 -> 25 | S59: ='Nastavení příloh'!U79 -> 25 | T59: ='Nastavení příloh'!V79 -> 25 | U59: ='Nastavení příloh'!W79 -> 25 | V59: ='Nastavení příloh'!X79 -> 25
A60: ='Nastavení příloh'!E80 -> 6350 | B60: ='Nastavení příloh'!B80 -> 6300 | C60: ='Nastavení příloh'!D80 -> 6399 | D60: ='Nastavení příloh'!F80 -> 0 | E60: ='Nastavení příloh'!G80 -> 7 | F60: ='Nastavení příloh'!H80 -> 18 | G60: ='Nastavení příloh'!I80 -> 25 | H60: ='Nastavení příloh'!J80 -> 25 | I60: ='Nastavení příloh'!K80 -> 25 | J60: ='Nastavení příloh'!L80 -> 25 | K60: ='Nastavení příloh'!M80 -> 25 | L60: ='Nastavení příloh'!N80 -> 25 | M60: ='Nastavení příloh'!O80 -> 25 | N60: ='Nastavení příloh'!P80 -> 25 | O60: ='Nastavení příloh'!Q80 -> 25 | P60: ='Nastavení příloh'!R80 -> 25 | Q60: ='Nastavení příloh'!S80 -> 25 | R60: ='Nastavení příloh'!T80 -> 25 | S60: ='Nastavení příloh'!U80 -> 25 | T60: ='Nastavení příloh'!V80 -> 25 | U60: ='Nastavení příloh'!W80 -> 25 | V60: ='Nastavení příloh'!X80 -> 25
A61: ='Nastavení příloh'!E81 -> 6450 | B61: ='Nastavení příloh'!B81 -> 6400 | C61: ='Nastavení příloh'!D81 -> 6499 | D61: ='Nastavení příloh'!F81 -> 0 | E61: ='Nastavení příloh'!G81 -> 7 | F61: ='Nastavení příloh'!H81 -> 18 | G61: ='Nastavení příloh'!I81 -> 25 | H61: ='Nastavení příloh'!J81 -> 25 | I61: ='Nastavení příloh'!K81 -> 25 | J61: ='Nastavení příloh'!L81 -> 25 | K61: ='Nastavení příloh'!M81 -> 25 | L61: ='Nastavení příloh'!N81 -> 25 | M61: ='Nastavení příloh'!O81 -> 25 | N61: ='Nastavení příloh'!P81 -> 25 | O61: ='Nastavení příloh'!Q81 -> 25 | P61: ='Nastavení příloh'!R81 -> 25 | Q61: ='Nastavení příloh'!S81 -> 25 | R61: ='Nastavení příloh'!T81 -> 25 | S61: ='Nastavení příloh'!U81 -> 25 | T61: ='Nastavení příloh'!V81 -> 25 | U61: ='Nastavení příloh'!W81 -> 25 | V61: ='Nastavení příloh'!X81 -> 25
A62: ='Nastavení příloh'!E88 -> 6550 | B62: ='Nastavení příloh'!B88 -> 6500 | C62: ='Nastavení příloh'!D88 -> 6599 | D62: ='Nastavení příloh'!F88 -> 0 | E62: ='Nastavení příloh'!G88 -> 7 | F62: ='Nastavení příloh'!H88 -> 18 | G62: ='Nastavení příloh'!I88 -> 25 | H62: ='Nastavení příloh'!J88 -> 25 | I62: ='Nastavení příloh'!K88 -> 25 | J62: ='Nastavení příloh'!L88 -> 25 | K62: ='Nastavení příloh'!M88 -> 25 | L62: ='Nastavení příloh'!N88 -> 25 | M62: ='Nastavení příloh'!O88 -> 25 | N62: ='Nastavení příloh'!P88 -> 25 | O62: ='Nastavení příloh'!Q88 -> 25 | P62: ='Nastavení příloh'!R88 -> 25 | Q62: ='Nastavení příloh'!S88 -> 25 | R62: ='Nastavení příloh'!T88 -> 25 | S62: ='Nastavení příloh'!U88 -> 25 | T62: ='Nastavení příloh'!V88 -> 25 | U62: ='Nastavení příloh'!W88 -> 25 | V62: ='Nastavení příloh'!X88 -> 25
A63: ='Nastavení příloh'!E89 -> 6650 | B63: ='Nastavení příloh'!B89 -> 6600 | C63: ='Nastavení příloh'!D89 -> 6699 | D63: ='Nastavení příloh'!F89 -> 0 | E63: ='Nastavení příloh'!G89 -> 7 | F63: ='Nastavení příloh'!H89 -> 19 | G63: ='Nastavení příloh'!I89 -> 25 | H63: ='Nastavení příloh'!J89 -> 25 | I63: ='Nastavení příloh'!K89 -> 25 | J63: ='Nastavení příloh'!L89 -> 25 | K63: ='Nastavení příloh'!M89 -> 25 | L63: ='Nastavení příloh'!N89 -> 25 | M63: ='Nastavení příloh'!O89 -> 25 | N63: ='Nastavení příloh'!P89 -> 25 | O63: ='Nastavení příloh'!Q89 -> 25 | P63: ='Nastavení příloh'!R89 -> 25 | Q63: ='Nastavení příloh'!S89 -> 25 | R63: ='Nastavení příloh'!T89 -> 25 | S63: ='Nastavení příloh'!U89 -> 25 | T63: ='Nastavení příloh'!V89 -> 25 | U63: ='Nastavení příloh'!W89 -> 25 | V63: ='Nastavení příloh'!X89 -> 25
A64: ='Nastavení příloh'!E90 -> 6750 | B64: ='Nastavení příloh'!B90 -> 6700 | C64: ='Nastavení příloh'!D90 -> 6799 | D64: ='Nastavení příloh'!F90 -> 0 | E64: ='Nastavení příloh'!G90 -> 7 | F64: ='Nastavení příloh'!H90 -> 19 | G64: ='Nastavení příloh'!I90 -> 25 | H64: ='Nastavení příloh'!J90 -> 25 | I64: ='Nastavení příloh'!K90 -> 25 | J64: ='Nastavení příloh'!L90 -> 25 | K64: ='Nastavení příloh'!M90 -> 25 | L64: ='Nastavení příloh'!N90 -> 25 | M64: ='Nastavení příloh'!O90 -> 25 | N64: ='Nastavení příloh'!P90 -> 25 | O64: ='Nastavení příloh'!Q90 -> 25 | P64: ='Nastavení příloh'!R90 -> 25 | Q64: ='Nastavení příloh'!S90 -> 25 | R64: ='Nastavení příloh'!T90 -> 25 | S64: ='Nastavení příloh'!U90 -> 25 | T64: ='Nastavení příloh'!V90 -> 25 | U64: ='Nastavení příloh'!W90 -> 25 | V64: ='Nastavení příloh'!X90 -> 25
A65: ='Nastavení příloh'!E91 -> 6850 | B65: ='Nastavení příloh'!B91 -> 6800 | C65: ='Nastavení příloh'!D91 -> 6899 | D65: ='Nastavení příloh'!F91 -> 0 | E65: ='Nastavení příloh'!G91 -> 7 | F65: ='Nastavení příloh'!H91 -> 19 | G65: ='Nastavení příloh'!I91 -> 25 | H65: ='Nastavení příloh'!J91 -> 25 | I65: ='Nastavení příloh'!K91 -> 25 | J65: ='Nastavení příloh'!L91 -> 25 | K65: ='Nastavení příloh'!M91 -> 25 | L65: ='Nastavení příloh'!N91 -> 25 | M65: ='Nastavení příloh'!O91 -> 25 | N65: ='Nastavení příloh'!P91 -> 25 | O65: ='Nastavení příloh'!Q91 -> 25 | P65: ='Nastavení příloh'!R91 -> 25 | Q65: ='Nastavení příloh'!S91 -> 25 | R65: ='Nastavení příloh'!T91 -> 25 | S65: ='Nastavení příloh'!U91 -> 25 | T65: ='Nastavení příloh'!V91 -> 25 | U65: ='Nastavení příloh'!W91 -> 25 | V65: ='Nastavení příloh'!X91 -> 25
A66: ='Nastavení příloh'!E92 -> 6950 | B66: ='Nastavení příloh'!B92 -> 6900 | C66: ='Nastavení příloh'!D92 -> 6999 | D66: ='Nastavení příloh'!F92 -> 0 | E66: ='Nastavení příloh'!G92 -> 7 | F66: ='Nastavení příloh'!H92 -> 19 | G66: ='Nastavení příloh'!I92 -> 25 | H66: ='Nastavení příloh'!J92 -> 25 | I66: ='Nastavení příloh'!K92 -> 25 | J66: ='Nastavení příloh'!L92 -> 25 | K66: ='Nastavení příloh'!M92 -> 25 | L66: ='Nastavení příloh'!N92 -> 25 | M66: ='Nastavení příloh'!O92 -> 25 | N66: ='Nastavení příloh'!P92 -> 25 | O66: ='Nastavení příloh'!Q92 -> 25 | P66: ='Nastavení příloh'!R92 -> 25 | Q66: ='Nastavení příloh'!S92 -> 25 | R66: ='Nastavení příloh'!T92 -> 25 | S66: ='Nastavení příloh'!U92 -> 25 | T66: ='Nastavení příloh'!V92 -> 25 | U66: ='Nastavení příloh'!W92 -> 25 | V66: ='Nastavení příloh'!X92 -> 25
A67: ='Nastavení příloh'!E93 -> 7050 | B67: ='Nastavení příloh'!B93 -> 7000 | C67: ='Nastavení příloh'!D93 -> 7099 | D67: ='Nastavení příloh'!F93 -> 0 | E67: ='Nastavení příloh'!G93 -> 7 | F67: ='Nastavení příloh'!H93 -> 20 | G67: ='Nastavení příloh'!I93 -> 25 | H67: ='Nastavení příloh'!J93 -> 25 | I67: ='Nastavení příloh'!K93 -> 25 | J67: ='Nastavení příloh'!L93 -> 25 | K67: ='Nastavení příloh'!M93 -> 25 | L67: ='Nastavení příloh'!N93 -> 25 | M67: ='Nastavení příloh'!O93 -> 25 | N67: ='Nastavení příloh'!P93 -> 25 | O67: ='Nastavení příloh'!Q93 -> 25 | P67: ='Nastavení příloh'!R93 -> 25 | Q67: ='Nastavení příloh'!S93 -> 25 | R67: ='Nastavení příloh'!T93 -> 25 | S67: ='Nastavení příloh'!U93 -> 25 | T67: ='Nastavení příloh'!V93 -> 25 | U67: ='Nastavení příloh'!W93 -> 25 | V67: ='Nastavení příloh'!X93 -> 25
A68: ='Nastavení příloh'!E94 -> 7150 | B68: ='Nastavení příloh'!B94 -> 7100 | C68: ='Nastavení příloh'!D94 -> 7199 | D68: ='Nastavení příloh'!F94 -> 0 | E68: ='Nastavení příloh'!G94 -> 8 | F68: ='Nastavení příloh'!H94 -> 20 | G68: ='Nastavení příloh'!I94 -> 25 | H68: ='Nastavení příloh'!J94 -> 25 | I68: ='Nastavení příloh'!K94 -> 25 | J68: ='Nastavení příloh'!L94 -> 25 | K68: ='Nastavení příloh'!M94 -> 25 | L68: ='Nastavení příloh'!N94 -> 25 | M68: ='Nastavení příloh'!O94 -> 25 | N68: ='Nastavení příloh'!P94 -> 25 | O68: ='Nastavení příloh'!Q94 -> 25 | P68: ='Nastavení příloh'!R94 -> 25 | Q68: ='Nastavení příloh'!S94 -> 25 | R68: ='Nastavení příloh'!T94 -> 25 | S68: ='Nastavení příloh'!U94 -> 25 | T68: ='Nastavení příloh'!V94 -> 25 | U68: ='Nastavení příloh'!W94 -> 25 | V68: ='Nastavení příloh'!X94 -> 25
A69: ='Nastavení příloh'!E95 -> 7250 | B69: ='Nastavení příloh'!B95 -> 7200 | C69: ='Nastavení příloh'!D95 -> 7299 | D69: ='Nastavení příloh'!F95 -> 0 | E69: ='Nastavení příloh'!G95 -> 8 | F69: ='Nastavení příloh'!H95 -> 20 | G69: ='Nastavení příloh'!I95 -> 25 | H69: ='Nastavení příloh'!J95 -> 25 | I69: ='Nastavení příloh'!K95 -> 25 | J69: ='Nastavení příloh'!L95 -> 25 | K69: ='Nastavení příloh'!M95 -> 25 | L69: ='Nastavení příloh'!N95 -> 25 | M69: ='Nastavení příloh'!O95 -> 25 | N69: ='Nastavení příloh'!P95 -> 25 | O69: ='Nastavení příloh'!Q95 -> 25 | P69: ='Nastavení příloh'!R95 -> 25 | Q69: ='Nastavení příloh'!S95 -> 25 | R69: ='Nastavení příloh'!T95 -> 25 | S69: ='Nastavení příloh'!U95 -> 25 | T69: ='Nastavení příloh'!V95 -> 25 | U69: ='Nastavení příloh'!W95 -> 25 | V69: ='Nastavení příloh'!X95 -> 25
A70: ='Nastavení příloh'!E96 -> 7350 | B70: ='Nastavení příloh'!B96 -> 7300 | C70: ='Nastavení příloh'!D96 -> 7399 | D70: ='Nastavení příloh'!F96 -> 0 | E70: ='Nastavení příloh'!G96 -> 8 | F70: ='Nastavení příloh'!H96 -> 21 | G70: ='Nastavení příloh'!I96 -> 25 | H70: ='Nastavení příloh'!J96 -> 25 | I70: ='Nastavení příloh'!K96 -> 25 | J70: ='Nastavení příloh'!L96 -> 25 | K70: ='Nastavení příloh'!M96 -> 25 | L70: ='Nastavení příloh'!N96 -> 25 | M70: ='Nastavení příloh'!O96 -> 25 | N70: ='Nastavení příloh'!P96 -> 25 | O70: ='Nastavení příloh'!Q96 -> 25 | P70: ='Nastavení příloh'!R96 -> 25 | Q70: ='Nastavení příloh'!S96 -> 25 | R70: ='Nastavení příloh'!T96 -> 25 | S70: ='Nastavení příloh'!U96 -> 25 | T70: ='Nastavení příloh'!V96 -> 25 | U70: ='Nastavení příloh'!W96 -> 25 | V70: ='Nastavení příloh'!X96 -> 25
A71: ='Nastavení příloh'!E97 -> 7450 | B71: ='Nastavení příloh'!B97 -> 7400 | C71: ='Nastavení příloh'!D97 -> 7499 | D71: ='Nastavení příloh'!F97 -> 0 | E71: ='Nastavení příloh'!G97 -> 8 | F71: ='Nastavení příloh'!H97 -> 21 | G71: ='Nastavení příloh'!I97 -> 25 | H71: ='Nastavení příloh'!J97 -> 25 | I71: ='Nastavení příloh'!K97 -> 25 | J71: ='Nastavení příloh'!L97 -> 25 | K71: ='Nastavení příloh'!M97 -> 25 | L71: ='Nastavení příloh'!N97 -> 25 | M71: ='Nastavení příloh'!O97 -> 25 | N71: ='Nastavení příloh'!P97 -> 25 | O71: ='Nastavení příloh'!Q97 -> 25 | P71: ='Nastavení příloh'!R97 -> 25 | Q71: ='Nastavení příloh'!S97 -> 25 | R71: ='Nastavení příloh'!T97 -> 25 | S71: ='Nastavení příloh'!U97 -> 25 | T71: ='Nastavení příloh'!V97 -> 25 | U71: ='Nastavení příloh'!W97 -> 25 | V71: ='Nastavení příloh'!X97 -> 25
A72: ='Nastavení příloh'!E98 -> 7550 | B72: ='Nastavení příloh'!B98 -> 7500 | C72: ='Nastavení příloh'!D98 -> 7599 | D72: ='Nastavení příloh'!F98 -> 0 | E72: ='Nastavení příloh'!G98 -> 8 | F72: ='Nastavení příloh'!H98 -> 21 | G72: ='Nastavení příloh'!I98 -> 25 | H72: ='Nastavení příloh'!J98 -> 25 | I72: ='Nastavení příloh'!K98 -> 25 | J72: ='Nastavení příloh'!L98 -> 25 | K72: ='Nastavení příloh'!M98 -> 25 | L72: ='Nastavení příloh'!N98 -> 25 | M72: ='Nastavení příloh'!O98 -> 25 | N72: ='Nastavení příloh'!P98 -> 25 | O72: ='Nastavení příloh'!Q98 -> 25 | P72: ='Nastavení příloh'!R98 -> 25 | Q72: ='Nastavení příloh'!S98 -> 25 | R72: ='Nastavení příloh'!T98 -> 25 | S72: ='Nastavení příloh'!U98 -> 25 | T72: ='Nastavení příloh'!V98 -> 25 | U72: ='Nastavení příloh'!W98 -> 25 | V72: ='Nastavení příloh'!X98 -> 25
A73: ='Nastavení příloh'!E99 -> 7650 | B73: ='Nastavení příloh'!B99 -> 7600 | C73: ='Nastavení příloh'!D99 -> 7699 | D73: ='Nastavení příloh'!F99 -> 0 | E73: ='Nastavení příloh'!G99 -> 8 | F73: ='Nastavení příloh'!H99 -> 21 | G73: ='Nastavení příloh'!I99 -> 25 | H73: ='Nastavení příloh'!J99 -> 25 | I73: ='Nastavení příloh'!K99 -> 25 | J73: ='Nastavení příloh'!L99 -> 25 | K73: ='Nastavení příloh'!M99 -> 25 | L73: ='Nastavení příloh'!N99 -> 25 | M73: ='Nastavení příloh'!O99 -> 25 | N73: ='Nastavení příloh'!P99 -> 25 | O73: ='Nastavení příloh'!Q99 -> 25 | P73: ='Nastavení příloh'!R99 -> 25 | Q73: ='Nastavení příloh'!S99 -> 25 | R73: ='Nastavení příloh'!T99 -> 25 | S73: ='Nastavení příloh'!U99 -> 25 | T73: ='Nastavení příloh'!V99 -> 25 | U73: ='Nastavení příloh'!W99 -> 25 | V73: ='Nastavení příloh'!X99 -> 25
A74: ='Nastavení příloh'!E100 -> 7750 | B74: ='Nastavení příloh'!B100 -> 7700 | C74: ='Nastavení příloh'!D100 -> 7799 | D74: ='Nastavení příloh'!F100 -> 0 | E74: ='Nastavení příloh'!G100 -> 8 | F74: ='Nastavení příloh'!H100 -> 22 | G74: ='Nastavení příloh'!I100 -> 25 | H74: ='Nastavení příloh'!J100 -> 25 | I74: ='Nastavení příloh'!K100 -> 25 | J74: ='Nastavení příloh'!L100 -> 25 | K74: ='Nastavení příloh'!M100 -> 25 | L74: ='Nastavení příloh'!N100 -> 25 | M74: ='Nastavení příloh'!O100 -> 25 | N74: ='Nastavení příloh'!P100 -> 25 | O74: ='Nastavení příloh'!Q100 -> 25 | P74: ='Nastavení příloh'!R100 -> 25 | Q74: ='Nastavení příloh'!S100 -> 25 | R74: ='Nastavení příloh'!T100 -> 25 | S74: ='Nastavení příloh'!U100 -> 25 | T74: ='Nastavení příloh'!V100 -> 25 | U74: ='Nastavení příloh'!W100 -> 25 | V74: ='Nastavení příloh'!X100 -> 25
A75: ='Nastavení příloh'!E101 -> 7850 | B75: ='Nastavení příloh'!B101 -> 7800 | C75: ='Nastavení příloh'!D101 -> 7899 | D75: ='Nastavení příloh'!F101 -> 0 | E75: ='Nastavení příloh'!G101 -> 8 | F75: ='Nastavení příloh'!H101 -> 22 | G75: ='Nastavení příloh'!I101 -> 25 | H75: ='Nastavení příloh'!J101 -> 25 | I75: ='Nastavení příloh'!K101 -> 25 | J75: ='Nastavení příloh'!L101 -> 25 | K75: ='Nastavení příloh'!M101 -> 25 | L75: ='Nastavení příloh'!N101 -> 25 | M75: ='Nastavení příloh'!O101 -> 25 | N75: ='Nastavení příloh'!P101 -> 25 | O75: ='Nastavení příloh'!Q101 -> 25 | P75: ='Nastavení příloh'!R101 -> 25 | Q75: ='Nastavení příloh'!S101 -> 25 | R75: ='Nastavení příloh'!T101 -> 25 | S75: ='Nastavení příloh'!U101 -> 25 | T75: ='Nastavení příloh'!V101 -> 25 | U75: ='Nastavení příloh'!W101 -> 25 | V75: ='Nastavení příloh'!X101 -> 25
A76: ='Nastavení příloh'!E102 -> 7950 | B76: ='Nastavení příloh'!B102 -> 7900 | C76: ='Nastavení příloh'!D102 -> 7999 | D76: ='Nastavení příloh'!F102 -> 0 | E76: ='Nastavení příloh'!G102 -> 8 | F76: ='Nastavení příloh'!H102 -> 22 | G76: ='Nastavení příloh'!I102 -> 25 | H76: ='Nastavení příloh'!J102 -> 25 | I76: ='Nastavení příloh'!K102 -> 25 | J76: ='Nastavení příloh'!L102 -> 25 | K76: ='Nastavení příloh'!M102 -> 25 | L76: ='Nastavení příloh'!N102 -> 25 | M76: ='Nastavení příloh'!O102 -> 25 | N76: ='Nastavení příloh'!P102 -> 25 | O76: ='Nastavení příloh'!Q102 -> 25 | P76: ='Nastavení příloh'!R102 -> 25 | Q76: ='Nastavení příloh'!S102 -> 25 | R76: ='Nastavení příloh'!T102 -> 25 | S76: ='Nastavení příloh'!U102 -> 25 | T76: ='Nastavení příloh'!V102 -> 25 | U76: ='Nastavení příloh'!W102 -> 25 | V76: ='Nastavení příloh'!X102 -> 25
A77: ='Nastavení příloh'!E103 -> 8050 | B77: ='Nastavení příloh'!B103 -> 8000 | C77: ='Nastavení příloh'!D103 -> 8099 | D77: ='Nastavení příloh'!F103 -> 0 | E77: ='Nastavení příloh'!G103 -> 8 | F77: ='Nastavení příloh'!H103 -> 23 | G77: ='Nastavení příloh'!I103 -> 25 | H77: ='Nastavení příloh'!J103 -> 25 | I77: ='Nastavení příloh'!K103 -> 25 | J77: ='Nastavení příloh'!L103 -> 25 | K77: ='Nastavení příloh'!M103 -> 25 | L77: ='Nastavení příloh'!N103 -> 25 | M77: ='Nastavení příloh'!O103 -> 25 | N77: ='Nastavení příloh'!P103 -> 25 | O77: ='Nastavení příloh'!Q103 -> 25 | P77: ='Nastavení příloh'!R103 -> 25 | Q77: ='Nastavení příloh'!S103 -> 25 | R77: ='Nastavení příloh'!T103 -> 25 | S77: ='Nastavení příloh'!U103 -> 25 | T77: ='Nastavení příloh'!V103 -> 25 | U77: ='Nastavení příloh'!W103 -> 25 | V77: ='Nastavení příloh'!X103 -> 25
A78: ='Nastavení příloh'!E104 -> 8150 | B78: ='Nastavení příloh'!B104 -> 8100 | C78: ='Nastavení příloh'!D104 -> 8199 | D78: ='Nastavení příloh'!F104 -> 0 | E78: ='Nastavení příloh'!G104 -> 9 | F78: ='Nastavení příloh'!H104 -> 23 | G78: ='Nastavení příloh'!I104 -> 25 | H78: ='Nastavení příloh'!J104 -> 25 | I78: ='Nastavení příloh'!K104 -> 25 | J78: ='Nastavení příloh'!L104 -> 25 | K78: ='Nastavení příloh'!M104 -> 25 | L78: ='Nastavení příloh'!N104 -> 25 | M78: ='Nastavení příloh'!O104 -> 25 | N78: ='Nastavení příloh'!P104 -> 25 | O78: ='Nastavení příloh'!Q104 -> 25 | P78: ='Nastavení příloh'!R104 -> 25 | Q78: ='Nastavení příloh'!S104 -> 25 | R78: ='Nastavení příloh'!T104 -> 25 | S78: ='Nastavení příloh'!U104 -> 25 | T78: ='Nastavení příloh'!V104 -> 25 | U78: ='Nastavení příloh'!W104 -> 25 | V78: ='Nastavení příloh'!X104 -> 25
A79: ='Nastavení příloh'!E105 -> 8250 | B79: ='Nastavení příloh'!B105 -> 8200 | C79: ='Nastavení příloh'!D105 -> 8299 | D79: ='Nastavení příloh'!F105 -> 0 | E79: ='Nastavení příloh'!G105 -> 9 | F79: ='Nastavení příloh'!H105 -> 23 | G79: ='Nastavení příloh'!I105 -> 25 | H79: ='Nastavení příloh'!J105 -> 25 | I79: ='Nastavení příloh'!K105 -> 25 | J79: ='Nastavení příloh'!L105 -> 25 | K79: ='Nastavení příloh'!M105 -> 25 | L79: ='Nastavení příloh'!N105 -> 25 | M79: ='Nastavení příloh'!O105 -> 25 | N79: ='Nastavení příloh'!P105 -> 25 | O79: ='Nastavení příloh'!Q105 -> 25 | P79: ='Nastavení příloh'!R105 -> 25 | Q79: ='Nastavení příloh'!S105 -> 25 | R79: ='Nastavení příloh'!T105 -> 25 | S79: ='Nastavení příloh'!U105 -> 25 | T79: ='Nastavení příloh'!V105 -> 25 | U79: ='Nastavení příloh'!W105 -> 25 | V79: ='Nastavení příloh'!X105 -> 25
A80: ='Nastavení příloh'!E106 -> 8350 | B80: ='Nastavení příloh'!B106 -> 8300 | C80: ='Nastavení příloh'!D106 -> 8399 | D80: ='Nastavení příloh'!F106 -> 0 | E80: ='Nastavení příloh'!G106 -> 9 | F80: ='Nastavení příloh'!H106 -> 23 | G80: ='Nastavení příloh'!I106 -> 25 | H80: ='Nastavení příloh'!J106 -> 25 | I80: ='Nastavení příloh'!K106 -> 25 | J80: ='Nastavení příloh'!L106 -> 25 | K80: ='Nastavení příloh'!M106 -> 25 | L80: ='Nastavení příloh'!N106 -> 25 | M80: ='Nastavení příloh'!O106 -> 25 | N80: ='Nastavení příloh'!P106 -> 25 | O80: ='Nastavení příloh'!Q106 -> 25 | P80: ='Nastavení příloh'!R106 -> 25 | Q80: ='Nastavení příloh'!S106 -> 25 | R80: ='Nastavení příloh'!T106 -> 25 | S80: ='Nastavení příloh'!U106 -> 25 | T80: ='Nastavení příloh'!V106 -> 25 | U80: ='Nastavení příloh'!W106 -> 25 | V80: ='Nastavení příloh'!X106 -> 25
A81: ='Nastavení příloh'!E107 -> 8450 | B81: ='Nastavení příloh'!B107 -> 8400 | C81: ='Nastavení příloh'!D107 -> 8499 | D81: ='Nastavení příloh'!F107 -> 0 | E81: ='Nastavení příloh'!G107 -> 9 | F81: ='Nastavení příloh'!H107 -> 24 | G81: ='Nastavení příloh'!I107 -> 25 | H81: ='Nastavení příloh'!J107 -> 25 | I81: ='Nastavení příloh'!K107 -> 25 | J81: ='Nastavení příloh'!L107 -> 25 | K81: ='Nastavení příloh'!M107 -> 25 | L81: ='Nastavení příloh'!N107 -> 25 | M81: ='Nastavení příloh'!O107 -> 25 | N81: ='Nastavení příloh'!P107 -> 25 | O81: ='Nastavení příloh'!Q107 -> 25 | P81: ='Nastavení příloh'!R107 -> 25 | Q81: ='Nastavení příloh'!S107 -> 25 | R81: ='Nastavení příloh'!T107 -> 25 | S81: ='Nastavení příloh'!U107 -> 25 | T81: ='Nastavení příloh'!V107 -> 25 | U81: ='Nastavení příloh'!W107 -> 25 | V81: ='Nastavení příloh'!X107 -> 25
A82: ='Nastavení příloh'!E108 -> 8550 | B82: ='Nastavení příloh'!B108 -> 8500 | C82: ='Nastavení příloh'!D108 -> 8599 | D82: ='Nastavení příloh'!F108 -> 0 | E82: ='Nastavení příloh'!G108 -> 9 | F82: ='Nastavení příloh'!H108 -> 24 | G82: ='Nastavení příloh'!I108 -> 25 | H82: ='Nastavení příloh'!J108 -> 25 | I82: ='Nastavení příloh'!K108 -> 25 | J82: ='Nastavení příloh'!L108 -> 25 | K82: ='Nastavení příloh'!M108 -> 25 | L82: ='Nastavení příloh'!N108 -> 25 | M82: ='Nastavení příloh'!O108 -> 25 | N82: ='Nastavení příloh'!P108 -> 25 | O82: ='Nastavení příloh'!Q108 -> 25 | P82: ='Nastavení příloh'!R108 -> 25 | Q82: ='Nastavení příloh'!S108 -> 25 | R82: ='Nastavení příloh'!T108 -> 25 | S82: ='Nastavení příloh'!U108 -> 25 | T82: ='Nastavení příloh'!V108 -> 25 | U82: ='Nastavení příloh'!W108 -> 25 | V82: ='Nastavení příloh'!X108 -> 25
A83: ='Nastavení příloh'!E109 -> 8650 | B83: ='Nastavení příloh'!B109 -> 8600 | C83: ='Nastavení příloh'!D109 -> 8699 | D83: ='Nastavení příloh'!F109 -> 0 | E83: ='Nastavení příloh'!G109 -> 9 | F83: ='Nastavení příloh'!H109 -> 24 | G83: ='Nastavení příloh'!I109 -> 25 | H83: ='Nastavení příloh'!J109 -> 25 | I83: ='Nastavení příloh'!K109 -> 25 | J83: ='Nastavení příloh'!L109 -> 25 | K83: ='Nastavení příloh'!M109 -> 25 | L83: ='Nastavení příloh'!N109 -> 25 | M83: ='Nastavení příloh'!O109 -> 25 | N83: ='Nastavení příloh'!P109 -> 25 | O83: ='Nastavení příloh'!Q109 -> 25 | P83: ='Nastavení příloh'!R109 -> 25 | Q83: ='Nastavení příloh'!S109 -> 25 | R83: ='Nastavení příloh'!T109 -> 25 | S83: ='Nastavení příloh'!U109 -> 25 | T83: ='Nastavení příloh'!V109 -> 25 | U83: ='Nastavení příloh'!W109 -> 25 | V83: ='Nastavení příloh'!X109 -> 25
A84: ='Nastavení příloh'!E110 -> 8750 | B84: ='Nastavení příloh'!B110 -> 8700 | C84: ='Nastavení příloh'!D110 -> 8799 | D84: ='Nastavení příloh'!F110 -> 0 | E84: ='Nastavení příloh'!G110 -> 9 | F84: ='Nastavení příloh'!H110 -> 25 | G84: ='Nastavení příloh'!I110 -> 25 | H84: ='Nastavení příloh'!J110 -> 25 | I84: ='Nastavení příloh'!K110 -> 25 | J84: ='Nastavení příloh'!L110 -> 25 | K84: ='Nastavení příloh'!M110 -> 25 | L84: ='Nastavení příloh'!N110 -> 25 | M84: ='Nastavení příloh'!O110 -> 25 | N84: ='Nastavení příloh'!P110 -> 25 | O84: ='Nastavení příloh'!Q110 -> 25 | P84: ='Nastavení příloh'!R110 -> 25 | Q84: ='Nastavení příloh'!S110 -> 25 | R84: ='Nastavení příloh'!T110 -> 25 | S84: ='Nastavení příloh'!U110 -> 25 | T84: ='Nastavení příloh'!V110 -> 25 | U84: ='Nastavení příloh'!W110 -> 25 | V84: ='Nastavení příloh'!X110 -> 25
A85: ='Nastavení příloh'!E111 -> 8850 | B85: ='Nastavení příloh'!B111 -> 8800 | C85: ='Nastavení příloh'!D111 -> 8899 | D85: ='Nastavení příloh'!F111 -> 0 | E85: ='Nastavení příloh'!G111 -> 9 | F85: ='Nastavení příloh'!H111 -> 25 | G85: ='Nastavení příloh'!I111 -> 25 | H85: ='Nastavení příloh'!J111 -> 25 | I85: ='Nastavení příloh'!K111 -> 25 | J85: ='Nastavení příloh'!L111 -> 25 | K85: ='Nastavení příloh'!M111 -> 25 | L85: ='Nastavení příloh'!N111 -> 25 | M85: ='Nastavení příloh'!O111 -> 25 | N85: ='Nastavení příloh'!P111 -> 25 | O85: ='Nastavení příloh'!Q111 -> 25 | P85: ='Nastavení příloh'!R111 -> 25 | Q85: ='Nastavení příloh'!S111 -> 25 | R85: ='Nastavení příloh'!T111 -> 25 | S85: ='Nastavení příloh'!U111 -> 25 | T85: ='Nastavení příloh'!V111 -> 25 | U85: ='Nastavení příloh'!W111 -> 25 | V85: ='Nastavení příloh'!X111 -> 25
A86: ='Nastavení příloh'!E112 -> 8950 | B86: ='Nastavení příloh'!B112 -> 8900 | C86: ='Nastavení příloh'!D112 -> 8999 | D86: ='Nastavení příloh'!F112 -> 0 | E86: ='Nastavení příloh'!G112 -> 9 | F86: ='Nastavení příloh'!H112 -> 25 | G86: ='Nastavení příloh'!I112 -> 25 | H86: ='Nastavení příloh'!J112 -> 25 | I86: ='Nastavení příloh'!K112 -> 25 | J86: ='Nastavení příloh'!L112 -> 25 | K86: ='Nastavení příloh'!M112 -> 25 | L86: ='Nastavení příloh'!N112 -> 25 | M86: ='Nastavení příloh'!O112 -> 25 | N86: ='Nastavení příloh'!P112 -> 25 | O86: ='Nastavení příloh'!Q112 -> 25 | P86: ='Nastavení příloh'!R112 -> 25 | Q86: ='Nastavení příloh'!S112 -> 25 | R86: ='Nastavení příloh'!T112 -> 25 | S86: ='Nastavení příloh'!U112 -> 25 | T86: ='Nastavení příloh'!V112 -> 25 | U86: ='Nastavení příloh'!W112 -> 25 | V86: ='Nastavení příloh'!X112 -> 25
A87: ='Nastavení příloh'!E113 -> 9050 | B87: ='Nastavení příloh'!B113 -> 9000 | C87: ='Nastavení příloh'!D113 -> 9099 | D87: ='Nastavení příloh'!F113 -> 0 | E87: ='Nastavení příloh'!G113 -> 10 | F87: ='Nastavení příloh'!H113 -> 25 | G87: ='Nastavení příloh'!I113 -> 25 | H87: ='Nastavení příloh'!J113 -> 25 | I87: ='Nastavení příloh'!K113 -> 25 | J87: ='Nastavení příloh'!L113 -> 25 | K87: ='Nastavení příloh'!M113 -> 25 | L87: ='Nastavení příloh'!N113 -> 25 | M87: ='Nastavení příloh'!O113 -> 25 | N87: ='Nastavení příloh'!P113 -> 25 | O87: ='Nastavení příloh'!Q113 -> 25 | P87: ='Nastavení příloh'!R113 -> 25 | Q87: ='Nastavení příloh'!S113 -> 25 | R87: ='Nastavení příloh'!T113 -> 25 | S87: ='Nastavení příloh'!U113 -> 25 | T87: ='Nastavení příloh'!V113 -> 25 | U87: ='Nastavení příloh'!W113 -> 25 | V87: ='Nastavení příloh'!X113 -> 25
A88: ='Nastavení příloh'!E114 -> 9150 | B88: ='Nastavení příloh'!B114 -> 9100 | C88: ='Nastavení příloh'!D114 -> 9199 | D88: ='Nastavení příloh'!F114 -> 0 | E88: ='Nastavení příloh'!G114 -> 10 | F88: ='Nastavení příloh'!H114 -> 25 | G88: ='Nastavení příloh'!I114 -> 25 | H88: ='Nastavení příloh'!J114 -> 25 | I88: ='Nastavení příloh'!K114 -> 25 | J88: ='Nastavení příloh'!L114 -> 25 | K88: ='Nastavení příloh'!M114 -> 25 | L88: ='Nastavení příloh'!N114 -> 25 | M88: ='Nastavení příloh'!O114 -> 25 | N88: ='Nastavení příloh'!P114 -> 25 | O88: ='Nastavení příloh'!Q114 -> 25 | P88: ='Nastavení příloh'!R114 -> 25 | Q88: ='Nastavení příloh'!S114 -> 25 | R88: ='Nastavení příloh'!T114 -> 25 | S88: ='Nastavení příloh'!U114 -> 25 | T88: ='Nastavení příloh'!V114 -> 25 | U88: ='Nastavení příloh'!W114 -> 25 | V88: ='Nastavení příloh'!X114 -> 25
A89: ='Nastavení příloh'!E115 -> 9250 | B89: ='Nastavení příloh'!B115 -> 9200 | C89: ='Nastavení příloh'!D115 -> 9299 | D89: ='Nastavení příloh'!F115 -> 0 | E89: ='Nastavení příloh'!G115 -> 10 | F89: ='Nastavení příloh'!H115 -> 25 | G89: ='Nastavení příloh'!I115 -> 25 | H89: ='Nastavení příloh'!J115 -> 25 | I89: ='Nastavení příloh'!K115 -> 25 | J89: ='Nastavení příloh'!L115 -> 25 | K89: ='Nastavení příloh'!M115 -> 25 | L89: ='Nastavení příloh'!N115 -> 25 | M89: ='Nastavení příloh'!O115 -> 25 | N89: ='Nastavení příloh'!P115 -> 25 | O89: ='Nastavení příloh'!Q115 -> 25 | P89: ='Nastavení příloh'!R115 -> 25 | Q89: ='Nastavení příloh'!S115 -> 25 | R89: ='Nastavení příloh'!T115 -> 25 | S89: ='Nastavení příloh'!U115 -> 25 | T89: ='Nastavení příloh'!V115 -> 25 | U89: ='Nastavení příloh'!W115 -> 25 | V89: ='Nastavení příloh'!X115 -> 25
A90: ='Nastavení příloh'!E116 -> 9350 | B90: ='Nastavení příloh'!B116 -> 9300 | C90: ='Nastavení příloh'!D116 -> 9399 | D90: ='Nastavení příloh'!F116 -> 0 | E90: ='Nastavení příloh'!G116 -> 10 | F90: ='Nastavení příloh'!H116 -> 25 | G90: ='Nastavení příloh'!I116 -> 25 | H90: ='Nastavení příloh'!J116 -> 25 | I90: ='Nastavení příloh'!K116 -> 25 | J90: ='Nastavení příloh'!L116 -> 25 | K90: ='Nastavení příloh'!M116 -> 25 | L90: ='Nastavení příloh'!N116 -> 25 | M90: ='Nastavení příloh'!O116 -> 25 | N90: ='Nastavení příloh'!P116 -> 25 | O90: ='Nastavení příloh'!Q116 -> 25 | P90: ='Nastavení příloh'!R116 -> 25 | Q90: ='Nastavení příloh'!S116 -> 25 | R90: ='Nastavení příloh'!T116 -> 25 | S90: ='Nastavení příloh'!U116 -> 25 | T90: ='Nastavení příloh'!V116 -> 25 | U90: ='Nastavení příloh'!W116 -> 25 | V90: ='Nastavení příloh'!X116 -> 25
A91: ='Nastavení příloh'!E117 -> 9450 | B91: 9400 | C91: 9999 | D91: ='Nastavení příloh'!F117 -> 0 | E91: ='Nastavení příloh'!G117 -> 10 | F91: ='Nastavení příloh'!H117 -> 25 | G91: ='Nastavení příloh'!I117 -> 25 | H91: ='Nastavení příloh'!J117 -> 25 | I91: ='Nastavení příloh'!K117 -> 25 | J91: ='Nastavení příloh'!L117 -> 25 | K91: ='Nastavení příloh'!M117 -> 25 | L91: ='Nastavení příloh'!N117 -> 25 | M91: ='Nastavení příloh'!O117 -> 25 | N91: ='Nastavení příloh'!P117 -> 25 | O91: ='Nastavení příloh'!Q117 -> 25 | P91: ='Nastavení příloh'!R117 -> 25 | Q91: ='Nastavení příloh'!S117 -> 25 | R91: ='Nastavení příloh'!T117 -> 25 | S91: ='Nastavení příloh'!U117 -> 25 | T91: ='Nastavení příloh'!V117 -> 25 | U91: ='Nastavení příloh'!W117 -> 25 | V91: ='Nastavení příloh'!X117 -> 25

Sheet bv (hidden)
A1: objem | B1: objem_min | C1: objem_max | D1: ='Nastavení příloh'!AD13 -> 0 % | E1: ='Nastavení příloh'!AE13 -> 1-5 % | F1: ='Nastavení příloh'!AF13 -> 6-10 % | G1: ='Nastavení příloh'!AG13 -> 11-15 % | H1: ='Nastavení příloh'!AH13 -> 16-20 % | I1: ='Nastavení příloh'!AI13 -> 21-25 % | J1: ='Nastavení příloh'!AJ13 -> 26-30 % | K1: ='Nastavení příloh'!AK13 -> 31-35 % | L1: ='Nastavení příloh'!AL13 -> 36-40 % | M1: ='Nastavení příloh'!AM13 -> 41-45 % | N1: ='Nastavení příloh'!AN13 -> 46-50 % | O1: ='Nastavení příloh'!AO13 -> 51-55 % | P1: ='Nastavení příloh'!AP13 -> 56-60 % | Q1: ='Nastavení příloh'!AQ13 -> 61-65 % | R1: ='Nastavení příloh'!AR13 -> 66-70 % | S1: ='Nastavení příloh'!AS13 -> 71-75 % | T1: ='Nastavení příloh'!AT13 -> 76-80 % | U1: ='Nastavení příloh'!AU13 -> 81-85 % | V1: ='Nastavení příloh'!AV13 -> více jak 85 %
A2: ='Nastavení příloh'!E16 -> 550 | B2: ='Nastavení příloh'!Z16 -> 0 | C2: ='Nastavení příloh'!AB16 -> 599 | D2: ='Nastavení příloh'!AD16 -> 0 | E2: ='Nastavení příloh'!AE16 -> 9 | F2: ='Nastavení příloh'!AF16 -> 10 | G2: ='Nastavení příloh'!AG16 -> 12 | H2: ='Nastavení příloh'!AH16 -> 13 | I2: ='Nastavení příloh'!AI16 -> 15 | J2: ='Nastavení příloh'!AJ16 -> 17 | K2: ='Nastavení příloh'!AK16 -> 18 | L2: ='Nastavení příloh'!AL16 -> 20 | M2: ='Nastavení příloh'!AM16 -> 21 | N2: ='Nastavení příloh'!AN16 -> 23 | O2: ='Nastavení příloh'!AO16 -> 24 | P2: ='Nastavení příloh'!AP16 -> 25 | Q2: ='Nastavení příloh'!AQ16 -> 25 | R2: ='Nastavení příloh'!AR16 -> 25 | S2: ='Nastavení příloh'!AS16 -> 25 | T2: ='Nastavení příloh'!AT16 -> 25 | U2: ='Nastavení příloh'!AU16 -> 25 | V2: ='Nastavení příloh'!AV16 -> 25
A3: ='Nastavení příloh'!E17 -> 650 | B3: ='Nastavení příloh'!Z17 -> 600 | C3: ='Nastavení příloh'!AB17 -> 699 | D3: ='Nastavení příloh'!AD17 -> 0 | E3: ='Nastavení příloh'!AE17 -> 3 | F3: ='Nastavení příloh'!AF17 -> 5 | G3: ='Nastavení příloh'!AG17 -> 7 | H3: ='Nastavení příloh'!AH17 -> 9 | I3: ='Nastavení příloh'!AI17 -> 11 | J3: ='Nastavení příloh'!AJ17 -> 12 | K3: ='Nastavení příloh'!AK17 -> 14 | L3: ='Nastavení příloh'!AL17 -> 16 | M3: ='Nastavení příloh'!AM17 -> 18 | N3: ='Nastavení příloh'!AN17 -> 20 | O3: ='Nastavení příloh'!AO17 -> 22 | P3: ='Nastavení příloh'!AP17 -> 24 | Q3: ='Nastavení příloh'!AQ17 -> 25 | R3: ='Nastavení příloh'!AR17 -> 25 | S3: ='Nastavení příloh'!AS17 -> 25 | T3: ='Nastavení příloh'!AT17 -> 25 | U3: ='Nastavení příloh'!AU17 -> 25 | V3: ='Nastavení příloh'!AV17 -> 25
A4: ='Nastavení příloh'!E18 -> 750 | B4: ='Nastavení příloh'!Z18 -> 700 | C4: ='Nastavení příloh'!AB18 -> 799 | D4: ='Nastavení příloh'!AD18 -> 0 | E4: ='Nastavení příloh'!AE18 -> 0 | F4: ='Nastavení příloh'!AF18 -> 0 | G4: ='Nastavení příloh'!AG18 -> 2 | H4: ='Nastavení příloh'!AH18 -> 4 | I4: ='Nastavení příloh'!AI18 -> 6 | J4: ='Nastavení příloh'!AJ18 -> 8 | K4: ='Nastavení příloh'!AK18 -> 11 | L4: ='Nastavení příloh'!AL18 -> 13 | M4: ='Nastavení příloh'!AM18 -> 15 | N4: ='Nastavení příloh'!AN18 -> 17 | O4: ='Nastavení příloh'!AO18 -> 19 | P4: ='Nastavení příloh'!AP18 -> 21 | Q4: ='Nastavení příloh'!AQ18 -> 23 | R4: ='Nastavení příloh'!AR18 -> 25 | S4: ='Nastavení příloh'!AS18 -> 25 | T4: ='Nastavení příloh'!AT18 -> 25 | U4: ='Nastavení příloh'!AU18 -> 25 | V4: ='Nastavení příloh'!AV18 -> 25
A5: ='Nastavení příloh'!E19 -> 850 | B5: ='Nastavení příloh'!Z19 -> 800 | C5: ='Nastavení příloh'!AB19 -> 899 | D5: ='Nastavení příloh'!AD19 -> 0 | E5: ='Nastavení příloh'!AE19 -> 0 | F5: ='Nastavení příloh'!AF19 -> 0 | G5: ='Nastavení příloh'!AG19 -> 0 | H5: ='Nastavení příloh'!AH19 -> 0 | I5: ='Nastavení příloh'!AI19 -> 2 | J5: ='Nastavení příloh'!AJ19 -> 4 | K5: ='Nastavení příloh'!AK19 -> 7 | L5: ='Nastavení příloh'!AL19 -> 9 | M5: ='Nastavení příloh'!AM19 -> 12 | N5: ='Nastavení příloh'!AN19 -> 14 | O5: ='Nastavení příloh'!AO19 -> 16 | P5: ='Nastavení příloh'!AP19 -> 19 | Q5: ='Nastavení příloh'!AQ19 -> 21 | R5: ='Nastavení příloh'!AR19 -> 24 | S5: ='Nastavení příloh'!AS19 -> 25 | T5: ='Nastavení příloh'!AT19 -> 25 | U5: ='Nastavení příloh'!AU19 -> 25 | V5: ='Nastavení příloh'!AV19 -> 24
A6: ='Nastavení příloh'!E20 -> 950 | B6: ='Nastavení příloh'!Z20 -> 900 | C6: ='Nastavení příloh'!AB20 -> 999 | D6: ='Nastavení příloh'!AD20 -> 0 | E6: ='Nastavení příloh'!AE20 -> 0 | F6: ='Nastavení příloh'!AF20 -> 0 | G6: ='Nastavení příloh'!AG20 -> 0 | H6: ='Nastavení příloh'!AH20 -> 0 | I6: ='Nastavení příloh'!AI20 -> 0 | J6: ='Nastavení příloh'!AJ20 -> 0 | K6: ='Nastavení příloh'!AK20 -> 3 | L6: ='Nastavení příloh'!AL20 -> 6 | M6: ='Nastavení příloh'!AM20 -> 8 | N6: ='Nastavení příloh'!AN20 -> 11 | O6: ='Nastavení příloh'!AO20 -> 14 | P6: ='Nastavení příloh'!AP20 -> 16 | Q6: ='Nastavení příloh'!AQ20 -> 19 | R6: ='Nastavení příloh'!AR20 -> 22 | S6: ='Nastavení příloh'!AS20 -> 25 | T6: ='Nastavení příloh'!AT20 -> 25 | U6: ='Nastavení příloh'!AU20 -> 24 | V6: ='Nastavení příloh'!AV20 -> 22
A7: ='Nastavení příloh'!E21 -> 1050 | B7: ='Nastavení příloh'!Z21 -> 1000 | C7: ='Nastavení příloh'!AB21 -> 1099 | D7: ='Nastavení příloh'!AD21 -> 0 | E7: ='Nastavení příloh'!AE21 -> 0 | F7: ='Nastavení příloh'!AF21 -> 0 | G7: ='Nastavení příloh'!AG21 -> 0 | H7: ='Nastavení příloh'!AH21 -> 0 | I7: ='Nastavení příloh'!AI21 -> 0 | J7: ='Nastavení příloh'!AJ21 -> 0 | K7: ='Nastavení příloh'!AK21 -> 0 | L7: ='Nastavení příloh'!AL21 -> 2 | M7: ='Nastavení příloh'!AM21 -> 5 | N7: ='Nastavení příloh'!AN21 -> 8 | O7: ='Nastavení příloh'!AO21 -> 11 | P7: ='Nastavení příloh'!AP21 -> 14 | Q7: ='Nastavení příloh'!AQ21 -> 17 | R7: ='Nastavení příloh'!AR21 -> 20 | S7: ='Nastavení příloh'!AS21 -> 23 | T7: ='Nastavení příloh'!AT21 -> 25 | U7: ='Nastavení příloh'!AU21 -> 23 | V7: ='Nastavení příloh'!AV21 -> 20
A8: ='Nastavení příloh'!E22 -> 1150 | B8: ='Nastavení příloh'!Z22 -> 1100 | C8: ='Nastavení příloh'!AB22 -> 1199 | D8: ='Nastavení příloh'!AD22 -> -3 | E8: ='Nastavení příloh'!AE22 -> -2 | F8: ='Nastavení příloh'!AF22 -> 0 | G8: ='Nastavení příloh'!AG22 -> 0 | H8: ='Nastavení příloh'!AH22 -> 0 | I8: ='Nastavení příloh'!AI22 -> 0 | J8: ='Nastavení příloh'!AJ22 -> 0 | K8: ='Nastavení příloh'!AK22 -> 0 | L8: ='Nastavení příloh'!AL22 -> 0 | M8: ='Nastavení příloh'!AM22 -> 2 | N8: ='Nastavení příloh'!AN22 -> 5 | O8: ='Nastavení příloh'!AO22 -> 8 | P8: ='Nastavení příloh'!AP22 -> 12 | Q8: ='Nastavení příloh'!AQ22 -> 15 | R8: ='Nastavení příloh'!AR22 -> 18 | S8: ='Nastavení příloh'!AS22 -> 21 | T8: ='Nastavení příloh'!AT22 -> 25 | U8: ='Nastavení příloh'!AU22 -> 21 | V8: ='Nastavení příloh'!AV22 -> 18
A9: ='Nastavení příloh'!E23 -> 1250 | B9: ='Nastavení příloh'!Z23 -> 1200 | C9: ='Nastavení příloh'!AB23 -> 1299 | D9: ='Nastavení příloh'!AD23 -> -6 | E9: ='Nastavení příloh'!AE23 -> -5 | F9: ='Nastavení příloh'!AF23 -> -3 | G9: ='Nastavení příloh'!AG23 -> -1 | H9: ='Nastavení příloh'!AH23 -> 0 | I9: ='Nastavení příloh'!AI23 -> 0 | J9: ='Nastavení příloh'!AJ23 -> 0 | K9: ='Nastavení příloh'!AK23 -> 0 | L9: ='Nastavení příloh'!AL23 -> 0 | M9: ='Nastavení příloh'!AM23 -> 0 | N9: ='Nastavení příloh'!AN23 -> 2 | O9: ='Nastavení příloh'!AO23 -> 6 | P9: ='Nastavení příloh'!AP23 -> 9 | Q9: ='Nastavení příloh'!AQ23 -> 13 | R9: ='Nastavení příloh'!AR23 -> 16 | S9: ='Nastavení příloh'!AS23 -> 20 | T9: ='Nastavení příloh'!AT23 -> 23 | U9: ='Nastavení příloh'!AU23 -> 20 | V9: ='Nastavení příloh'!AV23 -> 16
A10: ='Nastavení příloh'!E24 -> 1350 | B10: ='Nastavení příloh'!Z24 -> 1300 | C10: ='Nastavení příloh'!AB24 -> 1399 | D10: ='Nastavení příloh'!AD24 -> -9 | E10: ='Nastavení příloh'!AE24 -> -8 | F10: ='Nastavení příloh'!AF24 -> -6 | G10: ='Nastavení příloh'!AG24 -> -4 | H10: ='Nastavení příloh'!AH24 -> -2 | I10: ='Nastavení příloh'!AI24 -> 0 | J10: ='Nastavení příloh'!AJ24 -> 0 | K10: ='Nastavení příloh'!AK24 -> 0 | L10: ='Nastavení příloh'!AL24 -> 0 | M10: ='Nastavení příloh'!AM24 -> 0 | N10: ='Nastavení příloh'!AN24 -> 0 | O10: ='Nastavení příloh'!AO24 -> 3 | P10: ='Nastavení příloh'!AP24 -> 7 | Q10: ='Nastavení příloh'!AQ24 -> 11 | R10: ='Nastavení příloh'!AR24 -> 15 | S10: ='Nastavení příloh'!AS24 -> 18 | T10: ='Nastavení příloh'!AT24 -> 22 | U10: ='Nastavení příloh'!AU24 -> 18 | V10: ='Nastavení příloh'!AV24 -> 15
A11: ='Nastavení příloh'!E25 -> 1450 | B11: ='Nastavení příloh'!Z25 -> 1400 | C11: ='Nastavení příloh'!AB25 -> 1499 | D11: ='Nastavení příloh'!AD25 -> -12 | E11: ='Nastavení příloh'!AE25 -> -10 | F11: ='Nastavení příloh'!AF25 -> -8 | G11: ='Nastavení příloh'!AG25 -> -6 | H11: ='Nastavení příloh'!AH25 -> -4 | I11: ='Nastavení příloh'!AI25 -> -2 | J11: ='Nastavení příloh'!AJ25 -> 0 | K11: ='Nastavení příloh'!AK25 -> 0 | L11: ='Nastavení příloh'!AL25 -> 0 | M11: ='Nastavení příloh'!AM25 -> 0 | N11: ='Nastavení příloh'!AN25 -> 0 | O11: ='Nastavení příloh'!AO25 -> 0 | P11: ='Nastavení příloh'!AP25 -> 4 | Q11: ='Nastavení příloh'!AQ25 -> 9 | R11: ='Nastavení příloh'!AR25 -> 13 | S11: ='Nastavení příloh'!AS25 -> 17 | T11: ='Nastavení příloh'!AT25 -> 21 | U11: ='Nastavení příloh'!AU25 -> 17 | V11: ='Nastavení příloh'!AV25 -> 13
A12: ='Nastavení příloh'!E26 -> 1550 | B12: ='Nastavení příloh'!Z26 -> 1500 | C12: ='Nastavení příloh'!AB26 -> 1599 | D12: ='Nastavení příloh'!AD26 -> -13 | E12: ='Nastavení příloh'!AE26 -> -13 | F12: ='Nastavení příloh'!AF26 -> -11 | G12: ='Nastavení příloh'!AG26 -> -9 | H12: ='Nastavení příloh'!AH26 -> -7 | I12: ='Nastavení příloh'!AI26 -> -4 | J12: ='Nastavení příloh'!AJ26 -> -2 | K12: ='Nastavení příloh'!AK26 -> 0 | L12: ='Nastavení příloh'!AL26 -> 0 | M12: ='Nastavení příloh'!AM26 -> 0 | N12: ='Nastavení příloh'!AN26 -> 0 | O12: ='Nastavení příloh'!AO26 -> 0 | P12: ='Nastavení příloh'!AP26 -> 2 | Q12: ='Nastavení příloh'!AQ26 -> 7 | R12: ='Nastavení příloh'!AR26 -> 11 | S12: ='Nastavení příloh'!AS26 -> 15 | T12: ='Nastavení příloh'!AT26 -> 20 | U12: ='Nastavení příloh'!AU26 -> 15 | V12: ='Nastavení příloh'!AV26 -> 11
A13: ='Nastavení příloh'!E27 -> 1650 | B13: ='Nastavení příloh'!Z27 -> 1600 | C13: ='Nastavení příloh'!AB27 -> 1699 | D13: ='Nastavení příloh'!AD27 -> -13 | E13: ='Nastavení příloh'!AE27 -> -13 | F13: ='Nastavení příloh'!AF27 -> -13 | G13: ='Nastavení příloh'!AG27 -> -11 | H13: ='Nastavení příloh'!AH27 -> -9 | I13: ='Nastavení příloh'!AI27 -> -6 | J13: ='Nastavení příloh'!AJ27 -> -4 | K13: ='Nastavení příloh'!AK27 -> -2 | L13: ='Nastavení příloh'!AL27 -> 0 | M13: ='Nastavení příloh'!AM27 -> 0 | N13: ='Nastavení příloh'!AN27 -> 0 | O13: ='Nastavení příloh'!AO27 -> 0 | P13: ='Nastavení příloh'!AP27 -> 0 | Q13: ='Nastavení příloh'!AQ27 -> 4 | R13: ='Nastavení příloh'!AR27 -> 9 | S13: ='Nastavení příloh'!AS27 -> 14 | T13: ='Nastavení příloh'!AT27 -> 18 | U13: ='Nastavení příloh'!AU27 -> 14 | V13: ='Nastavení příloh'!AV27 -> 9
A14: ='Nastavení příloh'!E28 -> 1750 | B14: ='Nastavení příloh'!Z28 -> 1700 | C14: ='Nastavení příloh'!AB28 -> 1799 | D14: ='Nastavení příloh'!AD28 -> -13 | E14: ='Nastavení příloh'!AE28 -> -13 | F14: ='Nastavení příloh'!AF28 -> -13 | G14: ='Nastavení příloh'!AG28 -> -13 | H14: ='Nastavení příloh'!AH28 -> -11 | I14: ='Nastavení příloh'!AI28 -> -9 | J14: ='Nastavení příloh'!AJ28 -> -6 | K14: ='Nastavení příloh'!AK28 -> -4 | L14: ='Nastavení příloh'!AL28 -> -1 | M14: ='Nastavení příloh'!AM28 -> 0 | N14: ='Nastavení příloh'!AN28 -> 0 | O14: ='Nastavení příloh'!AO28 -> 0 | P14: ='Nastavení příloh'!AP28 -> 0 | Q14: ='Nastavení příloh'!AQ28 -> 2 | R14: ='Nastavení příloh'!AR28 -> 7 | S14: ='Nastavení příloh'!AS28 -> 12 | T14: ='Nastavení příloh'!AT28 -> 17 | U14: ='Nastavení příloh'!AU28 -> 12 | V14: ='Nastavení příloh'!AV28 -> 7
A15: ='Nastavení příloh'!E29 -> 1850 | B15: ='Nastavení příloh'!Z29 -> 1800 | C15: ='Nastavení příloh'!AB29 -> 1899 | D15: ='Nastavení příloh'!AD29 -> -13 | E15: ='Nastavení příloh'!AE29 -> -13 | F15: ='Nastavení příloh'!AF29 -> -13 | G15: ='Nastavení příloh'!AG29 -> -13 | H15: ='Nastavení příloh'!AH29 -> -13 | I15: ='Nastavení příloh'!AI29 -> -11 | J15: ='Nastavení příloh'!AJ29 -> -8 | K15: ='Nastavení příloh'!AK29 -> -6 | L15: ='Nastavení příloh'!AL29 -> -3 | M15: ='Nastavení příloh'!AM29 -> 0 | N15: ='Nastavení příloh'!AN29 -> 0 | O15: ='Nastavení příloh'!AO29 -> 0 | P15: ='Nastavení příloh'!AP29 -> 0 | Q15: ='Nastavení příloh'!AQ29 -> 0 | R15: ='Nastavení příloh'!AR29 -> 5 | S15: ='Nastavení příloh'!AS29 -> 11 | T15: ='Nastavení příloh'!AT29 -> 16 | U15: ='Nastavení příloh'!AU29 -> 11 | V15: ='Nastavení příloh'!AV29 -> 5
A16: ='Nastavení příloh'!E30 -> 1950 | B16: ='Nastavení příloh'!Z30 -> 1900 | C16: ='Nastavení příloh'!AB30 -> 1999 | D16: ='Nastavení příloh'!AD30 -> -13 | E16: ='Nastavení příloh'!AE30 -> -13 | F16: ='Nastavení příloh'!AF30 -> -13 | G16: ='Nastavení příloh'!AG30 -> -13 | H16: ='Nastavení příloh'!AH30 -> -13 | I16: ='Nastavení příloh'!AI30 -> -13 | J16: ='Nastavení příloh'!AJ30 -> -10 | K16: ='Nastavení příloh'!AK30 -> -8 | L16: ='Nastavení příloh'!AL30 -> -5 | M16: ='Nastavení příloh'!AM30 -> -2 | N16: ='Nastavení příloh'!AN30 -> 0 | O16: ='Nastavení příloh'!AO30 -> 0 | P16: ='Nastavení příloh'!AP30 -> 0 | Q16: ='Nastavení příloh'!AQ30 -> 0 | R16: ='Nastavení příloh'!AR30 -> 4 | S16: ='Nastavení příloh'!AS30 -> 9 | T16: ='Nastavení příloh'!AT30 -> 15 | U16: ='Nastavení příloh'!AU30 -> 9 | V16: ='Nastavení příloh'!AV30 -> 4
A17: ='Nastavení příloh'!E31 -> 2050 | B17: ='Nastavení příloh'!Z31 -> 2000 | C17: ='Nastavení příloh'!AB31 -> 2099 | D17: ='Nastavení příloh'!AD31 -> -13 | E17: ='Nastavení příloh'!AE31 -> -13 | F17: ='Nastavení příloh'!AF31 -> -13 | G17: ='Nastavení příloh'!AG31 -> -13 | H17: ='Nastavení příloh'!AH31 -> -13 | I17: ='Nastavení příloh'!AI31 -> -13 | J17: ='Nastavení příloh'!AJ31 -> -12 | K17: ='Nastavení příloh'!AK31 -> -9 | L17: ='Nastavení příloh'!AL31 -> -7 | M17: ='Nastavení příloh'!AM31 -> -4 | N17: ='Nastavení příloh'!AN31 -> -1 | O17: ='Nastavení příloh'!AO31 -> 0 | P17: ='Nastavení příloh'!AP31 -> 0 | Q17: ='Nastavení příloh'!AQ31 -> 0 | R17: ='Nastavení příloh'!AR31 -> 2 | S17: ='Nastavení příloh'!AS31 -> 8 | T17: ='Nastavení příloh'!AT31 -> 13 | U17: ='Nastavení příloh'!AU31 -> 8 | V17: ='Nastavení příloh'!AV31 -> 2
A18: ='Nastavení příloh'!E32 -> 2150 | B18: ='Nastavení příloh'!Z32 -> 2100 | C18: ='Nastavení příloh'!AB32 -> 2199 | D18: ='Nastavení příloh'!AD32 -> -13 | E18: ='Nastavení příloh'!AE32 -> -13 | F18: ='Nastavení příloh'!AF32 -> -13 | G18: ='Nastavení příloh'!AG32 -> -13 | H18: ='Nastavení příloh'!AH32 -> -13 | I18: ='Nastavení příloh'!AI32 -> -13 | J18: ='Nastavení příloh'!AJ32 -> -13 | K18: ='Nastavení příloh'!AK32 -> -11 | L18: ='Nastavení příloh'!AL32 -> -8 | M18: ='Nastavení příloh'!AM32 -> -5 | N18: ='Nastavení příloh'!AN32 -> -2 | O18: ='Nastavení příloh'!AO32 -> 0 | P18: ='Nastavení příloh'!AP32 -> 0 | Q18: ='Nastavení příloh'!AQ32 -> 0 | R18: ='Nastavení příloh'!AR32 -> 0 | S18: ='Nastavení příloh'!AS32 -> 6 | T18: ='Nastavení příloh'!AT32 -> 12 | U18: ='Nastavení příloh'!AU32 -> 6 | V18: ='Nastavení příloh'!AV32 -> 0
A19: ='Nastavení příloh'!E33 -> 2250 | B19: ='Nastavení příloh'!Z33 -> 2200 | C19: ='Nastavení příloh'!AB33 -> 2299 | D19: ='Nastavení příloh'!AD33 -> -13 | E19: ='Nastavení příloh'!AE33 -> -13 | F19: ='Nastavení příloh'!AF33 -> -13 | G19: ='Nastavení příloh'!AG33 -> -13 | H19: ='Nastavení příloh'!AH33 -> -13 | I19: ='Nastavení příloh'!AI33 -> -13 | J19: ='Nastavení příloh'!AJ33 -> -13 | K19: ='Nastavení příloh'!AK33 -> -13 | L19: ='Nastavení příloh'!AL33 -> -10 | M19: ='Nastavení příloh'!AM33 -> -7 | N19: ='Nastavení příloh'!AN33 -> -4 | O19: ='Nastavení příloh'!AO33 -> 0 | P19: ='Nastavení příloh'!AP33 -> 0 | Q19: ='Nastavení příloh'!AQ33 -> 0 | R19: ='Nastavení příloh'!AR33 -> 0 | S19: ='Nastavení příloh'!AS33 -> 5 | T19: ='Nastavení příloh'!AT33 -> 11 | U19: ='Nastavení příloh'!AU33 -> 5 | V19: ='Nastavení příloh'!AV33 -> 0
A20: ='Nastavení příloh'!E34 -> 2350 | B20: ='Nastavení příloh'!Z34 -> 2300 | C20: ='Nastavení příloh'!AB34 -> 2399 | D20: ='Nastavení příloh'!AD34 -> -13 | E20: ='Nastavení příloh'!AE34 -> -13 | F20: ='Nastavení příloh'!AF34 -> -13 | G20: ='Nastavení příloh'!AG34 -> -13 | H20: ='Nastavení příloh'!AH34 -> -13 | I20: ='Nastavení příloh'!AI34 -> -13 | J20: ='Nastavení příloh'!AJ34 -> -13 | K20: ='Nastavení příloh'!AK34 -> -13 | L20: ='Nastavení příloh'!AL34 -> -12 | M20: ='Nastavení příloh'!AM34 -> -8 | N20: ='Nastavení příloh'!AN34 -> -5 | O20: ='Nastavení příloh'!AO34 -> -2 | P20: ='Nastavení příloh'!AP34 -> 0 | Q20: ='Nastavení příloh'!AQ34 -> 0 | R20: ='Nastavení příloh'!AR34 -> 0 | S20: ='Nastavení příloh'!AS34 -> 3 | T20: ='Nastavení příloh'!AT34 -> 10 | U20: ='Nastavení příloh'!AU34 -> 3 | V20: ='Nastavení příloh'!AV34 -> 0
A21: ='Nastavení příloh'!E35 -> 2450 | B21: ='Nastavení příloh'!Z35 -> 2400 | C21: ='Nastavení příloh'!AB35 -> 2499 | D21: ='Nastavení příloh'!AD35 -> -13 | E21: ='Nastavení příloh'!AE35 -> -13 | F21: ='Nastavení příloh'!AF35 -> -13 | G21: ='Nastavení příloh'!AG35 -> -13 | H21: ='Nastavení příloh'!AH35 -> -13 | I21: ='Nastavení příloh'!AI35 -> -13 | J21: ='Nastavení příloh'!AJ35 -> -13 | K21: ='Nastavení příloh'!AK35 -> -13 | L21: ='Nastavení příloh'!AL35 -> -13 | M21: ='Nastavení příloh'!AM35 -> -10 | N21: ='Nastavení příloh'!AN35 -> -7 | O21: ='Nastavení příloh'!AO35 -> -3 | P21: ='Nastavení příloh'!AP35 -> 0 | Q21: ='Nastavení příloh'!AQ35 -> 0 | R21: ='Nastavení příloh'!AR35 -> 0 | S21: ='Nastavení příloh'!AS35 -> 2 | T21: ='Nastavení příloh'!AT35 -> 8 | U21: ='Nastavení příloh'!AU35 -> 2 | V21: ='Nastavení příloh'!AV35 -> 0
A22: ='Nastavení příloh'!E36 -> 2550 | B22: ='Nastavení příloh'!Z36 -> 2500 | C22: ='Nastavení příloh'!AB36 -> 2599 | D22: ='Nastavení příloh'!AD36 -> -13 | E22: ='Nastavení příloh'!AE36 -> -13 | F22: ='Nastavení příloh'!AF36 -> -13 | G22: ='Nastavení příloh'!AG36 -> -13 | H22: ='Nastavení příloh'!AH36 -> -13 | I22: ='Nastavení příloh'!AI36 -> -13 | J22: ='Nastavení příloh'!AJ36 -> -13 | K22: ='Nastavení příloh'!AK36 -> -13 | L22: ='Nastavení příloh'!AL36 -> -13 | M22: ='Nastavení příloh'!AM36 -> -12 | N22: ='Nastavení příloh'!AN36 -> -8 | O22: ='Nastavení příloh'!AO36 -> -4 | P22: ='Nastavení příloh'!AP36 -> -1 | Q22: ='Nastavení příloh'!AQ36 -> 0 | R22: ='Nastavení příloh'!AR36 -> 0 | S22: ='Nastavení příloh'!AS36 -> 0 | T22: ='Nastavení příloh'!AT36 -> 7 | U22: ='Nastavení příloh'!AU36 -> 0 | V22: ='Nastavení příloh'!AV36 -> 0
A23: ='Nastavení příloh'!E37 -> 2650 | B23: ='Nastavení příloh'!Z37 -> 2600 | C23: ='Nastavení příloh'!AB37 -> 2699 | D23: ='Nastavení příloh'!AD37 -> -13 | E23: ='Nastavení příloh'!AE37 -> -13 | F23: ='Nastavení příloh'!AF37 -> -13 | G23: ='Nastavení příloh'!AG37 -> -13 | H23: ='Nastavení příloh'!AH37 -> -13 | I23: ='Nastavení příloh'!AI37 -> -13 | J23: ='Nastavení příloh'!AJ37 -> -13 | K23: ='Nastavení příloh'!AK37 -> -13 | L23: ='Nastavení příloh'!AL37 -> -13 | M23: ='Nastavení příloh'!AM37 -> -13 | N23: ='Nastavení příloh'!AN37 -> -10 | O23: ='Nastavení příloh'!AO37 -> -6 | P23: ='Nastavení příloh'!AP37 -> -2 | Q23: ='Nastavení příloh'!AQ37 -> 0 | R23: ='Nastavení příloh'!AR37 -> 0 | S23: ='Nastavení příloh'!AS37 -> 0 | T23: ='Nastavení příloh'!AT37 -> 6 | U23: ='Nastavení příloh'!AU37 -> 0 | V23: ='Nastavení příloh'!AV37 -> 0
A24: ='Nastavení příloh'!E38 -> 2750 | B24: ='Nastavení příloh'!Z38 -> 2700 | C24: ='Nastavení příloh'!AB38 -> 2799 | D24: ='Nastavení příloh'!AD38 -> -13 | E24: ='Nastavení příloh'!AE38 -> -13 | F24: ='Nastavení příloh'!AF38 -> -13 | G24: ='Nastavení příloh'!AG38 -> -13 | H24: ='Nastavení příloh'!AH38 -> -13 | I24: ='Nastavení příloh'!AI38 -> -13 | J24: ='Nastavení příloh'!AJ38 -> -13 | K24: ='Nastavení příloh'!AK38 -> -13 | L24: ='Nastavení příloh'!AL38 -> -13 | M24: ='Nastavení příloh'!AM38 -> -13 | N24: ='Nastavení příloh'!AN38 -> -11 | O24: ='Nastavení příloh'!AO38 -> -7 | P24: ='Nastavení příloh'!AP38 -> -3 | Q24: ='Nastavení příloh'!AQ38 -> 0 | R24: ='Nastavení příloh'!AR38 -> 0 | S24: ='Nastavení příloh'!AS38 -> 0 | T24: ='Nastavení příloh'!AT38 -> 5 | U24: ='Nastavení příloh'!AU38 -> 0 | V24: ='Nastavení příloh'!AV38 -> 0
A25: ='Nastavení příloh'!E39 -> 2850 | B25: ='Nastavení příloh'!Z39 -> 2800 | C25: ='Nastavení příloh'!AB39 -> 2899 | D25: ='Nastavení příloh'!AD39 -> -13 | E25: ='Nastavení příloh'!AE39 -> -13 | F25: ='Nastavení příloh'!AF39 -> -13 | G25: ='Nastavení příloh'!AG39 -> -13 | H25: ='Nastavení příloh'!AH39 -> -13 | I25: ='Nastavení příloh'!AI39 -> -13 | J25: ='Nastavení příloh'!AJ39 -> -13 | K25: ='Nastavení příloh'!AK39 -> -13 | L25: ='Nastavení příloh'!AL39 -> -13 | M25: ='Nastavení příloh'!AM39 -> -13 | N25: ='Nastavení příloh'!AN39 -> -12 | O25: ='Nastavení příloh'!AO39 -> -8 | P25: ='Nastavení příloh'!AP39 -> -4 | Q25: ='Nastavení příloh'!AQ39 -> 0 | R25: ='Nastavení příloh'!AR39 -> 0 | S25: ='Nastavení příloh'!AS39 -> 0 | T25: ='Nastavení příloh'!AT39 -> 0 | U25: ='Nastavení příloh'!AU39 -> 0 | V25: ='Nastavení příloh'!AV39 -> 0
A26: ='Nastavení příloh'!E40 -> 2950 | B26: ='Nastavení příloh'!Z40 -> 2900 | C26: ='Nastavení příloh'!AB40 -> 2999 | D26: ='Nastavení příloh'!AD40 -> -13 | E26: ='Nastavení příloh'!AE40 -> -13 | F26: ='Nastavení příloh'!AF40 -> -13 | G26: ='Nastavení příloh'!AG40 -> -13 | H26: ='Nastavení příloh'!AH40 -> -13 | I26: ='Nastavení příloh'!AI40 -> -13 | J26: ='Nastavení příloh'!AJ40 -> -13 | K26: ='Nastavení příloh'!AK40 -> -13 | L26: ='Nastavení příloh'!AL40 -> -13 | M26: ='Nastavení příloh'!AM40 -> -13 | N26: ='Nastavení příloh'!AN40 -> -13 | O26: ='Nastavení příloh'!AO40 -> -10 | P26: ='Nastavení příloh'!AP40 -> -6 | Q26: ='Nastavení příloh'!AQ40 -> -1 | R26: ='Nastavení příloh'!AR40 -> 0 | S26: ='Nastavení příloh'!AS40 -> 0 | T26: ='Nastavení příloh'!AT40 -> 0 | U26: ='Nastavení příloh'!AU40 -> 0 | V26: ='Nastavení příloh'!AV40 -> 0
A27: ='Nastavení příloh'!E41 -> 3050 | B27: ='Nastavení příloh'!Z41 -> 3000 | C27: ='Nastavení příloh'!AB41 -> 3099 | D27: ='Nastavení příloh'!AD41 -> -13 | E27: ='Nastavení příloh'!AE41 -> -13 | F27: ='Nastavení příloh'!AF41 -> -13 | G27: ='Nastavení příloh'!AG41 -> -13 | H27: ='Nastavení příloh'!AH41 -> -13 | I27: ='Nastavení příloh'!AI41 -> -13 | J27: ='Nastavení příloh'!AJ41 -> -13 | K27: ='Nastavení příloh'!AK41 -> -13 | L27: ='Nastavení příloh'!AL41 -> -13 | M27: ='Nastavení příloh'!AM41 -> -13 | N27: ='Nastavení příloh'!AN41 -> -13 | O27: ='Nastavení příloh'!AO41 -> -11 | P27: ='Nastavení příloh'!AP41 -> -7 | Q27: ='Nastavení příloh'!AQ41 -> -2 | R27: ='Nastavení příloh'!AR41 -> 0 | S27: ='Nastavení příloh'!AS41 -> 0 | T27: ='Nastavení příloh'!AT41 -> 0 | U27: ='Nastavení příloh'!AU41 -> 0 | V27: ='Nastavení příloh'!AV41 -> 0
A28: ='Nastavení příloh'!E42 -> 3150 | B28: ='Nastavení příloh'!Z42 -> 3100 | C28: ='Nastavení příloh'!AB42 -> 3199 | D28: ='Nastavení příloh'!AD42 -> -13 | E28: ='Nastavení příloh'!AE42 -> -13 | F28: ='Nastavení příloh'!AF42 -> -13 | G28: ='Nastavení příloh'!AG42 -> -13 | H28: ='Nastavení příloh'!AH42 -> -13 | I28: ='Nastavení příloh'!AI42 -> -13 | J28: ='Nastavení příloh'!AJ42 -> -13 | K28: ='Nastavení příloh'!AK42 -> -13 | L28: ='Nastavení příloh'!AL42 -> -13 | M28: ='Nastavení příloh'!AM42 -> -13 | N28: ='Nastavení příloh'!AN42 -> -13 | O28: ='Nastavení příloh'!AO42 -> -12 | P28: ='Nastavení příloh'!AP42 -> -8 | Q28: ='Nastavení příloh'!AQ42 -> -4 | R28: ='Nastavení příloh'!AR42 -> 0 | S28: ='Nastavení příloh'!AS42 -> 0 | T28: ='Nastavení příloh'!AT42 -> 0 | U28: ='Nastavení příloh'!AU42 -> 0 | V28: ='Nastavení příloh'!AV42 -> 0
A29: ='Nastavení příloh'!E43 -> 3250 | B29: ='Nastavení příloh'!Z43 -> 3200 | C29: ='Nastavení příloh'!AB43 -> 3299 | D29: ='Nastavení příloh'!AD43 -> -13 | E29: ='Nastavení příloh'!AE43 -> -13 | F29: ='Nastavení příloh'!AF43 -> -13 | G29: ='Nastavení příloh'!AG43 -> -13 | H29: ='Nastavení příloh'!AH43 -> -13 | I29: ='Nastavení příloh'!AI43 -> -13 | J29: ='Nastavení příloh'!AJ43 -> -13 | K29: ='Nastavení příloh'!AK43 -> -13 | L29: ='Nastavení příloh'!AL43 -> -13 | M29: ='Nastavení příloh'!AM43 -> -13 | N29: ='Nastavení příloh'!AN43 -> -13 | O29: ='Nastavení příloh'!AO43 -> -13 | P29: ='Nastavení příloh'!AP43 -> -9 | Q29: ='Nastavení příloh'!AQ43 -> -5 | R29: ='Nastavení příloh'!AR43 -> 0 | S29: ='Nastavení příloh'!AS43 -> 0 | T29: ='Nastavení příloh'!AT43 -> 0 | U29: ='Nastavení příloh'!AU43 -> 0 | V29: ='Nastavení příloh'!AV43 -> 0
A30: ='Nastavení příloh'!E44 -> 3350 | B30: ='Nastavení příloh'!Z44 -> 3300 | C30: ='Nastavení příloh'!AB44 -> 3399 | D30: ='Nastavení příloh'!AD44 -> -13 | E30: ='Nastavení příloh'!AE44 -> -13 | F30: ='Nastavení příloh'!AF44 -> -13 | G30: ='Nastavení příloh'!AG44 -> -13 | H30: ='Nastavení příloh'!AH44 -> -13 | I30: ='Nastavení příloh'!AI44 -> -13 | J30: ='Nastavení příloh'!AJ44 -> -13 | K30: ='Nastavení příloh'!AK44 -> -13 | L30: ='Nastavení příloh'!AL44 -> -13 | M30: ='Nastavení příloh'!AM44 -> -13 | N30: ='Nastavení příloh'!AN44 -> -13 | O30: ='Nastavení příloh'!AO44 -> -13 | P30: ='Nastavení příloh'!AP44 -> -10 | Q30: ='Nastavení příloh'!AQ44 -> -6 | R30: ='Nastavení příloh'!AR44 -> -1 | S30: ='Nastavení příloh'!AS44 -> 0 | T30: ='Nastavení příloh'!AT44 -> 0 | U30: ='Nastavení příloh'!AU44 -> 0 | V30: ='Nastavení příloh'!AV44 -> 0
A31: ='Nastavení příloh'!E45 -> 3450 | B31: ='Nastavení příloh'!Z45 -> 3400 | C31: ='Nastavení příloh'!AB45 -> 3499 | D31: ='Nastavení příloh'!AD45 -> -13 | E31: ='Nastavení příloh'!AE45 -> -13 | F31: ='Nastavení příloh'!AF45 -> -13 | G31: ='Nastavení příloh'!AG45 -> -13 | H31: ='Nastavení příloh'!AH45 -> -13 | I31: ='Nastavení příloh'!AI45 -> -13 | J31: ='Nastavení příloh'!AJ45 -> -13 | K31: ='Nastavení příloh'!AK45 -> -13 | L31: ='Nastavení příloh'!AL45 -> -13 | M31: ='Nastavení příloh'!AM45 -> -13 | N31: ='Nastavení příloh'!AN45 -> -13 | O31: ='Nastavení příloh'!AO45 -> -13 | P31: ='Nastavení příloh'!AP45 -> -12 | Q31: ='Nastavení příloh'!AQ45 -> -7 | R31: ='Nastavení příloh'!AR45 -> -2 | S31: ='Nastavení příloh'!AS45 -> 0 | T31: ='Nastavení příloh'!AT45 -> 0 | U31: ='Nastavení příloh'!AU45 -> 0 | V31: ='Nastavení příloh'!AV45 -> 0
A32: ='Nastavení příloh'!E52 -> 3550 | B32: ='Nastavení příloh'!Z52 -> 3500 | C32: ='Nastavení příloh'!AB52 -> 3599 | D32: ='Nastavení příloh'!AD52 -> -13 | E32: ='Nastavení příloh'!AE52 -> -13 | F32: ='Nastavení příloh'!AF52 -> -13 | G32: ='Nastavení příloh'!AG52 -> -13 | H32: ='Nastavení příloh'!AH52 -> -13 | I32: ='Nastavení příloh'!AI52 -> -13 | J32: ='Nastavení příloh'!AJ52 -> -13 | K32: ='Nastavení příloh'!AK52 -> -13 | L32: ='Nastavení příloh'!AL52 -> -13 | M32: ='Nastavení příloh'!AM52 -> -13 | N32: ='Nastavení příloh'!AN52 -> -13 | O32: ='Nastavení příloh'!AO52 -> -13 | P32: ='Nastavení příloh'!AP52 -> -13 | Q32: ='Nastavení příloh'!AQ52 -> -8 | R32: ='Nastavení příloh'!AR52 -> -3 | S32: ='Nastavení příloh'!AS52 -> 0 | T32: ='Nastavení příloh'!AT52 -> 0 | U32: ='Nastavení příloh'!AU52 -> 0 | V32: ='Nastavení příloh'!AV52 -> 0
A33: ='Nastavení příloh'!E53 -> 3650 | B33: ='Nastavení příloh'!Z53 -> 3600 | C33: ='Nastavení příloh'!AB53 -> 3699 | D33: ='Nastavení příloh'!AD53 -> -13 | E33: ='Nastavení příloh'!AE53 -> -13 | F33: ='Nastavení příloh'!AF53 -> -13 | G33: ='Nastavení příloh'!AG53 -> -13 | H33: ='Nastavení příloh'!AH53 -> -13 | I33: ='Nastavení příloh'!AI53 -> -13 | J33: ='Nastavení příloh'!AJ53 -> -13 | K33: ='Nastavení příloh'!AK53 -> -13 | L33: ='Nastavení příloh'!AL53 -> -13 | M33: ='Nastavení příloh'!AM53 -> -13 | N33: ='Nastavení příloh'!AN53 -> -13 | O33: ='Nastavení příloh'!AO53 -> -13 | P33: ='Nastavení příloh'!AP53 -> -13 | Q33: ='Nastavení příloh'!AQ53 -> -9 | R33: ='Nastavení příloh'!AR53 -> -4 | S33: ='Nastavení příloh'!AS53 -> 0 | T33: ='Nastavení příloh'!AT53 -> 0 | U33: ='Nastavení příloh'!AU53 -> 0 | V33: ='Nastavení příloh'!AV53 -> 0
A34: ='Nastavení příloh'!E54 -> 3750 | B34: ='Nastavení příloh'!Z54 -> 3700 | C34: ='Nastavení příloh'!AB54 -> 3799 | D34: ='Nastavení příloh'!AD54 -> -13 | E34: ='Nastavení příloh'!AE54 -> -13 | F34: ='Nastavení příloh'!AF54 -> -13 | G34: ='Nastavení příloh'!AG54 -> -13 | H34: ='Nastavení příloh'!AH54 -> -13 | I34: ='Nastavení příloh'!AI54 -> -13 | J34: ='Nastavení příloh'!AJ54 -> -13 | K34: ='Nastavení příloh'!AK54 -> -13 | L34: ='Nastavení příloh'!AL54 -> -13 | M34: ='Nastavení příloh'!AM54 -> -13 | N34: ='Nastavení příloh'!AN54 -> -13 | O34: ='Nastavení příloh'!AO54 -> -13 | P34: ='Nastavení příloh'!AP54 -> -13 | Q34: ='Nastavení příloh'!AQ54 -> -10 | R34: ='Nastavení příloh'!AR54 -> -5 | S34: ='Nastavení příloh'!AS54 -> 0 | T34: ='Nastavení příloh'!AT54 -> 0 | U34: ='Nastavení příloh'!AU54 -> 0 | V34: ='Nastavení příloh'!AV54 -> 0
A35: ='Nastavení příloh'!E55 -> 3850 | B35: ='Nastavení příloh'!Z55 -> 3800 | C35: ='Nastavení příloh'!AB55 -> 3899 | D35: ='Nastavení příloh'!AD55 -> -13 | E35: ='Nastavení příloh'!AE55 -> -13 | F35: ='Nastavení příloh'!AF55 -> -13 | G35: ='Nastavení příloh'!AG55 -> -13 | H35: ='Nastavení příloh'!AH55 -> -13 | I35: ='Nastavení příloh'!AI55 -> -13 | J35: ='Nastavení příloh'!AJ55 -> -13 | K35: ='Nastavení příloh'!AK55 -> -13 | L35: ='Nastavení příloh'!AL55 -> -13 | M35: ='Nastavení příloh'!AM55 -> -13 | N35: ='Nastavení příloh'!AN55 -> -13 | O35: ='Nastavení příloh'!AO55 -> -13 | P35: ='Nastavení příloh'!AP55 -> -13 | Q35: ='Nastavení příloh'!AQ55 -> -11 | R35: ='Nastavení příloh'!AR55 -> -5 | S35: ='Nastavení příloh'!AS55 -> 0 | T35: ='Nastavení příloh'!AT55 -> 0 | U35: ='Nastavení příloh'!AU55 -> 0 | V35: ='Nastavení příloh'!AV55 -> 0
A36: ='Nastavení příloh'!E56 -> 3950 | B36: ='Nastavení příloh'!Z56 -> 3900 | C36: ='Nastavení příloh'!AB56 -> 3999 | D36: ='Nastavení příloh'!AD56 -> -13 | E36: ='Nastavení příloh'!AE56 -> -13 | F36: ='Nastavení příloh'!AF56 -> -13 | G36: ='Nastavení příloh'!AG56 -> -13 | H36: ='Nastavení příloh'!AH56 -> -13 | I36: ='Nastavení příloh'!AI56 -> -13 | J36: ='Nastavení příloh'!AJ56 -> -13 | K36: ='Nastavení příloh'!AK56 -> -13 | L36: ='Nastavení příloh'!AL56 -> -13 | M36: ='Nastavení příloh'!AM56 -> -13 | N36: ='Nastavení příloh'!AN56 -> -13 | O36: ='Nastavení příloh'!AO56 -> -13 | P36: ='Nastavení příloh'!AP56 -> -13 | Q36: ='Nastavení příloh'!AQ56 -> -12 | R36: ='Nastavení příloh'!AR56 -> -6 | S36: ='Nastavení příloh'!AS56 -> -1 | T36: ='Nastavení příloh'!AT56 -> 0 | U36: ='Nastavení příloh'!AU56 -> 0 | V36: ='Nastavení příloh'!AV56 -> 0
A37: ='Nastavení příloh'!E57 -> 4050 | B37: ='Nastavení příloh'!Z57 -> 4000 | C37: ='Nastavení příloh'!AB57 -> 4099 | D37: ='Nastavení příloh'!AD57 -> -13 | E37: ='Nastavení příloh'!AE57 -> -13 | F37: ='Nastavení příloh'!AF57 -> -13 | G37: ='Nastavení příloh'!AG57 -> -13 | H37: ='Nastavení příloh'!AH57 -> -13 | I37: ='Nastavení příloh'!AI57 -> -13 | J37: ='Nastavení příloh'!AJ57 -> -13 | K37: ='Nastavení příloh'!AK57 -> -13 | L37: ='Nastavení příloh'!AL57 -> -13 | M37: ='Nastavení příloh'!AM57 -> -13 | N37: ='Nastavení příloh'!AN57 -> -13 | O37: ='Nastavení příloh'!AO57 -> -13 | P37: ='Nastavení příloh'!AP57 -> -13 | Q37: ='Nastavení příloh'!AQ57 -> -13 | R37: ='Nastavení příloh'!AR57 -> -7 | S37: ='Nastavení příloh'!AS57 -> -1 | T37: ='Nastavení příloh'!AT57 -> 0 | U37: ='Nastavení příloh'!AU57 -> 0 | V37: ='Nastavení příloh'!AV57 -> 0
